Workbook

Sheet HP
F2: Hydroplaning Analysis Tool
B8: General Inputs
B10: FPID | D10: 123456-7 | I10: Roadway Section Number | L10: 12345
B11: District No. | D11: 2 | I11: Milepost | L11: 16.1 | M11: to | N11: 16.9
B12: County | D12: Alachua | I12: (Please Select Milepost or Station above)
I13: Direction | L13: North
B14: Analysis Options
B16: Select Analysis Option | E16: Deterministic (Default) | H16: : Show intermediate outputs? | L16: Yes
H17: (e.g., Drainage Path Length)
B18: Risk Analysis? | E18: No
B19: (Per FDOT's Design Guidance)
B21: Continuous Data? | E21: No | H21: : For Rut depth, Cross Slope, and/or Texture
B23: Input Table for Continuous Data Analysis (Provide Values or Right-Click to Select Continuous File)
B24: Plane | C24: Design Speed (mph) | D24: Description | F24: Width (ft.) | H24: Cross Slope (Select Unit Below) | J24: Grade (Select Unit Below) | L24: MPD (in.) | N24: Rut Depth (in.)
H25: Percent (%)
B26: 1 | C26: 60 | D26: Lane 1 | F26: 12 | H26: C:\Users\hlee\Desktop\Projects\FDOT\Hydroplanning\Task 5\Sawgrass\L1_GPS_3dec_01.csv | J26: C:\Users\hlee\Desktop\Projects\FDOT\Hydroplanning\Task 5\Sawgrass\L1_GPS_3dec_01.csv | L26: 0.068 | N26: C:\Users\hlee\Desktop\Projects\FDOT\Hydroplanning\Task 5\Sawgrass\L1_01.csv
B27: 2 | C27: 60 | D27: Lane 2 | F27: 12 | H27: C:\Users\hlee\Desktop\Projects\FDOT\Hydroplanning\Task 5\Sawgrass\L2_GPS_3dec_01.csv | J27: C:\Users\hlee\Desktop\Projects\FDOT\Hydroplanning\Task 5\Sawgrass\L2_GPS_3dec_01.csv | L27: 0.068 | N27: C:\Users\hlee\Desktop\Projects\FDOT\Hydroplanning\Task 5\Sawgrass\L2_01.csv
B28: 3 | C28: 60 | D28: Lane 3 | F28: 12 | H28: C:\Users\hlee\Desktop\Projects\FDOT\Hydroplanning\Task 5\Sawgrass\L3_GPS_3dec_01.csv | J28: C:\Users\hlee\Desktop\Projects\FDOT\Hydroplanning\Task 5\Sawgrass\L3_GPS_3dec_01.csv | L28: 0.068 | N28: C:\Users\hlee\Desktop\Projects\FDOT\Hydroplanning\Task 5\Sawgrass\L3_01.csv
B29: 4
B30: 5
B31: 6
B32: 7
B33: 8
B34: 9
B35: 10
B36: 11
B37: 12
B41: Note: Only One model (Leftmost Column & Top Row in the Model Selection Matrix) will be used for Continuous Analysis
B43: WFT & HPS Model Selection
B45: WFT Model | D45: Hydroplaning Speed Model | K45: Notes on WFT and HPS Models
D46: PAVDRN | F46: USF | H46: Gallaway | K46: Please select as many models as needed.
B47: Gallaway | D47: Y | K47: Note 1: Risk Analysis is defaulted to Gallaway WFT
B48: UK RRL | K48: and PAVDRN HPS models.
B49: NZ Mod. | K49: Note 2: Continuous Analysis uses only ONE model
B50: PAVDRN | K50: combination.
B52: Pavement Inputs
B54: Deterministic Analysis
J56: Pavement Texture (Please Select MTD or MPD below)
B57: Longitudinal Grade (%) | E57: 3 | J57: Mean Texture Depth (in.) | M57: 0.067
B58: Surface Type | E58: Open Graded Friction Course
B59: Permeability (in/hr) | E59: 0
B61: Plane Number | D61: 1 | E61: 2 | F61: 3 | G61: 4 | H61: 5 | I61: 6 | J61: 7 | K61: 8 | L61: 9 | M61: 10 | N61: 11 | O61: 12
B62: Description | D62: Shoulder | E62: Lane 1 | F62: Lane 2 | G62: Buffer | H62: Lane 3 | I62: Lane 4 | J62: Gore | K62: Ramp | L62: Shoulder
B63: Design Speed (mph) | E63: 70 | F63: 70 | G63: 70 | H63: 65 | I63: 65 | K63: 50
B64: Cross Slope (%) | D64: 2 | E64: 2 | F64: 2 | G64: 2 | H64: 3 | I64: 3.5 | J64: 3.5 | K64: 3.5 | L64: 6
B65: Width (ft.) | D65: 12 | E65: 12 | F65: 12 | G65: 4 | H65: 12 | I65: 12 | J65: 12 | K65: 12 | L65: 12
C67: 0 | D67: =C67-D65*D64/100 -> -0.24 | E67: =D67-E65*E64/100 -> -0.48 | F67: =E67-F65*F64/100 -> -0.72 | G67: -0.8 | H67: -1.16 | I67: -1.58 | J67: -2 | K67: -2.42 | L67: -3.14 | M67: -3.14 | N67: -3.14 | O67: -3.14
C68: 0 | D68: =D65 -> 12 | E68: =D68+E65 -> 24 | F68: =E68+F65 -> 36 | G68: 40 | H68: 52 | I68: 64 | J68: 76 | K68: 88 | L68: 100 | M68: 100 | N68: 100 | O68: 100
B78: Sensitivity Analysis
M79: Min | N79: Max | O79: Inc.
B80: Select Surface Type (Y/N) | J80: Longitudinal Grade (%) | M80: 1 | N80: 2
B81: Dense Graded Friction Course | E81: Y | J81: Permeability (in/hr) | M81: 0
B82: Open graded Friction Course | J82: Mean Profile Depth (in.) | M82: 0.02 | N82: 0.05 | O82: 0.01
B83: PCC (LGD) | J83: (Please Select MTD or MPD from above Cell)
B84: PCC (LGD+TGV)
B86: Plane Number | D86: 1 | E86: 2 | F86: 3 | G86: 4 | H86: 5 | I86: 6 | J86: 7 | K86: 8 | L86: 9 | M86: 10 | N86: 11 | O86: 12
B87: Description | D87: Lane 1 | E87: Lane 2
B88: Cross Slope (%) | C88: Min | D88: 1 | E88: 1
C89: Max | D89: 2 | E89: 2
C90: Inc. | D90: 1
B91: Width (ft.) | C91: Min | D91: 12 | E91: 12
C92: Max | D92: 14 | E92: 14
C93: Inc.
B95: Probabilistic Analysis
M96: Avg. | N96: COV (%)
B97: Surface Type | E97: Dense Graded Friction Course | J97: Longitudinal Grade (%) | M97: 2 | N97: 10
J98: Permeability (in/hr) | M98: 0
J99: Mean Texture Depth (in.) | M99: 0.035 | N99: 10
B100: Number of Runs | E100: 100 | J100: (Please Select MTD or MPD from above Cell)
B102: Plane Number | D102: 1 | E102: 2 | F102: 3 | G102: 4 | H102: 5 | I102: 6 | J102: 7 | K102: 8 | L102: 9 | M102: 10 | N102: 11 | O102: 12
B103: Description | D103: Lane 1 | E103: Lane 2
B104: Cross Slope (%) | C104: Avg. | D104: 1 | E104: 2
C105: COV (%) | D105: 10 | E105: 10
B106: Width (ft.) | C106: Avg. | D106: 12 | E106: 12
C107: COV (%)
C109: 0 | D109: =C109-D106*D104/100 -> -0.12 | E109: -0.36 | F109: -0.36 | G109: -0.36 | H109: -0.36 | I109: -0.36 | J109: -0.36 | K109: -0.36 | L109: -0.36 | M109: -0.36 | N109: -0.36 | O109: -0.36
C110: 0 | D110: =D106 -> 12 | E110: =D110+E106 -> 24 | F110: 24 | G110: 24 | H110: 24 | I110: 24 | J110: 24 | K110: 24 | L110: 24 | M110: 24 | N110: 24 | O110: 24
B120: Environmental Inputs
B122: Deterministic Analysis
B124: Rainfall Intensity (in/hr) | E124: 2
B125: Temperature (deg. F) | E125: 70 | I125: <-- Note: Temperature is only needed for PAVDRN WFT Model
B127: Sensitivity Analysis
E128: Min | F128: Max | G128: Inc.
B129: Rainfall Intensity (in/hr) | E129: 0.5 | F129: 3 | G129: 0.5
B130: Temperature (deg. F) | E130: 70 | F130: 80 | I130: <-- Note: Temperature is only needed for PAVDRN WFT Model
B132: Probabilistic Analysis
E133: Avg. | F133: COV (%)
B134: Rainfall Intensity (in/hr) | E134: 2 | F134: 10
B135: Temperature (deg. F) | E135: 70 | F135: 10 | H135: <-- Note: Temperature is only needed for PAVDRN WFT Model
B137: Vehicle Inputs
B139: Deterministic Analysis
B141: Axle Weight (lbs) | E141: =CONVERT(2100,"N","lbf") -> 472.0987805 | I141: <-- Note: Axle Weight is only needed for USF HPS Model
B142: Tire Pressure (psi) | E142: 30 | I142: <-- Note: Tire Pressure is only needed for Gallaway and USF HPS models
B143: Spindown (%) | E143: 10 | I143: <-- Note: Spindown is only needed for Gallaway HPS Model
B144: Tread Depth (in) | E144: 0.02 | I144: <-- Note: Tread Depth is only needed for Gallaway HPS Model
B146: Sensitivity Analysis
E147: Min | F147: Max | G147: Inc.
B148: Axle Weight (lbs) | E148: 450 | F148: 550 | I148: <-- Note: Axle Weight is only needed for USF HPS Model
B149: Tire Pressure (psi) | E149: 20 | F149: 30 | I149: <-- Note: Tire Pressure is only needed for Gallaway and USF HPS models
B150: Spindown (%) | E150: 10 | F150: =E143 -> 10 | G150: 0 | I150: <-- Note: Spindown is only needed for Gallaway HPS Model
B151: Tread Depth (in) | E151: 0.02 | F151: 0.02 | G151: 0 | I151: <-- Note: Tread Depth is only needed for Gallaway HPS Model
B153: Probabilistic Analysis
E154: Avg. | F154: COV (%)
B155: Axle Weight (lbs) | E155: 1600 | F155: 20 | H155: <-- Note: Axle Weight is only needed for USF HPS Model
B156: Tire Pressure (psi) | E156: =E142 -> 30 | F156: 10 | H156: <-- Note: Tire Pressure is only needed for Gallaway and USF HPS models
B157: Spindown (%) | E157: 10 | F157: 10 | H157: <-- Note: Spindown is only needed for Gallaway HPS Model
B158: Tread Depth (in) | E158: 0.02 | F158: 10 | H158: <-- Note: Tread Depth is only needed for Gallaway HPS Model
B160: Analysis Results
B162: Deterministic Analysis
B164: Drainage Path Length (in feet)
B165: Plane Number | D165: 1 | E165: 2 | F165: 3 | G165: 4 | H165: 5 | I165: 6 | J165: 7 | K165: 8 | L165: 9 | M165: 10 | N165: 11 | O165: 12
B166: Param \ Lane | D166: =IF(D62<>"",D62,"") -> Shoulder | E166: =IF(E62<>"",E62,"") -> Lane 1 | F166: Lane 2 | G166: Buffer | H166: Lane 3 | I166: Lane 4 | J166: Gore | K166: Ramp | L166: Shoulder
B167: Total Slope (%) | D167: =IF(AND(D64<>"",D65<>""),SQRT($E$57^2+D64^2),"") -> 3.605551275 | E167: 3.605551275 | F167: 3.605551275 | G167: 3.605551275 | H167: 4.242640687 | I167: 4.609772229 | J167: =IF(AND(J64<>"",J65<>""),SQRT($E$57^2+J64^2),"") -> 4.609772229 | K167: 4.609772229 | L167: 6.708203932
B168: DP / Lane (ft.) | D168: =IF(D167<>"",D65*SQRT(1+($E$57/D64)^2),"") -> 21.63330765 | E168: =IF(E167<>"",E65*SQRT(1+($E$57/E64)^2),"") -> 21.63330765 | F168: 21.63330765 | G168: 7.211102551 | H168: 16.97056275 | I168: 15.80493336 | J168: 15.80493336 | K168: 15.80493336 | L168: 13.41640786
B169: Total DP (ft.) | D169: =IF(D168<>"",C169+D168,"") -> 21.63330765 | E169: =IF(E168<>"",IF(D64*E64>0,D169+E168,E168),"") -> 43.26661531 | F169: =IF(F168<>"",IF(E64*F64>0,E169+F168,F168),"") -> 64.89992296 | G169: 72.11102551 | H169: 89.08158826 | I169: 104.8865216 | J169: 120.691455 | K169: 136.4963883 | L169: 149.9127962
B171: Intermediate Variables
B173: Kin. Viscosity (ft^2/s) | E173: =KVis.V0*EXP(KVis.a+KVis.b*273.16/(273.16+CONVERT(HP!$E$125,"F","C"))+KVis.c*(273.16/(273.16+CONVERT(HP!$E$125,"F","C")))^2)*CONVERT(1,"m","ft")^2*10^(-6) -> 1.052468929e-05 | I173: <-- Note: Viscosity is only used by PAVDRN WFT Model
B174: Mean Texture Depth (in.) | E174: =IF($J$57="Mean Texture Depth (in.)",M57,IF(E58="Dense Graded Friction Course",MPD.to.MTD.DGFC.a*M57+MPD.to.MTD.DGFC.b,IF(E58="Open Graded Friction Course",MPD.to.MTD.OGFC.a*M57+MPD.to.MTD.OGFC.b,IF(E58="PCC (LGD)",MPD.to.MTD.LGD.a*M57+MPD.to.MTD.LGD.b,MPD.to.MTD.LGD.TGV.a*M57+MPD.to.MTD.LGD.TGV.b)))) -> 0.067
B176: Reynold's Number and Manning's Table | G176: <-- Note: Reynold's Number and Manning's N value are only used by PAVDRN WFT Model
B177: Plane Number | D177: 1 | E177: 2 | F177: 3 | G177: 4 | H177: 5 | I177: 6 | J177: 7 | K177: 8 | L177: 9 | M177: 10 | N177: 11 | O177: 12
B178: Param \ Lane | D178: =IF(D62<>"",D62,"") -> Shoulder | E178: Lane 1 | F178: Lane 2 | G178: Buffer | H178: Lane 3 | I178: Lane 4 | J178: Gore | K178: Ramp | L178: Shoulder
B179: Reynold's No. | D179: =IF(D169<>"",D169*($E$124-$E$59)/12/3600/$E$173,"") -> 95.16119602 | E179: =IF(E169<>"",E169*($E$124-$E$59)/12/3600/$E$173,"") -> 190.322392 | F179: 285.4835881 | G179: 317.2039867 | H179: 391.8545707 | I179: 461.3777515 | J179: 530.9009324 | K179: 600.4241133 | L179: 659.4405818
B180: Manning's N | D180: =IF(D179<>"",IF(HP!$E$58="DGFC",Manning.DGFC.Const*HP!D179^Manning.DGFC.NR,IF(HP!$E$58="OGFC",Manning.OGFC.Const*HP!D179^Manning.OGFC.NR*HP!D167^Manning.OGFC.Slope,IF(D179<500,Manning.PCC.NR.lt.500.Const*HP!D179^Manning.PCC.NR.lt.500.NR,IF(HP!D179<1000,Manning.PCC.NR.lt.1000.Const*HP!D179^Manning.PCC.NR.lt.1000.NR,0.017)))),"") -> 0.03504549749 | E180: =IF(E179<>"",IF(HP!$E$58="DGFC",Manning.DGFC.Const*HP!E179^Manning.DGFC.NR,IF(HP!$E$58="OGFC",Manning.OGFC.Const*HP!E179^Manning.OGFC.NR*HP!E167^Manning.OGFC.Slope,IF(E179<500,Manning.PCC.NR.lt.500.Const*HP!E179^Manning.PCC.NR.lt.500.NR,IF(HP!E179<1000,Manning.PCC.NR.lt.1000.Const*HP!E179^Manning.PCC.NR.lt.1000.NR,0.017)))),"") -> 0.02474657909 | F180: =IF(F179<>"",IF(HP!$E$58="DGFC",Manning.DGFC.Const*HP!F179^Manning.DGFC.NR,IF(HP!$E$58="OGFC",Manning.OGFC.Const*HP!F179^Manning.OGFC.NR*HP!F167^Manning.OGFC.Slope,IF(F179<500,Manning.PCC.NR.lt.500.Const*HP!F179^Manning.PCC.NR.lt.500.NR,IF(HP!F179<1000,Manning.PCC.NR.lt.1000.Const*HP!F179^Manning.PCC.NR.lt.1000.NR,0.017)))),"") -> 0.02018911861 | G180: =IF(G179<>"",IF(HP!$E$58="DGFC",Manning.DGFC.Const*HP!G179^Manning.DGFC.NR,IF(HP!$E$58="OGFC",Manning.OGFC.Const*HP!G179^Manning.OGFC.NR*HP!G167^Manning.OGFC.Slope,IF(G179<500,Manning.PCC.NR.lt.500.Const*HP!G179^Manning.PCC.NR.lt.500.NR,IF(HP!G179<1000,Manning.PCC.NR.lt.1000.Const*HP!G179^Manning.PCC.NR.lt.1000.NR,0.017)))),"") -> 0.0191490441 | H180: =IF(H179<>"",IF(HP!$E$58="DGFC",Manning.DGFC.Const*HP!H179^Manning.DGFC.NR,IF(HP!$E$58="OGFC",Manning.OGFC.Const*HP!H179^Manning.OGFC.NR*HP!H167^Manning.OGFC.Slope,IF(H179<500,Manning.PCC.NR.lt.500.Const*HP!H179^Manning.PCC.NR.lt.500.NR,IF(HP!H179<1000,Manning.PCC.NR.lt.1000.Const*HP!H179^Manning.PCC.NR.lt.1000.NR,0.017)))),"") -> 0.01722147664 | I180: =IF(I179<>"",IF(HP!$E$58="DGFC",Manning.DGFC.Const*HP!I179^Manning.DGFC.NR,IF(HP!$E$58="OGFC",Manning.OGFC.Const*HP!I179^Manning.OGFC.NR*HP!I167^Manning.OGFC.Slope,IF(I179<500,Manning.PCC.NR.lt.500.Const*HP!I179^Manning.PCC.NR.lt.500.NR,IF(HP!I179<1000,Manning.PCC.NR.lt.1000.Const*HP!I179^Manning.PCC.NR.lt.1000.NR,0.017)))),"") -> 0.01586582493 | J180: =IF(J179<>"",IF(HP!$E$58="DGFC",Manning.DGFC.Const*HP!J179^Manning.DGFC.NR,IF(HP!$E$58="OGFC",Manning.OGFC.Const*HP!J179^Manning.OGFC.NR*HP!J167^Manning.OGFC.Slope,IF(J179<500,Manning.PCC.NR.lt.500.Const*HP!J179^Manning.PCC.NR.lt.500.NR,IF(HP!J179<1000,Manning.PCC.NR.lt.1000.Const*HP!J179^Manning.PCC.NR.lt.1000.NR,0.017)))),"") -> 0.0156958272 | K180: =IF(K179<>"",IF(HP!$E$58="DGFC",Manning.DGFC.Const*HP!K179^Manning.DGFC.NR,IF(HP!$E$58="OGFC",Manning.OGFC.Const*HP!K179^Manning.OGFC.NR*HP!K167^Manning.OGFC.Slope,IF(K179<500,Manning.PCC.NR.lt.500.Const*HP!K179^Manning.PCC.NR.lt.500.NR,IF(HP!K179<1000,Manning.PCC.NR.lt.1000.Const*HP!K179^Manning.PCC.NR.lt.1000.NR,0.017)))),"") -> 0.01479553872 | L180: =IF(L179<>"",IF(HP!$E$58="DGFC",Manning.DGFC.Const*HP!L179^Manning.DGFC.NR,IF(HP!$E$58="OGFC",Manning.OGFC.Const*HP!L179^Manning.OGFC.NR*HP!L167^Manning.OGFC.Slope,IF(L179<500,Manning.PCC.NR.lt.500.Const*HP!L179^Manning.PCC.NR.lt.500.NR,IF(HP!L179<1000,Manning.PCC.NR.lt.1000.Const*HP!L179^Manning.PCC.NR.lt.1000.NR,0.017)))),"") -> 0.01414445966 | M180: =IF(M179<>"",IF(HP!$E$58="DGFC",Manning.DGFC.Const*HP!M179^Manning.DGFC.NR,IF(HP!$E$58="OGFC",Manning.OGFC.Const*HP!M179^Manning.OGFC.NR*HP!M167^Manning.OGFC.Slope,IF(M179<500,Manning.PCC.NR.lt.500.Const*HP!M179^Manning.PCC.NR.lt.500.NR,IF(HP!M179<1000,Manning.PCC.NR.lt.1000.Const*HP!M179^Manning.PCC.NR.lt.1000.NR,0.017)))),"") ->  | N180: =IF(N179<>"",IF(HP!$E$58="DGFC",Manning.DGFC.Const*HP!N179^Manning.DGFC.NR,IF(HP!$E$58="OGFC",Manning.OGFC.Const*HP!N179^Manning.OGFC.NR*HP!N167^Manning.OGFC.Slope,IF(N179<500,Manning.PCC.NR.lt.500.Const*HP!N179^Manning.PCC.NR.lt.500.NR,IF(HP!N179<1000,Manning.PCC.NR.lt.1000.Const*HP!N179^Manning.PCC.NR.lt.1000.NR,0.017)))),"") ->  | O180: =IF(O179<>"",IF(HP!$E$58="DGFC",Manning.DGFC.Const*HP!O179^Manning.DGFC.NR,IF(HP!$E$58="OGFC",Manning.OGFC.Const*HP!O179^Manning.OGFC.NR*HP!O167^Manning.OGFC.Slope,IF(O179<500,Manning.PCC.NR.lt.500.Const*HP!O179^Manning.PCC.NR.lt.500.NR,IF(HP!O179<1000,Manning.PCC.NR.lt.1000.Const*HP!O179^Manning.PCC.NR.lt.1000.NR,0.017)))),"") -> 
B182: Water Film Thickness (WFT) Table (Units: in.)
B183: Plane Number | D183: 1 | E183: 2 | F183: 3 | G183: 4 | H183: 5 | I183: 6 | J183: 7 | K183: 8 | L183: 9 | M183: 10 | N183: 11 | O183: 12
B184: Model | D184: =IF(D62<>"",D62,"") -> Shoulder | E184: Lane 1 | F184: Lane 2 | G184: Buffer | H184: Lane 3 | I184: Lane 4 | J184: Gore | K184: Ramp | L184: Shoulder
B185: Gallaway | D185: =IF(D167<>"",WFT.G.Const*$E$174^WFT.G.MTD*D169^WFT.G.DP*($E$124-$E$59)^WFT.G.Int*(D167/100)^WFT.G.Slope-$E$174,"") -> -0.002155646122 | E185: 0.02591947235 | F185: 0.04768275 | G185: 0.05412847123 | H185: 0.06039764777 | I185: 0.06754118481 | J185: 0.07770776894 | K185: 0.08725157763 | L185: 0.0742721871
B186: UK RRL | D186: =IF(D167<>"",CONVERT(WFT.U.Const*CONVERT(D169,"ft","m")^WFT.U.DP*CONVERT(($E$124-$E$59),"in","mm")^WFT.U.Int*(D167/100)^WFT.U.Slope,"mm","in")-$E$174,"") -> -0.002578537411 | E186: 0.0241057061 | F186: 0.0445812463 | G186: 0.05061696082 | H186: 0.05954068405 | I186: 0.06804776483 | J186: 0.0778657838 | K186: 0.08705937767 | L186: 0.08278266502
B187: NZ Mod. | D187: =IF(D167<>"",CONVERT(WFT.N.Const*CONVERT($E$174,"in","mm")^WFT.N.MTD*CONVERT(D169,"ft","m")^WFT.N.DP*CONVERT(($E$124-$E$59),"in","mm")^WFT.N.Int*(D167/100)^WFT.N.Slope,"mm","in")-$E$174,"") -> -0.009845102165 | E187: 0.01000099745 | F187: 0.02466754329 | G187: 0.02891605615 | H187: 0.03110254892 | I187: 0.03463488166 | J187: 0.04095785001 | K187: 0.04682441345 | L187: 0.03423127656
B188: PAVDRN | D188: =IF(D167<>"",CONVERT(WFT.P.Const*D180^WFT.P.Manni*CONVERT(D169,"ft","m")^WFT.P.DP*CONVERT(($E$124-$E$59),"in","mm")^WFT.P.Int*(D167/100)^WFT.P.Slope,"mm","in")-$E$174,"") -> -0.01263107352 | E188: -0.0001196525516 | F188: 0.008494374094 | G188: 0.01090887389 | H188: 0.01203387841 | I188: 0.01394587676 | J188: 0.02049067477 | K188: 0.02391519883 | L188: 0.01664930363
B190: Hydroplaning Speed (HPS) Table (Units: mph)
B191: Plane Number | D191: 1 | E191: 2 | F191: 3 | G191: 4 | H191: 5 | I191: 6 | J191: 7 | K191: 8 | L191: 9 | M191: 10 | N191: 11 | O191: 12
B192: Description | D192: =IF(D62<>"",D62,"") -> Shoulder | E192: Lane 1 | F192: Lane 2 | G192: Buffer | H192: Lane 3 | I192: Lane 4 | J192: Gore | K192: Ramp | L192: Shoulder
B193: A Parameter
B194: WFT | C194: Gallaway | D194: =IF(D185<>"",IF(D185<0,0,MAX(A1.a*D185^A1.WFT+A1.b,(A2.a*D185^A2.WFT+A2.b)*$E$174^A2.MTD)),"") -> 0 | E194: 19.33530266 | F194: 18.44861196 | G194: 18.26822097 | H194: 18.1134042 | I194: 17.95652827 | J194: 17.76123677 | K194: 17.60113206 | L194: 17.82403677
C195: UK RRL | D195: =IF(D186<>"",IF(D186<0,0,MAX(A1.a*D186^A1.WFT+A1.b,(A2.a*D186^A2.WFT+A2.b)*$E$174^A2.MTD)),"") -> 0 | E195: 19.44300406 | F195: 18.54485934 | G195: 18.36347877 | H195: 18.13353435 | I195: 17.94607952 | J195: 17.75841956 | K195: 17.60416959 | L195: 17.67366154
C196: NZ Mod. | D196: =IF(D187<>"",IF(D187<0,0,MAX(A1.a*D187^A1.WFT+A1.b,(A2.a*D187^A2.WFT+A2.b)*$E$174^A2.MTD)),"") -> 0 | E196: 20.78710498 | F196: 19.40874851 | G196: 19.17376813 | H196: 19.06672792 | I196: 18.909616 | J196: 18.66672384 | K196: 18.4745687 | L196: 18.92668656
C197: PAVDRN | D197: =IF(D188<>"",IF(D188<0,0,MAX(A1.a*D188^A1.WFT+A1.b,(A2.a*D188^A2.WFT+A2.b)*$E$174^A2.MTD)),"") -> 0 | E197: 0 | F197: 21.04446543 | G197: 20.65117207 | H197: 20.49847787 | I197: 20.2707561 | J197: 19.68592677 | K197: 19.45481188 | L197: 19.99977886
B198: Hydroplaning Speed
B199: HPS | C199: WFT
B200: PAVDRN | C200: Gallaway | D200: =IF(D194<>"",IF(D185<0,999,IF(D185<0.094,HP.P.WFT.lt.24.Const*D185^HP.P.WFT.lt.24.WFT, HP.P.WFT.gt.24.Const*D194)),"") -> 999 | E200: 67.06745174 | F200: 57.27240291 | G200: 55.42219317 | H200: 53.87121782 | I200: 52.33385095 | J200: 50.46737196 | K200: 48.97570521 | L200: 51.06190236
C201: UK RRL | D201: =IF(D195<>"",IF(D186<0,999,IF(D186<0.094,HP.P.WFT.lt.24.Const*D186^HP.P.WFT.lt.24.WFT, HP.P.WFT.gt.24.Const*D195)),"") -> 999 | E201: 68.33952201 | F201: 58.27879436 | G201: 56.39340255 | H201: 54.07097497 | I201: 52.2326655 | J201: 50.44082661 | K201: 49.00368621 | L201: 49.64719019
C202: NZ Mod. | D202: =IF(D196<>"",IF(D187<0,999,IF(D187<0.094,HP.P.WFT.lt.24.Const*D187^HP.P.WFT.lt.24.WFT, HP.P.WFT.gt.24.Const*D196)),"") -> 999 | E202: 85.82815186 | F202: 67.932934 | G202: 65.19375012 | H202: 63.97448826 | I202: 62.21669388 | J202: 59.57247692 | K202: 57.54248886 | L202: 62.4058637
C203: PAVDRN | D203: =IF(D197<>"",IF(D188<0,999,IF(D188<0.094,HP.P.WFT.lt.24.Const*D188^HP.P.WFT.lt.24.WFT, HP.P.WFT.gt.24.Const*D197)),"") -> 999 | E203: 999 | F203: 89.53564191 | G203: 83.9181653 | H203: 81.81179559 | I203: 78.746183 | J203: 71.2767532 | K203: 68.48010459 | L203: 75.21412315
B204: USF | C204: Gallaway | D204: =IF(D185<>"",IF(D185<0,999,CONVERT(CONVERT($E$141,"lbf","N")^HP.U.Load*CONVERT($E$142,"psi","kPa")^HP.U.Press*(HP.U.a*CONVERT(D185,"in","mm")^HP.U.WFT+HP.U.b),"km","mi")),"") -> 999 | E204: 54.92074883 | F204: 53.67456523 | G204: 53.42103793 | H204: 53.20345346 | I204: 52.982975 | J204: 52.70850604 | K204: 52.48348974 | L204: 52.79676718
C205: UK RRL | D205: =IF(D186<>"",IF(D186<0,999,CONVERT(CONVERT($E$141,"lbf","N")^HP.U.Load*CONVERT($E$142,"psi","kPa")^HP.U.Press*(HP.U.a*CONVERT(D186,"in","mm")^HP.U.WFT+HP.U.b),"km","mi")),"") -> 999 | E205: 55.07211584 | F205: 53.80983438 | G205: 53.55491631 | H205: 53.23174503 | I205: 52.96828998 | J205: 52.70454665 | K205: 52.48775879 | L205: 52.58542501
C206: NZ Mod. | D206: =IF(D187<>"",IF(D187<0,999,CONVERT(CONVERT($E$141,"lbf","N")^HP.U.Load*CONVERT($E$142,"psi","kPa")^HP.U.Press*(HP.U.a*CONVERT(D187,"in","mm")^HP.U.WFT+HP.U.b),"km","mi")),"") -> 999 | E206: 56.96115846 | F206: 55.02397198 | G206: 54.69372301 | H206: 54.54328526 | I206: 54.32247511 | J206: 53.98110667 | K206: 53.71104566 | L206: 54.34646664
C207: PAVDRN | D207: =IF(D188<>"",IF(D188<0,999,CONVERT(CONVERT($E$141,"lbf","N")^HP.U.Load*CONVERT($E$142,"psi","kPa")^HP.U.Press*(HP.U.a*CONVERT(D188,"in","mm")^HP.U.WFT+HP.U.b),"km","mi")),"") -> 999 | E207: 999 | F207: 57.32286111 | G207: 56.77011399 | H207: 56.55551265 | I207: 56.23546515 | J207: 55.41352723 | K207: 55.08871093 | L207: 55.85462504
B208: Gallaway | C208: Gallaway | D208: =IF(D194<>"",IF(D194<=0,999,$E$143^HP.G.SpinDown*$E$142^HP.G.Press*(1+$E$144*32)^HP.G.TreadDepth*D194),"") -> 999 | E208: 60.58679538 | F208: 57.80836729 | G208: 57.24311561 | H208: 56.75800026 | I208: 56.26643261 | J208: 55.65449046 | K208: 55.15280547 | L208: 55.85127306
C209: UK RRL | D209: =IF(D195<>"",IF(D195<=0,999,$E$143^HP.G.SpinDown*$E$142^HP.G.Press*(1+$E$144*32)^HP.G.TreadDepth*D195),"") -> 999 | E209: 60.92427561 | F209: 58.10995656 | G209: 57.54160409 | H209: 56.82107771 | I209: 56.23369164 | J209: 55.64566281 | K209: 55.16232353 | L209: 55.3800752
C210: NZ Mod. | D210: =IF(D196<>"",IF(D196<=0,999,$E$143^HP.G.SpinDown*$E$142^HP.G.Press*(1+$E$144*32)^HP.G.TreadDepth*D196),"") -> 999 | E210: 65.13598974 | F210: 60.81693651 | G210: 60.08063006 | H210: 59.74522163 | I210: 59.25291447 | J210: 58.49181661 | K210: 57.88970223 | L210: 59.30640476
C211: PAVDRN | D211: =IF(D197<>"",IF(D197<=0,999,$E$143^HP.G.SpinDown*$E$142^HP.G.Press*(1+$E$144*32)^HP.G.TreadDepth*D197),"") -> 999 | E211: 999 | F211: 65.9424237 | G211: 64.71004662 | H211: 64.23158231 | I211: 63.51802055 | J211: 61.68546922 | K211: 60.9612752 | L211: 62.66891864
B213: Risk Analysis Results
B214: (Based on Gallaway WFT and PAVDRN HPS Models)
B215: Predicted Water Film Thickness (in.)
B216: Plane Number | D216: 1 | E216: 2 | F216: 3 | G216: 4 | H216: 5 | I216: 6 | J216: 7 | K216: 8 | L216: 9 | M216: 10 | N216: 11 | O216: 12
B217: Intensity (in/hr) | D217: =IF(D62<>"",D62,"") -> Shoulder | E217: =IF(E62<>"",E62,"") -> Lane 1 | F217: Lane 2 | G217: Buffer | H217: Lane 3 | I217: Lane 4 | J217: Gore | K217: Ramp | L217: Shoulder
B218: =ModelParameters!A45 -> 0.1 | D218: =IF(AND(D$167<>"",D$63<>""),WFT.G.Const*$E$174^WFT.G.MTD*D$169^WFT.G.DP*$B218^WFT.G.Int*(D$167/100)^WFT.G.Slope-$E$174,"") ->  | E218: -0.04974448691 | F218: -0.04570296028 | G218: -0.04450596438 | H218: -0.04334175354 | I218: -0.04201517049 | K218: -0.03835487268
B219: =ModelParameters!A46 -> 0.25 | E219: -0.03812179718 | F219: -0.03135804433 | G219: -0.02935479527 | H219: -0.02740641409 | I219: -0.02518629266 | K219: -0.01906055059
B220: =ModelParameters!A47 -> 0.5 | E220: -0.02436669316 | F220: -0.0143812674 | G220: -0.01142384196 | H220: -0.008547418746 | I220: -0.005269821504 | K220: 0.003773699769
B221: =ModelParameters!A48 -> 1 | E221: -0.004059834956 | F221: 0.01068179295 | G221: 0.01504788273 | H221: 0.01929438775 | I221: 0.02413315178 | K221: 0.03748423251
B222: =ModelParameters!A49 -> 2 | E222: 0.02591947235 | F222: 0.04768275 | G222: 0.05412847123 | H222: 0.06039764777 | I222: 0.06754118481 | K222: 0.08725157763
B223: =ModelParameters!A50 -> 3 | E223: 0.04969977603 | F223: 0.07703279421 | G223: 0.08512812887 | H223: 0.09300173683 | I223: 0.101973475 | K223: 0.1267282262
B224: =ModelParameters!A51 -> 4 | E224: 0.0701783556 | F224: 0.1023077959 | G224: 0.111823707 | H224: 0.1210789827 | I224: 0.1316250893 | K224: 0.1607238261
B226: Predicted Driver Speed (mph)
B227: Plane Number | D227: 1 | E227: 2 | F227: 3 | G227: 4 | H227: 5 | I227: 6 | J227: 7 | K227: 8 | L227: 9 | M227: 10 | N227: 11 | O227: 12
B228: Intensity (in/hr) | D228: =IF(D62<>"",D62,"") -> Shoulder | E228: =IF(E62<>"",E62,"") -> Lane 1 | F228: Lane 2 | G228: Buffer | H228: Lane 3 | I228: Lane 4 | J228: Gore | K228: Ramp | L228: Shoulder
B229: =ModelParameters!A45 -> 0.1 | D229: =IF(D$63<>"",MAX(D$63-ModelParameters!$B45,45),"") ->  | E229: =IF(E$63<>"",MAX(E$63-ModelParameters!$B45,45),"") -> 70 | F229: =IF(F$63<>"",MAX(F$63-ModelParameters!$B45,45),"") -> 70 | G229: =IF(G$63<>"",MAX(G$63-ModelParameters!$B45,45),"") -> 70 | H229: =IF(H$63<>"",MAX(H$63-ModelParameters!$B45,45),"") -> 65 | I229: =IF(I$63<>"",MAX(I$63-ModelParameters!$B45,45),"") -> 65 | J229: =IF(J$63<>"",MAX(J$63-ModelParameters!$B45,45),"") ->  | K229: =IF(K$63<>"",MAX(K$63-ModelParameters!$B45,45),"") -> 50 | L229: =IF(L$63<>"",MAX(L$63-ModelParameters!$B45,45),"") ->  | M229: =IF(M$63<>"",MAX(M$63-ModelParameters!$B45,45),"") ->  | N229: =IF(N$63<>"",MAX(N$63-ModelParameters!$B45,45),"") ->  | O229: =IF(O$63<>"",MAX(O$63-ModelParameters!$B45,45),"") -> 
B230: =ModelParameters!A46 -> 0.25 | D230: =IF(D$63<>"",MAX(D$63-ModelParameters!$B46,45),"") ->  | E230: =IF(E$63<>"",MAX(E$63-ModelParameters!$B46,45),"") -> 70 | F230: =IF(F$63<>"",MAX(F$63-ModelParameters!$B46,45),"") -> 70 | G230: =IF(G$63<>"",MAX(G$63-ModelParameters!$B46,45),"") -> 70 | H230: =IF(H$63<>"",MAX(H$63-ModelParameters!$B46,45),"") -> 65 | I230: =IF(I$63<>"",MAX(I$63-ModelParameters!$B46,45),"") -> 65 | J230: =IF(J$63<>"",MAX(J$63-ModelParameters!$B46,45),"") ->  | K230: =IF(K$63<>"",MAX(K$63-ModelParameters!$B46,45),"") -> 50 | L230: =IF(L$63<>"",MAX(L$63-ModelParameters!$B46,45),"") ->  | M230: =IF(M$63<>"",MAX(M$63-ModelParameters!$B46,45),"") ->  | N230: =IF(N$63<>"",MAX(N$63-ModelParameters!$B46,45),"") ->  | O230: =IF(O$63<>"",MAX(O$63-ModelParameters!$B46,45),"") -> 
B231: =ModelParameters!A47 -> 0.5 | D231: =IF(D$63<>"",MAX(D$63-ModelParameters!$B47,45),"") ->  | E231: =IF(E$63<>"",MAX(E$63-ModelParameters!$B47,45),"") -> 64 | F231: =IF(F$63<>"",MAX(F$63-ModelParameters!$B47,45),"") -> 64 | G231: =IF(G$63<>"",MAX(G$63-ModelParameters!$B47,45),"") -> 64 | H231: =IF(H$63<>"",MAX(H$63-ModelParameters!$B47,45),"") -> 59 | I231: =IF(I$63<>"",MAX(I$63-ModelParameters!$B47,45),"") -> 59 | J231: =IF(J$63<>"",MAX(J$63-ModelParameters!$B47,45),"") ->  | K231: =IF(K$63<>"",MAX(K$63-ModelParameters!$B47,45),"") -> 45 | L231: =IF(L$63<>"",MAX(L$63-ModelParameters!$B47,45),"") ->  | M231: =IF(M$63<>"",MAX(M$63-ModelParameters!$B47,45),"") ->  | N231: =IF(N$63<>"",MAX(N$63-ModelParameters!$B47,45),"") ->  | O231: =IF(O$63<>"",MAX(O$63-ModelParameters!$B47,45),"") -> 
B232: =ModelParameters!A48 -> 1 | D232: =IF(D$63<>"",MAX(D$63-ModelParameters!$B48,45),"") ->  | E232: =IF(E$63<>"",MAX(E$63-ModelParameters!$B48,45),"") -> 62 | F232: =IF(F$63<>"",MAX(F$63-ModelParameters!$B48,45),"") -> 62 | G232: =IF(G$63<>"",MAX(G$63-ModelParameters!$B48,45),"") -> 62 | H232: =IF(H$63<>"",MAX(H$63-ModelParameters!$B48,45),"") -> 57 | I232: =IF(I$63<>"",MAX(I$63-ModelParameters!$B48,45),"") -> 57 | J232: =IF(J$63<>"",MAX(J$63-ModelParameters!$B48,45),"") ->  | K232: =IF(K$63<>"",MAX(K$63-ModelParameters!$B48,45),"") -> 45 | L232: =IF(L$63<>"",MAX(L$63-ModelParameters!$B48,45),"") ->  | M232: =IF(M$63<>"",MAX(M$63-ModelParameters!$B48,45),"") ->  | N232: =IF(N$63<>"",MAX(N$63-ModelParameters!$B48,45),"") ->  | O232: =IF(O$63<>"",MAX(O$63-ModelParameters!$B48,45),"") -> 
B233: =ModelParameters!A49 -> 2 | D233: =IF(D$63<>"",MAX(D$63-ModelParameters!$B49,45),"") ->  | E233: =IF(E$63<>"",MAX(E$63-ModelParameters!$B49,45),"") -> 58 | F233: =IF(F$63<>"",MAX(F$63-ModelParameters!$B49,45),"") -> 58 | G233: =IF(G$63<>"",MAX(G$63-ModelParameters!$B49,45),"") -> 58 | H233: =IF(H$63<>"",MAX(H$63-ModelParameters!$B49,45),"") -> 53 | I233: =IF(I$63<>"",MAX(I$63-ModelParameters!$B49,45),"") -> 53 | J233: =IF(J$63<>"",MAX(J$63-ModelParameters!$B49,45),"") ->  | K233: =IF(K$63<>"",MAX(K$63-ModelParameters!$B49,45),"") -> 45 | L233: =IF(L$63<>"",MAX(L$63-ModelParameters!$B49,45),"") ->  | M233: =IF(M$63<>"",MAX(M$63-ModelParameters!$B49,45),"") ->  | N233: =IF(N$63<>"",MAX(N$63-ModelParameters!$B49,45),"") ->  | O233: =IF(O$63<>"",MAX(O$63-ModelParameters!$B49,45),"") -> 
B234: =ModelParameters!A50 -> 3 | D234: =IF(D$63="","",ModelParameters!$C50) ->  | E234: =IF(E$63="","",ModelParameters!$C50) -> 45 | F234: =IF(F$63="","",ModelParameters!$C50) -> 45 | G234: =IF(G$63="","",ModelParameters!$C50) -> 45 | H234: =IF(H$63="","",ModelParameters!$C50) -> 45 | I234: =IF(I$63="","",ModelParameters!$C50) -> 45 | J234: =IF(J$63="","",ModelParameters!$C50) ->  | K234: =IF(K$63="","",ModelParameters!$C50) -> 45 | L234: =IF(L$63="","",ModelParameters!$C50) ->  | M234: =IF(M$63="","",ModelParameters!$C50) ->  | N234: =IF(N$63="","",ModelParameters!$C50) ->  | O234: =IF(O$63="","",ModelParameters!$C50) -> 
B235: =ModelParameters!A51 -> 4 | D235: =IF(D$63="","",ModelParameters!$C51) ->  | E235: =IF(E$63="","",ModelParameters!$C51) -> 45 | F235: =IF(F$63="","",ModelParameters!$C51) -> 45 | G235: =IF(G$63="","",ModelParameters!$C51) -> 45 | H235: =IF(H$63="","",ModelParameters!$C51) -> 45 | I235: =IF(I$63="","",ModelParameters!$C51) -> 45 | J235: =IF(J$63="","",ModelParameters!$C51) ->  | K235: =IF(K$63="","",ModelParameters!$C51) -> 45 | L235: =IF(L$63="","",ModelParameters!$C51) ->  | M235: =IF(M$63="","",ModelParameters!$C51) ->  | N235: =IF(N$63="","",ModelParameters!$C51) ->  | O235: =IF(O$63="","",ModelParameters!$C51) -> 
B237: Predicted Hydroplaning Speed (mph)
B238: Plane Number | D238: 1 | E238: 2 | F238: 3 | G238: 4 | H238: 5 | I238: 6 | J238: 7 | K238: 8 | L238: 9 | M238: 10 | N238: 11 | O238: 12
B239: Intensity (in/hr) | D239: =IF(D62<>"",D62,"") -> Shoulder | E239: =IF(E62<>"",E62,"") -> Lane 1 | F239: Lane 2 | G239: Buffer | H239: Lane 3 | I239: Lane 4 | J239: Gore | K239: Ramp | L239: Shoulder
B240: =ModelParameters!A45 -> 0.1 | D240: =IF(D218="","",IF(D218<0,999,IF(D218<0.094,HP.P.WFT.lt.24.Const*D218^HP.P.WFT.lt.24.WFT, HP.P.WFT.gt.24.Const*MAX(A1.a*D218^A1.WFT+A1.b,(A2.a*D218^A2.WFT+A2.b)*$E$174^A2.MTD)))) ->  | E240: 999 | F240: 999 | G240: 999 | H240: 999 | I240: 999 | K240: 999
B241: =ModelParameters!A46 -> 0.25 | D241: =IF(D219="","",IF(D219<0,999,IF(D219<0.094,HP.P.WFT.lt.24.Const*D219^HP.P.WFT.lt.24.WFT, HP.P.WFT.gt.24.Const*MAX(A1.a*D219^A1.WFT+A1.b,(A2.a*D219^A2.WFT+A2.b)*$E$174^A2.MTD)))) ->  | E241: 999 | F241: 999 | G241: 999 | H241: 999 | I241: 999 | K241: 999
B242: =ModelParameters!A47 -> 0.5 | D242: =IF(D220="","",IF(D220<0,999,IF(D220<0.094,HP.P.WFT.lt.24.Const*D220^HP.P.WFT.lt.24.WFT, HP.P.WFT.gt.24.Const*MAX(A1.a*D220^A1.WFT+A1.b,(A2.a*D220^A2.WFT+A2.b)*$E$174^A2.MTD)))) ->  | E242: 999 | F242: 999 | G242: 999 | H242: 999 | I242: 999 | K242: 110.4735315
B243: =ModelParameters!A48 -> 1 | D243: =IF(D221="","",IF(D221<0,999,IF(D221<0.094,HP.P.WFT.lt.24.Const*D221^HP.P.WFT.lt.24.WFT, HP.P.WFT.gt.24.Const*MAX(A1.a*D221^A1.WFT+A1.b,(A2.a*D221^A2.WFT+A2.b)*$E$174^A2.MTD)))) ->  | E243: 999 | F243: 84.37662376 | G243: 77.210231 | H243: 72.39596315 | I243: 68.31938408 | K243: 60.95568085
B244: =ModelParameters!A49 -> 2 | D244: =IF(D222="","",IF(D222<0,999,IF(D222<0.094,HP.P.WFT.lt.24.Const*D222^HP.P.WFT.lt.24.WFT, HP.P.WFT.gt.24.Const*MAX(A1.a*D222^A1.WFT+A1.b,(A2.a*D222^A2.WFT+A2.b)*$E$174^A2.MTD)))) ->  | E244: 67.06745174 | F244: 57.27240291 | G244: 55.42219317 | H244: 53.87121782 | I244: 52.33385095 | K244: 48.97570521
B245: =ModelParameters!A50 -> 3 | D245: =IF(D223="","",IF(D223<0,999,IF(D223<0.094,HP.P.WFT.lt.24.Const*D223^HP.P.WFT.lt.24.WFT, HP.P.WFT.gt.24.Const*MAX(A1.a*D223^A1.WFT+A1.b,(A2.a*D223^A2.WFT+A2.b)*$E$174^A2.MTD)))) ->  | E245: 56.66112356 | F245: 50.58153284 | G245: 49.28923188 | H245: 48.17278952 | I245: 53.72702326 | K245: 52.81663859
B246: =ModelParameters!A51 -> 4 | D246: =IF(D224="","",IF(D224<0,999,IF(D224<0.094,HP.P.WFT.lt.24.Const*D224^HP.P.WFT.lt.24.WFT, HP.P.WFT.gt.24.Const*MAX(A1.a*D224^A1.WFT+A1.b,(A2.a*D224^A2.WFT+A2.b)*$E$174^A2.MTD)))) ->  | E246: 51.81724923 | F246: 53.71322411 | G246: 53.33930991 | H246: 53.00667738 | I246: 52.65903779 | K246: 51.83466843
B248: Continuous Analysis Results
B250: Cross Slope Plot
B262: Grade Plot
B274: Drainage Path Plot
B286: Water Film Thickness Plot
B298: Hydroplaning Speed Plot
B310: Water Depth due to Rutting Plot
B322: Hydroplaning Speed due to Rutting Plot
B334: Probabilistic Analysis Results
B336: Water Film Thickness (WFT) Results
B338: Plane Number | D338: 1 | E338: 2 | F338: 3 | G338: 4 | H338: 5 | I338: 6 | J338: 7 | K338: 8 | L338: 9 | M338: 10 | N338: 11 | O338: 12
B339: Description | D339: =IF(D$103<>"",D$103,"") -> Lane 1 | E339: =IF(E$103<>"",E$103,"") -> Lane 2
B340: HPS | C340: WFT
B341: PAVDRN | C341: Gallaway
B342: Mean (in.) | D342: =IF(Probabilistic_Results!C$3<>"",AVERAGEIFS(Probabilistic_Results!C$3:C$102,Probabilistic_Results!$A$3:$A$102,HP!$C341,Probabilistic_Results!$B$3:$B$102,HP!$B341),"") -> 0.04371518697 | E342: =IF(Probabilistic_Results!D$3<>"",AVERAGEIFS(Probabilistic_Results!D$3:D$102,Probabilistic_Results!$A$3:$A$102,HP!$C341,Probabilistic_Results!$B$3:$B$102,HP!$B341),"") -> 0.05853720418
B343: Stdev (in.) | D343: =IF(Probabilistic_Results!C$3<>"",STDEV(IF(Probabilistic_Results!$A$3:$A$102=$C341,IF(Probabilistic_Results!$B$3:$B$102=HP!$B341,Probabilistic_Results!C$3:C$102))), "") -> 0.00612944997 | E343: =IF(Probabilistic_Results!D$3<>"",STDEV(IF(Probabilistic_Results!$A$3:$A$102=$C341,IF(Probabilistic_Results!$B$3:$B$102=HP!$B341,Probabilistic_Results!D$3:D$102))), "") -> 0.006466843972
... 163 more rows

Sheet ModelParameters
A1: Intermediate Parameters
A3: Parameter | B3: v0 | C3: a | D3: b | E3: c
A4: K. Viscosity | B4: 1.792 | C4: 2.443 | D4: -14.146 | E4: 11.701
A6: Parameter | B6: Surf. Type | C6: Condition | D6: Const. | E6: NR Exponent | F6: Slope Exponent
C7: NR < 240 | D7: 0.388 | E7: -0.535 | F7: 0
A8: Manning's N | B8: PCC | C8: NR < 500 | D8: 0.345 | E8: -0.502 | F8: 0
C9: NR < 1000 | D9: 0.319 | E9: -0.48 | F9: 0
C10: NR ≥ 1000 | D10: 0.017 | E10: 0 | F10: 0
B11: DGFC | C11: N/A | D11: 0.0823 | E11: -0.174 | F11: 0
B12: OGFC | C12: N/A | D12: 1.49 | E12: -0.424 | F12: 0.306
A14: Parameter | B14: a | C14: b | D14: WFT Exponent | E14: MTD Exponent
A15: A1 | B15: 10.409 | C15: 3.507 | D15: -0.06 | E15: 0
A16: A2 | B16: 28.952 | C16: -7.817 | D16: -0.06 | E16: 0.14
A18: MPD to MTD Conversion
A19: Surface Type | B19: a | C19: b
A20: DGFC | B20: 0.805 | C20: 0.007
A21: OGFC | B21: 0.841 | C21: 0.025
A22: PCC (LGD) | B22: 0.982 | C22: 0.003
A23: PCC (LGD+TGV) | B23: 1.071 | C23: 0.002
A25: Water Film Thickness Models
A26: Model | B26: Const. | C26: MTD Exponent | D26: Drainage Path Exponent | E26: Intensity Exponent | F26: Slope Exponent | G26: Manning's Exponent | H26: Unit
A27: Gallaway | B27: 0.003726 | C27: 0.125 | D27: 0.519 | E27: 0.562 | F27: -0.364 | G27: 0 | H27: Eng.
A28: UK RRL | B28: 0.046 | C28: 0 | D28: 0.5 | E28: 0.5 | F28: -0.2 | G28: 0 | H28: SI
A29: NZ Mod. | B29: 0.01485 | C29: 0.11 | D29: 0.43 | E29: 0.59 | F29: -0.42 | G29: 0 | H29: SI
A30: PAVDRN | B30: =(1/36.1)^0.6 -> 0.1162774982 | C30: 0 | D30: 0.6 | E30: 0.6 | F30: =-0.5*0.6 -> -0.3 | G30: 0.6 | H30: SI
A32: Hydroplaning Speed Models
A33: Model | B33: Criteria | C33: Const. | D33: WFT Exponent
A34: PAVDRN | B34: WFT < 2.4 mm | C34: 26.04 | D34: -0.259
B35: WFT ≥ 2.4 mm | C35: 3.09 | D35: 0
A37: Model | B37: Criteria | C37: WFT Exponent | D37: Load Exponent | E37: Pressure Exponent | F37: a | G37: b
A38: USF | B38: N/A | C38: -0.06 | D38: 0.2 | E38: 0.5 | F38: 0.82 | G38: 0.49
A40: Model | B40: Criteria | C40: Pressure Exponent | D40: SpinDown Exponent | E40: Tread Depth Exponent
A41: Gallaway | B41: N/A | C41: 0.3 | D41: 0.04 | E41: 0.06
A43: Predicted Speed Reductions (for Risk Analysis)
A44: Intensity (in/hr) | B44: Predicted Speed Reduction (mph) | C44: Predicted Driver Speed (mph)
A45: 0.1 | B45: 0
A46: 0.25 | B46: 0
A47: 0.5 | B47: 6
A48: 1 | B48: 8
A49: 2 | B49: 12
A50: 3 | B50: - - | C50: 45
A51: 4 | B51: - - | C51: 45
A73: Sensitivity Spreadsheet Equations
C74: Water Film Thickness (in.) | O74: Hydroplaning_Speed | AA74: Pavement Inputs | AE74: Environmental Inputs | AG74: Vehicle Inputs | AK74: Cross Slope | AW74: Width | BK74: Total Slope (%) | BW74: Drainage Path per Lane (ft.) | CI74: Total Drainage Path (ft.) | CV74: Reynold's Number | DH74: Manning's N | DT74: A_Parameter
A75: WFT Model | B75: HPS Model | C75: Shoulder | D75: Lane 1 | E75: Lane 2 | F75: Lane 3 | G75: Lane 4 | H75: Shoulder | O75: Shoulder | P75: Lane 1 | Q75: Lane 2 | R75: Lane 3 | S75: Lane 4 | T75: Shoulder | AA75: Surface Type | AB75: Longitudinal Grade (%) | AC75: Permeability (in/hr) | AD75: =Sensitivity.MTD.vs.MPD -> Mean Profile Depth (in.) | AE75: Rainfall Intensity (in/hr) | AF75: Temperature (deg. F) | AG75: Axle Weight (lbs) | AH75: Tire Pressure (psi) | AI75: Spindown (%) | AJ75: Tread Depth (in) | AK75: Shoulder | AL75: Lane 1 | AM75: Lane 2 | AN75: Lane 3 | AO75: Lane 4 | AP75: Shoulder | AW75: Shoulder | AX75: Lane 1 | AY75: Lane 2 | AZ75: Lane 3 | BA75: Lane 4 | BB75: Shoulder | BI75: Excess Rainfall Intensity (in/hr) | BJ75: Mean Texture Depth (in.) | BK75: Shoulder | BL75: Lane 1 | BM75: Lane 2 | BN75: Lane 3 | BO75: Lane 4 | BP75: Shoulder | BW75: Shoulder | BX75: Lane 1 | BY75: Lane 2 | BZ75: Lane 3 | CA75: Lane 4 | CB75: Shoulder | CI75: Shoulder | CJ75: Lane 1 | CK75: Lane 2 | CL75: Lane 3 | CM75: Lane 4 | CN75: Shoulder | CU75: Kin. Viscosity (ft^2/s) | CV75: Shoulder | CW75: Lane 1 | CX75: Lane 2 | CY75: Lane 3 | CZ75: Lane 4 | DA75: Shoulder | DH75: Shoulder | DI75: Lane 1 | DJ75: Lane 2 | DK75: Lane 3 | DL75: Lane 4 | DM75: Shoulder | DT75: Shoulder | DU75: Lane 1 | DV75: Lane 2 | DW75: Lane 3 | DX75: Lane 4 | DY75: Shoulder
C76: =IF(BK76<>"",IF($A76="Gallaway",WFT.G.Const*$BJ76^WFT.G.MTD*CI76^WFT.G.DP*($BI76)^WFT.G.Int*(BK76/100)^WFT.G.Slope-$BJ76,IF($A76="UK RRL",CONVERT(WFT.U.Const*CONVERT(CI76,"ft","m")^WFT.U.DP*CONVERT(($BI76),"in","mm")^WFT.U.Int*(BK76/100)^WFT.U.Slope,"mm","in")-$BJ76,IF($A76="NZ Mod.",CONVERT(WFT.N.Const*CONVERT($BJ76,"in","mm")^WFT.N.MTD*CONVERT(CI76,"ft","m")^WFT.N.DP*CONVERT(($BI76),"in","mm")^WFT.N.Int*(BK76/100)^WFT.N.Slope,"mm","in")-$BJ76,IF($A76="PAVDRN",CONVERT(WFT.P.Const*DH76^WFT.P.Manni*CONVERT(CI76,"ft","m")^WFT.P.DP*CONVERT(($BI76),"in","mm")^WFT.P.Int*(BK76/100)^WFT.P.Slope,"mm","in")-$BJ76)))),"") ->  | O76: =IF(C76<>"",IF(C76<=0,999,IF($B76="USF",CONVERT(CONVERT($AG76,"lbf","N")^HP.U.Load*CONVERT($AH76,"psi","kPa")^HP.U.Press*(HP.U.a*CONVERT(C76,"in","mm")^HP.U.WFT+HP.U.b),"km","mi"),IF($B76="Gallaway",$AI76^HP.G.SpinDown*$AH76^HP.G.Press*(1+$AJ76*32)^HP.G.TreadDepth*DT76,IF($B76="PAVDRN",IF(C76<0.094,HP.P.WFT.lt.24.Const*C76^HP.P.WFT.lt.24.WFT, HP.P.WFT.gt.24.Const*DT76))))),"") ->  | BI76: =AE76-AC76 -> 0 | BJ76: =IF(Sensitivity_Output_MPD_or_MTD="Mean Texture Depth (in.)",AD76,IF(AA76="Dense Graded Friction Course",MPD.to.MTD.DGFC.a*AD76+MPD.to.MTD.DGFC.b,IF(AA76="Open Graded Friction Course",MPD.to.MTD.OGFC.a*AD76+MPD.to.MTD.OGFC.b,IF(AA76="PCC (LGD)",MPD.to.MTD.LGD.a*AD76+MPD.to.MTD.LGD.b,MPD.to.MTD.LGD.TGV.a*AD76+MPD.to.MTD.LGD.TGV.b)))) ->  | BK76: =IF(AND(AK76<>"",AW76<>""),SQRT($AB76^2+AK76^2),"") ->  | BL76: =IF(AND(AL76<>"",AX76<>""),SQRT($AB76^2+AL76^2),"") ->  | BW76: =IF(BK76<>"",AW76*SQRT(1+($AB76/AK76)^2),"") ->  | BX76: =IF(BL76<>"",AX76*SQRT(1+($AB76/AL76)^2),"") ->  | CI76: =IF(BW76<>"",BW76,"") ->  | CJ76: =IF(BX76<>"",IF(AK76*AL76>0,CI76+BX76,BX76),"") ->  | CK76: =IF(BY76<>"",IF(AL76*AM76>0,CJ76+BY76,BY76),"") ->  | CU76: =KVis.V0*EXP(KVis.a+KVis.b*273.16/(273.16+CONVERT(AF76,"F","C"))+KVis.c*(273.16/(273.16+CONVERT(AF76,"F","C")))^2)*CONVERT(1,"m","ft")^2*10^(-6) -> 3.880564287e-05 | CV76: =IF(CI76<>"",CI76*$BI76/12/3600/$CU76,"") ->  | CW76: =IF(CJ76<>"",CJ76*$BI76/12/3600/$CU76,"") ->  | DH76: =IF(CV76<>"",IF($AA76="Dense Graded Friction Course",Manning.DGFC.Const*CV76^Manning.DGFC.NR,IF($AA76="Open Graded Friction Course",Manning.OGFC.Const*CV76^Manning.OGFC.NR*BK76^Manning.OGFC.Slope,IF(CV76<500,Manning.PCC.NR.lt.500.Const*CV76^Manning.PCC.NR.lt.500.NR,IF(CV76<1000,Manning.PCC.NR.lt.1000.Const*CV76^Manning.PCC.NR.lt.1000.NR,0.017)))),"") ->  | DT76: =IF(C76<>"",MAX(A1.a*C76^A1.WFT+A1.b,(A2.a*C76^A2.WFT+A2.b)*$BJ76^A2.MTD),"") -> 
A79: Probabilistic Spreadsheet Equations
C80: Water Film Thickness (in.) | O80: Hydroplaning_Speed | AA80: Pavement Inputs | AE80: Environmental Inputs | AG80: Vehicle Inputs | AK80: Cross Slope | AW80: Width | BK80: Total Slope (%) | BW80: Drainage Path per Lane (ft.) | CI80: Total Drainage Path (ft.) | CV80: Reynold's Number | DH80: Manning's N | DT80: A_Parameter | EK80: WFT Frequency | EX80: HPS Frequency
A81: WFT Model | B81: HPS Model | C81: Shoulder | D81: Lane 1 | E81: Lane 2 | F81: Lane 3 | G81: Lane 4 | H81: Shoulder | O81: Shoulder | P81: Lane 1 | Q81: Lane 2 | R81: Lane 3 | S81: Lane 4 | T81: Shoulder | AA81: Surface Type | AB81: Longitudinal Grade (%) | AC81: Permeability (in/hr) | AD81: =Sensitivity.MTD.vs.MPD -> Mean Profile Depth (in.) | AE81: Rainfall Intensity (in/hr) | AF81: Temperature (deg. F) | AG81: Axle Weight (lbs) | AH81: Tire Pressure (psi) | AI81: Spindown (%) | AJ81: Tread Depth (in) | AK81: Shoulder | AL81: Lane 1 | AM81: Lane 2 | AN81: Lane 3 | AO81: Lane 4 | AP81: Shoulder | AW81: Shoulder | AX81: Lane 1 | AY81: Lane 2 | AZ81: Lane 3 | BA81: Lane 4 | BB81: Shoulder | BI81: Excess Rainfall Intensity (in/hr) | BJ81: Mean Texture Depth (in.) | BK81: Shoulder | BL81: Lane 1 | BM81: Lane 2 | BN81: Lane 3 | BO81: Lane 4 | BP81: Shoulder | BW81: Shoulder | BX81: Lane 1 | BY81: Lane 2 | BZ81: Lane 3 | CA81: Lane 4 | CB81: Shoulder | CI81: Shoulder | CJ81: Lane 1 | CK81: Lane 2 | CL81: Lane 3 | CM81: Lane 4 | CN81: Shoulder | CU81: Kin. Viscosity (ft^2/s) | CV81: Shoulder | CW81: Lane 1 | CX81: Lane 2 | CY81: Lane 3 | CZ81: Lane 4 | DA81: Shoulder | DH81: Shoulder | DI81: Lane 1 | DJ81: Lane 2 | DK81: Lane 3 | DL81: Lane 4 | DM81: Shoulder | DT81: Shoulder | DU81: Lane 1 | DV81: Lane 2 | DW81: Lane 3 | DX81: Lane 4 | DY81: Shoulder | EH81: WFT Model | EI81: HPS Model | EJ81: WFT Bins | EK81: Shoulder | EL81: Lane 1 | EM81: Lane 2 | EN81: Lane 3 | EO81: Lane 4 | EP81: Shoulder | EW81: HPS Bins | EX81: Shoulder | EY81: Lane 1 | EZ81: Lane 2 | FA81: Lane 3 | FB81: Lane 4 | FC81: Shoulder
C82: =IF(BK82<>"",IF($A82="Gallaway",WFT.G.Const*$BJ82^WFT.G.MTD*CI82^WFT.G.DP*($BI82)^WFT.G.Int*(BK82/100)^WFT.G.Slope-$BJ82,IF($A82="UK RRL",CONVERT(WFT.U.Const*CONVERT(CI82,"ft","m")^WFT.U.DP*CONVERT(($BI82),"in","mm")^WFT.U.Int*(BK82/100)^WFT.U.Slope,"mm","in")-$BJ82,IF($A82="NZ Mod.",CONVERT(WFT.N.Const*CONVERT($BJ82,"in","mm")^WFT.N.MTD*CONVERT(CI82,"ft","m")^WFT.N.DP*CONVERT(($BI82),"in","mm")^WFT.N.Int*(BK82/100)^WFT.N.Slope,"mm","in")-$BJ82,IF($A82="PAVDRN",CONVERT(WFT.P.Const*DH82^WFT.P.Manni*CONVERT(CI82,"ft","m")^WFT.P.DP*CONVERT(($BI82),"in","mm")^WFT.P.Int*(BK82/100)^WFT.P.Slope,"mm","in")-$BJ82)))),"") ->  | D82: =IF(BL82<>"",IF($A82="Gallaway",WFT.G.Const*$BJ82^WFT.G.MTD*CJ82^WFT.G.DP*($BI82)^WFT.G.Int*(BL82/100)^WFT.G.Slope-$BJ82,IF($A82="UK RRL",CONVERT(WFT.U.Const*CONVERT(CJ82,"ft","m")^WFT.U.DP*CONVERT(($BI82),"in","mm")^WFT.U.Int*(BL82/100)^WFT.U.Slope,"mm","in")-$BJ82,IF($A82="NZ Mod.",CONVERT(WFT.N.Const*CONVERT($BJ82,"in","mm")^WFT.N.MTD*CONVERT(CJ82,"ft","m")^WFT.N.DP*CONVERT(($BI82),"in","mm")^WFT.N.Int*(BL82/100)^WFT.N.Slope,"mm","in")-$BJ82,IF($A82="PAVDRN",CONVERT(WFT.P.Const*DI82^WFT.P.Manni*CONVERT(CJ82,"ft","m")^WFT.P.DP*CONVERT(($BI82),"in","mm")^WFT.P.Int*(BL82/100)^WFT.P.Slope,"mm","in")-$BJ82)))),"") ->  | E82: =IF(BM82<>"",IF($A82="Gallaway",WFT.G.Const*$BJ82^WFT.G.MTD*CK82^WFT.G.DP*($BI82)^WFT.G.Int*(BM82/100)^WFT.G.Slope-$BJ82,IF($A82="UK RRL",CONVERT(WFT.U.Const*CONVERT(CK82,"ft","m")^WFT.U.DP*CONVERT(($BI82),"in","mm")^WFT.U.Int*(BM82/100)^WFT.U.Slope,"mm","in")-$BJ82,IF($A82="NZ Mod.",CONVERT(WFT.N.Const*CONVERT($BJ82,"in","mm")^WFT.N.MTD*CONVERT(CK82,"ft","m")^WFT.N.DP*CONVERT(($BI82),"in","mm")^WFT.N.Int*(BM82/100)^WFT.N.Slope,"mm","in")-$BJ82,IF($A82="PAVDRN",CONVERT(WFT.P.Const*DJ82^WFT.P.Manni*CONVERT(CK82,"ft","m")^WFT.P.DP*CONVERT(($BI82),"in","mm")^WFT.P.Int*(BM82/100)^WFT.P.Slope,"mm","in")-$BJ82)))),"") ->  | F82: =IF(BN82<>"",IF($A82="Gallaway",WFT.G.Const*$BJ82^WFT.G.MTD*CL82^WFT.G.DP*($BI82)^WFT.G.Int*(BN82/100)^WFT.G.Slope-$BJ82,IF($A82="UK RRL",CONVERT(WFT.U.Const*CONVERT(CL82,"ft","m")^WFT.U.DP*CONVERT(($BI82),"in","mm")^WFT.U.Int*(BN82/100)^WFT.U.Slope,"mm","in")-$BJ82,IF($A82="NZ Mod.",CONVERT(WFT.N.Const*CONVERT($BJ82,"in","mm")^WFT.N.MTD*CONVERT(CL82,"ft","m")^WFT.N.DP*CONVERT(($BI82),"in","mm")^WFT.N.Int*(BN82/100)^WFT.N.Slope,"mm","in")-$BJ82,IF($A82="PAVDRN",CONVERT(WFT.P.Const*DK82^WFT.P.Manni*CONVERT(CL82,"ft","m")^WFT.P.DP*CONVERT(($BI82),"in","mm")^WFT.P.Int*(BN82/100)^WFT.P.Slope,"mm","in")-$BJ82)))),"") ->  | G82: =IF(BO82<>"",IF($A82="Gallaway",WFT.G.Const*$BJ82^WFT.G.MTD*CM82^WFT.G.DP*($BI82)^WFT.G.Int*(BO82/100)^WFT.G.Slope-$BJ82,IF($A82="UK RRL",CONVERT(WFT.U.Const*CONVERT(CM82,"ft","m")^WFT.U.DP*CONVERT(($BI82),"in","mm")^WFT.U.Int*(BO82/100)^WFT.U.Slope,"mm","in")-$BJ82,IF($A82="NZ Mod.",CONVERT(WFT.N.Const*CONVERT($BJ82,"in","mm")^WFT.N.MTD*CONVERT(CM82,"ft","m")^WFT.N.DP*CONVERT(($BI82),"in","mm")^WFT.N.Int*(BO82/100)^WFT.N.Slope,"mm","in")-$BJ82,IF($A82="PAVDRN",CONVERT(WFT.P.Const*DL82^WFT.P.Manni*CONVERT(CM82,"ft","m")^WFT.P.DP*CONVERT(($BI82),"in","mm")^WFT.P.Int*(BO82/100)^WFT.P.Slope,"mm","in")-$BJ82)))),"") ->  | H82: =IF(BP82<>"",IF($A82="Gallaway",WFT.G.Const*$BJ82^WFT.G.MTD*CN82^WFT.G.DP*($BI82)^WFT.G.Int*(BP82/100)^WFT.G.Slope-$BJ82,IF($A82="UK RRL",CONVERT(WFT.U.Const*CONVERT(CN82,"ft","m")^WFT.U.DP*CONVERT(($BI82),"in","mm")^WFT.U.Int*(BP82/100)^WFT.U.Slope,"mm","in")-$BJ82,IF($A82="NZ Mod.",CONVERT(WFT.N.Const*CONVERT($BJ82,"in","mm")^WFT.N.MTD*CONVERT(CN82,"ft","m")^WFT.N.DP*CONVERT(($BI82),"in","mm")^WFT.N.Int*(BP82/100)^WFT.N.Slope,"mm","in")-$BJ82,IF($A82="PAVDRN",CONVERT(WFT.P.Const*DM82^WFT.P.Manni*CONVERT(CN82,"ft","m")^WFT.P.DP*CONVERT(($BI82),"in","mm")^WFT.P.Int*(BP82/100)^WFT.P.Slope,"mm","in")-$BJ82)))),"") ->  | I82: =IF(BQ82<>"",IF($A82="Gallaway",WFT.G.Const*$BJ82^WFT.G.MTD*CO82^WFT.G.DP*($BI82)^WFT.G.Int*(BQ82/100)^WFT.G.Slope-$BJ82,IF($A82="UK RRL",CONVERT(WFT.U.Const*CONVERT(CO82,"ft","m")^WFT.U.DP*CONVERT(($BI82),"in","mm")^WFT.U.Int*(BQ82/100)^WFT.U.Slope,"mm","in")-$BJ82,IF($A82="NZ Mod.",CONVERT(WFT.N.Const*CONVERT($BJ82,"in","mm")^WFT.N.MTD*CONVERT(CO82,"ft","m")^WFT.N.DP*CONVERT(($BI82),"in","mm")^WFT.N.Int*(BQ82/100)^WFT.N.Slope,"mm","in")-$BJ82,IF($A82="PAVDRN",CONVERT(WFT.P.Const*DN82^WFT.P.Manni*CONVERT(CO82,"ft","m")^WFT.P.DP*CONVERT(($BI82),"in","mm")^WFT.P.Int*(BQ82/100)^WFT.P.Slope,"mm","in")-$BJ82)))),"") ->  | J82: =IF(BR82<>"",IF($A82="Gallaway",WFT.G.Const*$BJ82^WFT.G.MTD*CP82^WFT.G.DP*($BI82)^WFT.G.Int*(BR82/100)^WFT.G.Slope-$BJ82,IF($A82="UK RRL",CONVERT(WFT.U.Const*CONVERT(CP82,"ft","m")^WFT.U.DP*CONVERT(($BI82),"in","mm")^WFT.U.Int*(BR82/100)^WFT.U.Slope,"mm","in")-$BJ82,IF($A82="NZ Mod.",CONVERT(WFT.N.Const*CONVERT($BJ82,"in","mm")^WFT.N.MTD*CONVERT(CP82,"ft","m")^WFT.N.DP*CONVERT(($BI82),"in","mm")^WFT.N.Int*(BR82/100)^WFT.N.Slope,"mm","in")-$BJ82,IF($A82="PAVDRN",CONVERT(WFT.P.Const*DO82^WFT.P.Manni*CONVERT(CP82,"ft","m")^WFT.P.DP*CONVERT(($BI82),"in","mm")^WFT.P.Int*(BR82/100)^WFT.P.Slope,"mm","in")-$BJ82)))),"") ->  | K82: =IF(BS82<>"",IF($A82="Gallaway",WFT.G.Const*$BJ82^WFT.G.MTD*CQ82^WFT.G.DP*($BI82)^WFT.G.Int*(BS82/100)^WFT.G.Slope-$BJ82,IF($A82="UK RRL",CONVERT(WFT.U.Const*CONVERT(CQ82,"ft","m")^WFT.U.DP*CONVERT(($BI82),"in","mm")^WFT.U.Int*(BS82/100)^WFT.U.Slope,"mm","in")-$BJ82,IF($A82="NZ Mod.",CONVERT(WFT.N.Const*CONVERT($BJ82,"in","mm")^WFT.N.MTD*CONVERT(CQ82,"ft","m")^WFT.N.DP*CONVERT(($BI82),"in","mm")^WFT.N.Int*(BS82/100)^WFT.N.Slope,"mm","in")-$BJ82,IF($A82="PAVDRN",CONVERT(WFT.P.Const*DP82^WFT.P.Manni*CONVERT(CQ82,"ft","m")^WFT.P.DP*CONVERT(($BI82),"in","mm")^WFT.P.Int*(BS82/100)^WFT.P.Slope,"mm","in")-$BJ82)))),"") ->  | L82: =IF(BT82<>"",IF($A82="Gallaway",WFT.G.Const*$BJ82^WFT.G.MTD*CR82^WFT.G.DP*($BI82)^WFT.G.Int*(BT82/100)^WFT.G.Slope-$BJ82,IF($A82="UK RRL",CONVERT(WFT.U.Const*CONVERT(CR82,"ft","m")^WFT.U.DP*CONVERT(($BI82),"in","mm")^WFT.U.Int*(BT82/100)^WFT.U.Slope,"mm","in")-$BJ82,IF($A82="NZ Mod.",CONVERT(WFT.N.Const*CONVERT($BJ82,"in","mm")^WFT.N.MTD*CONVERT(CR82,"ft","m")^WFT.N.DP*CONVERT(($BI82),"in","mm")^WFT.N.Int*(BT82/100)^WFT.N.Slope,"mm","in")-$BJ82,IF($A82="PAVDRN",CONVERT(WFT.P.Const*DQ82^WFT.P.Manni*CONVERT(CR82,"ft","m")^WFT.P.DP*CONVERT(($BI82),"in","mm")^WFT.P.Int*(BT82/100)^WFT.P.Slope,"mm","in")-$BJ82)))),"") ->  | M82: =IF(BU82<>"",IF($A82="Gallaway",WFT.G.Const*$BJ82^WFT.G.MTD*CS82^WFT.G.DP*($BI82)^WFT.G.Int*(BU82/100)^WFT.G.Slope-$BJ82,IF($A82="UK RRL",CONVERT(WFT.U.Const*CONVERT(CS82,"ft","m")^WFT.U.DP*CONVERT(($BI82),"in","mm")^WFT.U.Int*(BU82/100)^WFT.U.Slope,"mm","in")-$BJ82,IF($A82="NZ Mod.",CONVERT(WFT.N.Const*CONVERT($BJ82,"in","mm")^WFT.N.MTD*CONVERT(CS82,"ft","m")^WFT.N.DP*CONVERT(($BI82),"in","mm")^WFT.N.Int*(BU82/100)^WFT.N.Slope,"mm","in")-$BJ82,IF($A82="PAVDRN",CONVERT(WFT.P.Const*DR82^WFT.P.Manni*CONVERT(CS82,"ft","m")^WFT.P.DP*CONVERT(($BI82),"in","mm")^WFT.P.Int*(BU82/100)^WFT.P.Slope,"mm","in")-$BJ82)))),"") ->  | N82: =IF(BV82<>"",IF($A82="Gallaway",WFT.G.Const*$BJ82^WFT.G.MTD*CT82^WFT.G.DP*($BI82)^WFT.G.Int*(BV82/100)^WFT.G.Slope-$BJ82,IF($A82="UK RRL",CONVERT(WFT.U.Const*CONVERT(CT82,"ft","m")^WFT.U.DP*CONVERT(($BI82),"in","mm")^WFT.U.Int*(BV82/100)^WFT.U.Slope,"mm","in")-$BJ82,IF($A82="NZ Mod.",CONVERT(WFT.N.Const*CONVERT($BJ82,"in","mm")^WFT.N.MTD*CONVERT(CT82,"ft","m")^WFT.N.DP*CONVERT(($BI82),"in","mm")^WFT.N.Int*(BV82/100)^WFT.N.Slope,"mm","in")-$BJ82,IF($A82="PAVDRN",CONVERT(WFT.P.Const*DS82^WFT.P.Manni*CONVERT(CT82,"ft","m")^WFT.P.DP*CONVERT(($BI82),"in","mm")^WFT.P.Int*(BV82/100)^WFT.P.Slope,"mm","in")-$BJ82)))),"") ->  | O82: =IF(C82<>"",IF(C82<=0,999,IF($B82="USF",CONVERT(CONVERT($AG82,"lbf","N")^HP.U.Load*CONVERT($AH82,"psi","kPa")^HP.U.Press*(HP.U.a*CONVERT(C82,"in","mm")^HP.U.WFT+HP.U.b),"km","mi"),IF($B82="Gallaway",$AI82^HP.G.SpinDown*$AH82^HP.G.Press*(1+$AJ82*32)^HP.G.TreadDepth*DT82,IF($B82="PAVDRN",IF(C82<0.094,HP.P.WFT.lt.24.Const*C82^HP.P.WFT.lt.24.WFT, HP.P.WFT.gt.24.Const*DT82))))),"") ->  | P82: =IF(D82<>"",IF(D82<=0,999,IF($B82="USF",CONVERT(CONVERT($AG82,"lbf","N")^HP.U.Load*CONVERT($AH82,"psi","kPa")^HP.U.Press*(HP.U.a*CONVERT(D82,"in","mm")^HP.U.WFT+HP.U.b),"km","mi"),IF($B82="Gallaway",$AI82^HP.G.SpinDown*$AH82^HP.G.Press*(1+$AJ82*32)^HP.G.TreadDepth*DU82,IF($B82="PAVDRN",IF(D82<0.094,HP.P.WFT.lt.24.Const*D82^HP.P.WFT.lt.24.WFT, HP.P.WFT.gt.24.Const*DU82))))),"") ->  | Q82: =IF(E82<>"",IF(E82<=0,999,IF($B82="USF",CONVERT(CONVERT($AG82,"lbf","N")^HP.U.Load*CONVERT($AH82,"psi","kPa")^HP.U.Press*(HP.U.a*CONVERT(E82,"in","mm")^HP.U.WFT+HP.U.b),"km","mi"),IF($B82="Gallaway",$AI82^HP.G.SpinDown*$AH82^HP.G.Press*(1+$AJ82*32)^HP.G.TreadDepth*DV82,IF($B82="PAVDRN",IF(E82<0.094,HP.P.WFT.lt.24.Const*E82^HP.P.WFT.lt.24.WFT, HP.P.WFT.gt.24.Const*DV82))))),"") ->  | R82: =IF(F82<>"",IF(F82<=0,999,IF($B82="USF",CONVERT(CONVERT($AG82,"lbf","N")^HP.U.Load*CONVERT($AH82,"psi","kPa")^HP.U.Press*(HP.U.a*CONVERT(F82,"in","mm")^HP.U.WFT+HP.U.b),"km","mi"),IF($B82="Gallaway",$AI82^HP.G.SpinDown*$AH82^HP.G.Press*(1+$AJ82*32)^HP.G.TreadDepth*DW82,IF($B82="PAVDRN",IF(F82<0.094,HP.P.WFT.lt.24.Const*F82^HP.P.WFT.lt.24.WFT, HP.P.WFT.gt.24.Const*DW82))))),"") ->  | S82: =IF(G82<>"",IF(G82<=0,999,IF($B82="USF",CONVERT(CONVERT($AG82,"lbf","N")^HP.U.Load*CONVERT($AH82,"psi","kPa")^HP.U.Press*(HP.U.a*CONVERT(G82,"in","mm")^HP.U.WFT+HP.U.b),"km","mi"),IF($B82="Gallaway",$AI82^HP.G.SpinDown*$AH82^HP.G.Press*(1+$AJ82*32)^HP.G.TreadDepth*DX82,IF($B82="PAVDRN",IF(G82<0.094,HP.P.WFT.lt.24.Const*G82^HP.P.WFT.lt.24.WFT, HP.P.WFT.gt.24.Const*DX82))))),"") ->  | T82: =IF(H82<>"",IF(H82<=0,999,IF($B82="USF",CONVERT(CONVERT($AG82,"lbf","N")^HP.U.Load*CONVERT($AH82,"psi","kPa")^HP.U.Press*(HP.U.a*CONVERT(H82,"in","mm")^HP.U.WFT+HP.U.b),"km","mi"),IF($B82="Gallaway",$AI82^HP.G.SpinDown*$AH82^HP.G.Press*(1+$AJ82*32)^HP.G.TreadDepth*DY82,IF($B82="PAVDRN",IF(H82<0.094,HP.P.WFT.lt.24.Const*H82^HP.P.WFT.lt.24.WFT, HP.P.WFT.gt.24.Const*DY82))))),"") ->  | U82: =IF(I82<>"",IF(I82<=0,999,IF($B82="USF",CONVERT(CONVERT($AG82,"lbf","N")^HP.U.Load*CONVERT($AH82,"psi","kPa")^HP.U.Press*(HP.U.a*CONVERT(I82,"in","mm")^HP.U.WFT+HP.U.b),"km","mi"),IF($B82="Gallaway",$AI82^HP.G.SpinDown*$AH82^HP.G.Press*(1+$AJ82*32)^HP.G.TreadDepth*DZ82,IF($B82="PAVDRN",IF(I82<0.094,HP.P.WFT.lt.24.Const*I82^HP.P.WFT.lt.24.WFT, HP.P.WFT.gt.24.Const*DZ82))))),"") ->  | V82: =IF(J82<>"",IF(J82<=0,999,IF($B82="USF",CONVERT(CONVERT($AG82,"lbf","N")^HP.U.Load*CONVERT($AH82,"psi","kPa")^HP.U.Press*(HP.U.a*CONVERT(J82,"in","mm")^HP.U.WFT+HP.U.b),"km","mi"),IF($B82="Gallaway",$AI82^HP.G.SpinDown*$AH82^HP.G.Press*(1+$AJ82*32)^HP.G.TreadDepth*EA82,IF($B82="PAVDRN",IF(J82<0.094,HP.P.WFT.lt.24.Const*J82^HP.P.WFT.lt.24.WFT, HP.P.WFT.gt.24.Const*EA82))))),"") ->  | W82: =IF(K82<>"",IF(K82<=0,999,IF($B82="USF",CONVERT(CONVERT($AG82,"lbf","N")^HP.U.Load*CONVERT($AH82,"psi","kPa")^HP.U.Press*(HP.U.a*CONVERT(K82,"in","mm")^HP.U.WFT+HP.U.b),"km","mi"),IF($B82="Gallaway",$AI82^HP.G.SpinDown*$AH82^HP.G.Press*(1+$AJ82*32)^HP.G.TreadDepth*EB82,IF($B82="PAVDRN",IF(K82<0.094,HP.P.WFT.lt.24.Const*K82^HP.P.WFT.lt.24.WFT, HP.P.WFT.gt.24.Const*EB82))))),"") ->  | X82: =IF(L82<>"",IF(L82<=0,999,IF($B82="USF",CONVERT(CONVERT($AG82,"lbf","N")^HP.U.Load*CONVERT($AH82,"psi","kPa")^HP.U.Press*(HP.U.a*CONVERT(L82,"in","mm")^HP.U.WFT+HP.U.b),"km","mi"),IF($B82="Gallaway",$AI82^HP.G.SpinDown*$AH82^HP.G.Press*(1+$AJ82*32)^HP.G.TreadDepth*EC82,IF($B82="PAVDRN",IF(L82<0.094,HP.P.WFT.lt.24.Const*L82^HP.P.WFT.lt.24.WFT, HP.P.WFT.gt.24.Const*EC82))))),"") ->  | Y82: =IF(M82<>"",IF(M82<=0,999,IF($B82="USF",CONVERT(CONVERT($AG82,"lbf","N")^HP.U.Load*CONVERT($AH82,"psi","kPa")^HP.U.Press*(HP.U.a*CONVERT(M82,"in","mm")^HP.U.WFT+HP.U.b),"km","mi"),IF($B82="Gallaway",$AI82^HP.G.SpinDown*$AH82^HP.G.Press*(1+$AJ82*32)^HP.G.TreadDepth*ED82,IF($B82="PAVDRN",IF(M82<0.094,HP.P.WFT.lt.24.Const*M82^HP.P.WFT.lt.24.WFT, HP.P.WFT.gt.24.Const*ED82))))),"") ->  | Z82: =IF(N82<>"",IF(N82<=0,999,IF($B82="USF",CONVERT(CONVERT($AG82,"lbf","N")^HP.U.Load*CONVERT($AH82,"psi","kPa")^HP.U.Press*(HP.U.a*CONVERT(N82,"in","mm")^HP.U.WFT+HP.U.b),"km","mi"),IF($B82="Gallaway",$AI82^HP.G.SpinDown*$AH82^HP.G.Press*(1+$AJ82*32)^HP.G.TreadDepth*EE82,IF($B82="PAVDRN",IF(N82<0.094,HP.P.WFT.lt.24.Const*N82^HP.P.WFT.lt.24.WFT, HP.P.WFT.gt.24.Const*EE82))))),"") ->  | BI82: =AE82-AC82 -> 0 | BJ82: =IF(Probabilistic_Output_MPD_or_MTD="Mean Texture Depth (in.)",AD82,IF(AA82="Dense Graded Friction Course",MPD.to.MTD.DGFC.a*AD82+MPD.to.MTD.DGFC.b,IF(AA82="Open Graded Friction Course",MPD.to.MTD.OGFC.a*AD82+MPD.to.MTD.OGFC.b,IF(AA82="PCC (LGD)",MPD.to.MTD.LGD.a*AD82+MPD.to.MTD.LGD.b,MPD.to.MTD.LGD.TGV.a*AD82+MPD.to.MTD.LGD.TGV.b)))) -> 0.002 | BK82: =IF(AND(AK82<>"",AW82<>""),SQRT($AB82^2+AK82^2),"") ->  | BL82: =IF(AND(AL82<>"",AX82<>""),SQRT($AB82^2+AL82^2),"") ->  | BM82: =IF(AND(AM82<>"",AY82<>""),SQRT($AB82^2+AM82^2),"") ->  | BN82: =IF(AND(AN82<>"",AZ82<>""),SQRT($AB82^2+AN82^2),"") ->  | BO82: =IF(AND(AO82<>"",BA82<>""),SQRT($AB82^2+AO82^2),"") ->  | BP82: =IF(AND(AP82<>"",BB82<>""),SQRT($AB82^2+AP82^2),"") ->  | BQ82: =IF(AND(AQ82<>"",BC82<>""),SQRT($AB82^2+AQ82^2),"") ->  | BR82: =IF(AND(AR82<>"",BD82<>""),SQRT($AB82^2+AR82^2),"") ->  | BS82: =IF(AND(AS82<>"",BE82<>""),SQRT($AB82^2+AS82^2),"") ->  | BT82: =IF(AND(AT82<>"",BF82<>""),SQRT($AB82^2+AT82^2),"") ->  | BU82: =IF(AND(AU82<>"",BG82<>""),SQRT($AB82^2+AU82^2),"") ->  | BV82: =IF(AND(AV82<>"",BH82<>""),SQRT($AB82^2+AV82^2),"") ->  | BW82: =IF(BK82<>"",AW82*SQRT(1+($AB82/AK82)^2),"") ->  | BX82: =IF(BL82<>"",AX82*SQRT(1+($AB82/AL82)^2),"") ->  | CI82: =IF(BW82<>"",BW82,"") ->  | CJ82: =IF(BX82<>"",IF(AK82*AL82>0,CI82+BX82,BX82),"") ->  | CK82: =IF(BY82<>"",IF(AL82*AM82>0,CJ82+BY82,BY82),"") ->  | CL82: =IF(BZ82<>"",IF(AM82*AN82>0,CK82+BZ82,BZ82),"") ->  | CM82: =IF(CA82<>"",IF(AN82*AO82>0,CL82+CA82,CA82),"") ->  | CN82: =IF(CB82<>"",IF(AO82*AP82>0,CM82+CB82,CB82),"") ->  | CO82: =IF(CC82<>"",IF(AP82*AQ82>0,CN82+CC82,CC82),"") ->  | CP82: =IF(CD82<>"",IF(AQ82*AR82>0,CO82+CD82,CD82),"") ->  | CQ82: =IF(CE82<>"",IF(AR82*AS82>0,CP82+CE82,CE82),"") ->  | CR82: =IF(CF82<>"",IF(AS82*AT82>0,CQ82+CF82,CF82),"") ->  | CS82: =IF(CG82<>"",IF(AT82*AU82>0,CR82+CG82,CG82),"") ->  | CT82: =IF(CH82<>"",IF(AU82*AV82>0,CS82+CH82,CH82),"") ->  | CU82: =KVis.V0*EXP(KVis.a+KVis.b*273.16/(273.16+CONVERT(AF82,"F","C"))+KVis.c*(273.16/(273.16+CONVERT(AF82,"F","C")))^2)*CONVERT(1,"m","ft")^2*10^(-6) -> 3.880564287e-05 | CV82: =IF(CI82<>"",CI82*$BI82/12/3600/$CU82,"") ->  | CW82: =IF(CJ82<>"",CJ82*$BI82/12/3600/$CU82,"") ->  | CX82: =IF(CK82<>"",CK82*$BI82/12/3600/$CU82,"") ->  | CY82: =IF(CL82<>"",CL82*$BI82/12/3600/$CU82,"") ->  | CZ82: =IF(CM82<>"",CM82*$BI82/12/3600/$CU82,"") ->  | DA82: =IF(CN82<>"",CN82*$BI82/12/3600/$CU82,"") ->  | DB82: =IF(CO82<>"",CO82*$BI82/12/3600/$CU82,"") ->  | DC82: =IF(CP82<>"",CP82*$BI82/12/3600/$CU82,"") ->  | DD82: =IF(CQ82<>"",CQ82*$BI82/12/3600/$CU82,"") ->  | DE82: =IF(CR82<>"",CR82*$BI82/12/3600/$CU82,"") ->  | DF82: =IF(CS82<>"",CS82*$BI82/12/3600/$CU82,"") ->  | DG82: =IF(CT82<>"",CT82*$BI82/12/3600/$CU82,"") ->  | DH82: =IF(CV82<>"",IF($AA82="Dense Graded Friction Course",Manning.DGFC.Const*CV82^Manning.DGFC.NR,IF($AA82="Open Graded Friction Course",Manning.OGFC.Const*CV82^Manning.OGFC.NR*BK82^Manning.OGFC.Slope,IF(CV82<500,Manning.PCC.NR.lt.500.Const*CV82^Manning.PCC.NR.lt.500.NR,IF(CV82<1000,Manning.PCC.NR.lt.1000.Const*CV82^Manning.PCC.NR.lt.1000.NR,0.017)))),"") ->  | DT82: =IF(C82<>"",MAX(A1.a*C82^A1.WFT+A1.b,(A2.a*C82^A2.WFT+A2.b)*$BJ82^A2.MTD),"") ->  | DU82: =IF(D82<>"",MAX(A1.a*D82^A1.WFT+A1.b,(A2.a*D82^A2.WFT+A2.b)*$BJ82^A2.MTD),"") ->  | DV82: =IF(E82<>"",MAX(A1.a*E82^A1.WFT+A1.b,(A2.a*E82^A2.WFT+A2.b)*$BJ82^A2.MTD),"") ->  | DW82: =IF(F82<>"",MAX(A1.a*F82^A1.WFT+A1.b,(A2.a*F82^A2.WFT+A2.b)*$BJ82^A2.MTD),"") ->  | DX82: =IF(G82<>"",MAX(A1.a*G82^A1.WFT+A1.b,(A2.a*G82^A2.WFT+A2.b)*$BJ82^A2.MTD),"") ->  | DY82: =IF(H82<>"",MAX(A1.a*H82^A1.WFT+A1.b,(A2.a*H82^A2.WFT+A2.b)*$BJ82^A2.MTD),"") ->  | DZ82: =IF(I82<>"",MAX(A1.a*I82^A1.WFT+A1.b,(A2.a*I82^A2.WFT+A2.b)*$BJ82^A2.MTD),"") ->  | EA82: =IF(J82<>"",MAX(A1.a*J82^A1.WFT+A1.b,(A2.a*J82^A2.WFT+A2.b)*$BJ82^A2.MTD),"") ->  | EB82: =IF(K82<>"",MAX(A1.a*K82^A1.WFT+A1.b,(A2.a*K82^A2.WFT+A2.b)*$BJ82^A2.MTD),"") ->  | EC82: =IF(L82<>"",MAX(A1.a*L82^A1.WFT+A1.b,(A2.a*L82^A2.WFT+A2.b)*$BJ82^A2.MTD),"") ->  | ED82: =IF(M82<>"",MAX(A1.a*M82^A1.WFT+A1.b,(A2.a*M82^A2.WFT+A2.b)*$BJ82^A2.MTD),"") ->  | EE82: =IF(N82<>"",MAX(A1.a*N82^A1.WFT+A1.b,(A2.a*N82^A2.WFT+A2.b)*$BJ82^A2.MTD),"") -> 
A85: Continuous Spreadsheet Equations
D86: Water Film Thickness (in.) | P86: Hydroplaning_Speed | AB86: Water Depth Due to Rutting (in.) | AN86: Hydroplaning Speed Due to Rutting | AZ86: Lattitude | BL86: Longitude | BX86: Pavement Inputs | BZ86: Environmental Inputs | CB86: Vehicle Inputs | CF86: Cross Slope | CR86: Grade | DD86: Texture, MPD (inch) | DP86: Texture, MTD (inch) | EB86: Rut Depth | EN86: Width | FA86: Total Slope (%) | FM86: Drainage Path per Lane (ft.) | FY86: Total Drainage Path (ft.) | GL86: Reynold's Number | GX86: Manning's N | HJ86: A_Parameter | HV86: A_Parameter_Rut | IH86: Design Speed (mph)
A87: WFT Model | B87: HPS Model | C87: MP | D87: Lane 1 | E87: Lane 2 | P87: Lane 1 | Q87: Lane 2 | AB87: Lane 1 | AC87: Lane 2 | AN87: Lane 1 | AO87: Lane 2 | AZ87: Lane 1 | BA87: Lane 2 | BL87: Lane 1 | BM87: Lane 2 | BX87: Surface Type | BY87: Permeability (in/hr) | BZ87: Rainfall Intensity (in/hr) | CA87: Temperature (deg. F) | CB87: Axle Weight (lbs) | CC87: Tire Pressure (psi) | CD87: Spindown (%) | CE87: Tread Depth (in) | CF87: Lane 1 | CG87: Lane 2 | CR87: Lane 1 | CS87: Lane 2 | DD87: Lane 1 | DE87: Lane 2 | DP87: Lane 1 | DQ87: Lane 2 | EB87: Lane 1 | EC87: Lane 2 | EN87: Lane 1 | EO87: Lane 2 | EZ87: Excess Rainfall Intensity (in/hr) | FA87: Lane 1 | FB87: Lane 2 | FM87: Lane 1 | FN87: Lane 2 | FY87: Lane 1 | FZ87: Lane 2 | GK87: Kin. Viscosity (ft^2/s) | GL87: Lane 1 | GM87: Lane 2 | GX87: Lane 1 | GY87: Lane 2 | HJ87: Lane 1 | HK87: Lane 2 | HV87: Lane 1 | HW87: Lane 2 | IH87: Lane 1 | II87: Lane 2
D88: =IF(FA88<>"",IF($A88="Gallaway",WFT.G.Const*DP88^WFT.G.MTD*FY88^WFT.G.DP*($EZ88)^WFT.G.Int*(FA88/100)^WFT.G.Slope-DP88,IF($A88="UK RRL",CONVERT(WFT.U.Const*CONVERT(FY88,"ft","m")^WFT.U.DP*CONVERT(($EZ88),"in","mm")^WFT.U.Int*(FA88/100)^WFT.U.Slope,"mm","in")-DP88,IF($A88="NZ Mod.",CONVERT(WFT.N.Const*CONVERT(DP88,"in","mm")^WFT.N.MTD*CONVERT(FY88,"ft","m")^WFT.N.DP*CONVERT(($EZ88),"in","mm")^WFT.N.Int*(FA88/100)^WFT.N.Slope,"mm","in")-DP88,IF($A88="PAVDRN",CONVERT(WFT.P.Const*GX88^WFT.P.Manni*CONVERT(FY88,"ft","m")^WFT.P.DP*CONVERT(($EZ88),"in","mm")^WFT.P.Int*(FA88/100)^WFT.P.Slope,"mm","in")-DP88)))),"") ->  | P88: =IF(D88<>"",IF(D88<=0,999,IF($B88="USF",CONVERT(CONVERT($CB88,"lbf","N")^HP.U.Load*CONVERT($CC88,"psi","kPa")^HP.U.Press*(HP.U.a*CONVERT(D88,"in","mm")^HP.U.WFT+HP.U.b),"km","mi"),IF($B88="Gallaway",$CD88^HP.G.SpinDown*$CC88^HP.G.Press*(1+$CE88*32)^HP.G.TreadDepth*HJ88,IF($B88="PAVDRN",IF(D88<0.094,HP.P.WFT.lt.24.Const*D88^HP.P.WFT.lt.24.WFT, HP.P.WFT.gt.24.Const*HJ88))))),"") ->  | AB88: =IF(ISNUMBER(EB88)=FALSE,0,IF(AND(CF88<>"",EB88<>""),IF(EB88-18*ABS(CF88)/100>=0,EB88-18*ABS(CF88)/100,0),"")) -> 0 | AC88: =IF(ISNUMBER(EC88)=FALSE,0,IF(AND(CG88<>"",EC88<>""),IF(EC88-18*ABS(CG88)/100>=0,EC88-18*ABS(CG88)/100,0),"")) -> 0 | AD88: 0 | AE88: 0 | AF88: 0 | AG88: 0 | AH88: 0 | AI88: 0 | AJ88: 0 | AK88: 0 | AL88: 0 | AM88: 0 | AN88: =IF(AB88<>"",IF(AB88<=0,999,IF($B88="USF",CONVERT(CONVERT($CB88,"lbf","N")^HP.U.Load*CONVERT($CC88,"psi","kPa")^HP.U.Press*(HP.U.a*CONVERT(AB88,"in","mm")^HP.U.WFT+HP.U.b),"km","mi"),IF($B88="Gallaway",$CD88^HP.G.SpinDown*$CC88^HP.G.Press*(1+$CE88*32)^HP.G.TreadDepth*HV88,IF($B88="PAVDRN",IF(AB88<0.094,HP.P.WFT.lt.24.Const*AB88^HP.P.WFT.lt.24.WFT, HP.P.WFT.gt.24.Const*HV88))))),"") -> 999 | AO88: 999 | AP88: 999 | AQ88: 999 | AR88: 999 | AS88: 999 | AT88: 999 | AU88: 999 | AV88: 999 | AW88: 999 | AX88: 999 | AY88: 999 | DP88: =IF(DD88="","",IF($BX88="Dense Graded Friction Course",MPD.to.MTD.DGFC.a*DD88+MPD.to.MTD.DGFC.b,IF($BX88="Open Graded Friction Course",MPD.to.MTD.OGFC.a*DD88+MPD.to.MTD.OGFC.b,IF($BX88="PCC (LGD)",MPD.to.MTD.LGD.a*DD88+MPD.to.MTD.LGD.b,MPD.to.MTD.LGD.TGV.a*DD88+MPD.to.MTD.LGD.TGV.b)))) ->  | EZ88: =BZ88-BY88 -> 0 | FA88: =IF(AND(CF88<>"",CR88<>""),SQRT(CR88^2+CF88^2),"") ->  | FM88: =IF(FA88<>"",EN88*SQRT(1+(CR88/CF88)^2),"") ->  | FN88: =IF(FB88<>"",EO88*SQRT(1+(CS88/CG88)^2),"") ->  | FY88: =IF(FM88<>"",FM88,"") ->  | FZ88: =IF(FN88<>"",IF(CF88*CG88>0,FY88+FN88,FN88),"") ->  | GA88: =IF(FO88<>"",IF(CG88*CH88>0,FZ88+FO88,FO88),"") ->  | GK88: =KVis.V0*EXP(KVis.a+KVis.b*273.16/(273.16+CONVERT(CA88,"F","C"))+KVis.c*(273.16/(273.16+CONVERT(CA88,"F","C")))^2)*CONVERT(1,"m","ft")^2*10^(-6) -> 3.880564287e-05 | GL88: =IF(FY88<>"",FY88*$EZ88/12/3600/$GK88,"") ->  | GX88: =IF(GL88<>"",IF($BX88="Dense Graded Friction Course",Manning.DGFC.Const*GL88^Manning.DGFC.NR,IF($BX88="Open Graded Friction Course",Manning.OGFC.Const*GL88^Manning.OGFC.NR*FA88^Manning.OGFC.Slope,IF(GL88<500,Manning.PCC.NR.lt.500.Const*GL88^Manning.PCC.NR.lt.500.NR,IF(GL88<1000,Manning.PCC.NR.lt.1000.Const*GL88^Manning.PCC.NR.lt.1000.NR,0.017)))),"") ->  | HJ88: =IF(D88<>"",MAX(A1.a*D88^A1.WFT+A1.b,(A2.a*D88^A2.WFT+A2.b)*DP88^A2.MTD),"") ->  | HV88: =IF(AB88<>"",MAX(A1.a*AB88^A1.WFT+A1.b,(A2.a*AB88^A2.WFT+A2.b)*DP88^A2.MTD),"") -> 

Sheet Sensitivity_Results (hidden)

Sheet Probabilistic_Results (hidden)
C1: Water Film Thickness (in.) | O1: Hydroplaning_Speed | AA1: Pavement Inputs | AE1: Environmental Inputs | AG1: Vehicle Inputs | AK1: Cross Slope | AW1: Width | BK1: Total Slope (%) | BW1: Drainage Path per Lane (ft.) | CI1: Total Drainage Path (ft.) | CV1: Reynold's Number | DH1: Manning's N | DT1: A_Parameter | EK1: WFT Frequency | EX1: HPS Frequency
A2: WFT Model | B2: HPS Model | C2: Lane 1 | D2: Lane 2 | O2: Lane 1 | P2: Lane 2 | AA2: Surface Type | AB2: Longitudinal Grade (%) | AC2: Permeability (in/hr) | AD2: =Sensitivity.MTD.vs.MPD -> Mean Profile Depth (in.) | AE2: Rainfall Intensity (in/hr) | AF2: Temperature (deg. F) | AG2: Axle Weight (lbs) | AH2: Tire Pressure (psi) | AI2: Spindown (%) | AJ2: Tread Depth (in) | AK2: Lane 1 | AL2: Lane 2 | AW2: Lane 1 | AX2: Lane 2 | BI2: Excess Rainfall Intensity (in/hr) | BJ2: Mean Texture Depth (in.) | BK2: Lane 1 | BL2: Lane 2 | BW2: Lane 1 | BX2: Lane 2 | CI2: Lane 1 | CJ2: Lane 2 | CU2: Kin. Viscosity (ft^2/s) | CV2: Lane 1 | CW2: Lane 2 | DH2: Lane 1 | DI2: Lane 2 | DT2: Lane 1 | DU2: Lane 2 | EH2: WFT Model | EI2: HPS Model | EJ2: WFT Bins | EK2: Lane 1 | EL2: Lane 2 | EW2: HPS Bins | EX2: Lane 1 | EY2: Lane 2
A3: Gallaway | B3: PAVDRN | C3: =IF(BK3<>"",IF($A3="Gallaway",WFT.G.Const*$BJ3^WFT.G.MTD*CI3^WFT.G.DP*($BI3)^WFT.G.Int*(BK3/100)^WFT.G.Slope-$BJ3,IF($A3="UK RRL",CONVERT(WFT.U.Const*CONVERT(CI3,"ft","m")^WFT.U.DP*CONVERT(($BI3),"in","mm")^WFT.U.Int*(BK3/100)^WFT.U.Slope,"mm","in")-$BJ3,IF($A3="NZ Mod.",CONVERT(WFT.N.Const*CONVERT($BJ3,"in","mm")^WFT.N.MTD*CONVERT(CI3,"ft","m")^WFT.N.DP*CONVERT(($BI3),"in","mm")^WFT.N.Int*(BK3/100)^WFT.N.Slope,"mm","in")-$BJ3,IF($A3="PAVDRN",CONVERT(WFT.P.Const*DH3^WFT.P.Manni*CONVERT(CI3,"ft","m")^WFT.P.DP*CONVERT(($BI3),"in","mm")^WFT.P.Int*(BK3/100)^WFT.P.Slope,"mm","in")-$BJ3)))),"") -> 0.04800116362 | D3: 0.06375685624 | O3: =IF(C3<>"",IF(C3<=0,999,IF($B3="USF",CONVERT(CONVERT($AG3,"lbf","N")^HP.U.Load*CONVERT($AH3,"psi","kPa")^HP.U.Press*(HP.U.a*CONVERT(C3,"in","mm")^HP.U.WFT+HP.U.b),"km","mi"),IF($B3="Gallaway",$AI3^HP.G.SpinDown*$AH3^HP.G.Press*(1+$AJ3*32)^HP.G.TreadDepth*DT3,IF($B3="PAVDRN",IF(C3<0.094,HP.P.WFT.lt.24.Const*C3^HP.P.WFT.lt.24.WFT, HP.P.WFT.gt.24.Const*DT3))))),"") -> 57.17376242 | P3: 53.12127793 | AA3: Dense Graded Friction Course | AB3: 2.108084708 | AC3: 0 | AD3: 0.03529357948 | AE3: 2.040132427 | AJ3: 0 | AK3: 0.9445336619 | AL3: 1.896238797 | AW3: 12 | AX3: 12 | BI3: =AE3-AC3 -> 2.040132427 | BJ3: =IF(Probabilistic_Output_MPD_or_MTD="Mean Texture Depth (in.)",AD3,IF(AA3="Dense Graded Friction Course",MPD.to.MTD.DGFC.a*AD3+MPD.to.MTD.DGFC.b,IF(AA3="Open Graded Friction Course",MPD.to.MTD.OGFC.a*AD3+MPD.to.MTD.OGFC.b,IF(AA3="PCC (LGD)",MPD.to.MTD.LGD.a*AD3+MPD.to.MTD.LGD.b,MPD.to.MTD.LGD.TGV.a*AD3+MPD.to.MTD.LGD.TGV.b)))) -> 0.03541133148 | BK3: =IF(AND(AK3<>"",AW3<>""),SQRT($AB3^2+AK3^2),"") -> 2.310014064 | BL3: =IF(AND(AL3<>"",AX3<>""),SQRT($AB3^2+AL3^2),"") -> 2.835444006 | BW3: =IF(BK3<>"",AW3*SQRT(1+($AB3/AK3)^2),"") -> 29.34799456 | BX3: =IF(BL3<>"",AX3*SQRT(1+($AB3/AL3)^2),"") -> 17.94358819 | CI3: =IF(BW3<>"",BW3,"") -> 29.34799456 | CJ3: =IF(BX3<>"",IF(AK3*AL3>0,CI3+BX3,BX3),"") -> 47.29158274 | CK3: =IF(BY3<>"",IF(AL3*AM3>0,CJ3+BY3,BY3),"") ->  | CU3: =KVis.V0*EXP(KVis.a+KVis.b*273.16/(273.16+CONVERT(AF3,"F","C"))+KVis.c*(273.16/(273.16+CONVERT(AF3,"F","C")))^2)*CONVERT(1,"m","ft")^2*10^(-6) -> 3.880564287e-05 | CV3: =IF(CI3<>"",CI3*$BI3/12/3600/$CU3,"") -> 35.71561719 | CW3: =IF(CJ3<>"",CJ3*$BI3/12/3600/$CU3,"") -> 57.55241852 | DH3: =IF(CV3<>"",IF($AA3="Dense Graded Friction Course",Manning.DGFC.Const*CV3^Manning.DGFC.NR,IF($AA3="Open Graded Friction Course",Manning.OGFC.Const*CV3^Manning.OGFC.NR*BK3^Manning.OGFC.Slope,IF(CV3<500,Manning.PCC.NR.lt.500.Const*CV3^Manning.PCC.NR.lt.500.NR,IF(CV3<1000,Manning.PCC.NR.lt.1000.Const*CV3^Manning.PCC.NR.lt.1000.NR,0.017)))),"") -> 0.04417764037 | DI3: 0.04065825848 | DT3: =IF(C3<>"",MAX(A1.a*C3^A1.WFT+A1.b,(A2.a*C3^A2.WFT+A2.b)*$BJ3^A2.MTD),"") -> 16.86434066 | DU3: 16.49686144 | EH3: Gallaway | EI3: PAVDRN | EJ3: 0.029 | EK3: =IF($EJ3<>"",IF(AND($EH3=$EH2,$EI3=$EI2),COUNTIFS(C$3:C$102,"<=" &$EJ3,$A$3:$A$102,$EH3,$B$3:$B$102,$EI3)-COUNTIFS(C$3:C$102,"<=" &$EJ2,$A$3:$A$102,$EH2,$B$3:$B$102,$EI2),COUNTIFS(C$3:C$102,"<=" &$EJ3,$A$3:$A$102,$EH3,$B$3:$B$102,$EI3)),"") -> 0 | EL3: =IF($EJ3<>"",IF(AND($EH3=$EH2,$EI3=$EI2),COUNTIFS(D$3:D$102,"<=" &$EJ3,$A$3:$A$102,$EH3,$B$3:$B$102,$EI3)-COUNTIFS(D$3:D$102,"<=" &$EJ2,$A$3:$A$102,$EH2,$B$3:$B$102,$EI2),COUNTIFS(D$3:D$102,"<=" &$EJ3,$A$3:$A$102,$EH3,$B$3:$B$102,$EI3)),"") -> 0 | EW3: 50 | EX3: =IF($EW3<>"",IF(AND($EH3=$EH2,$EI3=$EI2),COUNTIFS(O$3:O$102,"<=" &$EW3,$A$3:$A$102,$EH3,$B$3:$B$102,$EI3)-COUNTIFS(O$3:O$102,"<=" &$EW2,$A$3:$A$102,$EH2,$B$3:$B$102,$EI2),COUNTIFS(O$3:O$102,"<=" &$EW3,$A$3:$A$102,$EH3,$B$3:$B$102,$EI3)),"") -> 0 | EY3: =IF($EW3<>"",IF(AND($EH3=$EH2,$EI3=$EI2),COUNTIFS(P$3:P$102,"<=" &$EW3,$A$3:$A$102,$EH3,$B$3:$B$102,$EI3)-COUNTIFS(P$3:P$102,"<=" &$EW2,$A$3:$A$102,$EH2,$B$3:$B$102,$EI2),COUNTIFS(P$3:P$102,"<=" &$EW3,$A$3:$A$102,$EH3,$B$3:$B$102,$EI3)),"") -> 0
A4: Gallaway | B4: PAVDRN | C4: =IF(BK4<>"",IF($A4="Gallaway",WFT.G.Const*$BJ4^WFT.G.MTD*CI4^WFT.G.DP*($BI4)^WFT.G.Int*(BK4/100)^WFT.G.Slope-$BJ4,IF($A4="UK RRL",CONVERT(WFT.U.Const*CONVERT(CI4,"ft","m")^WFT.U.DP*CONVERT(($BI4),"in","mm")^WFT.U.Int*(BK4/100)^WFT.U.Slope,"mm","in")-$BJ4,IF($A4="NZ Mod.",CONVERT(WFT.N.Const*CONVERT($BJ4,"in","mm")^WFT.N.MTD*CONVERT(CI4,"ft","m")^WFT.N.DP*CONVERT(($BI4),"in","mm")^WFT.N.Int*(BK4/100)^WFT.N.Slope,"mm","in")-$BJ4,IF($A4="PAVDRN",CONVERT(WFT.P.Const*DH4^WFT.P.Manni*CONVERT(CI4,"ft","m")^WFT.P.DP*CONVERT(($BI4),"in","mm")^WFT.P.Int*(BK4/100)^WFT.P.Slope,"mm","in")-$BJ4)))),"") -> 0.04916481683 | D4: =IF(BL4<>"",IF($A4="Gallaway",WFT.G.Const*$BJ4^WFT.G.MTD*CJ4^WFT.G.DP*($BI4)^WFT.G.Int*(BL4/100)^WFT.G.Slope-$BJ4,IF($A4="UK RRL",CONVERT(WFT.U.Const*CONVERT(CJ4,"ft","m")^WFT.U.DP*CONVERT(($BI4),"in","mm")^WFT.U.Int*(BL4/100)^WFT.U.Slope,"mm","in")-$BJ4,IF($A4="NZ Mod.",CONVERT(WFT.N.Const*CONVERT($BJ4,"in","mm")^WFT.N.MTD*CONVERT(CJ4,"ft","m")^WFT.N.DP*CONVERT(($BI4),"in","mm")^WFT.N.Int*(BL4/100)^WFT.N.Slope,"mm","in")-$BJ4,IF($A4="PAVDRN",CONVERT(WFT.P.Const*DI4^WFT.P.Manni*CONVERT(CJ4,"ft","m")^WFT.P.DP*CONVERT(($BI4),"in","mm")^WFT.P.Int*(BL4/100)^WFT.P.Slope,"mm","in")-$BJ4)))),"") -> 0.0643214362 | E4: =IF(BM4<>"",IF($A4="Gallaway",WFT.G.Const*$BJ4^WFT.G.MTD*CK4^WFT.G.DP*($BI4)^WFT.G.Int*(BM4/100)^WFT.G.Slope-$BJ4,IF($A4="UK RRL",CONVERT(WFT.U.Const*CONVERT(CK4,"ft","m")^WFT.U.DP*CONVERT(($BI4),"in","mm")^WFT.U.Int*(BM4/100)^WFT.U.Slope,"mm","in")-$BJ4,IF($A4="NZ Mod.",CONVERT(WFT.N.Const*CONVERT($BJ4,"in","mm")^WFT.N.MTD*CONVERT(CK4,"ft","m")^WFT.N.DP*CONVERT(($BI4),"in","mm")^WFT.N.Int*(BM4/100)^WFT.N.Slope,"mm","in")-$BJ4,IF($A4="PAVDRN",CONVERT(WFT.P.Const*DJ4^WFT.P.Manni*CONVERT(CK4,"ft","m")^WFT.P.DP*CONVERT(($BI4),"in","mm")^WFT.P.Int*(BM4/100)^WFT.P.Slope,"mm","in")-$BJ4)))),"") ->  | F4: =IF(BN4<>"",IF($A4="Gallaway",WFT.G.Const*$BJ4^WFT.G.MTD*CL4^WFT.G.DP*($BI4)^WFT.G.Int*(BN4/100)^WFT.G.Slope-$BJ4,IF($A4="UK RRL",CONVERT(WFT.U.Const*CONVERT(CL4,"ft","m")^WFT.U.DP*CONVERT(($BI4),"in","mm")^WFT.U.Int*(BN4/100)^WFT.U.Slope,"mm","in")-$BJ4,IF($A4="NZ Mod.",CONVERT(WFT.N.Const*CONVERT($BJ4,"in","mm")^WFT.N.MTD*CONVERT(CL4,"ft","m")^WFT.N.DP*CONVERT(($BI4),"in","mm")^WFT.N.Int*(BN4/100)^WFT.N.Slope,"mm","in")-$BJ4,IF($A4="PAVDRN",CONVERT(WFT.P.Const*DK4^WFT.P.Manni*CONVERT(CL4,"ft","m")^WFT.P.DP*CONVERT(($BI4),"in","mm")^WFT.P.Int*(BN4/100)^WFT.P.Slope,"mm","in")-$BJ4)))),"") ->  | G4: =IF(BO4<>"",IF($A4="Gallaway",WFT.G.Const*$BJ4^WFT.G.MTD*CM4^WFT.G.DP*($BI4)^WFT.G.Int*(BO4/100)^WFT.G.Slope-$BJ4,IF($A4="UK RRL",CONVERT(WFT.U.Const*CONVERT(CM4,"ft","m")^WFT.U.DP*CONVERT(($BI4),"in","mm")^WFT.U.Int*(BO4/100)^WFT.U.Slope,"mm","in")-$BJ4,IF($A4="NZ Mod.",CONVERT(WFT.N.Const*CONVERT($BJ4,"in","mm")^WFT.N.MTD*CONVERT(CM4,"ft","m")^WFT.N.DP*CONVERT(($BI4),"in","mm")^WFT.N.Int*(BO4/100)^WFT.N.Slope,"mm","in")-$BJ4,IF($A4="PAVDRN",CONVERT(WFT.P.Const*DL4^WFT.P.Manni*CONVERT(CM4,"ft","m")^WFT.P.DP*CONVERT(($BI4),"in","mm")^WFT.P.Int*(BO4/100)^WFT.P.Slope,"mm","in")-$BJ4)))),"") ->  | H4: =IF(BP4<>"",IF($A4="Gallaway",WFT.G.Const*$BJ4^WFT.G.MTD*CN4^WFT.G.DP*($BI4)^WFT.G.Int*(BP4/100)^WFT.G.Slope-$BJ4,IF($A4="UK RRL",CONVERT(WFT.U.Const*CONVERT(CN4,"ft","m")^WFT.U.DP*CONVERT(($BI4),"in","mm")^WFT.U.Int*(BP4/100)^WFT.U.Slope,"mm","in")-$BJ4,IF($A4="NZ Mod.",CONVERT(WFT.N.Const*CONVERT($BJ4,"in","mm")^WFT.N.MTD*CONVERT(CN4,"ft","m")^WFT.N.DP*CONVERT(($BI4),"in","mm")^WFT.N.Int*(BP4/100)^WFT.N.Slope,"mm","in")-$BJ4,IF($A4="PAVDRN",CONVERT(WFT.P.Const*DM4^WFT.P.Manni*CONVERT(CN4,"ft","m")^WFT.P.DP*CONVERT(($BI4),"in","mm")^WFT.P.Int*(BP4/100)^WFT.P.Slope,"mm","in")-$BJ4)))),"") ->  | I4: =IF(BQ4<>"",IF($A4="Gallaway",WFT.G.Const*$BJ4^WFT.G.MTD*CO4^WFT.G.DP*($BI4)^WFT.G.Int*(BQ4/100)^WFT.G.Slope-$BJ4,IF($A4="UK RRL",CONVERT(WFT.U.Const*CONVERT(CO4,"ft","m")^WFT.U.DP*CONVERT(($BI4),"in","mm")^WFT.U.Int*(BQ4/100)^WFT.U.Slope,"mm","in")-$BJ4,IF($A4="NZ Mod.",CONVERT(WFT.N.Const*CONVERT($BJ4,"in","mm")^WFT.N.MTD*CONVERT(CO4,"ft","m")^WFT.N.DP*CONVERT(($BI4),"in","mm")^WFT.N.Int*(BQ4/100)^WFT.N.Slope,"mm","in")-$BJ4,IF($A4="PAVDRN",CONVERT(WFT.P.Const*DN4^WFT.P.Manni*CONVERT(CO4,"ft","m")^WFT.P.DP*CONVERT(($BI4),"in","mm")^WFT.P.Int*(BQ4/100)^WFT.P.Slope,"mm","in")-$BJ4)))),"") ->  | J4: =IF(BR4<>"",IF($A4="Gallaway",WFT.G.Const*$BJ4^WFT.G.MTD*CP4^WFT.G.DP*($BI4)^WFT.G.Int*(BR4/100)^WFT.G.Slope-$BJ4,IF($A4="UK RRL",CONVERT(WFT.U.Const*CONVERT(CP4,"ft","m")^WFT.U.DP*CONVERT(($BI4),"in","mm")^WFT.U.Int*(BR4/100)^WFT.U.Slope,"mm","in")-$BJ4,IF($A4="NZ Mod.",CONVERT(WFT.N.Const*CONVERT($BJ4,"in","mm")^WFT.N.MTD*CONVERT(CP4,"ft","m")^WFT.N.DP*CONVERT(($BI4),"in","mm")^WFT.N.Int*(BR4/100)^WFT.N.Slope,"mm","in")-$BJ4,IF($A4="PAVDRN",CONVERT(WFT.P.Const*DO4^WFT.P.Manni*CONVERT(CP4,"ft","m")^WFT.P.DP*CONVERT(($BI4),"in","mm")^WFT.P.Int*(BR4/100)^WFT.P.Slope,"mm","in")-$BJ4)))),"") ->  | K4: =IF(BS4<>"",IF($A4="Gallaway",WFT.G.Const*$BJ4^WFT.G.MTD*CQ4^WFT.G.DP*($BI4)^WFT.G.Int*(BS4/100)^WFT.G.Slope-$BJ4,IF($A4="UK RRL",CONVERT(WFT.U.Const*CONVERT(CQ4,"ft","m")^WFT.U.DP*CONVERT(($BI4),"in","mm")^WFT.U.Int*(BS4/100)^WFT.U.Slope,"mm","in")-$BJ4,IF($A4="NZ Mod.",CONVERT(WFT.N.Const*CONVERT($BJ4,"in","mm")^WFT.N.MTD*CONVERT(CQ4,"ft","m")^WFT.N.DP*CONVERT(($BI4),"in","mm")^WFT.N.Int*(BS4/100)^WFT.N.Slope,"mm","in")-$BJ4,IF($A4="PAVDRN",CONVERT(WFT.P.Const*DP4^WFT.P.Manni*CONVERT(CQ4,"ft","m")^WFT.P.DP*CONVERT(($BI4),"in","mm")^WFT.P.Int*(BS4/100)^WFT.P.Slope,"mm","in")-$BJ4)))),"") ->  | L4: =IF(BT4<>"",IF($A4="Gallaway",WFT.G.Const*$BJ4^WFT.G.MTD*CR4^WFT.G.DP*($BI4)^WFT.G.Int*(BT4/100)^WFT.G.Slope-$BJ4,IF($A4="UK RRL",CONVERT(WFT.U.Const*CONVERT(CR4,"ft","m")^WFT.U.DP*CONVERT(($BI4),"in","mm")^WFT.U.Int*(BT4/100)^WFT.U.Slope,"mm","in")-$BJ4,IF($A4="NZ Mod.",CONVERT(WFT.N.Const*CONVERT($BJ4,"in","mm")^WFT.N.MTD*CONVERT(CR4,"ft","m")^WFT.N.DP*CONVERT(($BI4),"in","mm")^WFT.N.Int*(BT4/100)^WFT.N.Slope,"mm","in")-$BJ4,IF($A4="PAVDRN",CONVERT(WFT.P.Const*DQ4^WFT.P.Manni*CONVERT(CR4,"ft","m")^WFT.P.DP*CONVERT(($BI4),"in","mm")^WFT.P.Int*(BT4/100)^WFT.P.Slope,"mm","in")-$BJ4)))),"") ->  | M4: =IF(BU4<>"",IF($A4="Gallaway",WFT.G.Const*$BJ4^WFT.G.MTD*CS4^WFT.G.DP*($BI4)^WFT.G.Int*(BU4/100)^WFT.G.Slope-$BJ4,IF($A4="UK RRL",CONVERT(WFT.U.Const*CONVERT(CS4,"ft","m")^WFT.U.DP*CONVERT(($BI4),"in","mm")^WFT.U.Int*(BU4/100)^WFT.U.Slope,"mm","in")-$BJ4,IF($A4="NZ Mod.",CONVERT(WFT.N.Const*CONVERT($BJ4,"in","mm")^WFT.N.MTD*CONVERT(CS4,"ft","m")^WFT.N.DP*CONVERT(($BI4),"in","mm")^WFT.N.Int*(BU4/100)^WFT.N.Slope,"mm","in")-$BJ4,IF($A4="PAVDRN",CONVERT(WFT.P.Const*DR4^WFT.P.Manni*CONVERT(CS4,"ft","m")^WFT.P.DP*CONVERT(($BI4),"in","mm")^WFT.P.Int*(BU4/100)^WFT.P.Slope,"mm","in")-$BJ4)))),"") ->  | N4: =IF(BV4<>"",IF($A4="Gallaway",WFT.G.Const*$BJ4^WFT.G.MTD*CT4^WFT.G.DP*($BI4)^WFT.G.Int*(BV4/100)^WFT.G.Slope-$BJ4,IF($A4="UK RRL",CONVERT(WFT.U.Const*CONVERT(CT4,"ft","m")^WFT.U.DP*CONVERT(($BI4),"in","mm")^WFT.U.Int*(BV4/100)^WFT.U.Slope,"mm","in")-$BJ4,IF($A4="NZ Mod.",CONVERT(WFT.N.Const*CONVERT($BJ4,"in","mm")^WFT.N.MTD*CONVERT(CT4,"ft","m")^WFT.N.DP*CONVERT(($BI4),"in","mm")^WFT.N.Int*(BV4/100)^WFT.N.Slope,"mm","in")-$BJ4,IF($A4="PAVDRN",CONVERT(WFT.P.Const*DS4^WFT.P.Manni*CONVERT(CT4,"ft","m")^WFT.P.DP*CONVERT(($BI4),"in","mm")^WFT.P.Int*(BV4/100)^WFT.P.Slope,"mm","in")-$BJ4)))),"") ->  | O4: =IF(C4<>"",IF(C4<=0,999,IF($B4="USF",CONVERT(CONVERT($AG4,"lbf","N")^HP.U.Load*CONVERT($AH4,"psi","kPa")^HP.U.Press*(HP.U.a*CONVERT(C4,"in","mm")^HP.U.WFT+HP.U.b),"km","mi"),IF($B4="Gallaway",$AI4^HP.G.SpinDown*$AH4^HP.G.Press*(1+$AJ4*32)^HP.G.TreadDepth*DT4,IF($B4="PAVDRN",IF(C4<0.094,HP.P.WFT.lt.24.Const*C4^HP.P.WFT.lt.24.WFT, HP.P.WFT.gt.24.Const*DT4))))),"") -> 56.82016411 | P4: =IF(D4<>"",IF(D4<=0,999,IF($B4="USF",CONVERT(CONVERT($AG4,"lbf","N")^HP.U.Load*CONVERT($AH4,"psi","kPa")^HP.U.Press*(HP.U.a*CONVERT(D4,"in","mm")^HP.U.WFT+HP.U.b),"km","mi"),IF($B4="Gallaway",$AI4^HP.G.SpinDown*$AH4^HP.G.Press*(1+$AJ4*32)^HP.G.TreadDepth*DU4,IF($B4="PAVDRN",IF(D4<0.094,HP.P.WFT.lt.24.Const*D4^HP.P.WFT.lt.24.WFT, HP.P.WFT.gt.24.Const*DU4))))),"") -> 53.00011904 | Q4: =IF(E4<>"",IF(E4<=0,999,IF($B4="USF",CONVERT(CONVERT($AG4,"lbf","N")^HP.U.Load*CONVERT($AH4,"psi","kPa")^HP.U.Press*(HP.U.a*CONVERT(E4,"in","mm")^HP.U.WFT+HP.U.b),"km","mi"),IF($B4="Gallaway",$AI4^HP.G.SpinDown*$AH4^HP.G.Press*(1+$AJ4*32)^HP.G.TreadDepth*DV4,IF($B4="PAVDRN",IF(E4<0.094,HP.P.WFT.lt.24.Const*E4^HP.P.WFT.lt.24.WFT, HP.P.WFT.gt.24.Const*DV4))))),"") ->  | R4: =IF(F4<>"",IF(F4<=0,999,IF($B4="USF",CONVERT(CONVERT($AG4,"lbf","N")^HP.U.Load*CONVERT($AH4,"psi","kPa")^HP.U.Press*(HP.U.a*CONVERT(F4,"in","mm")^HP.U.WFT+HP.U.b),"km","mi"),IF($B4="Gallaway",$AI4^HP.G.SpinDown*$AH4^HP.G.Press*(1+$AJ4*32)^HP.G.TreadDepth*DW4,IF($B4="PAVDRN",IF(F4<0.094,HP.P.WFT.lt.24.Const*F4^HP.P.WFT.lt.24.WFT, HP.P.WFT.gt.24.Const*DW4))))),"") ->  | S4: =IF(G4<>"",IF(G4<=0,999,IF($B4="USF",CONVERT(CONVERT($AG4,"lbf","N")^HP.U.Load*CONVERT($AH4,"psi","kPa")^HP.U.Press*(HP.U.a*CONVERT(G4,"in","mm")^HP.U.WFT+HP.U.b),"km","mi"),IF($B4="Gallaway",$AI4^HP.G.SpinDown*$AH4^HP.G.Press*(1+$AJ4*32)^HP.G.TreadDepth*DX4,IF($B4="PAVDRN",IF(G4<0.094,HP.P.WFT.lt.24.Const*G4^HP.P.WFT.lt.24.WFT, HP.P.WFT.gt.24.Const*DX4))))),"") ->  | T4: =IF(H4<>"",IF(H4<=0,999,IF($B4="USF",CONVERT(CONVERT($AG4,"lbf","N")^HP.U.Load*CONVERT($AH4,"psi","kPa")^HP.U.Press*(HP.U.a*CONVERT(H4,"in","mm")^HP.U.WFT+HP.U.b),"km","mi"),IF($B4="Gallaway",$AI4^HP.G.SpinDown*$AH4^HP.G.Press*(1+$AJ4*32)^HP.G.TreadDepth*DY4,IF($B4="PAVDRN",IF(H4<0.094,HP.P.WFT.lt.24.Const*H4^HP.P.WFT.lt.24.WFT, HP.P.WFT.gt.24.Const*DY4))))),"") ->  | U4: =IF(I4<>"",IF(I4<=0,999,IF($B4="USF",CONVERT(CONVERT($AG4,"lbf","N")^HP.U.Load*CONVERT($AH4,"psi","kPa")^HP.U.Press*(HP.U.a*CONVERT(I4,"in","mm")^HP.U.WFT+HP.U.b),"km","mi"),IF($B4="Gallaway",$AI4^HP.G.SpinDown*$AH4^HP.G.Press*(1+$AJ4*32)^HP.G.TreadDepth*DZ4,IF($B4="PAVDRN",IF(I4<0.094,HP.P.WFT.lt.24.Const*I4^HP.P.WFT.lt.24.WFT, HP.P.WFT.gt.24.Const*DZ4))))),"") ->  | V4: =IF(J4<>"",IF(J4<=0,999,IF($B4="USF",CONVERT(CONVERT($AG4,"lbf","N")^HP.U.Load*CONVERT($AH4,"psi","kPa")^HP.U.Press*(HP.U.a*CONVERT(J4,"in","mm")^HP.U.WFT+HP.U.b),"km","mi"),IF($B4="Gallaway",$AI4^HP.G.SpinDown*$AH4^HP.G.Press*(1+$AJ4*32)^HP.G.TreadDepth*EA4,IF($B4="PAVDRN",IF(J4<0.094,HP.P.WFT.lt.24.Const*J4^HP.P.WFT.lt.24.WFT, HP.P.WFT.gt.24.Const*EA4))))),"") ->  | W4: =IF(K4<>"",IF(K4<=0,999,IF($B4="USF",CONVERT(CONVERT($AG4,"lbf","N")^HP.U.Load*CONVERT($AH4,"psi","kPa")^HP.U.Press*(HP.U.a*CONVERT(K4,"in","mm")^HP.U.WFT+HP.U.b),"km","mi"),IF($B4="Gallaway",$AI4^HP.G.SpinDown*$AH4^HP.G.Press*(1+$AJ4*32)^HP.G.TreadDepth*EB4,IF($B4="PAVDRN",IF(K4<0.094,HP.P.WFT.lt.24.Const*K4^HP.P.WFT.lt.24.WFT, HP.P.WFT.gt.24.Const*EB4))))),"") ->  | X4: =IF(L4<>"",IF(L4<=0,999,IF($B4="USF",CONVERT(CONVERT($AG4,"lbf","N")^HP.U.Load*CONVERT($AH4,"psi","kPa")^HP.U.Press*(HP.U.a*CONVERT(L4,"in","mm")^HP.U.WFT+HP.U.b),"km","mi"),IF($B4="Gallaway",$AI4^HP.G.SpinDown*$AH4^HP.G.Press*(1+$AJ4*32)^HP.G.TreadDepth*EC4,IF($B4="PAVDRN",IF(L4<0.094,HP.P.WFT.lt.24.Const*L4^HP.P.WFT.lt.24.WFT, HP.P.WFT.gt.24.Const*EC4))))),"") ->  | Y4: =IF(M4<>"",IF(M4<=0,999,IF($B4="USF",CONVERT(CONVERT($AG4,"lbf","N")^HP.U.Load*CONVERT($AH4,"psi","kPa")^HP.U.Press*(HP.U.a*CONVERT(M4,"in","mm")^HP.U.WFT+HP.U.b),"km","mi"),IF($B4="Gallaway",$AI4^HP.G.SpinDown*$AH4^HP.G.Press*(1+$AJ4*32)^HP.G.TreadDepth*ED4,IF($B4="PAVDRN",IF(M4<0.094,HP.P.WFT.lt.24.Const*M4^HP.P.WFT.lt.24.WFT, HP.P.WFT.gt.24.Const*ED4))))),"") ->  | Z4: =IF(N4<>"",IF(N4<=0,999,IF($B4="USF",CONVERT(CONVERT($AG4,"lbf","N")^HP.U.Load*CONVERT($AH4,"psi","kPa")^HP.U.Press*(HP.U.a*CONVERT(N4,"in","mm")^HP.U.WFT+HP.U.b),"km","mi"),IF($B4="Gallaway",$AI4^HP.G.SpinDown*$AH4^HP.G.Press*(1+$AJ4*32)^HP.G.TreadDepth*EE4,IF($B4="PAVDRN",IF(N4<0.094,HP.P.WFT.lt.24.Const*N4^HP.P.WFT.lt.24.WFT, HP.P.WFT.gt.24.Const*EE4))))),"") ->  | AA4: Dense Graded Friction Course | AB4: 2.150909745 | AC4: 0 | AD4: 0.02731122694 | AE4: 2.141726418 | AJ4: 0 | AK4: 1.089456446 | AL4: 2.110115248 | AW4: 12 | AX4: 12 | BI4: =AE4-AC4 -> 2.141726418 | BJ4: 0.02898553769 | BK4: =IF(AND(AK4<>"",AW4<>""),SQRT($AB4^2+AK4^2),"") -> 2.411084419 | BL4: =IF(AND(AL4<>"",AX4<>""),SQRT($AB4^2+AL4^2),"") -> 3.013137748 | BM4: =IF(AND(AM4<>"",AY4<>""),SQRT($AB4^2+AM4^2),"") ->  | BN4: =IF(AND(AN4<>"",AZ4<>""),SQRT($AB4^2+AN4^2),"") ->  | BO4: =IF(AND(AO4<>"",BA4<>""),SQRT($AB4^2+AO4^2),"") ->  | BP4: =IF(AND(AP4<>"",BB4<>""),SQRT($AB4^2+AP4^2),"") ->  | BQ4: =IF(AND(AQ4<>"",BC4<>""),SQRT($AB4^2+AQ4^2),"") ->  | BR4: =IF(AND(AR4<>"",BD4<>""),SQRT($AB4^2+AR4^2),"") ->  | BS4: =IF(AND(AS4<>"",BE4<>""),SQRT($AB4^2+AS4^2),"") ->  | BT4: =IF(AND(AT4<>"",BF4<>""),SQRT($AB4^2+AT4^2),"") ->  | BU4: =IF(AND(AU4<>"",BG4<>""),SQRT($AB4^2+AU4^2),"") ->  | BV4: =IF(AND(AV4<>"",BH4<>""),SQRT($AB4^2+AV4^2),"") ->  | BW4: =IF(BK4<>"",AW4*SQRT(1+($AB4/AK4)^2),"") -> 26.55729208 | BX4: =IF(BL4<>"",AX4*SQRT(1+($AB4/AL4)^2),"") -> 17.13539249 | BY4: =IF(BM4<>"",AY4*SQRT(1+($AB4/AM4)^2),"") ->  | BZ4: =IF(BN4<>"",AZ4*SQRT(1+($AB4/AN4)^2),"") ->  | CA4: =IF(BO4<>"",BA4*SQRT(1+($AB4/AO4)^2),"") ->  | CB4: =IF(BP4<>"",BB4*SQRT(1+($AB4/AP4)^2),"") ->  | CC4: =IF(BQ4<>"",BC4*SQRT(1+($AB4/AQ4)^2),"") ->  | CD4: =IF(BR4<>"",BD4*SQRT(1+($AB4/AR4)^2),"") ->  | CE4: =IF(BS4<>"",BE4*SQRT(1+($AB4/AS4)^2),"") ->  | CF4: =IF(BT4<>"",BF4*SQRT(1+($AB4/AT4)^2),"") ->  | CG4: =IF(BU4<>"",BG4*SQRT(1+($AB4/AU4)^2),"") ->  | CH4: =IF(BV4<>"",BH4*SQRT(1+($AB4/AV4)^2),"") ->  | CI4: =IF(BW4<>"",BW4,"") -> 26.55729208 | CJ4: =IF(BX4<>"",IF(AK4*AL4>0,CI4+BX4,BX4),"") -> 43.69268457 | CK4: =IF(BY4<>"",IF(AL4*AM4>0,CJ4+BY4,BY4),"") ->  | CL4: =IF(BZ4<>"",IF(AM4*AN4>0,CK4+BZ4,BZ4),"") ->  | CM4: =IF(CA4<>"",IF(AN4*AO4>0,CL4+CA4,CA4),"") ->  | CN4: =IF(CB4<>"",IF(AO4*AP4>0,CM4+CB4,CB4),"") ->  | CO4: =IF(CC4<>"",IF(AP4*AQ4>0,CN4+CC4,CC4),"") ->  | CP4: =IF(CD4<>"",IF(AQ4*AR4>0,CO4+CD4,CD4),"") ->  | CQ4: =IF(CE4<>"",IF(AR4*AS4>0,CP4+CE4,CE4),"") ->  | CR4: =IF(CF4<>"",IF(AS4*AT4>0,CQ4+CF4,CF4),"") ->  | CS4: =IF(CG4<>"",IF(AT4*AU4>0,CR4+CG4,CG4),"") ->  | CT4: =IF(CH4<>"",IF(AU4*AV4>0,CS4+CH4,CH4),"") ->  | CU4: 3.880564287e-05 | CV4: =IF(CI4<>"",CI4*$BI4/12/3600/$CU4,"") -> 33.92885113 | CW4: =IF(CJ4<>"",CJ4*$BI4/12/3600/$CU4,"") -> 55.82054774 | CX4: =IF(CK4<>"",CK4*$BI4/12/3600/$CU4,"") ->  | CY4: =IF(CL4<>"",CL4*$BI4/12/3600/$CU4,"") ->  | CZ4: =IF(CM4<>"",CM4*$BI4/12/3600/$CU4,"") ->  | DA4: =IF(CN4<>"",CN4*$BI4/12/3600/$CU4,"") ->  | DB4: =IF(CO4<>"",CO4*$BI4/12/3600/$CU4,"") ->  | DC4: =IF(CP4<>"",CP4*$BI4/12/3600/$CU4,"") ->  | DD4: =IF(CQ4<>"",CQ4*$BI4/12/3600/$CU4,"") ->  | DE4: =IF(CR4<>"",CR4*$BI4/12/3600/$CU4,"") ->  | DF4: =IF(CS4<>"",CS4*$BI4/12/3600/$CU4,"") ->  | DG4: =IF(CT4<>"",CT4*$BI4/12/3600/$CU4,"") ->  | DH4: =IF(CV4<>"",IF($AA4="Dense Graded Friction Course",Manning.DGFC.Const*CV4^Manning.DGFC.NR,IF($AA4="Open Graded Friction Course",Manning.OGFC.Const*CV4^Manning.OGFC.NR*BK4^Manning.OGFC.Slope,IF(CV4<500,Manning.PCC.NR.lt.500.Const*CV4^Manning.PCC.NR.lt.500.NR,IF(CV4<1000,Manning.PCC.NR.lt.1000.Const*CV4^Manning.PCC.NR.lt.1000.NR,0.017)))),"") -> 0.04457391724 | DI4: =IF(CW4<>"",IF($AA4="Dense Graded Friction Course",Manning.DGFC.Const*CW4^Manning.DGFC.NR,IF($AA4="Open Graded Friction Course",Manning.OGFC.Const*CW4^Manning.OGFC.NR*BL4^Manning.OGFC.Slope,IF(CW4<500,Manning.PCC.NR.lt.500.Const*CW4^Manning.PCC.NR.lt.500.NR,IF(CW4<1000,Manning.PCC.NR.lt.1000.Const*CW4^Manning.PCC.NR.lt.1000.NR,0.017)))),"") -> 0.04087499033 | DJ4: =IF(CX4<>"",IF($AA4="Dense Graded Friction Course",Manning.DGFC.Const*CX4^Manning.DGFC.NR,IF($AA4="Open Graded Friction Course",Manning.OGFC.Const*CX4^Manning.OGFC.NR*BM4^Manning.OGFC.Slope,IF(CX4<500,Manning.PCC.NR.lt.500.Const*CX4^Manning.PCC.NR.lt.500.NR,IF(CX4<1000,Manning.PCC.NR.lt.1000.Const*CX4^Manning.PCC.NR.lt.1000.NR,0.017)))),"") ->  | DK4: =IF(CY4<>"",IF($AA4="Dense Graded Friction Course",Manning.DGFC.Const*CY4^Manning.DGFC.NR,IF($AA4="Open Graded Friction Course",Manning.OGFC.Const*CY4^Manning.OGFC.NR*BN4^Manning.OGFC.Slope,IF(CY4<500,Manning.PCC.NR.lt.500.Const*CY4^Manning.PCC.NR.lt.500.NR,IF(CY4<1000,Manning.PCC.NR.lt.1000.Const*CY4^Manning.PCC.NR.lt.1000.NR,0.017)))),"") ->  | DL4: =IF(CZ4<>"",IF($AA4="Dense Graded Friction Course",Manning.DGFC.Const*CZ4^Manning.DGFC.NR,IF($AA4="Open Graded Friction Course",Manning.OGFC.Const*CZ4^Manning.OGFC.NR*BO4^Manning.OGFC.Slope,IF(CZ4<500,Manning.PCC.NR.lt.500.Const*CZ4^Manning.PCC.NR.lt.500.NR,IF(CZ4<1000,Manning.PCC.NR.lt.1000.Const*CZ4^Manning.PCC.NR.lt.1000.NR,0.017)))),"") ->  | DM4: =IF(DA4<>"",IF($AA4="Dense Graded Friction Course",Manning.DGFC.Const*DA4^Manning.DGFC.NR,IF($AA4="Open Graded Friction Course",Manning.OGFC.Const*DA4^Manning.OGFC.NR*BP4^Manning.OGFC.Slope,IF(DA4<500,Manning.PCC.NR.lt.500.Const*DA4^Manning.PCC.NR.lt.500.NR,IF(DA4<1000,Manning.PCC.NR.lt.1000.Const*DA4^Manning.PCC.NR.lt.1000.NR,0.017)))),"") ->  | DN4: =IF(DB4<>"",IF($AA4="Dense Graded Friction Course",Manning.DGFC.Const*DB4^Manning.DGFC.NR,IF($AA4="Open Graded Friction Course",Manning.OGFC.Const*DB4^Manning.OGFC.NR*BQ4^Manning.OGFC.Slope,IF(DB4<500,Manning.PCC.NR.lt.500.Const*DB4^Manning.PCC.NR.lt.500.NR,IF(DB4<1000,Manning.PCC.NR.lt.1000.Const*DB4^Manning.PCC.NR.lt.1000.NR,0.017)))),"") ->  | DO4: =IF(DC4<>"",IF($AA4="Dense Graded Friction Course",Manning.DGFC.Const*DC4^Manning.DGFC.NR,IF($AA4="Open Graded Friction Course",Manning.OGFC.Const*DC4^Manning.OGFC.NR*BR4^Manning.OGFC.Slope,IF(DC4<500,Manning.PCC.NR.lt.500.Const*DC4^Manning.PCC.NR.lt.500.NR,IF(DC4<1000,Manning.PCC.NR.lt.1000.Const*DC4^Manning.PCC.NR.lt.1000.NR,0.017)))),"") ->  | DP4: =IF(DD4<>"",IF($AA4="Dense Graded Friction Course",Manning.DGFC.Const*DD4^Manning.DGFC.NR,IF($AA4="Open Graded Friction Course",Manning.OGFC.Const*DD4^Manning.OGFC.NR*BS4^Manning.OGFC.Slope,IF(DD4<500,Manning.PCC.NR.lt.500.Const*DD4^Manning.PCC.NR.lt.500.NR,IF(DD4<1000,Manning.PCC.NR.lt.1000.Const*DD4^Manning.PCC.NR.lt.1000.NR,0.017)))),"") ->  | DQ4: =IF(DE4<>"",IF($AA4="Dense Graded Friction Course",Manning.DGFC.Const*DE4^Manning.DGFC.NR,IF($AA4="Open Graded Friction Course",Manning.OGFC.Const*DE4^Manning.OGFC.NR*BT4^Manning.OGFC.Slope,IF(DE4<500,Manning.PCC.NR.lt.500.Const*DE4^Manning.PCC.NR.lt.500.NR,IF(DE4<1000,Manning.PCC.NR.lt.1000.Const*DE4^Manning.PCC.NR.lt.1000.NR,0.017)))),"") ->  | DR4: =IF(DF4<>"",IF($AA4="Dense Graded Friction Course",Manning.DGFC.Const*DF4^Manning.DGFC.NR,IF($AA4="Open Graded Friction Course",Manning.OGFC.Const*DF4^Manning.OGFC.NR*BU4^Manning.OGFC.Slope,IF(DF4<500,Manning.PCC.NR.lt.500.Const*DF4^Manning.PCC.NR.lt.500.NR,IF(DF4<1000,Manning.PCC.NR.lt.1000.Const*DF4^Manning.PCC.NR.lt.1000.NR,0.017)))),"") ->  | DS4: =IF(DG4<>"",IF($AA4="Dense Graded Friction Course",Manning.DGFC.Const*DG4^Manning.DGFC.NR,IF($AA4="Open Graded Friction Course",Manning.OGFC.Const*DG4^Manning.OGFC.NR*BV4^Manning.OGFC.Slope,IF(DG4<500,Manning.PCC.NR.lt.500.Const*DG4^Manning.PCC.NR.lt.500.NR,IF(DG4<1000,Manning.PCC.NR.lt.1000.Const*DG4^Manning.PCC.NR.lt.1000.NR,0.017)))),"") ->  | DT4: =IF(C4<>"",MAX(A1.a*C4^A1.WFT+A1.b,(A2.a*C4^A2.WFT+A2.b)*$BJ4^A2.MTD),"") -> 16.36776105 | DU4: =IF(D4<>"",MAX(A1.a*D4^A1.WFT+A1.b,(A2.a*D4^A2.WFT+A2.b)*$BJ4^A2.MTD),"") -> 16.02982773 | DV4: =IF(E4<>"",MAX(A1.a*E4^A1.WFT+A1.b,(A2.a*E4^A2.WFT+A2.b)*$BJ4^A2.MTD),"") ->  | DW4: =IF(F4<>"",MAX(A1.a*F4^A1.WFT+A1.b,(A2.a*F4^A2.WFT+A2.b)*$BJ4^A2.MTD),"") ->  | DX4: =IF(G4<>"",MAX(A1.a*G4^A1.WFT+A1.b,(A2.a*G4^A2.WFT+A2.b)*$BJ4^A2.MTD),"") ->  | DY4: =IF(H4<>"",MAX(A1.a*H4^A1.WFT+A1.b,(A2.a*H4^A2.WFT+A2.b)*$BJ4^A2.MTD),"") ->  | DZ4: =IF(I4<>"",MAX(A1.a*I4^A1.WFT+A1.b,(A2.a*I4^A2.WFT+A2.b)*$BJ4^A2.MTD),"") ->  | EA4: =IF(J4<>"",MAX(A1.a*J4^A1.WFT+A1.b,(A2.a*J4^A2.WFT+A2.b)*$BJ4^A2.MTD),"") ->  | EB4: =IF(K4<>"",MAX(A1.a*K4^A1.WFT+A1.b,(A2.a*K4^A2.WFT+A2.b)*$BJ4^A2.MTD),"") ->  | EC4: =IF(L4<>"",MAX(A1.a*L4^A1.WFT+A1.b,(A2.a*L4^A2.WFT+A2.b)*$BJ4^A2.MTD),"") ->  | ED4: =IF(M4<>"",MAX(A1.a*M4^A1.WFT+A1.b,(A2.a*M4^A2.WFT+A2.b)*$BJ4^A2.MTD),"") ->  | EE4: =IF(N4<>"",MAX(A1.a*N4^A1.WFT+A1.b,(A2.a*N4^A2.WFT+A2.b)*$BJ4^A2.MTD),"") ->  | EH4: Gallaway | EI4: PAVDRN | EJ4: 0.03 | EK4: 0 | EL4: 0 | EW4: 51 | EX4: 0 | EY4: 0
A5: Gallaway | B5: PAVDRN | C5: 0.04481232374 | D5: 0.06134836032 | O5: 58.20081102 | P5: 53.6537416 | AA5: Dense Graded Friction Course | AB5: 1.661662438 | AC5: 0 | AD5: 0.03423985799 | AE5: 2.218432665 | AJ5: 0 | AK5: 1.080808793 | AL5: 1.935499578 | AW5: 12 | AX5: 12 | BI5: 2.218432665 | BJ5: 0.03456308568 | BK5: 1.982238559 | BL5: 2.550937215 | BW5: 22.00839118 | BX5: 15.81568238 | CI5: 22.00839118 | CJ5: 37.82407356 | CU5: 3.880564287e-05 | CV5: 29.12432835 | CW5: 50.05366948 | DH5: 0.04577404639 | DI5: 0.04165795868 | DT5: 16.89682884 | DU5: 16.49027923 | EH5: Gallaway | EI5: PAVDRN | EJ5: 0.031 | EK5: 1 | EL5: 0 | EW5: 52 | EX5: 0 | EY5: 6
A6: Gallaway | B6: PAVDRN | C6: 0.03083110878 | D6: 0.04797299609 | O6: 64.11989341 | P6: 57.1824551 | AA6: Dense Graded Friction Course | AB6: 2.3547631 | AC6: 0 | AD6: 0.03896638293 | AE6: 1.682565628 | AJ6: 0 | AK6: 1.164057002 | AL6: 1.930452507 | AW6: 12 | AX6: 12 | BI6: 1.682565628 | BJ6: 0.03836793826 | BK6: 2.626773298 | BL6: 3.04492301 | BW6: 27.07881102 | BX6: 18.92772601 | CI6: 27.07881102 | CJ6: 46.00653703 | CU6: 3.880564287e-05 | CV6: 27.17834297 | CW6: 46.17564047 | DH6: 0.04632815848 | DI6: 0.04224662169 | DT6: 17.64711885 | DU6: 17.05551241 | EH6: Gallaway | EI6: PAVDRN | EJ6: 0.032 | EK6: 0 | EL6: 0 | EW6: 53 | EX6: 0 | EY6: 13
A7: Gallaway | B7: PAVDRN | C7: 0.03464690563 | D7: 0.04854499698 | O7: 62.21110087 | P7: 57.00718025 | AA7: Dense Graded Friction Course | AB7: 2.012475266 | AC7: 0 | AD7: 0.03755278746 | AE7: 1.677643294 | AJ7: 0 | AK7: 1.023387309 | AL7: 1.98429243 | AW7: 12 | AX7: 12 | BI7: 1.677643294 | BJ7: 0.0372299939 | BK7: 2.257737425 | BL7: 2.826211801 | BW7: 26.47370049 | BX7: 17.09150381 | CI7: 26.47370049 | CJ7: 43.56520429 | CU7: 3.880564287e-05 | CV7: 26.49327496 | CW7: 43.59741611 | DH7: 0.04653441222 | DI7: 0.04267108291 | DT7: 17.41588894 | DU7: 16.96819412 | EH7: Gallaway | EI7: PAVDRN | EJ7: 0.033 | EK7: 2 | EL7: 0 | EW7: 54 | EX7: 1 | EY7: 21
A8: Gallaway | B8: PAVDRN | C8: 0.04756206337 | D8: 0.06285245886 | O8: 57.31000705 | P8: 53.31820392 | AA8: Dense Graded Friction Course | AB8: 1.894063153 | AC8: 0 | AD8: 0.03609399854 | AE8: 2.07588895 | AJ8: 0 | AK8: 0.9368304492 | AL8: 1.883040567 | AW8: 12 | AX8: 12 | BI8: 2.07588895 | BJ8: 0.03605566883 | BK8: 2.113084598 | BL8: 2.670827026 | BW8: 27.06681364 | BX8: 17.02030476 | CI8: 27.06681364 | CJ8: 44.08711839 | CU8: 3.880564287e-05 | CV8: 33.51680561 | CW8: 54.5930303 | DH8: 0.04466878495 | DI8: 0.04103344331 | DT8: 16.9190012 | DU8: 16.55695355 | EH8: Gallaway | EI8: PAVDRN | EJ8: 0.034 | EK8: 2 | EL8: 0 | EW8: 55 | EX8: 1 | EY8: 24
A9: Gallaway | B9: PAVDRN | C9: 0.03687740734 | D9: 0.05201557388 | O9: 61.21389882 | P9: 55.9966996 | AA9: Dense Graded Friction Course | AB9: 2.19067632 | AC9: 0 | AD9: 0.0382656642 | AE9: 2.045078489 | AJ9: 0 | AK9: 1.219990448 | AL9: 2.26934341 | AW9: 12 | AX9: 12 | BI9: 2.045078489 | BJ9: 0.03780385968 | BK9: 2.507476706 | BL9: 3.15420073 | BW9: 24.66389841 | BX9: 16.67901324 | CI9: 24.66389841 | CJ9: 41.34291165 | CU9: 3.880564287e-05 | CV9: 30.08798294 | CW9: 50.43504476 | DH9: 0.04551551283 | DI9: 0.04160297576 | DT9: 17.369547 | DU9: 16.91383171 | EH9: Gallaway | EI9: PAVDRN | EJ9: 0.035 | EK9: 3 | EL9: 0 | EW9: 56 | EX9: 4 | EY9: 22
A10: Gallaway | B10: PAVDRN | C10: 0.05454122709 | D10: 0.06882775701 | O10: 55.31325673 | P10: 52.0787082 | AA10: Dense Graded Friction Course | AB10: 1.850158455 | AC10: 0 | AD10: 0.03678641134 | AE10: 2.410763157 | AJ10: 0 | AK10: 0.9306287788 | AL10: 2.0170019 | AW10: 12 | AX10: 12 | BI10: 2.410763157 | BJ10: 0.03661306113 | BK10: 2.07102782 | BL10: 2.737039089 | BW10: 26.70488428 | BX10: 16.28380671 | CI10: 26.70488428 | CJ10: 42.98869098 | CU10: 3.880564287e-05 | CV10: 38.40312948 | CW10: 61.82016177 | DH10: 0.04362345349 | DI10: 0.04015532926 | DT10: 16.77640291 | DU10: 16.47564904 | EH10: Gallaway | EI10: PAVDRN | EJ10: 0.036 | EK10: 6 | EL10: 0 | EW10: 57 | EX10: 15 | EY10: 8
A11: Gallaway | B11: PAVDRN | C11: 0.04873262811 | D11: 0.05865193869 | O11: 56.95025108 | P11: 54.28200061 | AA11: Dense Graded Friction Course | AB11: 1.750786355 | AC11: 0 | AD11: 0.04636058697 | AE11: 2.091406353 | AJ11: 0 | AK11: 0.7848133026 | AL11: 2.0379175 | AW11: 12 | AX11: 12 | BI11: 2.091406353 | BJ11: 0.04432027251 | BK11: 1.918641389 | BL11: 2.68670069 | BW11: 29.33652703 | BX11: 15.82027156 | CI11: 29.33652703 | CJ11: 45.1567986 | CU11: 3.880564287e-05 | CV11: 36.59893876 | CW11: 56.33560185 | DH11: 0.04399023859 | DI11: 0.04080971896 | DT11: 17.38221864 | DU11: 17.1342009 | EH11: Gallaway | EI11: PAVDRN | EJ11: 0.037 | EK11: 4 | EL11: 0 | EW11: 58 | EX11: 22 | EY11: 5
A12: Gallaway | B12: PAVDRN | C12: 0.05154803094 | D12: 0.07008182654 | O12: 56.12780403 | P12: 51.83572511 | AA12: Dense Graded Friction Course | AB12: 1.743749206 | AC12: 0 | AD12: 0.03057419779 | AE12: 2.167528607 | AJ12: 0 | AK12: 0.9430416979 | AL12: 1.662282327 | AW12: 12 | AX12: 12 | BI12: 2.167528607 | BJ12: 0.03161222922 | BK12: 1.98241997 | BL12: 2.409116815 | BW12: 25.2258619 | BX12: 17.39139093 | CI12: 25.2258619 | CJ12: 42.61725283 | CU12: 3.880564287e-05 | CV12: 32.61611445 | CW12: 55.10254521 | DH12: 0.0448810107 | DI12: 0.04096717023 | DT12: 16.5070954 | DU12: 16.117664 | EH12: Gallaway | EI12: PAVDRN | EJ12: 0.038 | EK12: 5 | EL12: 0 | EW12: 59 | EX12: 16 | EY12: 1
A13: Gallaway | B13: PAVDRN | C13: 0.03680389251 | D13: 0.04812895785 | O13: 61.24554417 | P13: 57.13440478 | AA13: Dense Graded Friction Course | AB13: 1.892680509 | AC13: 0 | AD13: 0.03394928528 | AE13: 1.895677739 | AJ13: 0 | AK13: 1.1631154 | AL13: 2.410047505 | AW13: 12 | AX13: 12 | BI13: 1.895677739 | BJ13: 0.03432917465 | BK13: 2.221503307 | BL13: 3.064403446 | BW13: 22.91951398 | BX13: 15.25813964 | CI13: 22.91951398 | CJ13: 38.17765362 | CU13: 3.880564287e-05 | CV13: 25.91739124 | CW13: 43.17129876 | DH13: 0.046712698 | DI13: 0.04274407128 | DT13: 17.13930051 | DU13: 16.78776651 | EH13: Gallaway | EI13: PAVDRN | EJ13: 0.039 | EK13: 3 | EL13: 0 | EW13: 60 | EX13: 12 | EY13: 0
A14: Gallaway | B14: PAVDRN | C14: 0.04472728939 | D14: 0.05590264838 | O14: 58.22944917 | P14: 54.96117296 | AA14: Dense Graded Friction Course | AB14: 1.950041722 | AC14: 0 | AD14: 0.03294214406 | AE14: 1.80147102 | AJ14: 0 | AK14: 0.9017072621 | AL14: 2.075224525 | AW14: 12 | AX14: 12 | BI14: 1.80147102 | BJ14: 0.03351842597 | BK14: 2.148427031 | BL14: 2.847669143 | BW14: 28.59145695 | BX14: 16.46666628 | CI14: 28.59145695 | CJ14: 45.05812323 | CU14: 3.880564287e-05 | CV14: 30.72450801 | CW14: 48.41966152 | DH14: 0.0453500172 | DI14: 0.04189923087 | DT14: 16.82685479 | DU14: 16.53858981 | EH14: Gallaway | EI14: PAVDRN | EJ14: 0.04 | EK14: 3 | EL14: 0 | EW14: 61 | EX14: 10 | EY14: 0
A15: Gallaway | B15: PAVDRN | C15: 0.04898037121 | D15: 0.06225484338 | O15: 56.87550466 | P15: 53.45029856 | AA15: Dense Graded Friction Course | AB15: 1.954528674 | AC15: 0 | AD15: 0.03422848307 | AE15: 2.112275839 | AJ15: 0 | AK15: 0.9549586642 | AL15: 2.068056918 | AW15: 12 | AX15: 12 | BI15: 2.112275839 | BJ15: 0.03455392887 | BK15: 2.175345579 | BL15: 2.845530136 | BW15: 27.33536846 | BX15: 16.51132584 | CI15: 27.33536846 | CJ15: 43.8466943 | CU15: 3.880564287e-05 | CV15: 34.4426798 | CW15: 55.24702014 | DH15: 0.04445749299 | DI15: 0.04094850908 | DT15: 16.78030907 | DU15: 16.47086883 | EH15: Gallaway | EI15: PAVDRN | EJ15: 0.041 | EK15: 4 | EL15: 0 | EW15: 62 | EX15: 10 | EY15: 0
A16: Gallaway | B16: PAVDRN | C16: 0.05234866461 | D16: 0.06441968059 | O16: 55.90419878 | P16: 52.97917255 | AA16: Dense Graded Friction Course | AB16: 1.837017456 | AC16: 0 | AD16: 0.03187561004 | AE16: 2.042098836 | AJ16: 0 | AK16: 0.8599719327 | AL16: 1.978890885 | AW16: 12 | AX16: 12 | BI16: 2.042098836 | BJ16: 0.03265986608 | BK16: 2.02834535 | BL16: 2.700118936 | BW16: 28.30341697 | BX16: 16.37352897 | CI16: 28.30341697 | CJ16: 44.67694594 | CU16: 3.880564287e-05 | CV16: 34.47759771 | CW16: 54.42289072 | DH16: 0.04444965531 | DI16: 0.0410557354 | DT16: 16.56280988 | DU16: 16.29798435 | EH16: Gallaway | EI16: PAVDRN | EJ16: 0.042 | EK16: 5 | EL16: 0 | EW16: 63 | EX16: 6 | EY16: 0
A17: Gallaway | B17: PAVDRN | C17: 0.05177934934 | D17: 0.06887581608 | O17: 56.0627534 | P17: 52.06929406 | AA17: Dense Graded Friction Course | AB17: 2.262981888 | AC17: 0 | AD17: 0.03276303523 | AE17: 2.157983633 | AJ17: 0 | AK17: 0.9691635654 | AL17: 1.889127296 | AW17: 12 | AX17: 12 | BI17: 2.157983633 | BJ17: 0.03337424336 | BK17: 2.461780868 | BL17: 2.947861762 | BW17: 30.48130519 | BX17: 18.72522895 | CI17: 30.48130519 | CJ17: 49.20653415 | CU17: 3.880564287e-05 | CV17: 39.2376579 | CW17: 63.3420761 | DH17: 0.0434605782 | DI17: 0.03998576195 | DT17: 16.62714953 | DU17: 16.26250588 | EH17: Gallaway | EI17: PAVDRN | EJ17: 0.043 | EK17: 4 | EL17: 0 | EW17: 64 | EX17: 2 | EY17: 0
A18: Gallaway | B18: PAVDRN | C18: 0.04731677435 | D18: 0.06658581308 | O18: 57.38680698 | P18: 52.52730482 | AA18: Dense Graded Friction Course | AB18: 2.280178767 | AC18: 0 | AD18: 0.03617765106 | AE18: 2.065122929 | AJ18: 0 | AK18: 0.9819694492 | AL18: 1.741363327 | AW18: 12 | AX18: 12 | BI18: 2.065122929 | BJ18: 0.03612300911 | BK18: 2.482635537 | BL18: 2.869069787 | BW18: 30.33864899 | BX18: 19.77119704 | CI18: 30.33864899 | CJ18: 50.10984603 | CU18: 3.880564287e-05 | CV18: 37.37347811 | CW18: 61.72915722 | DH18: 0.0438302334 | DI18: 0.04016562366 | DT18: 16.93019626 | DU18: 16.48707046 | EH18: Gallaway | EI18: PAVDRN | EJ18: 0.044 | EK18: 10 | EL18: 1 | EW18: 65 | EX18: 1 | EY18: 0
A19: Gallaway | B19: PAVDRN | C19: 0.04571941906 | D19: 0.06959136338 | O19: 57.89951125 | P19: 51.9300984 | AA19: Dense Graded Friction Course | AB19: 2.030721355 | AC19: 0 | AD19: 0.03678011619 | AE19: 2.272801717 | AJ19: 0 | AK19: 1.097337762 | AL19: 1.599551027 | AW19: 12 | AX19: 12 | BI19: 2.272801717 | BJ19: 0.03660799353 | BK19: 2.308241622 | BL19: 2.585032439 | BW19: 25.24190858 | BX19: 19.39318518 | CI19: 25.24190858 | CJ19: 44.63509375 | CU19: 3.880564287e-05 | CV19: 34.22197809 | CW19: 60.51448905 | DH19: 0.04450724848 | DI19: 0.04030475678 | DT19: 17.00697006 | DU19: 16.46117089 | EH19: Gallaway | EI19: PAVDRN | EJ19: 0.045 | EK19: 4 | EL19: 0
A20: Gallaway | B20: PAVDRN | C20: 0.03916431064 | D20: 0.05457449871 | O20: 60.26738445 | P20: 55.30452076 | AA20: Dense Graded Friction Course | AB20: 2.021780754 | AC20: 0 | AD20: 0.03982902948 | AE20: 1.964858125 | AJ20: 0 | AK20: 1.046196754 | AL20: 2.001230222 | AW20: 12 | AX20: 12 | BI20: 1.964858125 | BJ20: 0.03906236873 | BK20: 2.276428137 | BL20: 2.844735457 | BW20: 26.11089888 | BX20: 17.05792022 | CI20: 26.11089888 | CJ20: 43.1688191 | CU20: 3.880564287e-05 | CV20: 30.60373203 | CW20: 50.59676336 | DH20: 0.04538110759 | DI20: 0.04157980795 | DT20: 17.36859643 | DU20: 16.92838203 | EH20: Gallaway | EI20: PAVDRN | EJ20: 0.046 | EK20: 4 | EL20: 0
A21: Gallaway | B21: PAVDRN | C21: 0.0438943856 | D21: 0.05953331762 | O21: 58.51363193 | P21: 54.07270774 | AA21: Dense Graded Friction Course | AB21: 2.006888323 | AC21: 0 | AD21: 0.03467474893 | AE21: 1.924807641 | AJ21: 0 | AK21: 0.9759146035 | AL21: 1.877275001 | AW21: 12 | AX21: 12 | BI21: 1.924807641 | BJ21: 0.03491317289 | BK21: 2.231593613 | BL21: 2.748046974 | BW21: 27.44002729 | BX21: 17.56618698 | CI21: 27.44002729 | CJ21: 45.00621427 | CU21: 3.880564287e-05 | CV21: 31.50599819 | CW21: 51.67508364 | DH21: 0.04515225147 | DI21: 0.04142751741 | DT21: 16.94778365 | DU21: 16.55215969 | EH21: Gallaway | EI21: PAVDRN | EJ21: 0.047 | EK21: 5 | EL21: 1
A22: Gallaway | B22: PAVDRN | C22: 0.05996657902 | D22: 0.0727369744 | O22: 53.97125016 | P22: 51.33887821 | AA22: Dense Graded Friction Course | AB22: 1.681423882 | AC22: 0 | AD22: 0.03257104532 | AE22: 2.407013405 | AJ22: 0 | AK22: 0.8452872442 | AL22: 1.944288102 | AW22: 12 | AX22: 12 | BI22: 2.407013405 | BJ22: 0.03321969148 | BK22: 1.881939637 | BL22: 2.570494601 | BW22: 26.71668808 | BX22: 15.86489944 | CI22: 26.71668808 | CJ22: 42.58158751 | CU22: 3.880564287e-05 | CV22: 38.36034456 | CW22: 61.13947823 | DH22: 0.04363191558 | DI22: 0.04023276259 | DT22: 16.42807926 | DU22: 16.18298366 | EH22: Gallaway | EI22: PAVDRN | EJ22: 0.048 | EK22: 10 | EL22: 2
A23: Gallaway | B23: PAVDRN | C23: 0.03976195155 | D23: 0.05495012684 | O23: 60.03145197 | P23: 55.20635665 | AA23: Dense Graded Friction Course | AB23: 1.930972457 | AC23: 0 | AD23: 0.03491133513 | AE23: 1.797511341 | AJ23: 0 | AK23: 0.9935934839 | AL23: 1.869641583 | AW23: 12 | AX23: 12 | BI23: 1.797511341 | BJ23: 0.03510362478 | BK23: 2.171608307 | BL23: 2.68778985 | BW23: 26.22732547 | BX23: 17.25115578 | CI23: 26.22732547 | CJ23: 43.47848125 | CU23: 3.880564287e-05 | CV23: 28.12205255 | CW23: 46.61947463 | DH23: 0.0460538195 | DI23: 0.04217636159 | DT23: 17.09071764 | DU23: 16.66814833 | EH23: Gallaway | EI23: PAVDRN | EJ23: 0.049 | EK23: 6 | EL23: 4
A24: Gallaway | B24: PAVDRN | C24: 0.03482114168 | D24: 0.04984257331 | O24: 62.13032727 | P24: 56.61903482 | AA24: Dense Graded Friction Course | AB24: 2.065709893 | AC24: 0 | AD24: 0.03536977708 | AE24: 1.798045554 | AJ24: 0 | AK24: 1.154267494 | AL24: 2.079499352 | AW24: 12 | AX24: 12 | BI24: 1.798045554 | BJ24: 0.03547267055 | BK24: 2.366324324 | BL24: 2.931121784 | BW24: 24.60078971 | BX24: 16.91438922 | CI24: 24.60078971 | CJ24: 41.51517893 | CU24: 3.880564287e-05 | CV24: 26.38585125 | CW24: 44.52756796 | DH24: 0.04656732189 | DI24: 0.04251462899 | DT24: 17.29171398 | DU24: 16.81931978 | EH24: Gallaway | EI24: PAVDRN | EJ24: 0.05 | EK24: 4 | EL24: 3
A25: Gallaway | B25: PAVDRN | C25: 0.03665222325 | D25: 0.0515041551 | O25: 61.31108421 | P25: 56.14018413 | AA25: Dense Graded Friction Course | AB25: 2.00305187 | AC25: 0 | AD25: 0.03402668338 | AE25: 1.751878428 | AJ25: 0 | AK25: 1.078575769 | AL25: 1.979732261 | AW25: 12 | AX25: 12 | BI25: 1.751878428 | BJ25: 0.03439148012 | BK25: 2.274981864 | BL25: 2.81630194 | BW25: 25.31095464 | BX25: 17.07080495 | CI25: 25.31095464 | CJ25: 42.38175959 | CU25: 3.880564287e-05 | CV25: 26.45049849 | CW25: 44.2898612 | DH25: 0.04654749815 | DI25: 0.04255424441 | DT25: 17.14910882 | DU25: 16.70408659 | EH25: Gallaway | EI25: PAVDRN | EJ25: 0.051 | EK25: 5 | EL25: 0
A26: Gallaway | B26: PAVDRN | C26: 0.0592769561 | D26: 0.07403633469 | O26: 54.13317916 | P26: 51.10398279 | AA26: Dense Graded Friction Course | AB26: 2.137228325 | AC26: 0 | AD26: 0.03585137876 | AE26: 2.19300206 | AJ26: 0 | AK26: 0.7919903833 | AL26: 1.838971435 | AW26: 12 | AX26: 12 | BI26: 2.19300206 | BJ26: 0.0358603599 | BK26: 2.279252877 | BL26: 2.81949656 | BW26: 34.53455383 | BX26: 18.39830574 | CI26: 34.53455383 | CJ26: 52.93285957 | CU26: 3.880564287e-05 | CV26: 45.1766746 | CW26: 69.24457701 | DH26: 0.04240770342 | DI26: 0.0393706615 | DT26: 16.61987914 | DU26: 16.33463438 | EH26: Gallaway | EI26: PAVDRN | EJ26: 0.052 | EK26: 4 | EL26: 3
A27: Gallaway | B27: PAVDRN | C27: 0.04805670256 | D27: 0.07104978829 | O27: 57.15664153 | P27: 51.65189004 | AA27: Dense Graded Friction Course | AB27: 1.710606953 | AC27: 0 | AD27: 0.03062122021 | AE27: 1.91295217 | AJ27: 0 | AK27: 0.886529697 | AL27: 1.301935724 | AW27: 12 | AX27: 12 | BI27: 1.91295217 | BJ27: 0.03165008227 | BK27: 1.926683952 | BL27: 2.149700625 | BW27: 26.07945059 | BX27: 19.81388714 | CI27: 26.07945059 | CJ27: 45.89333773 | CU27: 3.880564287e-05 | CV27: 29.75938281 | CW27: 52.36910192 | DH27: 0.04560256522 | DI27: 0.04133146158 | DT27: 16.59980729 | DU27: 16.10313643 | EH27: Gallaway | EI27: PAVDRN | EJ27: 0.053 | EK27: 2 | EL27: 6
A28: Gallaway | B28: PAVDRN | C28: 0.04074581826 | D28: 0.06098908393 | O28: 59.65261293 | P28: 53.73542441 | AA28: Dense Graded Friction Course | AB28: 2.018472038 | AC28: 0 | AD28: 0.03641553577 | AE28: 2.022110291 | AJ28: 0 | AK28: 1.094398691 | AL28: 1.72151063 | AW28: 12 | AX28: 12 | BI28: 2.022110291 | BJ28: 0.0363145063 | BK28: 2.296070091 | BL28: 2.652890541 | BW28: 25.17623726 | BX28: 18.49229736 | CI28: 25.17623726 | CJ28: 43.66853462 | CU28: 3.880564287e-05 | CV28: 30.36805887 | CW28: 52.67382161 | DH28: 0.04544219192 | DI28: 0.04128975777 | DT28: 17.13968679 | DU28: 16.61237839 | EH28: Gallaway | EI28: PAVDRN | EJ28: 0.054 | EK28: 0 | EL28: 8
A29: Gallaway | B29: PAVDRN | C29: 0.04352927307 | D29: 0.05996135894 | O29: 58.64035537 | P29: 53.97246706 | AA29: Dense Graded Friction Course | AB29: 1.825833264 | AC29: 0 | AD29: 0.03662631815 | AE29: 1.97699257 | AJ29: 0 | AK29: 0.9633572684 | AL29: 1.792697093 | AW29: 12 | AX29: 12 | BI29: 1.97699257 | BJ29: 0.03648418611 | BK29: 2.064394423 | BL29: 2.558794633 | BW29: 25.71500095 | BX29: 17.1281226 | CI29: 25.71500095 | CJ29: 42.84312355 | CU29: 3.880564287e-05 | CV29: 30.3258479 | CW29: 50.52514098 | DH29: 0.04545319138 | DI29: 0.04159005784 | DT29: 17.06355265 | DU29: 16.64519922 | EH29: Gallaway | EI29: PAVDRN | EJ29: 0.055 | EK29: 2 | EL29: 5
A30: Gallaway | B30: PAVDRN | C30: 0.04831258833 | D30: 0.05960931196 | O30: 57.07808066 | P30: 54.05484491 | AA30: Dense Graded Friction Course | AB30: 2.107417128 | AC30: 0 | AD30: 0.04013383125 | AE30: 2.015160819 | AJ30: 0 | AK30: 0.8657033386 | AL30: 2.139803397 | AW30: 12 | AX30: 12 | BI30: 2.015160819 | BJ30: 0.03930773415 | BK30: 2.278299634 | BL30: 3.003325745 | BW30: 31.58079032 | BX30: 16.84262629 | CI30: 31.58079032 | CJ30: 48.4234166 | CU30: 3.880564287e-05 | CV30: 37.96243623 | CW30: 58.20851366 | DH30: 0.04371114935 | DI30: 0.04057814433 | DT30: 17.10404838 | DU30: 16.8275166 | EH30: Gallaway | EI30: PAVDRN | EJ30: 0.056 | EK30: 0 | EL30: 5
A31: Gallaway | B31: PAVDRN | C31: 0.04765295103 | D31: 0.06203826769 | O31: 57.28167667 | P31: 53.4985643 | AA31: Dense Graded Friction Course | AB31: 1.950283595 | AC31: 0 | AD31: 0.03466500545 | AE31: 1.996072174 | AJ31: 0 | AK31: 0.9185318408 | AL31: 1.911871511 | AW31: 12 | AX31: 12 | BI31: 1.996072174 | BJ31: 0.03490532939 | BK31: 2.155761314 | BL31: 2.731091133 | BW31: 28.16356998 | BX31: 17.14189129 | CI31: 28.16356998 | CJ31: 45.30546126 | CU31: 3.880564287e-05 | CV31: 33.53399658 | CW31: 53.94462365 | DH31: 0.04466479965 | DI31: 0.04111883998 | DT31: 16.83988358 | DU31: 16.49868847 | EH31: Gallaway | EI31: PAVDRN | EJ31: 0.057 | EK31: 0 | EL31: 3
A32: Gallaway | B32: PAVDRN | C32: 0.03368274826 | D32: 0.05233775024 | O32: 62.66750904 | P32: 55.907218 | AA32: Dense Graded Friction Course | AB32: 1.738391047 | AC32: 0 | AD32: 0.0357945398 | AE32: 1.809066928 | AJ32: 0 | AK32: 1.145826713 | AL32: 1.741312432 | AW32: 12 | AX32: 12 | BI32: 1.809066928 | BJ32: 0.03581460454 | BK32: 2.082047619 | BL32: 2.460522794 | BW32: 21.80484286 | BX32: 16.95633304 | CI32: 21.80484286 | CJ32: 38.7611759 | CU32: 3.880564287e-05 | CV32: 23.53038137 | CW32: 41.82856336 | DH32: 0.0475046798 | DI32: 0.04297971607 | DT32: 17.35931078 | DU32: 16.77828028 | EH32: Gallaway | EI32: PAVDRN | EJ32: 0.058 | EK32: 0 | EL32: 5
A33: Gallaway | B33: PAVDRN | C33: 0.0478133273 | D33: 0.06596615667 | O33: 57.2318517 | P33: 52.6546577 | AA33: Dense Graded Friction Course | AB33: 1.971763304 | AC33: 0 | AD33: 0.03288626335 | AE33: 2.227702618 | AJ33: 0 | AK33: 1.067665549 | AL33: 1.879212359 | AW33: 12 | AX33: 12 | BI33: 2.227702618 | BJ33: 0.033473442 | BK33: 2.242266766 | BL33: 2.723837297 | BW33: 25.20190074 | BX33: 17.39348264 | CI33: 25.20190074 | CJ33: 42.59538339 | CU33: 3.880564287e-05 | CV33: 33.48974823 | CW33: 56.60321735 | DH33: 0.04467506239 | DI33: 0.04077608077 | DT33: 16.73706614 | DU33: 16.32405187 | EH33: Gallaway | EI33: PAVDRN | EJ33: 0.059 | EK33: 0 | EL33: 6
A34: Gallaway | B34: PAVDRN | C34: 0.04788838944 | D34: 0.05997435285 | O34: 57.20860396 | P34: 53.96943819 | AA34: Dense Graded Friction Course | AB34: 2.090001059 | AC34: 0 | AD34: 0.0327117934 | AE34: 1.731721542 | AJ34: 0 | AK34: 0.8132997307 | AL34: 1.907977461 | AW34: 12 | AX34: 12 | BI34: 1.731721542 | BJ34: 0.03333299369 | BK34: 2.24266825 | BL34: 2.829926221 | BW34: 33.08991505 | BX34: 17.79848837 | CI34: 33.08991505 | CJ34: 50.88840342 | CU34: 3.880564287e-05 | CV34: 34.18181208 | CW34: 52.56761283 | DH34: 0.04451634412 | DI34: 0.04130426123 | DT34: 16.72518549 | DU34: 16.43574654 | EH34: Gallaway | EI34: PAVDRN | EJ34: 0.06 | EK34: 2 | EL34: 10
A35: Gallaway | B35: PAVDRN | C35: 0.0431690553 | D35: 0.05925507893 | O35: 58.76669822 | P35: 54.13835486 | AA35: Dense Graded Friction Course | AB35: 2.161373708 | AC35: 0 | AD35: 0.03313693891 | AE35: 1.85568782 | AJ35: 0 | AK35: 0.9951037801 | AL35: 1.867984405 | AW35: 12 | AX35: 12 | BI35: 1.85568782 | BJ35: =IF(Probabilistic_Output_MPD_or_MTD="Mean Texture Depth (in.)",AD35,IF(AA35="Dense Graded Friction Course",MPD.to.MTD.DGFC.a*AD35+MPD.to.MTD.DGFC.b,IF(AA35="Open Graded Friction Course",MPD.to.MTD.OGFC.a*AD35+MPD.to.MTD.OGFC.b,IF(AA35="PCC (LGD)",MPD.to.MTD.LGD.a*AD35+MPD.to.MTD.LGD.b,MPD.to.MTD.LGD.TGV.a*AD35+MPD.to.MTD.LGD.TGV.b)))) -> 0.03367523583 | BK35: 2.37944696 | BL35: 2.856729256 | BW35: 28.69385495 | BX35: 18.35173301 | CI35: 28.69385495 | CJ35: 47.04558796 | CU35: =KVis.V0*EXP(KVis.a+KVis.b*273.16/(273.16+CONVERT(AF35,"F","C"))+KVis.c*(273.16/(273.16+CONVERT(AF35,"F","C")))^2)*CONVERT(1,"m","ft")^2*10^(-6) -> 3.880564287e-05 | CV35: 31.76253717 | CW35: 52.07690772 | DH35: 0.04508858361 | DI35: 0.04137171959 | DT35: 16.88407245 | DU35: 16.47470928 | EH35: Gallaway | EI35: PAVDRN | EJ35: 0.061 | EK35: 0 | EL35: 3
A36: Gallaway | B36: PAVDRN | C36: 0.0504878083 | D36: 0.06053461496 | O36: 56.43073042 | P36: 53.83962171 | AA36: Dense Graded Friction Course | AB36: 1.917838349 | AC36: 0 | AD36: 0.02906366419 | AE36: 1.991187892 | AJ36: 0 | AK36: 0.9179681201 | AL36: 2.220184217 | AW36: 12 | AX36: 12 | BI36: 1.991187892 | BJ36: 0.03039624967 | BK36: 2.126210103 | BL36: 2.933823766 | BW36: 27.79456136 | BX36: 15.85719101 | CI36: 27.79456136 | CJ36: 43.65175236 | CU36: 3.880564287e-05 | CV36: 33.01364204 | CW36: 51.84839251 | DH36: 0.04478650544 | DI36: 0.04140338926 | DT36: 16.44315939 | DU36: 16.21316983 | EH36: Gallaway | EI36: PAVDRN | EJ36: 0.062 | EK36: 0 | EL36: 3
A37: Gallaway | B37: PAVDRN | C37: 0.05156893174 | D37: 0.0666117304 | O37: 56.12191129 | P37: 52.52201079 | AA37: Dense Graded Friction Course | AB37: 2.044803723 | AC37: 0 | AD37: 0.0374150603 | AE37: 2.292040941 | AJ37: 0 | AK37: 0.9562893063 | AL37: 2.02156924 | AW37: 12 | AX37: 12 | BI37: 2.292040941 | BJ37: 0.03711912354 | BK37: 2.257368269 | BL37: 2.875406833 | BW37: 28.32659432 | BX37: 17.06836517 | CI37: 28.32659432 | CJ37: 45.39495948 | CU37: 3.880564287e-05 | CV37: 38.72916237 | CW37: 62.06565946 | DH37: 0.0435593314 | DI37: 0.04012764716 | DT37: 16.88188651 | DU37: 16.54947664 | EH37: Gallaway | EI37: PAVDRN | EJ37: 0.063 | EK37: 0 | EL37: 8
A38: Gallaway | B38: PAVDRN | C38: 0.03557103224 | D38: 0.05514427888 | O38: 61.78840644 | P38: 55.15594886 | AA38: Dense Graded Friction Course | AB38: 1.719912719 | AC38: 0 | AD38: 0.03620209279 | AE38: 1.954509877 | AJ38: 0 | AK38: 1.175561381 | AL38: 1.759539638 | AW38: 12 | AX38: 12 | BI38: 1.954509877 | BJ38: 0.03614268469 | BK38: 2.083277303 | BL38: 2.460503912 | BW38: 21.26586331 | BX38: 16.78055231 | CI38: 21.26586331 | CJ38: 38.04641562 | CU38: 3.880564287e-05 | CV38: 24.7937523 | CW38: 44.35810533 | DH38: 0.04707434461 | DI38: 0.04254284558 | DT38: 17.30864821 | DU38: 16.73177677 | EH38: Gallaway | EI38: PAVDRN | EJ38: 0.064 | EK38: 0 | EL38: 4
A39: Gallaway | B39: PAVDRN | C39: 0.04782532484 | D39: 0.06166496804 | O39: 57.22813282 | P39: 53.58225731 | AA39: Dense Graded Friction Course | AB39: 2.285726652 | AC39: 0 | AD39: 0.03607110938 | AE39: 1.921706798 | AJ39: 0 | AK39: 0.8960326202 | AL39: 1.989958372 | AW39: 12 | AX39: 12 | BI39: 1.921706798 | BJ39: 0.03603724305 | BK39: 2.455080606 | BL39: 3.030590809 | BW39: 32.87934681 | BX39: 18.27530174 | CI39: 32.87934681 | CJ39: 51.15464855 | CU39: 3.880564287e-05 | CV39: 37.69048086 | CW39: 58.6399515 | DH39: 0.04376586568 | DI39: 0.0405260381 | DT39: 16.91056285 | DU39: 16.58034791 | EH39: Gallaway | EI39: PAVDRN | EJ39: 0.065 | EK39: 0 | EL39: 2
A40: Gallaway | B40: PAVDRN | C40: 0.04138461132 | D40: 0.05284720564 | O40: 59.41275753 | P40: 55.76712743 | AA40: Dense Graded Friction Course | AB40: 1.845161924 | AC40: 0 | AD40: 0.0437382654 | AE40: 1.775118831 | AJ40: 0 | AK40: 0.8102572686 | AL40: 1.920441531 | AW40: 12 | AX40: 12 | BI40: 1.775118831 | BJ40: 0.04220930364 | BK40: 2.015226877 | BL40: 2.663215763 | BW40: 29.84573353 | BX40: 16.64127162 | CI40: 29.84573353 | CJ40: 46.48700515 | CU40: 3.880564287e-05 | CV40: 31.60319995 | CW40: 49.22439307 | DH40: 0.04512805655 | DI40: 0.04177923185 | DT40: 17.48345129 | DU40: 17.15575893 | EH40: Gallaway | EI40: PAVDRN | EJ40: 0.066 | EK40: 0 | EL40: 6
A41: Gallaway | B41: PAVDRN | C41: 0.04301474813 | D41: 0.05501587635 | O41: 58.8212267 | P41: 55.189261 | AA41: Dense Graded Friction Course | AB41: 2.023954601 | AC41: 0 | AD41: 0.03998830313 | AE41: 2.019203334 | AJ41: 0 | AK41: 0.9763239514 | AL41: 2.204938217 | AW41: 12 | AX41: 12 | BI41: 2.019203334 | BJ41: 0.03919058402 | BK41: 2.247131657 | BL41: 2.993015998 | BW41: 27.61950052 | BX41: 16.28897885 | CI41: 27.61950052 | CJ41: 43.90847938 | CU41: 3.880564287e-05 | CV41: 33.26727634 | CW41: 52.88710836 | DH41: 0.04472690371 | DI41: 0.04126073558 | DT41: 17.25120112 | DU41: 16.92556679 | EH41: Gallaway | EI41: PAVDRN | EJ41: 0.067 | EK41: 0 | EL41: 2
A42: Gallaway | B42: PAVDRN | C42: 0.03784745015 | D42: 0.05832840837 | O42: 60.80362808 | P42: 54.35982217 | AA42: Dense Graded Friction Course | AB42: 2.187870824 | AC42: 0 | AD42: 0.0365631925 | AE42: 2.117696105 | AJ42: 0 | AK42: 1.272361313 | AL42: 1.917401514 | AW42: 12 | AX42: 12 | BI42: 2.117696105 | BJ42: 0.03643336996 | BK42: 2.530944893 | BL42: 2.90915921 | BW42: 23.87005829 | BX42: 18.20688586 | CI42: 23.87005829 | CJ42: 42.07694416 | CU42: 3.880564287e-05 | CV42: 30.15355269 | CW42: 53.15317361 | DH42: 0.04549827573 | DI42: 0.04122472378 | DT42: 17.24543195 | DU42: 16.67769616 | EH42: Gallaway | EI42: PAVDRN | EJ42: 0.068 | EK42: 0 | EL42: 0
A43: Gallaway | B43: PAVDRN | C43: 0.05107320659 | D43: 0.06515796118 | O43: 56.26249151 | P43: 52.82304114 | AA43: Dense Graded Friction Course | AB43: 1.997599246 | AC43: 0 | AD43: 0.03423028963 | AE43: 2.102175627 | AJ43: 0 | AK43: 0.9081158755 | AL43: 1.961113315 | AW43: 12 | AX43: 12 | BI43: 2.102175627 | BJ43: 0.03455538315 | BK43: 2.194328414 | BL43: 2.799351386 | BW43: 28.9962346 | BX43: 17.12915637 | CI43: 28.9962346 | CJ43: 46.12539097 | CU43: 3.880564287e-05 | CV43: 36.36067794 | CW43: 57.84028543 | DH43: 0.04404025978 | DI43: 0.04062297643 | DT43: 16.72609898 | DU43: 16.412657 | EH43: Gallaway | EI43: PAVDRN | EJ43: 0.069 | EK43: 0 | EL43: 3
A44: Gallaway | B44: PAVDRN | C44: 0.04390782767 | D44: 0.05849272712 | O44: 58.5089918 | P44: 54.32022943 | AA44: Dense Graded Friction Course | AB44: 2.021688174 | AC44: 0 | AD44: 0.0381332529 | AE44: 2.020547115 | AJ44: 0 | AK44: 0.9817342363 | AL44: 2.004546478 | AW44: 12 | AX44: 12 | BI44: 2.020547115 | BJ44: 0.03769726858 | BK44: 2.247448594 | BL44: 2.847003628 | BW44: 27.47116494 | BX44: 17.04327832 | CI44: 27.47116494 | CJ44: 44.51444326 | CU44: 3.880564287e-05 | CV44: 33.11062883 | CW44: 53.65266496 | DH44: 0.04476365115 | DI44: 0.04115768598 | DT44: 17.13040027 | DU44: 16.75384975 | EH44: Gallaway | EI44: PAVDRN | EJ44: 0.07 | EK44: 0 | EL44: 3
A45: Gallaway | B45: PAVDRN | C45: 0.04122215987 | D45: 0.05304933164 | O45: 59.47331102 | P45: 55.71201694 | AA45: Dense Graded Friction Course | AB45: 1.85076549 | AC45: 0 | AD45: 0.03606171734 | AE45: 1.994901184 | AJ45: 0 | AK45: 1.046999132 | AL45: 2.241728695 | AW45: 12 | AX45: 12 | BI45: 1.994901184 | BJ45: 0.03602968246 | BK45: 2.126391329 | BL45: 2.907005408 | BW45: 24.37126751 | BX45: 15.56123405 | CI45: 24.37126751 | CJ45: 39.93250156 | CU45: 3.880564287e-05 | CV45: 29.00152768 | CW45: 47.519217 | DH45: 0.04580771228 | DI45: 0.04203630952 | DT45: 17.10544538 | DU45: 16.77477377 | EH45: Gallaway | EI45: PAVDRN | EJ45: 0.071 | EK45: 0 | EL45: 1
A46: Gallaway | B46: PAVDRN | C46: 0.04689398126 | D46: 0.05900930912 | O46: 57.52036716 | P46: 54.19666496 | AA46: Dense Graded Friction Course | AB46: 1.93390225 | AC46: 0 | AD46: 0.03318969259 | AE46: 1.890994223 | AJ46: 0 | AK46: 0.8964900792 | AL46: 2.014964061 | AW46: 12 | AX46: 12 | BI46: 1.890994223 | BJ46: 0.03371770253 | BK46: 2.131589167 | BL46: 2.792858407 | BW46: 28.53246299 | BX46: 16.63270404 | CI46: 28.53246299 | CJ46: 45.16516703 | CU46: 3.880564287e-05 | CV46: 32.18480152 | CW46: 50.94659852 | DH46: 0.0449850896 | DI46: 0.04152998666 | DT46: 16.77930833 | DU46: 16.48293892 | EH46: Gallaway | EI46: PAVDRN | EJ46: 0.072 | EK46: 0 | EL46: 1
A47: Gallaway | B47: PAVDRN | C47: 0.03770721671 | D47: 0.05340082325 | O47: 60.86211501 | P47: 55.61680804 | AA47: Dense Graded Friction Course | AB47: 1.847755288 | AC47: 0 | AD47: 0.03574723003 | AE47: 1.930154197 | AJ47: 0 | AK47: 1.115509704 | AL47: 1.988972355 | AW47: 12 | AX47: 12 | BI47: 1.930154197 | BJ47: 0.03577652018 | BK47: 2.158370103 | BL47: 2.714813185 | BW47: 23.21848133 | BX47: 16.37919107 | CI47: 23.21848133 | CJ47: 39.5976724 | CU47: 3.880564287e-05 | CV47: 26.73296848 | CW47: 45.59141112 | DH47: 0.04646154258 | DI47: 0.04234032499 | DT47: 17.2064867 | DU47: 16.74964063 | EH47: Gallaway | EI47: PAVDRN | EJ47: 0.073 | EK47: 0 | EL47: 1
A48: Gallaway | B48: PAVDRN | C48: 0.04437253412 | D48: 0.05737864217 | O48: 58.3496686 | P48: 54.59145391 | AA48: Dense Graded Friction Course | AB48: 1.8248871 | AC48: 0 | AD48: 0.0366768111 | AE48: 2.133275939 | AJ48: 0 | AK48: 1.028958972 | AL48: 2.155887314 | AW48: 12 | AX48: 12 | BI48: 2.133275939 | BJ48: 0.03652483294 | BK48: 2.094986753 | BL48: 2.824546519 | BW48: 24.43230655 | BX48: 15.72185986 | CI48: 24.43230655 | CJ48: 40.15416642 | CU48: 3.880564287e-05 | CV48: 31.09086997 | CW48: 51.09742562 | DH48: 0.04525657828 | DI48: 0.04150863058 | DT48: 17.04091852 | DU48: 16.70484009 | EH48: Gallaway | EI48: PAVDRN | EJ48: 0.074 | EK48: 0 | EL48: 0
A49: Gallaway | B49: PAVDRN | C49: 0.03237456725 | D49: 0.05243258132 | O49: 63.31376664 | P49: 55.88101154 | AA49: Dense Graded Friction Course | AB49: 1.802536658 | AC49: 0 | AD49: 0.03804410335 | AE49: 1.833538927 | AJ49: 0 | AK49: 1.171429188 | AL49: 1.698515243 | AW49: 12 | AX49: 12 | BI49: 1.833538927 | BJ49: 0.0376255032 | BK49: 2.149740623 | BL49: 2.476710002 | BW49: 22.02172162 | BX49: 17.4979413 | CI49: 22.02172162 | CJ49: 39.51966292 | CU49: 3.880564287e-05 | CV49: 24.08589416 | CW49: 43.22397834 | DH49: 0.04731219668 | DI49: 0.04273500223 | DT49: 17.53294975 | DU49: 16.89217552 | EH49: Gallaway | EI49: PAVDRN | EJ49: 0.075 | EK49: 0 | EL49: 1
A50: Gallaway | B50: PAVDRN | C50: 0.0401506791 | D50: 0.05687774785 | O50: 59.88037618 | P50: 54.71556655 | AA50: Dense Graded Friction Course | AB50: 1.691576045 | AC50: 0 | AD50: 0.03786148218 | AE50: 1.938696168 | AJ50: 0 | AK50: 0.9908591505 | AL50: 1.764546151 | AW50: 12 | AX50: 12 | BI50: 1.938696168 | BJ50: 0.03747849316 | BK50: 1.960416122 | BL50: 2.444392079 | BW50: 23.74201566 | BX50: 16.62337079 | CI50: 23.74201566 | CJ50: 40.36538646 | CU50: 3.880564287e-05 | CV50: 27.45672347 | CW50: 46.68100928 | DH50: 0.04624608358 | DI50: 0.04216668251 | DT50: 17.23512483 | DU50: 16.77664759
A51: Gallaway | B51: PAVDRN | C51: 0.03572629851 | D51: 0.04867387512 | O51: 61.71874437 | P51: 56.96804761 | AA51: Dense Graded Friction Course | AB51: 1.760411921 | AC51: 0 | AD51: 0.03171224595 | AE51: 1.667325384 | AJ51: 0 | AK51: 1.056751059 | AL51: 2.016573899 | AW51: 12 | AX51: 12 | BI51: 1.667325384 | BJ51: 0.03252835799 | BK51: 2.053234748 | BL51: 2.676867651 | BW51: 23.31563028 | BX51: 15.92920142 | CI51: 23.31563028 | CJ51: 39.2448317 | CU51: 3.880564287e-05 | CV51: 23.18936694 | CW51: 39.03230546 | DH51: 0.04762550216 | DI51: 0.04350027713 | DT51: 17.04948613 | DU51: 16.64708287
A52: Gallaway | B52: PAVDRN | C52: 0.04336652604 | D52: 0.05714114335 | O52: 58.69727366 | P52: 54.65013109 | AA52: Dense Graded Friction Course | AB52: 2.030705723 | AC52: 0 | AD52: 0.03225854579 | AE52: 1.983943183 | AJ52: 0 | AK52: 1.066306257 | AL52: 2.136355942 | AW52: 12 | AX52: 12 | BI52: 1.983943183 | BJ52: 0.03296812936 | BK52: 2.29363789 | BL52: 2.947504444 | BW52: 25.81214778 | BX52: 16.5562548 | CI52: 25.81214778 | CJ52: 42.36840258 | CU52: 3.880564287e-05 | CV52: 30.54743461 | CW52: 50.14096535 | DH52: 0.04539564904 | DI52: 0.04164532992 | DT52: 16.82804784 | DU52: 16.47225543
A53: Gallaway | B53: PAVDRN | C53: 0.05058967426 | D53: 0.06252622659 | O53: 56.40127896 | P53: 53.39011605 | AA53: Dense Graded Friction Course | AB53: 1.948777652 | AC53: 0 | AD53: 0.03954794423 | AE53: 2.13239533 | AJ53: 0 | AK53: 0.8650321141 | AL53: 2.068796957 | AW53: 12 | AX53: 12 | BI53: 2.13239533 | BJ53: 0.03883609511 | BK53: 2.132138573 | BL53: 2.842121599 | BW53: 29.57770291 | BX53: 16.48564838 | CI53: 29.57770291 | CJ53: 46.06335128 | CU53: 3.880564287e-05 | CV53: 37.62300979 | CW53: 58.59285023 | DH53: 0.04377951238 | DI53: 0.04053170476 | DT53: 17.01435971 | DU53: 16.73681874
A54: Gallaway | B54: PAVDRN | C54: 0.04936991784 | D54: 0.06509364107 | O54: 56.75893228 | P54: 52.83655478 | AA54: Dense Graded Friction Course | AB54: 2.112450472 | AC54: 0 | AD54: 0.02746655262 | AE54: 1.965307707 | AJ54: 0 | AK54: 0.9751781316 | AL54: 1.880625046 | AW54: 12 | AX54: 12 | BI54: 1.965307707 | BJ54: 0.02911057486 | BK54: 2.326675608 | BL54: 2.828285268 | BW54: 28.63077667 | BX54: 18.04688462 | CI54: 28.63077667 | CJ54: 46.67766129 | CU54: 3.880564287e-05 | CV54: 33.56487677 | CW54: 54.72188084 | DH54: 0.04465764688 | DI54: 0.0410166152 | DT54: 16.37234751 | DU54: 16.02459973
A55: Gallaway | B55: PAVDRN | C55: 0.04799455061 | D55: 0.06258800074 | O55: 57.17580266 | P55: 53.37646283 | AA55: Dense Graded Friction Course | AB55: 2.436014274 | AC55: 0 | AD55: 0.03797814801 | AE55: 2.102643708 | AJ55: 0 | AK55: 0.9791960855 | AL55: 2.125288841 | AW55: 12 | AX55: 12 | BI55: 2.102643708 | BJ55: 0.03757240915 | BK55: 2.625450536 | BL55: 3.232803459 | BW55: 32.17476755 | BX55: 18.2533502 | CI55: 32.17476755 | CJ55: 50.42811775 | CU55: 3.880564287e-05 | CV55: 40.35547622 | CW55: 63.24989617 | DH55: 0.04324867477 | DI55: 0.03999589569 | DT55: 17.00496526 | DU55: 16.65820655
A56: Gallaway | B56: PAVDRN | C56: 0.03847627381 | D56: 0.05807386829 | O56: 60.54468042 | P56: 54.42143188 | AA56: Dense Graded Friction Course | AB56: 1.881745182 | AC56: 0 | AD56: 0.03371340488 | AE56: 1.966484144 | AJ56: 0 | AK56: 1.159793273 | AL56: 1.766545296 | AW56: 12 | AX56: 12 | BI56: 1.966484144 | BJ56: 0.03413929093 | BK56: 2.210449132 | BL56: 2.581016701 | BW56: 22.87079104 | BX56: 17.5326387 | CI56: 22.87079104 | CJ56: 40.40342973 | CU56: 3.880564287e-05 | CV56: 26.82829082 | CW56: 47.39472987 | DH56: 0.04643277636 | DI56: 0.04205550052 | DT56: 17.06742198 | DU56: 16.53214974
A57: Gallaway | B57: PAVDRN | C57: 0.04328132632 | D57: 0.05955755962 | O57: 58.72717831 | P57: 54.06700643 | AA57: Dense Graded Friction Course | AB57: 2.074882528 | AC57: 0 | AD57: 0.03363087554 | AE57: 1.74866126 | AJ57: 0 | AK57: 0.9105033554 | AL57: 1.715836211 | AW57: 12 | AX57: 12 | BI57: 1.74866126 | BJ57: 0.03407285481 | BK57: 2.265867134 | BL57: 2.692439676 | BW57: 29.86304822 | BX57: 18.83004678 | CI57: 29.86304822 | CJ57: 48.69309499 | CU57: 3.880564287e-05 | CV57: 31.15022549 | CW57: 50.79189766 | DH57: 0.04524156163 | DI57: 0.04155196848 | DT57: 16.90844757 | DU57: 16.49527709
A58: Gallaway | B58: PAVDRN | C58: 0.04119964722 | D58: 0.05126247239 | O58: 59.48172628 | P58: 56.20861663 | AA58: Dense Graded Friction Course | AB58: 1.966129414 | AC58: 0 | AD58: 0.04109800502 | AE58: 2.021109476 | AJ58: 0 | AK58: 0.9985904058 | AL58: 2.385260429 | AW58: 12 | AX58: 12 | BI58: 2.021109476 | BJ58: 0.04008389404 | BK58: 2.205186539 | BL58: 3.091137685 | BW58: 26.49959214 | BX58: 15.55119591 | CI58: 26.49959214 | CJ58: 42.05078805 | CU58: 3.880564287e-05 | CV58: 31.94849455 | CW58: 50.69736039 | DH58: 0.04504280893 | DI58: 0.04156544024 | DT58: 17.36345045 | DU58: 17.07236699
A59: Gallaway | B59: PAVDRN | C59: 0.04537089029 | D59: 0.05830762317 | O59: 58.01438048 | P59: 54.36484038 | AA59: Dense Graded Friction Course | AB59: 1.84407094 | AC59: 0 | AD59: 0.03392154076 | AE59: 1.947176288 | AJ59: 0 | AK59: 0.9421618939 | AL59: 2.001690079 | AW59: 12 | AX59: 12 | BI59: 1.947176288 | BJ59: 0.03430684031 | BK59: 2.070813045 | BL59: 2.721646708 | BW59: 26.37525111 | BX59: 16.31609251 | CI59: 26.37525111 | CJ59: 42.69134362 | CU59: 3.880564287e-05 | CV59: 30.63537818 | CW59: 49.58684379 | DH59: 0.04537294727 | DI59: 0.04172593432 | DT59: 16.86307178 | DU59: 16.53832321
A60: Gallaway | B60: PAVDRN | C60: 0.05037741855 | D60: 0.06219857053 | O60: 56.46273087 | P60: 53.46281909 | AA60: Dense Graded Friction Course | AB60: 1.782793507 | AC60: 0 | AD60: 0.03515143618 | AE60: 2.363329523 | AJ60: 0 | AK60: 1.014463639 | AL60: 2.267174012 | AW60: 12 | AX60: 12 | BI60: 2.363329523 | BJ60: 0.03529690612 | BK60: 2.051216508 | BL60: 2.884168977 | BW60: 24.26365731 | BX60: 15.26571297 | CI60: 24.26365731 | CJ60: 39.52937028 | CU60: 3.880564287e-05 | CV60: 34.20597031 | CW60: 55.72698498 | DH60: 0.04451087196 | DI60: 0.04088692316 | DT60: 16.79373351 | DU60: 16.52116024
A61: Gallaway | B61: PAVDRN | C61: 0.05432139059 | D61: 0.06531116962 | O61: 55.3711473 | P61: 52.79091961 | AA61: Dense Graded Friction Course | AB61: 2.080997377 | AC61: 0 | AD61: 0.0344814969 | AE61: 2.100871286 | AJ61: 0 | AK61: 0.8481872681 | AL61: 2.138757723 | AW61: 12 | AX61: 12 | BI61: 2.100871286 | BJ61: 0.034757605 | BK61: 2.247214214 | BL61: 2.984096962 | BW61: 31.7931801 | BX61: 16.74297335 | CI61: 31.7931801 | CJ61: 48.53615344 | CU61: 3.880564287e-05 | CV61: 39.84325272 | CW61: 60.82556768 | DH61: 0.04334490969 | DI61: 0.04026881424 | DT61: 16.65991878 | DU61: 16.42306739
A62: Gallaway | B62: PAVDRN | C62: 0.04328467298 | D62: 0.05745880755 | O62: 58.72600225 | P62: 54.57171699 | AA62: Dense Graded Friction Course | AB62: 2.105176063 | AC62: 0 | AD62: 0.03497430279 | AE62: 1.797320931 | AJ62: 0 | AK62: 0.924036882 | AL62: 1.9098828 | AW62: 12 | AX62: 12 | BI62: 1.797320931 | BJ62: 0.03515431375 | BK62: 2.299045544 | BL62: 2.842431805 | BW62: 29.8565426 | BX62: 17.85930616 | CI62: 29.8565426 | CJ62: 47.71584876 | CU62: 3.880564287e-05 | CV62: 32.01006216 | CW62: 51.15754042 | DH62: 0.04502772252 | DI62: 0.04150013936 | DT62: 16.98247384 | DU62: 16.61383469
A63: Gallaway | B63: PAVDRN | C63: 0.04605008361 | D63: 0.05982462984 | O63: 57.79154437 | P63: 54.00438873 | AA63: Dense Graded Friction Course | AB63: 2.157488538 | AC63: 0 | AD63: 0.02925191233 | AE63: 2.009034916 | AJ63: 0 | AK63: 1.069677928 | AL63: 2.168803258 | AW63: 12 | AX63: 12 | BI63: 2.009034916 | BJ63: 0.03054778942 | BK63: 2.408104579 | BL63: 3.059160729 | BW63: 27.01491186 | BX63: 16.92635264 | CI63: 27.01491186 | CJ63: 43.9412645 | CU63: 3.880564287e-05 | CV63: 32.37519628 | CW63: 52.66006679 | DH63: 0.04493894534 | DI63: 0.04129163414 | DT63: 16.57224588 | DU63: 16.23934746
A64: Gallaway | B64: PAVDRN | C64: 0.04201377748 | D64: 0.05453648169 | O64: 59.18103029 | P64: 55.31450326 | AA64: Dense Graded Friction Course | AB64: 1.909361711 | AC64: 0 | AD64: 0.04172877584 | AE64: 2.17139248 | AJ64: 0 | AK64: 1.045327903 | AL64: 2.262268916 | AW64: 12 | AX64: 12 | BI64: 2.17139248 | BJ64: 0.04059166455 | BK64: 2.176780321 | BL64: 2.960324778 | BW64: 24.98867941 | BX64: 15.70277392 | CI64: 24.98867941 | CJ64: 40.69145333 | CU64: 3.880564287e-05 | CV64: 32.36704156 | CW64: 52.70634512 | DH64: 0.04494091519 | DI64: 0.04128532335 | DT64: 17.36781092 | DU64: 17.02056196
A65: Gallaway | B65: PAVDRN | C65: 0.03505368582 | D65: 0.04947162964 | O65: 62.0233121 | P65: 56.72868543 | AA65: Dense Graded Friction Course | AB65: 2.230829051 | AC65: 0 | AD65: 0.03426333667 | AE65: 1.768057379 | AJ65: 0 | AK65: 1.168658019 | AL65: 2.166401255 | AW65: 12 | AX65: 12 | BI65: 1.768057379 | BJ65: 0.03458198602 | BK65: 2.518404221 | BL65: 3.109645101 | BW65: 25.85944746 | BX65: 17.22475978 | CI65: 25.85944746 | CJ65: 43.08420724 | CU65: 3.880564287e-05 | CV65: 27.27325461 | CW65: 45.4397394 | DH65: 0.04630006524 | DI65: 0.04236488194 | DT65: 17.22143382 | DU65: 16.76924844
A66: Gallaway | B66: PAVDRN | C66: 0.03890789061 | D66: 0.05306213322 | O66: 60.37000602 | P66: 55.70853544 | AA66: Dense Graded Friction Course | AB66: 2.102749087 | AC66: 0 | AD66: 0.03412781406 | AE66: 1.572593617 | AJ66: 0 | AK66: 0.9036956377 | AL66: 1.804559262 | AW66: 12 | AX66: 12 | BI66: 1.572593617 | BJ66: 0.03447289031 | BK66: 2.288715694 | BL66: 2.770918233 | BW66: 30.39141408 | BX66: 18.42611628 | CI66: 30.39141408 | CJ66: 48.81753036 | CU66: 3.880564287e-05 | CV66: 28.50944659 | CW66: 45.79453825 | DH66: 0.04594431557 | DI66: 0.0423075868 | DT66: 17.07597395 | DU66: 16.67105029
A67: Gallaway | B67: PAVDRN | C67: 0.0414513638 | D67: 0.0532845249 | O67: 59.38796234 | P67: 55.64822234 | AA67: Dense Graded Friction Course | AB67: 2.004873381 | AC67: 0 | AD67: 0.03416810262 | AE67: 1.750529087 | AJ67: 0 | AK67: 0.9405602934 | AL67: 2.073322949 | AW67: 12 | AX67: 12 | BI67: 1.750529087 | BJ67: =IF(Probabilistic_Output_MPD_or_MTD="Mean Texture Depth (in.)",AD67,IF(AA67="Dense Graded Friction Course",MPD.to.MTD.DGFC.a*AD67+MPD.to.MTD.DGFC.b,IF(AA67="Open Graded Friction Course",MPD.to.MTD.OGFC.a*AD67+MPD.to.MTD.OGFC.b,IF(AA67="PCC (LGD)",MPD.to.MTD.LGD.a*AD67+MPD.to.MTD.LGD.b,MPD.to.MTD.LGD.TGV.a*AD67+MPD.to.MTD.LGD.TGV.b)))) -> 0.03450532261 | BK67: 2.214536281 | BL67: 2.884126441 | BW67: 28.25383504 | BX67: 16.69277683 | CI67: 28.25383504 | CJ67: 44.94661187 | CU67: =KVis.V0*EXP(KVis.a+KVis.b*273.16/(273.16+CONVERT(AF67,"F","C"))+KVis.c*(273.16/(273.16+CONVERT(AF67,"F","C")))^2)*CONVERT(1,"m","ft")^2*10^(-6) -> 3.880564287e-05 | CV67: 29.50313097 | CW67: 46.93401002 | DH67: 0.04567123805 | DI67: 0.04212704359 | DT67: 16.99495511 | DU67: 16.66783743
A68: Gallaway | B68: PAVDRN | C68: =IF(BK68<>"",IF($A68="Gallaway",WFT.G.Const*$BJ68^WFT.G.MTD*CI68^WFT.G.DP*($BI68)^WFT.G.Int*(BK68/100)^WFT.G.Slope-$BJ68,IF($A68="UK RRL",CONVERT(WFT.U.Const*CONVERT(CI68,"ft","m")^WFT.U.DP*CONVERT(($BI68),"in","mm")^WFT.U.Int*(BK68/100)^WFT.U.Slope,"mm","in")-$BJ68,IF($A68="NZ Mod.",CONVERT(WFT.N.Const*CONVERT($BJ68,"in","mm")^WFT.N.MTD*CONVERT(CI68,"ft","m")^WFT.N.DP*CONVERT(($BI68),"in","mm")^WFT.N.Int*(BK68/100)^WFT.N.Slope,"mm","in")-$BJ68,IF($A68="PAVDRN",CONVERT(WFT.P.Const*DH68^WFT.P.Manni*CONVERT(CI68,"ft","m")^WFT.P.DP*CONVERT(($BI68),"in","mm")^WFT.P.Int*(BK68/100)^WFT.P.Slope,"mm","in")-$BJ68)))),"") -> 0.03701585376 | D68: =IF(BL68<>"",IF($A68="Gallaway",WFT.G.Const*$BJ68^WFT.G.MTD*CJ68^WFT.G.DP*($BI68)^WFT.G.Int*(BL68/100)^WFT.G.Slope-$BJ68,IF($A68="UK RRL",CONVERT(WFT.U.Const*CONVERT(CJ68,"ft","m")^WFT.U.DP*CONVERT(($BI68),"in","mm")^WFT.U.Int*(BL68/100)^WFT.U.Slope,"mm","in")-$BJ68,IF($A68="NZ Mod.",CONVERT(WFT.N.Const*CONVERT($BJ68,"in","mm")^WFT.N.MTD*CONVERT(CJ68,"ft","m")^WFT.N.DP*CONVERT(($BI68),"in","mm")^WFT.N.Int*(BL68/100)^WFT.N.Slope,"mm","in")-$BJ68,IF($A68="PAVDRN",CONVERT(WFT.P.Const*DI68^WFT.P.Manni*CONVERT(CJ68,"ft","m")^WFT.P.DP*CONVERT(($BI68),"in","mm")^WFT.P.Int*(BL68/100)^WFT.P.Slope,"mm","in")-$BJ68)))),"") -> 0.05392545331 | E68: =IF(BM68<>"",IF($A68="Gallaway",WFT.G.Const*$BJ68^WFT.G.MTD*CK68^WFT.G.DP*($BI68)^WFT.G.Int*(BM68/100)^WFT.G.Slope-$BJ68,IF($A68="UK RRL",CONVERT(WFT.U.Const*CONVERT(CK68,"ft","m")^WFT.U.DP*CONVERT(($BI68),"in","mm")^WFT.U.Int*(BM68/100)^WFT.U.Slope,"mm","in")-$BJ68,IF($A68="NZ Mod.",CONVERT(WFT.N.Const*CONVERT($BJ68,"in","mm")^WFT.N.MTD*CONVERT(CK68,"ft","m")^WFT.N.DP*CONVERT(($BI68),"in","mm")^WFT.N.Int*(BM68/100)^WFT.N.Slope,"mm","in")-$BJ68,IF($A68="PAVDRN",CONVERT(WFT.P.Const*DJ68^WFT.P.Manni*CONVERT(CK68,"ft","m")^WFT.P.DP*CONVERT(($BI68),"in","mm")^WFT.P.Int*(BM68/100)^WFT.P.Slope,"mm","in")-$BJ68)))),"") ->  | F68: =IF(BN68<>"",IF($A68="Gallaway",WFT.G.Const*$BJ68^WFT.G.MTD*CL68^WFT.G.DP*($BI68)^WFT.G.Int*(BN68/100)^WFT.G.Slope-$BJ68,IF($A68="UK RRL",CONVERT(WFT.U.Const*CONVERT(CL68,"ft","m")^WFT.U.DP*CONVERT(($BI68),"in","mm")^WFT.U.Int*(BN68/100)^WFT.U.Slope,"mm","in")-$BJ68,IF($A68="NZ Mod.",CONVERT(WFT.N.Const*CONVERT($BJ68,"in","mm")^WFT.N.MTD*CONVERT(CL68,"ft","m")^WFT.N.DP*CONVERT(($BI68),"in","mm")^WFT.N.Int*(BN68/100)^WFT.N.Slope,"mm","in")-$BJ68,IF($A68="PAVDRN",CONVERT(WFT.P.Const*DK68^WFT.P.Manni*CONVERT(CL68,"ft","m")^WFT.P.DP*CONVERT(($BI68),"in","mm")^WFT.P.Int*(BN68/100)^WFT.P.Slope,"mm","in")-$BJ68)))),"") ->  | G68: =IF(BO68<>"",IF($A68="Gallaway",WFT.G.Const*$BJ68^WFT.G.MTD*CM68^WFT.G.DP*($BI68)^WFT.G.Int*(BO68/100)^WFT.G.Slope-$BJ68,IF($A68="UK RRL",CONVERT(WFT.U.Const*CONVERT(CM68,"ft","m")^WFT.U.DP*CONVERT(($BI68),"in","mm")^WFT.U.Int*(BO68/100)^WFT.U.Slope,"mm","in")-$BJ68,IF($A68="NZ Mod.",CONVERT(WFT.N.Const*CONVERT($BJ68,"in","mm")^WFT.N.MTD*CONVERT(CM68,"ft","m")^WFT.N.DP*CONVERT(($BI68),"in","mm")^WFT.N.Int*(BO68/100)^WFT.N.Slope,"mm","in")-$BJ68,IF($A68="PAVDRN",CONVERT(WFT.P.Const*DL68^WFT.P.Manni*CONVERT(CM68,"ft","m")^WFT.P.DP*CONVERT(($BI68),"in","mm")^WFT.P.Int*(BO68/100)^WFT.P.Slope,"mm","in")-$BJ68)))),"") ->  | H68: =IF(BP68<>"",IF($A68="Gallaway",WFT.G.Const*$BJ68^WFT.G.MTD*CN68^WFT.G.DP*($BI68)^WFT.G.Int*(BP68/100)^WFT.G.Slope-$BJ68,IF($A68="UK RRL",CONVERT(WFT.U.Const*CONVERT(CN68,"ft","m")^WFT.U.DP*CONVERT(($BI68),"in","mm")^WFT.U.Int*(BP68/100)^WFT.U.Slope,"mm","in")-$BJ68,IF($A68="NZ Mod.",CONVERT(WFT.N.Const*CONVERT($BJ68,"in","mm")^WFT.N.MTD*CONVERT(CN68,"ft","m")^WFT.N.DP*CONVERT(($BI68),"in","mm")^WFT.N.Int*(BP68/100)^WFT.N.Slope,"mm","in")-$BJ68,IF($A68="PAVDRN",CONVERT(WFT.P.Const*DM68^WFT.P.Manni*CONVERT(CN68,"ft","m")^WFT.P.DP*CONVERT(($BI68),"in","mm")^WFT.P.Int*(BP68/100)^WFT.P.Slope,"mm","in")-$BJ68)))),"") ->  | I68: =IF(BQ68<>"",IF($A68="Gallaway",WFT.G.Const*$BJ68^WFT.G.MTD*CO68^WFT.G.DP*($BI68)^WFT.G.Int*(BQ68/100)^WFT.G.Slope-$BJ68,IF($A68="UK RRL",CONVERT(WFT.U.Const*CONVERT(CO68,"ft","m")^WFT.U.DP*CONVERT(($BI68),"in","mm")^WFT.U.Int*(BQ68/100)^WFT.U.Slope,"mm","in")-$BJ68,IF($A68="NZ Mod.",CONVERT(WFT.N.Const*CONVERT($BJ68,"in","mm")^WFT.N.MTD*CONVERT(CO68,"ft","m")^WFT.N.DP*CONVERT(($BI68),"in","mm")^WFT.N.Int*(BQ68/100)^WFT.N.Slope,"mm","in")-$BJ68,IF($A68="PAVDRN",CONVERT(WFT.P.Const*DN68^WFT.P.Manni*CONVERT(CO68,"ft","m")^WFT.P.DP*CONVERT(($BI68),"in","mm")^WFT.P.Int*(BQ68/100)^WFT.P.Slope,"mm","in")-$BJ68)))),"") ->  | J68: =IF(BR68<>"",IF($A68="Gallaway",WFT.G.Const*$BJ68^WFT.G.MTD*CP68^WFT.G.DP*($BI68)^WFT.G.Int*(BR68/100)^WFT.G.Slope-$BJ68,IF($A68="UK RRL",CONVERT(WFT.U.Const*CONVERT(CP68,"ft","m")^WFT.U.DP*CONVERT(($BI68),"in","mm")^WFT.U.Int*(BR68/100)^WFT.U.Slope,"mm","in")-$BJ68,IF($A68="NZ Mod.",CONVERT(WFT.N.Const*CONVERT($BJ68,"in","mm")^WFT.N.MTD*CONVERT(CP68,"ft","m")^WFT.N.DP*CONVERT(($BI68),"in","mm")^WFT.N.Int*(BR68/100)^WFT.N.Slope,"mm","in")-$BJ68,IF($A68="PAVDRN",CONVERT(WFT.P.Const*DO68^WFT.P.Manni*CONVERT(CP68,"ft","m")^WFT.P.DP*CONVERT(($BI68),"in","mm")^WFT.P.Int*(BR68/100)^WFT.P.Slope,"mm","in")-$BJ68)))),"") ->  | K68: =IF(BS68<>"",IF($A68="Gallaway",WFT.G.Const*$BJ68^WFT.G.MTD*CQ68^WFT.G.DP*($BI68)^WFT.G.Int*(BS68/100)^WFT.G.Slope-$BJ68,IF($A68="UK RRL",CONVERT(WFT.U.Const*CONVERT(CQ68,"ft","m")^WFT.U.DP*CONVERT(($BI68),"in","mm")^WFT.U.Int*(BS68/100)^WFT.U.Slope,"mm","in")-$BJ68,IF($A68="NZ Mod.",CONVERT(WFT.N.Const*CONVERT($BJ68,"in","mm")^WFT.N.MTD*CONVERT(CQ68,"ft","m")^WFT.N.DP*CONVERT(($BI68),"in","mm")^WFT.N.Int*(BS68/100)^WFT.N.Slope,"mm","in")-$BJ68,IF($A68="PAVDRN",CONVERT(WFT.P.Const*DP68^WFT.P.Manni*CONVERT(CQ68,"ft","m")^WFT.P.DP*CONVERT(($BI68),"in","mm")^WFT.P.Int*(BS68/100)^WFT.P.Slope,"mm","in")-$BJ68)))),"") ->  | L68: =IF(BT68<>"",IF($A68="Gallaway",WFT.G.Const*$BJ68^WFT.G.MTD*CR68^WFT.G.DP*($BI68)^WFT.G.Int*(BT68/100)^WFT.G.Slope-$BJ68,IF($A68="UK RRL",CONVERT(WFT.U.Const*CONVERT(CR68,"ft","m")^WFT.U.DP*CONVERT(($BI68),"in","mm")^WFT.U.Int*(BT68/100)^WFT.U.Slope,"mm","in")-$BJ68,IF($A68="NZ Mod.",CONVERT(WFT.N.Const*CONVERT($BJ68,"in","mm")^WFT.N.MTD*CONVERT(CR68,"ft","m")^WFT.N.DP*CONVERT(($BI68),"in","mm")^WFT.N.Int*(BT68/100)^WFT.N.Slope,"mm","in")-$BJ68,IF($A68="PAVDRN",CONVERT(WFT.P.Const*DQ68^WFT.P.Manni*CONVERT(CR68,"ft","m")^WFT.P.DP*CONVERT(($BI68),"in","mm")^WFT.P.Int*(BT68/100)^WFT.P.Slope,"mm","in")-$BJ68)))),"") ->  | M68: =IF(BU68<>"",IF($A68="Gallaway",WFT.G.Const*$BJ68^WFT.G.MTD*CS68^WFT.G.DP*($BI68)^WFT.G.Int*(BU68/100)^WFT.G.Slope-$BJ68,IF($A68="UK RRL",CONVERT(WFT.U.Const*CONVERT(CS68,"ft","m")^WFT.U.DP*CONVERT(($BI68),"in","mm")^WFT.U.Int*(BU68/100)^WFT.U.Slope,"mm","in")-$BJ68,IF($A68="NZ Mod.",CONVERT(WFT.N.Const*CONVERT($BJ68,"in","mm")^WFT.N.MTD*CONVERT(CS68,"ft","m")^WFT.N.DP*CONVERT(($BI68),"in","mm")^WFT.N.Int*(BU68/100)^WFT.N.Slope,"mm","in")-$BJ68,IF($A68="PAVDRN",CONVERT(WFT.P.Const*DR68^WFT.P.Manni*CONVERT(CS68,"ft","m")^WFT.P.DP*CONVERT(($BI68),"in","mm")^WFT.P.Int*(BU68/100)^WFT.P.Slope,"mm","in")-$BJ68)))),"") ->  | N68: =IF(BV68<>"",IF($A68="Gallaway",WFT.G.Const*$BJ68^WFT.G.MTD*CT68^WFT.G.DP*($BI68)^WFT.G.Int*(BV68/100)^WFT.G.Slope-$BJ68,IF($A68="UK RRL",CONVERT(WFT.U.Const*CONVERT(CT68,"ft","m")^WFT.U.DP*CONVERT(($BI68),"in","mm")^WFT.U.Int*(BV68/100)^WFT.U.Slope,"mm","in")-$BJ68,IF($A68="NZ Mod.",CONVERT(WFT.N.Const*CONVERT($BJ68,"in","mm")^WFT.N.MTD*CONVERT(CT68,"ft","m")^WFT.N.DP*CONVERT(($BI68),"in","mm")^WFT.N.Int*(BV68/100)^WFT.N.Slope,"mm","in")-$BJ68,IF($A68="PAVDRN",CONVERT(WFT.P.Const*DS68^WFT.P.Manni*CONVERT(CT68,"ft","m")^WFT.P.DP*CONVERT(($BI68),"in","mm")^WFT.P.Int*(BV68/100)^WFT.P.Slope,"mm","in")-$BJ68)))),"") ->  | O68: =IF(C68<>"",IF(C68<=0,999,IF($B68="USF",CONVERT(CONVERT($AG68,"lbf","N")^HP.U.Load*CONVERT($AH68,"psi","kPa")^HP.U.Press*(HP.U.a*CONVERT(C68,"in","mm")^HP.U.WFT+HP.U.b),"km","mi"),IF($B68="Gallaway",$AI68^HP.G.SpinDown*$AH68^HP.G.Press*(1+$AJ68*32)^HP.G.TreadDepth*DT68,IF($B68="PAVDRN",IF(C68<0.094,HP.P.WFT.lt.24.Const*C68^HP.P.WFT.lt.24.WFT, HP.P.WFT.gt.24.Const*DT68))))),"") -> 61.15451796 | P68: =IF(D68<>"",IF(D68<=0,999,IF($B68="USF",CONVERT(CONVERT($AG68,"lbf","N")^HP.U.Load*CONVERT($AH68,"psi","kPa")^HP.U.Press*(HP.U.a*CONVERT(D68,"in","mm")^HP.U.WFT+HP.U.b),"km","mi"),IF($B68="Gallaway",$AI68^HP.G.SpinDown*$AH68^HP.G.Press*(1+$AJ68*32)^HP.G.TreadDepth*DU68,IF($B68="PAVDRN",IF(D68<0.094,HP.P.WFT.lt.24.Const*D68^HP.P.WFT.lt.24.WFT, HP.P.WFT.gt.24.Const*DU68))))),"") -> 55.47615904 | Q68: =IF(E68<>"",IF(E68<=0,999,IF($B68="USF",CONVERT(CONVERT($AG68,"lbf","N")^HP.U.Load*CONVERT($AH68,"psi","kPa")^HP.U.Press*(HP.U.a*CONVERT(E68,"in","mm")^HP.U.WFT+HP.U.b),"km","mi"),IF($B68="Gallaway",$AI68^HP.G.SpinDown*$AH68^HP.G.Press*(1+$AJ68*32)^HP.G.TreadDepth*DV68,IF($B68="PAVDRN",IF(E68<0.094,HP.P.WFT.lt.24.Const*E68^HP.P.WFT.lt.24.WFT, HP.P.WFT.gt.24.Const*DV68))))),"") ->  | R68: =IF(F68<>"",IF(F68<=0,999,IF($B68="USF",CONVERT(CONVERT($AG68,"lbf","N")^HP.U.Load*CONVERT($AH68,"psi","kPa")^HP.U.Press*(HP.U.a*CONVERT(F68,"in","mm")^HP.U.WFT+HP.U.b),"km","mi"),IF($B68="Gallaway",$AI68^HP.G.SpinDown*$AH68^HP.G.Press*(1+$AJ68*32)^HP.G.TreadDepth*DW68,IF($B68="PAVDRN",IF(F68<0.094,HP.P.WFT.lt.24.Const*F68^HP.P.WFT.lt.24.WFT, HP.P.WFT.gt.24.Const*DW68))))),"") ->  | S68: =IF(G68<>"",IF(G68<=0,999,IF($B68="USF",CONVERT(CONVERT($AG68,"lbf","N")^HP.U.Load*CONVERT($AH68,"psi","kPa")^HP.U.Press*(HP.U.a*CONVERT(G68,"in","mm")^HP.U.WFT+HP.U.b),"km","mi"),IF($B68="Gallaway",$AI68^HP.G.SpinDown*$AH68^HP.G.Press*(1+$AJ68*32)^HP.G.TreadDepth*DX68,IF($B68="PAVDRN",IF(G68<0.094,HP.P.WFT.lt.24.Const*G68^HP.P.WFT.lt.24.WFT, HP.P.WFT.gt.24.Const*DX68))))),"") ->  | T68: =IF(H68<>"",IF(H68<=0,999,IF($B68="USF",CONVERT(CONVERT($AG68,"lbf","N")^HP.U.Load*CONVERT($AH68,"psi","kPa")^HP.U.Press*(HP.U.a*CONVERT(H68,"in","mm")^HP.U.WFT+HP.U.b),"km","mi"),IF($B68="Gallaway",$AI68^HP.G.SpinDown*$AH68^HP.G.Press*(1+$AJ68*32)^HP.G.TreadDepth*DY68,IF($B68="PAVDRN",IF(H68<0.094,HP.P.WFT.lt.24.Const*H68^HP.P.WFT.lt.24.WFT, HP.P.WFT.gt.24.Const*DY68))))),"") ->  | U68: =IF(I68<>"",IF(I68<=0,999,IF($B68="USF",CONVERT(CONVERT($AG68,"lbf","N")^HP.U.Load*CONVERT($AH68,"psi","kPa")^HP.U.Press*(HP.U.a*CONVERT(I68,"in","mm")^HP.U.WFT+HP.U.b),"km","mi"),IF($B68="Gallaway",$AI68^HP.G.SpinDown*$AH68^HP.G.Press*(1+$AJ68*32)^HP.G.TreadDepth*DZ68,IF($B68="PAVDRN",IF(I68<0.094,HP.P.WFT.lt.24.Const*I68^HP.P.WFT.lt.24.WFT, HP.P.WFT.gt.24.Const*DZ68))))),"") ->  | V68: =IF(J68<>"",IF(J68<=0,999,IF($B68="USF",CONVERT(CONVERT($AG68,"lbf","N")^HP.U.Load*CONVERT($AH68,"psi","kPa")^HP.U.Press*(HP.U.a*CONVERT(J68,"in","mm")^HP.U.WFT+HP.U.b),"km","mi"),IF($B68="Gallaway",$AI68^HP.G.SpinDown*$AH68^HP.G.Press*(1+$AJ68*32)^HP.G.TreadDepth*EA68,IF($B68="PAVDRN",IF(J68<0.094,HP.P.WFT.lt.24.Const*J68^HP.P.WFT.lt.24.WFT, HP.P.WFT.gt.24.Const*EA68))))),"") ->  | W68: =IF(K68<>"",IF(K68<=0,999,IF($B68="USF",CONVERT(CONVERT($AG68,"lbf","N")^HP.U.Load*CONVERT($AH68,"psi","kPa")^HP.U.Press*(HP.U.a*CONVERT(K68,"in","mm")^HP.U.WFT+HP.U.b),"km","mi"),IF($B68="Gallaway",$AI68^HP.G.SpinDown*$AH68^HP.G.Press*(1+$AJ68*32)^HP.G.TreadDepth*EB68,IF($B68="PAVDRN",IF(K68<0.094,HP.P.WFT.lt.24.Const*K68^HP.P.WFT.lt.24.WFT, HP.P.WFT.gt.24.Const*EB68))))),"") ->  | X68: =IF(L68<>"",IF(L68<=0,999,IF($B68="USF",CONVERT(CONVERT($AG68,"lbf","N")^HP.U.Load*CONVERT($AH68,"psi","kPa")^HP.U.Press*(HP.U.a*CONVERT(L68,"in","mm")^HP.U.WFT+HP.U.b),"km","mi"),IF($B68="Gallaway",$AI68^HP.G.SpinDown*$AH68^HP.G.Press*(1+$AJ68*32)^HP.G.TreadDepth*EC68,IF($B68="PAVDRN",IF(L68<0.094,HP.P.WFT.lt.24.Const*L68^HP.P.WFT.lt.24.WFT, HP.P.WFT.gt.24.Const*EC68))))),"") ->  | Y68: =IF(M68<>"",IF(M68<=0,999,IF($B68="USF",CONVERT(CONVERT($AG68,"lbf","N")^HP.U.Load*CONVERT($AH68,"psi","kPa")^HP.U.Press*(HP.U.a*CONVERT(M68,"in","mm")^HP.U.WFT+HP.U.b),"km","mi"),IF($B68="Gallaway",$AI68^HP.G.SpinDown*$AH68^HP.G.Press*(1+$AJ68*32)^HP.G.TreadDepth*ED68,IF($B68="PAVDRN",IF(M68<0.094,HP.P.WFT.lt.24.Const*M68^HP.P.WFT.lt.24.WFT, HP.P.WFT.gt.24.Const*ED68))))),"") ->  | Z68: =IF(N68<>"",IF(N68<=0,999,IF($B68="USF",CONVERT(CONVERT($AG68,"lbf","N")^HP.U.Load*CONVERT($AH68,"psi","kPa")^HP.U.Press*(HP.U.a*CONVERT(N68,"in","mm")^HP.U.WFT+HP.U.b),"km","mi"),IF($B68="Gallaway",$AI68^HP.G.SpinDown*$AH68^HP.G.Press*(1+$AJ68*32)^HP.G.TreadDepth*EE68,IF($B68="PAVDRN",IF(N68<0.094,HP.P.WFT.lt.24.Const*N68^HP.P.WFT.lt.24.WFT, HP.P.WFT.gt.24.Const*EE68))))),"") ->  | AA68: Dense Graded Friction Course | AB68: 2.206516205 | AC68: 0 | AD68: 0.0349821834 | AE68: 1.822775036 | AJ68: 0 | AK68: 1.126250612 | AL68: 1.93511825 | AW68: 12 | AX68: 12 | BI68: =AE68-AC68 -> 1.822775036 | BJ68: 0.03516065764 | BK68: =IF(AND(AK68<>"",AW68<>""),SQRT($AB68^2+AK68^2),"") -> 2.477328037 | BL68: =IF(AND(AL68<>"",AX68<>""),SQRT($AB68^2+AL68^2),"") -> 2.934858839 | BM68: =IF(AND(AM68<>"",AY68<>""),SQRT($AB68^2+AM68^2),"") ->  | BN68: =IF(AND(AN68<>"",AZ68<>""),SQRT($AB68^2+AN68^2),"") ->  | BO68: =IF(AND(AO68<>"",BA68<>""),SQRT($AB68^2+AO68^2),"") ->  | BP68: =IF(AND(AP68<>"",BB68<>""),SQRT($AB68^2+AP68^2),"") ->  | BQ68: =IF(AND(AQ68<>"",BC68<>""),SQRT($AB68^2+AQ68^2),"") ->  | BR68: =IF(AND(AR68<>"",BD68<>""),SQRT($AB68^2+AR68^2),"") ->  | BS68: =IF(AND(AS68<>"",BE68<>""),SQRT($AB68^2+AS68^2),"") ->  | BT68: =IF(AND(AT68<>"",BF68<>""),SQRT($AB68^2+AT68^2),"") ->  | BU68: =IF(AND(AU68<>"",BG68<>""),SQRT($AB68^2+AU68^2),"") ->  | BV68: =IF(AND(AV68<>"",BH68<>""),SQRT($AB68^2+AV68^2),"") ->  | BW68: =IF(BK68<>"",AW68*SQRT(1+($AB68/AK68)^2),"") -> 26.39548971 | BX68: =IF(BL68<>"",AX68*SQRT(1+($AB68/AL68)^2),"") -> 18.19956277 | BY68: =IF(BM68<>"",AY68*SQRT(1+($AB68/AM68)^2),"") ->  | BZ68: =IF(BN68<>"",AZ68*SQRT(1+($AB68/AN68)^2),"") ->  | CA68: =IF(BO68<>"",BA68*SQRT(1+($AB68/AO68)^2),"") ->  | CB68: =IF(BP68<>"",BB68*SQRT(1+($AB68/AP68)^2),"") ->  | CC68: =IF(BQ68<>"",BC68*SQRT(1+($AB68/AQ68)^2),"") ->  | CD68: =IF(BR68<>"",BD68*SQRT(1+($AB68/AR68)^2),"") ->  | CE68: =IF(BS68<>"",BE68*SQRT(1+($AB68/AS68)^2),"") ->  | CF68: =IF(BT68<>"",BF68*SQRT(1+($AB68/AT68)^2),"") ->  | CG68: =IF(BU68<>"",BG68*SQRT(1+($AB68/AU68)^2),"") ->  | CH68: =IF(BV68<>"",BH68*SQRT(1+($AB68/AV68)^2),"") ->  | CI68: =IF(BW68<>"",BW68,"") -> 26.39548971 | CJ68: =IF(BX68<>"",IF(AK68*AL68>0,CI68+BX68,BX68),"") -> 44.59505248 | CK68: =IF(BY68<>"",IF(AL68*AM68>0,CJ68+BY68,BY68),"") ->  | CL68: =IF(BZ68<>"",IF(AM68*AN68>0,CK68+BZ68,BZ68),"") ->  | CM68: =IF(CA68<>"",IF(AN68*AO68>0,CL68+CA68,CA68),"") ->  | CN68: =IF(CB68<>"",IF(AO68*AP68>0,CM68+CB68,CB68),"") ->  | CO68: =IF(CC68<>"",IF(AP68*AQ68>0,CN68+CC68,CC68),"") ->  | CP68: =IF(CD68<>"",IF(AQ68*AR68>0,CO68+CD68,CD68),"") ->  | CQ68: =IF(CE68<>"",IF(AR68*AS68>0,CP68+CE68,CE68),"") ->  | CR68: =IF(CF68<>"",IF(AS68*AT68>0,CQ68+CF68,CF68),"") ->  | CS68: =IF(CG68<>"",IF(AT68*AU68>0,CR68+CG68,CG68),"") ->  | CT68: =IF(CH68<>"",IF(AU68*AV68>0,CS68+CH68,CH68),"") ->  | CU68: 3.880564287e-05 | CV68: =IF(CI68<>"",CI68*$BI68/12/3600/$CU68,"") -> 28.70014999 | CW68: =IF(CJ68<>"",CJ68*$BI68/12/3600/$CU68,"") -> 48.48876491 | CX68: =IF(CK68<>"",CK68*$BI68/12/3600/$CU68,"") ->  | CY68: =IF(CL68<>"",CL68*$BI68/12/3600/$CU68,"") ->  | CZ68: =IF(CM68<>"",CM68*$BI68/12/3600/$CU68,"") ->  | DA68: =IF(CN68<>"",CN68*$BI68/12/3600/$CU68,"") ->  | DB68: =IF(CO68<>"",CO68*$BI68/12/3600/$CU68,"") ->  | DC68: =IF(CP68<>"",CP68*$BI68/12/3600/$CU68,"") ->  | DD68: =IF(CQ68<>"",CQ68*$BI68/12/3600/$CU68,"") ->  | DE68: =IF(CR68<>"",CR68*$BI68/12/3600/$CU68,"") ->  | DF68: =IF(CS68<>"",CS68*$BI68/12/3600/$CU68,"") ->  | DG68: =IF(CT68<>"",CT68*$BI68/12/3600/$CU68,"") ->  | DH68: =IF(CV68<>"",IF($AA68="Dense Graded Friction Course",Manning.DGFC.Const*CV68^Manning.DGFC.NR,IF($AA68="Open Graded Friction Course",Manning.OGFC.Const*CV68^Manning.OGFC.NR*BK68^Manning.OGFC.Slope,IF(CV68<500,Manning.PCC.NR.lt.500.Const*CV68^Manning.PCC.NR.lt.500.NR,IF(CV68<1000,Manning.PCC.NR.lt.1000.Const*CV68^Manning.PCC.NR.lt.1000.NR,0.017)))),"") -> 0.04589104954 | DI68: =IF(CW68<>"",IF($AA68="Dense Graded Friction Course",Manning.DGFC.Const*CW68^Manning.DGFC.NR,IF($AA68="Open Graded Friction Course",Manning.OGFC.Const*CW68^Manning.OGFC.NR*BL68^Manning.OGFC.Slope,IF(CW68<500,Manning.PCC.NR.lt.500.Const*CW68^Manning.PCC.NR.lt.500.NR,IF(CW68<1000,Manning.PCC.NR.lt.1000.Const*CW68^Manning.PCC.NR.lt.1000.NR,0.017)))),"") -> 0.0418888348 | DJ68: =IF(CX68<>"",IF($AA68="Dense Graded Friction Course",Manning.DGFC.Const*CX68^Manning.DGFC.NR,IF($AA68="Open Graded Friction Course",Manning.OGFC.Const*CX68^Manning.OGFC.NR*BM68^Manning.OGFC.Slope,IF(CX68<500,Manning.PCC.NR.lt.500.Const*CX68^Manning.PCC.NR.lt.500.NR,IF(CX68<1000,Manning.PCC.NR.lt.1000.Const*CX68^Manning.PCC.NR.lt.1000.NR,0.017)))),"") ->  | DK68: =IF(CY68<>"",IF($AA68="Dense Graded Friction Course",Manning.DGFC.Const*CY68^Manning.DGFC.NR,IF($AA68="Open Graded Friction Course",Manning.OGFC.Const*CY68^Manning.OGFC.NR*BN68^Manning.OGFC.Slope,IF(CY68<500,Manning.PCC.NR.lt.500.Const*CY68^Manning.PCC.NR.lt.500.NR,IF(CY68<1000,Manning.PCC.NR.lt.1000.Const*CY68^Manning.PCC.NR.lt.1000.NR,0.017)))),"") ->  | DL68: =IF(CZ68<>"",IF($AA68="Dense Graded Friction Course",Manning.DGFC.Const*CZ68^Manning.DGFC.NR,IF($AA68="Open Graded Friction Course",Manning.OGFC.Const*CZ68^Manning.OGFC.NR*BO68^Manning.OGFC.Slope,IF(CZ68<500,Manning.PCC.NR.lt.500.Const*CZ68^Manning.PCC.NR.lt.500.NR,IF(CZ68<1000,Manning.PCC.NR.lt.1000.Const*CZ68^Manning.PCC.NR.lt.1000.NR,0.017)))),"") ->  | DM68: =IF(DA68<>"",IF($AA68="Dense Graded Friction Course",Manning.DGFC.Const*DA68^Manning.DGFC.NR,IF($AA68="Open Graded Friction Course",Manning.OGFC.Const*DA68^Manning.OGFC.NR*BP68^Manning.OGFC.Slope,IF(DA68<500,Manning.PCC.NR.lt.500.Const*DA68^Manning.PCC.NR.lt.500.NR,IF(DA68<1000,Manning.PCC.NR.lt.1000.Const*DA68^Manning.PCC.NR.lt.1000.NR,0.017)))),"") ->  | DN68: =IF(DB68<>"",IF($AA68="Dense Graded Friction Course",Manning.DGFC.Const*DB68^Manning.DGFC.NR,IF($AA68="Open Graded Friction Course",Manning.OGFC.Const*DB68^Manning.OGFC.NR*BQ68^Manning.OGFC.Slope,IF(DB68<500,Manning.PCC.NR.lt.500.Const*DB68^Manning.PCC.NR.lt.500.NR,IF(DB68<1000,Manning.PCC.NR.lt.1000.Const*DB68^Manning.PCC.NR.lt.1000.NR,0.017)))),"") ->  | DO68: =IF(DC68<>"",IF($AA68="Dense Graded Friction Course",Manning.DGFC.Const*DC68^Manning.DGFC.NR,IF($AA68="Open Graded Friction Course",Manning.OGFC.Const*DC68^Manning.OGFC.NR*BR68^Manning.OGFC.Slope,IF(DC68<500,Manning.PCC.NR.lt.500.Const*DC68^Manning.PCC.NR.lt.500.NR,IF(DC68<1000,Manning.PCC.NR.lt.1000.Const*DC68^Manning.PCC.NR.lt.1000.NR,0.017)))),"") ->  | DP68: =IF(DD68<>"",IF($AA68="Dense Graded Friction Course",Manning.DGFC.Const*DD68^Manning.DGFC.NR,IF($AA68="Open Graded Friction Course",Manning.OGFC.Const*DD68^Manning.OGFC.NR*BS68^Manning.OGFC.Slope,IF(DD68<500,Manning.PCC.NR.lt.500.Const*DD68^Manning.PCC.NR.lt.500.NR,IF(DD68<1000,Manning.PCC.NR.lt.1000.Const*DD68^Manning.PCC.NR.lt.1000.NR,0.017)))),"") ->  | DQ68: =IF(DE68<>"",IF($AA68="Dense Graded Friction Course",Manning.DGFC.Const*DE68^Manning.DGFC.NR,IF($AA68="Open Graded Friction Course",Manning.OGFC.Const*DE68^Manning.OGFC.NR*BT68^Manning.OGFC.Slope,IF(DE68<500,Manning.PCC.NR.lt.500.Const*DE68^Manning.PCC.NR.lt.500.NR,IF(DE68<1000,Manning.PCC.NR.lt.1000.Const*DE68^Manning.PCC.NR.lt.1000.NR,0.017)))),"") ->  | DR68: =IF(DF68<>"",IF($AA68="Dense Graded Friction Course",Manning.DGFC.Const*DF68^Manning.DGFC.NR,IF($AA68="Open Graded Friction Course",Manning.OGFC.Const*DF68^Manning.OGFC.NR*BU68^Manning.OGFC.Slope,IF(DF68<500,Manning.PCC.NR.lt.500.Const*DF68^Manning.PCC.NR.lt.500.NR,IF(DF68<1000,Manning.PCC.NR.lt.1000.Const*DF68^Manning.PCC.NR.lt.1000.NR,0.017)))),"") ->  | DS68: =IF(DG68<>"",IF($AA68="Dense Graded Friction Course",Manning.DGFC.Const*DG68^Manning.DGFC.NR,IF($AA68="Open Graded Friction Course",Manning.OGFC.Const*DG68^Manning.OGFC.NR*BV68^Manning.OGFC.Slope,IF(DG68<500,Manning.PCC.NR.lt.500.Const*DG68^Manning.PCC.NR.lt.500.NR,IF(DG68<1000,Manning.PCC.NR.lt.1000.Const*DG68^Manning.PCC.NR.lt.1000.NR,0.017)))),"") ->  | DT68: =IF(C68<>"",MAX(A1.a*C68^A1.WFT+A1.b,(A2.a*C68^A2.WFT+A2.b)*$BJ68^A2.MTD),"") -> 17.18921257 | DU68: =IF(D68<>"",MAX(A1.a*D68^A1.WFT+A1.b,(A2.a*D68^A2.WFT+A2.b)*$BJ68^A2.MTD),"") -> 16.69630515 | DV68: =IF(E68<>"",MAX(A1.a*E68^A1.WFT+A1.b,(A2.a*E68^A2.WFT+A2.b)*$BJ68^A2.MTD),"") ->  | DW68: =IF(F68<>"",MAX(A1.a*F68^A1.WFT+A1.b,(A2.a*F68^A2.WFT+A2.b)*$BJ68^A2.MTD),"") ->  | DX68: =IF(G68<>"",MAX(A1.a*G68^A1.WFT+A1.b,(A2.a*G68^A2.WFT+A2.b)*$BJ68^A2.MTD),"") ->  | DY68: =IF(H68<>"",MAX(A1.a*H68^A1.WFT+A1.b,(A2.a*H68^A2.WFT+A2.b)*$BJ68^A2.MTD),"") ->  | DZ68: =IF(I68<>"",MAX(A1.a*I68^A1.WFT+A1.b,(A2.a*I68^A2.WFT+A2.b)*$BJ68^A2.MTD),"") ->  | EA68: =IF(J68<>"",MAX(A1.a*J68^A1.WFT+A1.b,(A2.a*J68^A2.WFT+A2.b)*$BJ68^A2.MTD),"") ->  | EB68: =IF(K68<>"",MAX(A1.a*K68^A1.WFT+A1.b,(A2.a*K68^A2.WFT+A2.b)*$BJ68^A2.MTD),"") ->  | EC68: =IF(L68<>"",MAX(A1.a*L68^A1.WFT+A1.b,(A2.a*L68^A2.WFT+A2.b)*$BJ68^A2.MTD),"") ->  | ED68: =IF(M68<>"",MAX(A1.a*M68^A1.WFT+A1.b,(A2.a*M68^A2.WFT+A2.b)*$BJ68^A2.MTD),"") ->  | EE68: =IF(N68<>"",MAX(A1.a*N68^A1.WFT+A1.b,(A2.a*N68^A2.WFT+A2.b)*$BJ68^A2.MTD),"") -> 
A69: Gallaway | B69: PAVDRN | C69: 0.03940759495 | D69: 0.05494953933 | O69: 60.17079892 | P69: 55.20650953 | AA69: Dense Graded Friction Course | AB69: 1.908443756 | AC69: 0 | AD69: 0.03759557273 | AE69: 1.844207126 | AJ69: 0 | AK69: 0.986673836 | AL69: 1.856172289 | AW69: 12 | AX69: 12 | BI69: 1.844207126 | BJ69: 0.03726443605 | BK69: 2.148414026 | BL69: 2.662242126 | BW69: 26.12916991 | BX69: 17.21117468 | CI69: 26.12916991 | CJ69: 43.3403446 | CU69: 3.880564287e-05 | CV69: 28.74462714 | CW69: 47.67859253 | DH69: 0.04587868622 | DI69: 0.04201182609 | DT69: 17.24615395 | DU69: 16.80814088
A70: Gallaway | B70: PAVDRN | C70: 0.04464746727 | D70: 0.05673545762 | O70: 58.25639437 | P70: 54.7510747 | AA70: Dense Graded Friction Course | AB70: 2.233389872 | AC70: 0 | AD70: 0.03598156537 | AE70: 1.935972583 | AJ70: 0 | AK70: 0.9719382431 | AL70: 2.216594122 | AW70: 12 | AX70: 12 | BI70: 1.935972583 | BJ70: 0.03596516012 | BK70: 2.435712272 | BL70: 3.146636271 | BW70: 30.07243255 | BX70: 17.03497942 | CI70: 30.07243255 | CJ70: 47.10741197 | CU70: 3.880564287e-05 | CV70: 34.72874846 | CW70: 54.4013677 | DH70: 0.04439355518 | DI70: 0.04105856123 | DT70: 16.99599937 | DU70: 16.6833644
A71: Gallaway | B71: PAVDRN | C71: 0.04358963771 | D71: 0.0550839969 | O71: 58.61931183 | P71: 55.17157596 | AA71: Dense Graded Friction Course | AB71: 2.043421604 | AC71: 0 | AD71: 0.04020627241 | AE71: 2.008621672 | AJ71: 0 | AK71: 0.9560917303 | AL71: 2.223822271 | AW71: 12 | AX71: 12 | BI71: 2.008621672 | BJ71: 0.03936604929 | BK71: 2.256032634 | BL71: 3.020092274 | BW71: 28.31568432 | BX71: 16.29676425 | CI71: 28.31568432 | CJ71: 44.61244857 | CU71: 3.880564287e-05 | CV71: 33.92708734 | CW71: 53.45342962 | DH71: 0.04457432044 | DI71: 0.04118433759 | DT71: 17.24429099 | DU71: 16.93452919
A72: Gallaway | B72: PAVDRN | C72: 0.04240188742 | D72: 0.06375080297 | O72: 59.04025384 | P72: 53.12258427 | AA72: Dense Graded Friction Course | AB72: 1.870751388 | AC72: 0 | AD72: 0.03274333967 | AE72: 1.815928919 | AJ72: 0 | AK72: 0.9606451343 | AL72: 1.438738958 | AW72: 12 | AX72: 12 | BI72: 1.815928919 | BJ72: 0.03335838843 | BK72: 2.102985932 | BL72: 2.360017065 | BW72: 26.26967054 | BX72: 19.68404666 | CI72: 26.26967054 | CJ72: 45.9537172 | CU72: 3.880564287e-05 | CV72: 28.45606484 | CW72: 49.77839194 | DH72: 0.04595930078 | DI72: 0.041697952 | DT72: 16.88511944 | DU72: 16.35962438
A73: Gallaway | B73: PAVDRN | C73: 0.03835538923 | D73: 0.05439364002 | O73: 60.59404481 | P73: 55.35208903 | AA73: Dense Graded Friction Course | AB73: 2.130116543 | AC73: 0 | AD73: 0.03849338616 | AE73: 1.882592599 | AJ73: 0 | AK73: 1.053296226 | AL73: 1.951844926 | AW73: 12 | AX73: 12 | BI73: 1.882592599 | BJ73: 0.03798717586 | BK73: 2.376305836 | BL73: 2.889133971 | BW73: 27.07279238 | BX73: 17.76248061 | CI73: 27.07279238 | CJ73: 44.83527299 | CU73: 3.880564287e-05 | CV73: 30.40260313 | CW73: 50.34977523 | DH73: 0.04543320362 | DI73: 0.04161522662 | DT73: 17.32873569 | DU73: 16.86670674
A74: Gallaway | B74: PAVDRN | C74: 0.04957281374 | D74: 0.06315661726 | O74: 56.69867309 | P74: 53.25157963 | AA74: Dense Graded Friction Course | AB74: 2.176740333 | AC74: 0 | AD74: 0.03727095731 | AE74: 1.968621057 | AJ74: 0 | AK74: 0.858121311 | AL74: 1.954815915 | AW74: 12 | AX74: 12 | BI74: 1.968621057 | BJ74: 0.03700312063 | BK74: 2.339780046 | BL74: 2.925662958 | BW74: 32.71957029 | BX74: 17.9597246 | CI74: 32.71957029 | CJ74: 50.67929489 | CU74: 3.880564287e-05 | CV74: 38.42298384 | CW74: 59.51330386 | DH74: 0.04361953041 | DI74: 0.0404219247 | DT74: 16.92619109 | DU74: 16.61094729
A75: Gallaway | B75: PAVDRN | C75: 0.03772292974 | D75: 0.05581383808 | O75: 60.85554799 | P75: 54.98381009 | AA75: Dense Graded Friction Course | AB75: 1.917166214 | AC75: 0 | AD75: 0.03694251609 | AE75: 1.902124994 | AJ75: 0 | AK75: 1.083724842 | AL75: 1.794213951 | AW75: 12 | AX75: 12 | BI75: 1.902124994 | BJ75: 0.03673872545 | BK75: 2.202268337 | BL75: 2.625781787 | BW75: 24.3855442 | BX75: 17.56166339 | CI75: 24.3855442 | CJ75: 41.94720759 | CU75: 3.880564287e-05 | CV75: 27.66896251 | CW75: 47.5952353 | DH75: 0.04618416276 | DI75: 0.04202461951 | DT75: 17.26998225 | DU75: 16.75443332
A76: Gallaway | B76: PAVDRN | C76: 0.0326402461 | D76: 0.05246586625 | O76: 63.17988673 | P76: 55.87182743 | AA76: Dense Graded Friction Course | AB76: 2.04704927 | AC76: 0 | AD76: 0.0409800786 | AE76: 1.860757481 | AJ76: 0 | AK76: 1.155453144 | AL76: 1.759239328 | AW76: 12 | AX76: 12 | BI76: 1.860757481 | BJ76: 0.03998896327 | BK76: 2.350634527 | BL76: 2.699135737 | BW76: 24.41259904 | BX76: 18.41115551 | CI76: 24.41259904 | CJ76: 42.82375455 | CU76: 3.880564287e-05 | CV76: 27.09724653 | CW76: 47.53307226 | DH76: 0.04635225392 | DI76: 0.04203417724 | DT76: 17.67201656 | DU76: 17.03602662
A77: Gallaway | B77: PAVDRN | C77: 0.04206166696 | D77: 0.0594211663 | O77: 59.1635713 | P77: 54.09912195 | AA77: Dense Graded Friction Course | AB77: 2.43015606 | AC77: 0 | AD77: 0.03618910845 | AE77: 2.050077623 | AJ77: 0 | AK77: 1.129633325 | AL77: 2.037754749 | AW77: 12 | AX77: 12 | BI77: 2.050077623 | BJ77: 0.0361322323 | BK77: 2.679874984 | BL77: 3.171451228 | BW77: 28.46808702 | BX77: 18.67615068 | CI77: 28.46808702 | CJ77: 47.1442377 | CU77: 3.880564287e-05 | CV77: 34.8136822 | CW77: 57.6527853 | DH77: 0.04437469102 | DI77: 0.04064593367 | DT77: 17.08562918 | DU77: 16.6343209
A78: Gallaway | B78: PAVDRN | C78: 0.03540015663 | D78: 0.04661027133 | O78: 61.86551568 | P78: 57.61084397 | AA78: Dense Graded Friction Course | AB78: 1.86204887 | AC78: 0 | AD78: 0.03878367301 | AE78: 1.712023521 | AJ78: 0 | AK78: 0.9846054572 | AL78: 2.141247009 | AW78: 12 | AX78: 12 | BI78: 1.712023521 | BJ78: 0.03822085677 | BK78: 2.106341354 | BL78: 2.837633653 | BW78: 25.67129408 | BX78: 15.90269768 | CI78: 25.67129408 | CJ78: 41.57399176 | CU78: 3.880564287e-05 | CV78: 26.21675042 | CW78: 42.45734407 | DH78: 0.04661944657 | DI78: 0.04286827854 | DT78: 17.45112479 | DU78: 17.0844085
A79: Gallaway | B79: PAVDRN | C79: 0.04296101148 | D79: 0.05867006836 | O79: 58.8402738 | P79: 54.27765572 | AA79: Dense Graded Friction Course | AB79: 1.862369796 | AC79: 0 | AD79: 0.03391799789 | AE79: 1.947902335 | AJ79: 0 | AK79: 1.006665842 | AL79: 1.877654612 | AW79: 12 | AX79: 12 | BI79: 1.947902335 | BJ79: 0.0343039883 | BK79: 2.117025596 | BL79: 2.644618706 | BW79: 25.23608738 | BX79: 16.9016305 | CI79: 25.23608738 | CJ79: 42.13771789 | CU79: 3.880564287e-05 | CV79: 29.32314658 | CW79: 48.96204627 | DH79: 0.045719892 | DI79: 0.04181809759 | DT79: 16.93417692 | DU79: 16.53017051
A80: Gallaway | B80: PAVDRN | C80: 0.03568932106 | D80: 0.05386511719 | O80: 61.73530012 | P80: 55.4922468 | AA80: Dense Graded Friction Course | AB80: 2.040980782 | AC80: 0 | AD80: 0.03217386836 | AE80: 1.717238053 | AJ80: 0 | AK80: 1.125602331 | AL80: 1.756211396 | AW80: 12 | AX80: 12 | BI80: 1.717238053 | BJ80: 0.03289996403 | BK80: 2.330790244 | BL80: 2.69256031 | BW80: 24.8484586 | BX80: 18.39796951 | CI80: 24.8484586 | CJ80: 43.24642811 | CU80: 3.880564287e-05 | CV80: 25.45372384 | CW80: 44.29983589 | DH80: 0.04685965687 | DI80: 0.04255257705 | DT80: 17.07798375 | DU80: 16.54312202
A81: Gallaway | B81: PAVDRN | C81: 0.03326001734 | D81: 0.04740467393 | O81: 62.87283735 | P81: 57.35922813 | AA81: Dense Graded Friction Course | AB81: 2.078349016 | AC81: 0 | AD81: 0.03949209728 | AE81: 1.853280242 | AJ81: 0 | AK81: 1.164393819 | AL81: 2.204043561 | AW81: 12 | AX81: 12 | BI81: 1.853280242 | BJ81: 0.03879113831 | BK81: 2.382298805 | BL81: 3.029412922 | BW81: 24.55147494 | BX81: 16.49375525 | CI81: 24.55147494 | CJ81: 41.04523019 | CU81: 3.880564287e-05 | CV81: 27.14188799 | CW81: 45.37589058 | DH81: 0.04633897956 | DI81: 0.0423752484 | DT81: 17.57149248 | DU81: 17.09749191
A82: Gallaway | B82: PAVDRN | C82: 0.04392685198 | D82: 0.06135023148 | O82: 58.50242776 | P82: 53.65331776 | AA82: Dense Graded Friction Course | AB82: 1.97042273 | AC82: 0 | AD82: 0.03492986448 | AE82: 2.147444723 | AJ82: 0 | AK82: 1.097368407 | AL82: 1.94025205 | AW82: 12 | AX82: 12 | BI82: 2.147444723 | BJ82: 0.03511854091 | BK82: 2.255389801 | BL82: 2.76534695 | BW82: 24.66325569 | BX82: 17.10301679 | CI82: 24.66325569 | CJ82: 41.76627248 | CU82: 3.880564287e-05 | CV82: 31.59321111 | CW82: 53.50188476 | DH82: 0.04513053889 | DI82: 0.04117784505 | DT82: 16.9607358 | DU82: 16.52708777
A83: Gallaway | B83: PAVDRN | C83: 0.04768775271 | D83: 0.05905317572 | O83: 57.27084672 | P83: 54.186235 | AA83: Dense Graded Friction Course | AB83: 1.828464211 | AC83: 0 | AD83: 0.0334230775 | AE83: 1.956152797 | AJ83: 0 | AK83: 0.8974979768 | AL83: 2.061007657 | AW83: 12 | AX83: 12 | BI83: 1.956152797 | BJ83: 0.03390557739 | BK83: 2.036856399 | BL83: 2.755183103 | BW83: 27.23379597 | BX83: 16.04176342 | CI83: 27.23379597 | CJ83: 43.2755594 | CU83: 3.880564287e-05 | CV83: 31.7784218 | CW83: 50.49714631 | DH83: 0.04508466122 | DI83: 0.04159406879 | DT83: 16.77056356 | DU83: 16.49481374
A84: Gallaway | B84: PAVDRN | C84: 0.04691119791 | D84: 0.06360535859 | O84: 57.51489886 | P84: 53.15401935 | AA84: Dense Graded Friction Course | AB84: 1.743015791 | AC84: 0 | AD84: 0.03211695357 | AE84: 2.100599939 | AJ84: 0 | AK84: 1.00111775 | AL84: 1.819259076 | AW84: 12 | AX84: 12 | BI84: 2.100599939 | BJ84: 0.03285414762 | BK84: 2.010059899 | BL84: 2.519485589 | BW84: 24.09378796 | BX84: 16.61875841 | CI84: 24.09378796 | CJ84: 40.71254637 | CU84: 3.880564287e-05 | CV84: 30.19046507 | CW84: 51.01442377 | DH84: 0.04548859148 | DI84: 0.0415203739 | DT84: 16.71799647 | DU84: 16.32767813
A85: Gallaway | B85: PAVDRN | C85: 0.03445451305 | D85: 0.04893769386 | O85: 62.30088784 | P85: 56.88834684 | AA85: Dense Graded Friction Course | AB85: 2.476501826 | AC85: 0 | AD85: 0.0347487959 | AE85: 1.469917504 | AJ85: 0 | AK85: 0.9813048471 | AL85: 1.888572843 | AW85: 12 | AX85: 12 | BI85: 1.469917504 | BJ85: 0.0349727807 | BK85: 2.663835674 | BL85: 3.114445164 | BW85: 32.57502313 | BX85: 19.78919802 | CI85: 32.57502313 | CJ85: 52.36422115 | CU85: 3.880564287e-05 | CV85: 28.56268726 | CW85: 45.91440708 | DH85: 0.04592940274 | DI85: 0.04228834731 | DT85: 17.27145921 | DU85: 16.80977335
A86: Gallaway | B86: PAVDRN | C86: 0.05090131233 | D86: 0.06916380201 | O86: 56.3116398 | P86: 52.01305411 | AA86: Dense Graded Friction Course | AB86: 2.136502479 | AC86: 0 | AD86: 0.03931676263 | AE86: 2.184550179 | AJ86: 0 | AK86: 0.9072705623 | AL86: 1.75339784 | AW86: 12 | AX86: 12 | BI86: 2.184550179 | BJ86: 0.03864999392 | BK86: 2.321159778 | BL86: 2.763882564 | BW86: 30.70078375 | BX86: 18.9156106 | CI86: 30.70078375 | CJ86: 49.61639435 | CU86: 3.880564287e-05 | CV86: 40.00671183 | CW86: 64.65596471 | DH86: 0.04331404246 | DI86: 0.03984317505 | DT86: 16.99483138 | DU86: 16.59470692
A87: Gallaway | B87: PAVDRN | C87: 0.04612898817 | D87: 0.05221113218 | O87: 57.76592505 | P87: 55.9423021 | AA87: Dense Graded Friction Course | AB87: 1.536904623 | AC87: 0 | AD87: 0.03139726557 | AE87: 1.937540706 | AJ87: 0 | AK87: 0.9115198348 | AL87: 2.40883144 | AW87: 12 | AX87: 12 | BI87: 1.937540706 | BJ87: 0.03227479879 | BK87: 1.786881146 | BL87: 2.857366747 | BW87: 23.52397933 | BX87: 14.23445427 | CI87: 23.52397933 | CJ87: 37.7584336 | CU87: 3.880564287e-05 | CV87: 27.18835896 | CW87: 43.64014403 | DH87: 0.04632518838 | DI87: 0.04266381041 | DT87: 16.69811973 | DU87: 16.53870435
A88: Gallaway | B88: PAVDRN | C88: 0.05261488848 | D88: 0.06870922104 | O88: 55.8307984 | P88: 52.10196328 | AA88: Dense Graded Friction Course | AB88: 2.227292157 | AC88: 0 | AD88: 0.03572008768 | AE88: 2.122206451 | AJ88: 0 | AK88: 0.8941880129 | AL88: 1.869965233 | AW88: 12 | AX88: 12 | BI88: 2.122206451 | BJ88: 0.03575467058 | BK88: 2.400083864 | BL88: 2.908195372 | BW88: 32.20911704 | BX88: 18.66256327 | CI88: 32.20911704 | CJ88: 50.87168031 | CU88: 3.880564287e-05 | CV88: 40.77442267 | CW88: 64.39988381 | DH88: 0.04317102443 | DI88: 0.03987069725 | DT88: 16.76747854 | DU88: 16.42322348
A89: Gallaway | B89: PAVDRN | C89: 0.04094437901 | D89: 0.05759103974 | O89: 59.57755265 | P89: 54.53923674 | AA89: Dense Graded Friction Course | AB89: 1.618558741 | AC89: 0 | AD89: 0.0383106332 | AE89: 2.156727796 | AJ89: 0 | AK89: 1.081043696 | AL89: 1.913501357 | AW89: 12 | AX89: 12 | BI89: 2.156727796 | BJ89: 0.03784005973 | BK89: 1.946378141 | BL89: 2.50623619 | BW89: 21.60554452 | BX89: 15.71717426 | CI89: 21.60554452 | CJ89: 37.32271878 | CU89: 3.880564287e-05 | CV89: 27.79597564 | CW89: 48.01644231 | DH89: 0.04614737273 | DI89: 0.04196024148 | DT89: 17.23224713 | DU89: 16.78296133
A90: Gallaway | B90: PAVDRN | C90: 0.04713563436 | D90: 0.06508455513 | O90: 57.44384433 | P90: 52.83846509 | AA90: Dense Graded Friction Course | AB90: 1.975343792 | AC90: 0 | AD90: 0.03548506791 | AE90: 2.170715404 | AJ90: 0 | AK90: 1.016109122 | AL90: 1.834221265 | AW90: 12 | AX90: 12 | BI90: 2.170715404 | BJ90: 0.03556547967 | BK90: 2.221364636 | BL90: 2.695616951 | BW90: 26.23377259 | BX90: 17.63549689 | CI90: 26.23377259 | CJ90: 43.86926948 | CU90: 3.880564287e-05 | CV90: 33.96917569 | CW90: 56.80475111 | DH90: 0.0445647058 | DI90: 0.04075087179 | DT90: 16.89838455 | DU90: 16.48044042
A91: Gallaway | B91: PAVDRN | C91: 0.04671726996 | D91: 0.06007729723 | O91: 57.57664022 | P91: 53.94547107 | AA91: Dense Graded Friction Course | AB91: 1.837040153 | AC91: 0 | AD91: 0.03378915538 | AE91: 2.037068363 | AJ91: 0 | AK91: 0.959892057 | AL91: 2.014164081 | AW91: 12 | AX91: 12 | BI91: 2.037068363 | BJ91: 0.03420027008 | BK91: 2.072705789 | BL91: 2.726091244 | BW91: 25.91173589 | BX91: 16.24152433 | CI91: 25.91173589 | CJ91: 42.15326022 | CU91: 3.880564287e-05 | CV91: 31.4864344 | CW91: 51.22219014 | DH91: 0.04515713177 | DI91: 0.04149102064 | DT91: 16.81763655 | DU91: 16.4927575
A92: Gallaway | B92: PAVDRN | C92: 0.035818757 | D92: 0.05120370013 | O92: 61.67744258 | P92: 56.22531943 | AA92: Dense Graded Friction Course | AB92: 1.962423824 | AC92: 0 | AD92: 0.03564417929 | AE92: 1.671116533 | AJ92: 0 | AK92: 1.011959995 | AL92: 1.836264621 | AW92: 12 | AX92: 12 | BI92: 1.671116533 | BJ92: 0.03569356433 | BK92: 2.207978781 | BL92: 2.687559305 | BW92: 26.18260158 | BX92: 17.56321573 | CI92: 26.18260158 | CJ92: 43.7458173 | CU92: 3.880564287e-05 | CV92: 26.10002381 | CW92: 43.60784661 | DH92: 0.04665565791 | DI92: 0.04266930682 | DT92: 17.26914024 | DU92: 16.79883466
A93: Gallaway | B93: PAVDRN | C93: 0.04955350114 | D93: 0.06971965664 | O93: 56.70439546 | P93: 51.90533195 | AA93: Dense Graded Friction Course | AB93: 2.356529758 | AC93: 0 | AD93: 0.04024620638 | AE93: 2.487176525 | AJ93: 0 | AK93: 1.099275837 | AL93: 1.954142778 | AW93: 12 | AX93: 12 | BI93: 2.487176525 | BJ93: 0.03939819613 | BK93: 2.600315339 | BL93: 3.06135697 | BW93: 28.38576363 | BX93: 18.79918092 | CI93: 28.38576363 | CJ93: 47.18494455 | CU93: 3.880564287e-05 | CV93: 42.11420072 | CW93: 70.00538199 | DH93: 0.04292885106 | DI93: 0.03929587525 | DT93: 17.07598115 | DU93: 16.62893527
A94: Gallaway | B94: PAVDRN | C94: 0.04139578033 | D94: 0.05365594248 | O94: 59.4086053 | P94: 55.54819642 | AA94: Dense Graded Friction Course | AB94: 2.172123364 | AC94: 0 | AD94: 0.04306893915 | AE94: 1.87036881 | AJ94: 0 | AK94: 0.9063407377 | AL94: 2.101790646 | AW94: 12 | AX94: 12 | BI94: 1.87036881 | BJ94: 0.04167049602 | BK94: 2.353629844 | BL94: 3.022522759 | BW94: 31.16218542 | BX94: 17.25684391 | CI94: 31.16218542 | CJ94: 48.41902933 | CU94: 3.880564287e-05 | CV94: 34.76774547 | CW94: 54.02125893 | DH94: 0.04438488705 | DI94: 0.0411086843 | DT94: 17.45166973 | DU94: 17.10476901
A95: Gallaway | B95: PAVDRN | C95: 0.05034529764 | D95: 0.06533592908 | O95: 56.47205885 | P95: 52.78573747 | AA95: Dense Graded Friction Course | AB95: 1.575932016 | AC95: 0 | AD95: 0.03354768888 | AE95: 2.100617065 | AJ95: 0 | AK95: 0.8775526605 | AL95: 1.75441603 | AW95: 12 | AX95: 12 | BI95: 2.100617065 | BJ95: 0.03400588955 | BK95: 1.803790562 | BL95: 2.358291188 | BW95: 24.66574112 | BX95: 16.13043529 | CI95: 24.66574112 | CJ95: 40.79617641 | CU95: 3.880564287e-05 | CV95: 30.90739687 | CW95: 51.11963226 | DH95: 0.0453032097 | DI95: 0.04150549252 | DT95: 16.70718075 | DU95: 16.37238929
A96: Gallaway | B96: PAVDRN | C96: 0.04703626537 | D96: 0.06211965786 | O96: 57.47525098 | P96: 53.48040096 | AA96: Dense Graded Friction Course | AB96: 1.889660336 | AC96: 0 | AD96: 0.03410312041 | AE96: 2.029698115 | AJ96: 0 | AK96: 0.9506845324 | AL96: 1.892569271 | AW96: 12 | AX96: 12 | BI96: 2.029698115 | BJ96: 0.03445301193 | BK96: 2.115329115 | BL96: 2.674440995 | BW96: 26.70070725 | BX96: 16.95752563 | CI96: 26.70070725 | CJ96: 43.65823288 | CU96: 3.880564287e-05 | CV96: 32.32775783 | CW96: 52.85900357 | DH96: 0.04495041271 | DI96: 0.04126455196 | DT96: 16.82611752 | DU96: 16.46690964
A97: Gallaway | B97: PAVDRN | C97: 0.04582419703 | D97: 0.05786485158 | O97: 57.86519356 | P97: 54.47227773 | AA97: Dense Graded Friction Course | AB97: 2.174066779 | AC97: 0 | AD97: 0.03326072824 | AE97: 1.93670239 | AJ97: 0 | AK97: 0.9749334535 | AL97: 2.200068514 | AW97: 12 | AX97: 12 | BI97: 1.93670239 | BJ97: 0.03377488624 | BK97: 2.382658515 | BL97: 3.093035374 | BW97: 29.32702953 | BX97: 16.87057664 | CI97: 29.32702953 | CJ97: 46.19760617 | CU97: 3.880564287e-05 | CV97: 33.88069695 | CW97: 53.37080229 | DH97: 0.04458493408 | DI97: 0.04119542484 | DT97: 16.81328429 | DU97: 16.51195455
A98: Gallaway | B98: PAVDRN | C98: 0.04577130825 | D98: 0.0561318253 | O98: 57.88250374 | P98: 54.90296592 | AA98: Dense Graded Friction Course | AB98: 1.954283729 | AC98: 0 | AD98: 0.03708753406 | AE98: 2.081818053 | AJ98: 0 | AK98: 0.9763137333 | AL98: 2.329613782 | AW98: 12 | AX98: 12 | BI98: 2.081818053 | BJ98: 0.03685546492 | BK98: 2.184585407 | BL98: 3.040777082 | BW98: 26.85102543 | BX98: 15.66325082 | CI98: 26.85102543 | CJ98: 42.51427625 | CU98: 3.880564287e-05 | CV98: 33.34456197 | CW98: 52.79574603 | DH98: 0.04470884827 | DI98: 0.04127315051 | DT98: 17.0215253 | DU98: 16.75448564
A99: Gallaway | B99: PAVDRN | C99: 0.04046718978 | D99: 0.0533574115 | O99: 59.75872061 | P99: 55.62852426 | AA99: Dense Graded Friction Course | AB99: 2.074678018 | AC99: 0 | AD99: 0.03514118263 | AE99: 1.847796406 | AJ99: 0 | AK99: 1.020895467 | AL99: 2.133975911 | AW99: 12 | AX99: 12 | BI99: 1.847796406 | BJ99: 0.03528865201 | BK99: 2.31225354 | BL99: 2.976263105 | BW99: 27.17912203 | BX99: 16.73643881 | CI99: 27.17912203 | CJ99: 43.91556084 | CU99: 3.880564287e-05 | CV99: 29.95786864 | CW99: 48.40541212 | DH99: 0.04554984846 | DI99: 0.04190137675 | DT99: 17.08010836 | DU99: 16.71852912
A100: Gallaway | B100: PAVDRN | C100: 0.03742068101 | D100: 0.0493159824 | O100: 60.98247592 | P100: 56.77500334 | AA100: Dense Graded Friction Course | AB100: 1.978133997 | AC100: 0 | AD100: 0.03957408907 | AE100: 1.885218249 | AJ100: 0 | AK100: 1.04331259 | AL100: 2.245441081 | AW100: 12 | AX100: 12 | BI100: 1.885218249 | BJ100: 0.0388571417 | BK100: 2.236406776 | BL100: 2.992493903 | BW100: 25.72276189 | BX100: 15.992371 | CI100: 25.72276189 | CJ100: 41.71513289 | CU100: 3.880564287e-05 | CV100: 28.92681401 | CW100: 46.91121023 | DH100: 0.04582827709 | DI100: 0.04213060545 | DT100: 17.41685712 | DU100: 17.0492993
A101: Gallaway | B101: PAVDRN | C101: 0.03618965424 | D101: 0.04329416402 | O101: 61.51309962 | P101: 58.72266761 | AA101: Dense Graded Friction Course | AB101: 1.884251477 | AC101: 0 | AD101: 0.0338204778 | AE101: 1.561773661 | AJ101: 0 | AK101: 0.9460175453 | AL101: 2.42911246 | AW101: 12 | AX101: 12 | BI101: 1.561773661 | BJ101: 0.03422548463 | BK101: 2.108400537 | BL101: 3.074246407 | BW101: 26.7445425 | BX101: 15.18701069 | CI101: 26.7445425 | CJ101: 41.93155318 | CU101: 3.880564287e-05 | CV101: 24.91578863 | CW101: 39.06433307 | DH101: 0.04703414441 | DI101: 0.0434940694 | DT101: 17.15427642 | DU101: 16.91864325
A102: Gallaway | B102: PAVDRN | C102: 0.04852797883 | D102: 0.06288026335 | O102: 57.01235743 | P102: 53.31209665 | AA102: Dense Graded Friction Course | AB102: 2.142087086 | AC102: 0 | AD102: 0.03571449434 | AE102: 2.053612 | AJ102: 0 | AK102: 0.9381259966 | AL102: 2.004094388 | AW102: 12 | AX102: 12 | BI102: 2.053612 | BJ102: 0.03575016795 | BK102: 2.338507531 | BL102: 2.933416336 | BW102: 29.91292264 | BX102: 17.56454 | CI102: 29.91292264 | CJ102: 47.47746264 | CU102: 3.880564287e-05 | CV102: 36.64364034 | CW102: 58.16038392 | DH102: 0.0439808964 | DI102: 0.04058398522 | DT102: 16.87257365 | DU102: 16.53667239

Sheet Continuous_Results (hidden)
D1: Water Film Thickness (in.) | P1: Hydroplaning_Speed | AB1: Water Depth Due to Rutting (in.) | AN1: Hydroplaning Speed Due to Rutting | AZ1: Lattitude | BL1: Longitude | BX1: Pavement Inputs | BZ1: Environmental Inputs | CB1: Vehicle Inputs | CF1: Cross Slope | CR1: Grade | DD1: Texture, MPD (inch) | DP1: Texture, MTD (inch) | EB1: Rut Depth | EN1: Width | FA1: Total Slope (%) | FM1: Drainage Path per Lane (ft.) | FY1: Total Drainage Path (ft.) | GL1: Reynold's Number | GX1: Manning's N | HJ1: A_Parameter | HV1: A_Parameter_Rut | IH1: Design Speed (mph)
A2: WFT Model | B2: HPS Model | C2: MP | D2: Lane 1 | E2: Lane 2 | F2: Lane 3 | P2: Lane 1 | Q2: Lane 2 | R2: Lane 3 | AB2: Lane 1 | AC2: Lane 2 | AD2: Lane 3 | AN2: Lane 1 | AO2: Lane 2 | AP2: Lane 3 | AZ2: Lane 1 | BA2: Lane 2 | BB2: Lane 3 | BL2: Lane 1 | BM2: Lane 2 | BN2: Lane 3 | BX2: Surface Type | BY2: Permeability (in/hr) | BZ2: Rainfall Intensity (in/hr) | CA2: Temperature (deg. F) | CB2: Axle Weight (lbs) | CC2: Tire Pressure (psi) | CD2: Spindown (%) | CE2: Tread Depth (in) | CF2: Lane 1 | CG2: Lane 2 | CH2: Lane 3 | CR2: Lane 1 | CS2: Lane 2 | CT2: Lane 3 | DD2: Lane 1 | DE2: Lane 2 | DF2: Lane 3 | DP2: Lane 1 | DQ2: Lane 2 | DR2: Lane 3 | EB2: Lane 1 | EC2: Lane 2 | ED2: Lane 3 | EN2: Lane 1 | EO2: Lane 2 | EP2: Lane 3 | EZ2: Excess Rainfall Intensity (in/hr) | FA2: Lane 1 | FB2: Lane 2 | FC2: Lane 3 | FM2: Lane 1 | FN2: Lane 2 | FO2: Lane 3 | FY2: Lane 1 | FZ2: Lane 2 | GA2: Lane 3 | GK2: Kin. Viscosity (ft^2/s) | GL2: Lane 1 | GM2: Lane 2 | GN2: Lane 3 | GX2: Lane 1 | GY2: Lane 2 | GZ2: Lane 3 | HJ2: Lane 1 | HK2: Lane 2 | HL2: Lane 3 | HV2: Lane 1 | HW2: Lane 2 | HX2: Lane 3 | IH2: Lane 1 Design Speed | II2: Lane 2 Design Speed | IJ2: Lane 3 Design Speed
A3: Gallaway | B3: PAVDRN | C3: 16.1 | D3: =IF(FA3<>"",IF($A3="Gallaway",WFT.G.Const*DP3^WFT.G.MTD*FY3^WFT.G.DP*($EZ3)^WFT.G.Int*(FA3/100)^WFT.G.Slope-DP3,IF($A3="UK RRL",CONVERT(WFT.U.Const*CONVERT(FY3,"ft","m")^WFT.U.DP*CONVERT(($EZ3),"in","mm")^WFT.U.Int*(FA3/100)^WFT.U.Slope,"mm","in")-DP3,IF($A3="NZ Mod.",CONVERT(WFT.N.Const*CONVERT(DP3,"in","mm")^WFT.N.MTD*CONVERT(FY3,"ft","m")^WFT.N.DP*CONVERT(($EZ3),"in","mm")^WFT.N.Int*(FA3/100)^WFT.N.Slope,"mm","in")-DP3,IF($A3="PAVDRN",CONVERT(WFT.P.Const*GX3^WFT.P.Manni*CONVERT(FY3,"ft","m")^WFT.P.DP*CONVERT(($EZ3),"in","mm")^WFT.P.Int*(FA3/100)^WFT.P.Slope,"mm","in")-DP3)))),"") -> -0.008348073141 | E3: 0.01601698621 | F3: 0.02303409264 | P3: =IF(D3<>"",IF(D3<=0,999,IF($B3="USF",CONVERT(CONVERT($CB3,"lbf","N")^HP.U.Load*CONVERT($CC3,"psi","kPa")^HP.U.Press*(HP.U.a*CONVERT(D3,"in","mm")^HP.U.WFT+HP.U.b),"km","mi"),IF($B3="Gallaway",$CD3^HP.G.SpinDown*$CC3^HP.G.Press*(1+$CE3*32)^HP.G.TreadDepth*HJ3,IF($B3="PAVDRN",IF(D3<0.094,HP.P.WFT.lt.24.Const*D3^HP.P.WFT.lt.24.WFT, HP.P.WFT.gt.24.Const*HJ3))))),"") -> 999 | Q3: 75.97217365 | R3: 69.14915264 | AB3: =IF(ISNUMBER(EB3)=FALSE,0,IF(AND(CF3<>"",EB3<>""),IF(EB3-18*ABS(CF3)/100>=0,EB3-18*ABS(CF3)/100,0),"")) -> 0 | AC3: =IF(ISNUMBER(EC3)=FALSE,0,IF(AND(CG3<>"",EC3<>""),IF(EC3-18*ABS(CG3)/100>=0,EC3-18*ABS(CG3)/100,0),"")) -> 0 | AD3: 0 | AE3: 0 | AF3: 0 | AG3: 0 | AH3: 0 | AI3: 0 | AJ3: 0 | AK3: 0 | AL3: 0 | AM3: 0 | AN3: =IF(AB3<>"",IF(AB3<=0,999,IF($B3="USF",CONVERT(CONVERT($CB3,"lbf","N")^HP.U.Load*CONVERT($CC3,"psi","kPa")^HP.U.Press*(HP.U.a*CONVERT(AB3,"in","mm")^HP.U.WFT+HP.U.b),"km","mi"),IF($B3="Gallaway",$CD3^HP.G.SpinDown*$CC3^HP.G.Press*(1+$CE3*32)^HP.G.TreadDepth*HV3,IF($B3="PAVDRN",IF(AB3<0.094,HP.P.WFT.lt.24.Const*AB3^HP.P.WFT.lt.24.WFT, HP.P.WFT.gt.24.Const*HV3))))),"") -> 999 | AO3: 999 | AP3: 999 | AQ3: 999 | AR3: 999 | AS3: 999 | AT3: 999 | AU3: 999 | AV3: 999 | AW3: 999 | AX3: 999 | AY3: 999 | AZ3: 26.30191002 | BA3: 26.30194469 | BB3: 26.30197886 | BL3: -80.24257392 | BM3: -80.24259408 | BN3: -80.24260197 | BX3: Open Graded Friction Course | BY3: 0 | BZ3: 2 | CF3: 1.22 | CG3: 1.51 | CH3: 2.25 | CR3: -0.58 | CS3: -0.6 | CT3: -0.66 | DD3: 0.068 | DE3: 0.068 | DF3: 0.068 | DP3: =IF(DD3="","",IF($BX3="Dense Graded Friction Course",MPD.to.MTD.DGFC.a*DD3+MPD.to.MTD.DGFC.b,IF($BX3="Open Graded Friction Course",MPD.to.MTD.OGFC.a*DD3+MPD.to.MTD.OGFC.b,IF($BX3="PCC (LGD)",MPD.to.MTD.LGD.a*DD3+MPD.to.MTD.LGD.b,MPD.to.MTD.LGD.TGV.a*DD3+MPD.to.MTD.LGD.TGV.b)))) -> 0.082188 | DQ3: 0.082188 | DR3: 0.082188 | EB3: 0.03 | EC3: 0.07 | ED3: 0.11 | EN3: 12 | EO3: 12 | EP3: 12 | EZ3: =BZ3-BY3 -> 2 | FA3: =IF(AND(CF3<>"",CR3<>""),SQRT(CR3^2+CF3^2),"") -> 1.350851583 | FB3: 1.624838454 | FC3: 2.344802764 | FM3: =IF(FA3<>"",EN3*SQRT(1+(CR3/CF3)^2),"") -> 13.28706475 | FN3: =IF(FB3<>"",EO3*SQRT(1+(CS3/CG3)^2),"") -> 12.91262347 | FO3: 12.50561474 | FY3: =IF(FM3<>"",FM3,"") -> 13.28706475 | FZ3: =IF(FN3<>"",IF(CF3*CG3>0,FY3+FN3,FN3),"") -> 26.19968822 | GA3: =IF(FO3<>"",IF(CG3*CH3>0,FZ3+FO3,FO3),"") -> 38.70530296 | GK3: =KVis.V0*EXP(KVis.a+KVis.b*273.16/(273.16+CONVERT(CA3,"F","C"))+KVis.c*(273.16/(273.16+CONVERT(CA3,"F","C")))^2)*CONVERT(1,"m","ft")^2*10^(-6) -> 3.880564287e-05 | GL3: =IF(FY3<>"",FY3*$EZ3/12/3600/$GK3,"") -> 15.85186692 | GM3: 31.25701416 | GN3: 46.17658777 | GX3: =IF(GL3<>"",IF($BX3="Dense Graded Friction Course",Manning.DGFC.Const*GL3^Manning.DGFC.NR,IF($BX3="Open Graded Friction Course",Manning.OGFC.Const*GL3^Manning.OGFC.NR*FA3^Manning.OGFC.Slope,IF(GL3<500,Manning.PCC.NR.lt.500.Const*GL3^Manning.PCC.NR.lt.500.NR,IF(GL3<1000,Manning.PCC.NR.lt.1000.Const*GL3^Manning.PCC.NR.lt.1000.NR,0.017)))),"") -> 0.5061952994 | GY3: 0.4016395303 | GZ3: 0.3808236773 | HJ3: =IF(D3<>"",MAX(A1.a*D3^A1.WFT+A1.b,(A2.a*D3^A2.WFT+A2.b)*DP3^A2.MTD),"") ->  | HK3: 20.64079952 | HL3: 20.07690347 | HV3: =IF(AB3<>"",MAX(A1.a*AB3^A1.WFT+A1.b,(A2.a*AB3^A2.WFT+A2.b)*DP3^A2.MTD),"") ->  | IH3: 60 | II3: 60 | IJ3: 60
A4: Gallaway | B4: PAVDRN | C4: 16.101 | D4: =IF(FA4<>"",IF($A4="Gallaway",WFT.G.Const*DP4^WFT.G.MTD*FY4^WFT.G.DP*($EZ4)^WFT.G.Int*(FA4/100)^WFT.G.Slope-DP4,IF($A4="UK RRL",CONVERT(WFT.U.Const*CONVERT(FY4,"ft","m")^WFT.U.DP*CONVERT(($EZ4),"in","mm")^WFT.U.Int*(FA4/100)^WFT.U.Slope,"mm","in")-DP4,IF($A4="NZ Mod.",CONVERT(WFT.N.Const*CONVERT(DP4,"in","mm")^WFT.N.MTD*CONVERT(FY4,"ft","m")^WFT.N.DP*CONVERT(($EZ4),"in","mm")^WFT.N.Int*(FA4/100)^WFT.N.Slope,"mm","in")-DP4,IF($A4="PAVDRN",CONVERT(WFT.P.Const*GX4^WFT.P.Manni*CONVERT(FY4,"ft","m")^WFT.P.DP*CONVERT(($EZ4),"in","mm")^WFT.P.Int*(FA4/100)^WFT.P.Slope,"mm","in")-DP4)))),"") -> -0.009689717822 | E4: =IF(FB4<>"",IF($A4="Gallaway",WFT.G.Const*DQ4^WFT.G.MTD*FZ4^WFT.G.DP*($EZ4)^WFT.G.Int*(FB4/100)^WFT.G.Slope-DQ4,IF($A4="UK RRL",CONVERT(WFT.U.Const*CONVERT(FZ4,"ft","m")^WFT.U.DP*CONVERT(($EZ4),"in","mm")^WFT.U.Int*(FB4/100)^WFT.U.Slope,"mm","in")-DQ4,IF($A4="NZ Mod.",CONVERT(WFT.N.Const*CONVERT(DQ4,"in","mm")^WFT.N.MTD*CONVERT(FZ4,"ft","m")^WFT.N.DP*CONVERT(($EZ4),"in","mm")^WFT.N.Int*(FB4/100)^WFT.N.Slope,"mm","in")-DQ4,IF($A4="PAVDRN",CONVERT(WFT.P.Const*GY4^WFT.P.Manni*CONVERT(FZ4,"ft","m")^WFT.P.DP*CONVERT(($EZ4),"in","mm")^WFT.P.Int*(FB4/100)^WFT.P.Slope,"mm","in")-DQ4)))),"") -> 0.01551534436 | F4: =IF(FC4<>"",IF($A4="Gallaway",WFT.G.Const*DR4^WFT.G.MTD*GA4^WFT.G.DP*($EZ4)^WFT.G.Int*(FC4/100)^WFT.G.Slope-DR4,IF($A4="UK RRL",CONVERT(WFT.U.Const*CONVERT(GA4,"ft","m")^WFT.U.DP*CONVERT(($EZ4),"in","mm")^WFT.U.Int*(FC4/100)^WFT.U.Slope,"mm","in")-DR4,IF($A4="NZ Mod.",CONVERT(WFT.N.Const*CONVERT(DR4,"in","mm")^WFT.N.MTD*CONVERT(GA4,"ft","m")^WFT.N.DP*CONVERT(($EZ4),"in","mm")^WFT.N.Int*(FC4/100)^WFT.N.Slope,"mm","in")-DR4,IF($A4="PAVDRN",CONVERT(WFT.P.Const*GZ4^WFT.P.Manni*CONVERT(GA4,"ft","m")^WFT.P.DP*CONVERT(($EZ4),"in","mm")^WFT.P.Int*(FC4/100)^WFT.P.Slope,"mm","in")-DR4)))),"") -> 0.022952735 | G4: =IF(FD4<>"",IF($A4="Gallaway",WFT.G.Const*DS4^WFT.G.MTD*GB4^WFT.G.DP*($EZ4)^WFT.G.Int*(FD4/100)^WFT.G.Slope-DS4,IF($A4="UK RRL",CONVERT(WFT.U.Const*CONVERT(GB4,"ft","m")^WFT.U.DP*CONVERT(($EZ4),"in","mm")^WFT.U.Int*(FD4/100)^WFT.U.Slope,"mm","in")-DS4,IF($A4="NZ Mod.",CONVERT(WFT.N.Const*CONVERT(DS4,"in","mm")^WFT.N.MTD*CONVERT(GB4,"ft","m")^WFT.N.DP*CONVERT(($EZ4),"in","mm")^WFT.N.Int*(FD4/100)^WFT.N.Slope,"mm","in")-DS4,IF($A4="PAVDRN",CONVERT(WFT.P.Const*HA4^WFT.P.Manni*CONVERT(GB4,"ft","m")^WFT.P.DP*CONVERT(($EZ4),"in","mm")^WFT.P.Int*(FD4/100)^WFT.P.Slope,"mm","in")-DS4)))),"") ->  | H4: =IF(FE4<>"",IF($A4="Gallaway",WFT.G.Const*DT4^WFT.G.MTD*GC4^WFT.G.DP*($EZ4)^WFT.G.Int*(FE4/100)^WFT.G.Slope-DT4,IF($A4="UK RRL",CONVERT(WFT.U.Const*CONVERT(GC4,"ft","m")^WFT.U.DP*CONVERT(($EZ4),"in","mm")^WFT.U.Int*(FE4/100)^WFT.U.Slope,"mm","in")-DT4,IF($A4="NZ Mod.",CONVERT(WFT.N.Const*CONVERT(DT4,"in","mm")^WFT.N.MTD*CONVERT(GC4,"ft","m")^WFT.N.DP*CONVERT(($EZ4),"in","mm")^WFT.N.Int*(FE4/100)^WFT.N.Slope,"mm","in")-DT4,IF($A4="PAVDRN",CONVERT(WFT.P.Const*HB4^WFT.P.Manni*CONVERT(GC4,"ft","m")^WFT.P.DP*CONVERT(($EZ4),"in","mm")^WFT.P.Int*(FE4/100)^WFT.P.Slope,"mm","in")-DT4)))),"") ->  | I4: =IF(FF4<>"",IF($A4="Gallaway",WFT.G.Const*DU4^WFT.G.MTD*GD4^WFT.G.DP*($EZ4)^WFT.G.Int*(FF4/100)^WFT.G.Slope-DU4,IF($A4="UK RRL",CONVERT(WFT.U.Const*CONVERT(GD4,"ft","m")^WFT.U.DP*CONVERT(($EZ4),"in","mm")^WFT.U.Int*(FF4/100)^WFT.U.Slope,"mm","in")-DU4,IF($A4="NZ Mod.",CONVERT(WFT.N.Const*CONVERT(DU4,"in","mm")^WFT.N.MTD*CONVERT(GD4,"ft","m")^WFT.N.DP*CONVERT(($EZ4),"in","mm")^WFT.N.Int*(FF4/100)^WFT.N.Slope,"mm","in")-DU4,IF($A4="PAVDRN",CONVERT(WFT.P.Const*HC4^WFT.P.Manni*CONVERT(GD4,"ft","m")^WFT.P.DP*CONVERT(($EZ4),"in","mm")^WFT.P.Int*(FF4/100)^WFT.P.Slope,"mm","in")-DU4)))),"") ->  | J4: =IF(FG4<>"",IF($A4="Gallaway",WFT.G.Const*DV4^WFT.G.MTD*GE4^WFT.G.DP*($EZ4)^WFT.G.Int*(FG4/100)^WFT.G.Slope-DV4,IF($A4="UK RRL",CONVERT(WFT.U.Const*CONVERT(GE4,"ft","m")^WFT.U.DP*CONVERT(($EZ4),"in","mm")^WFT.U.Int*(FG4/100)^WFT.U.Slope,"mm","in")-DV4,IF($A4="NZ Mod.",CONVERT(WFT.N.Const*CONVERT(DV4,"in","mm")^WFT.N.MTD*CONVERT(GE4,"ft","m")^WFT.N.DP*CONVERT(($EZ4),"in","mm")^WFT.N.Int*(FG4/100)^WFT.N.Slope,"mm","in")-DV4,IF($A4="PAVDRN",CONVERT(WFT.P.Const*HD4^WFT.P.Manni*CONVERT(GE4,"ft","m")^WFT.P.DP*CONVERT(($EZ4),"in","mm")^WFT.P.Int*(FG4/100)^WFT.P.Slope,"mm","in")-DV4)))),"") ->  | K4: =IF(FH4<>"",IF($A4="Gallaway",WFT.G.Const*DW4^WFT.G.MTD*GF4^WFT.G.DP*($EZ4)^WFT.G.Int*(FH4/100)^WFT.G.Slope-DW4,IF($A4="UK RRL",CONVERT(WFT.U.Const*CONVERT(GF4,"ft","m")^WFT.U.DP*CONVERT(($EZ4),"in","mm")^WFT.U.Int*(FH4/100)^WFT.U.Slope,"mm","in")-DW4,IF($A4="NZ Mod.",CONVERT(WFT.N.Const*CONVERT(DW4,"in","mm")^WFT.N.MTD*CONVERT(GF4,"ft","m")^WFT.N.DP*CONVERT(($EZ4),"in","mm")^WFT.N.Int*(FH4/100)^WFT.N.Slope,"mm","in")-DW4,IF($A4="PAVDRN",CONVERT(WFT.P.Const*HE4^WFT.P.Manni*CONVERT(GF4,"ft","m")^WFT.P.DP*CONVERT(($EZ4),"in","mm")^WFT.P.Int*(FH4/100)^WFT.P.Slope,"mm","in")-DW4)))),"") ->  | L4: =IF(FI4<>"",IF($A4="Gallaway",WFT.G.Const*DX4^WFT.G.MTD*GG4^WFT.G.DP*($EZ4)^WFT.G.Int*(FI4/100)^WFT.G.Slope-DX4,IF($A4="UK RRL",CONVERT(WFT.U.Const*CONVERT(GG4,"ft","m")^WFT.U.DP*CONVERT(($EZ4),"in","mm")^WFT.U.Int*(FI4/100)^WFT.U.Slope,"mm","in")-DX4,IF($A4="NZ Mod.",CONVERT(WFT.N.Const*CONVERT(DX4,"in","mm")^WFT.N.MTD*CONVERT(GG4,"ft","m")^WFT.N.DP*CONVERT(($EZ4),"in","mm")^WFT.N.Int*(FI4/100)^WFT.N.Slope,"mm","in")-DX4,IF($A4="PAVDRN",CONVERT(WFT.P.Const*HF4^WFT.P.Manni*CONVERT(GG4,"ft","m")^WFT.P.DP*CONVERT(($EZ4),"in","mm")^WFT.P.Int*(FI4/100)^WFT.P.Slope,"mm","in")-DX4)))),"") ->  | M4: =IF(FJ4<>"",IF($A4="Gallaway",WFT.G.Const*DY4^WFT.G.MTD*GH4^WFT.G.DP*($EZ4)^WFT.G.Int*(FJ4/100)^WFT.G.Slope-DY4,IF($A4="UK RRL",CONVERT(WFT.U.Const*CONVERT(GH4,"ft","m")^WFT.U.DP*CONVERT(($EZ4),"in","mm")^WFT.U.Int*(FJ4/100)^WFT.U.Slope,"mm","in")-DY4,IF($A4="NZ Mod.",CONVERT(WFT.N.Const*CONVERT(DY4,"in","mm")^WFT.N.MTD*CONVERT(GH4,"ft","m")^WFT.N.DP*CONVERT(($EZ4),"in","mm")^WFT.N.Int*(FJ4/100)^WFT.N.Slope,"mm","in")-DY4,IF($A4="PAVDRN",CONVERT(WFT.P.Const*HG4^WFT.P.Manni*CONVERT(GH4,"ft","m")^WFT.P.DP*CONVERT(($EZ4),"in","mm")^WFT.P.Int*(FJ4/100)^WFT.P.Slope,"mm","in")-DY4)))),"") ->  | N4: =IF(FK4<>"",IF($A4="Gallaway",WFT.G.Const*DZ4^WFT.G.MTD*GI4^WFT.G.DP*($EZ4)^WFT.G.Int*(FK4/100)^WFT.G.Slope-DZ4,IF($A4="UK RRL",CONVERT(WFT.U.Const*CONVERT(GI4,"ft","m")^WFT.U.DP*CONVERT(($EZ4),"in","mm")^WFT.U.Int*(FK4/100)^WFT.U.Slope,"mm","in")-DZ4,IF($A4="NZ Mod.",CONVERT(WFT.N.Const*CONVERT(DZ4,"in","mm")^WFT.N.MTD*CONVERT(GI4,"ft","m")^WFT.N.DP*CONVERT(($EZ4),"in","mm")^WFT.N.Int*(FK4/100)^WFT.N.Slope,"mm","in")-DZ4,IF($A4="PAVDRN",CONVERT(WFT.P.Const*HH4^WFT.P.Manni*CONVERT(GI4,"ft","m")^WFT.P.DP*CONVERT(($EZ4),"in","mm")^WFT.P.Int*(FK4/100)^WFT.P.Slope,"mm","in")-DZ4)))),"") ->  | O4: =IF(FL4<>"",IF($A4="Gallaway",WFT.G.Const*EA4^WFT.G.MTD*GJ4^WFT.G.DP*($EZ4)^WFT.G.Int*(FL4/100)^WFT.G.Slope-EA4,IF($A4="UK RRL",CONVERT(WFT.U.Const*CONVERT(GJ4,"ft","m")^WFT.U.DP*CONVERT(($EZ4),"in","mm")^WFT.U.Int*(FL4/100)^WFT.U.Slope,"mm","in")-EA4,IF($A4="NZ Mod.",CONVERT(WFT.N.Const*CONVERT(EA4,"in","mm")^WFT.N.MTD*CONVERT(GJ4,"ft","m")^WFT.N.DP*CONVERT(($EZ4),"in","mm")^WFT.N.Int*(FL4/100)^WFT.N.Slope,"mm","in")-EA4,IF($A4="PAVDRN",CONVERT(WFT.P.Const*HI4^WFT.P.Manni*CONVERT(GJ4,"ft","m")^WFT.P.DP*CONVERT(($EZ4),"in","mm")^WFT.P.Int*(FL4/100)^WFT.P.Slope,"mm","in")-EA4)))),"") ->  | P4: =IF(D4<>"",IF(D4<=0,999,IF($B4="USF",CONVERT(CONVERT($CB4,"lbf","N")^HP.U.Load*CONVERT($CC4,"psi","kPa")^HP.U.Press*(HP.U.a*CONVERT(D4,"in","mm")^HP.U.WFT+HP.U.b),"km","mi"),IF($B4="Gallaway",$CD4^HP.G.SpinDown*$CC4^HP.G.Press*(1+$CE4*32)^HP.G.TreadDepth*HJ4,IF($B4="PAVDRN",IF(D4<0.094,HP.P.WFT.lt.24.Const*D4^HP.P.WFT.lt.24.WFT, HP.P.WFT.gt.24.Const*HJ4))))),"") -> 999 | Q4: =IF(E4<>"",IF(E4<=0,999,IF($B4="USF",CONVERT(CONVERT($CB4,"lbf","N")^HP.U.Load*CONVERT($CC4,"psi","kPa")^HP.U.Press*(HP.U.a*CONVERT(E4,"in","mm")^HP.U.WFT+HP.U.b),"km","mi"),IF($B4="Gallaway",$CD4^HP.G.SpinDown*$CC4^HP.G.Press*(1+$CE4*32)^HP.G.TreadDepth*HK4,IF($B4="PAVDRN",IF(E4<0.094,HP.P.WFT.lt.24.Const*E4^HP.P.WFT.lt.24.WFT, HP.P.WFT.gt.24.Const*HK4))))),"") -> 76.60088237 | R4: =IF(F4<>"",IF(F4<=0,999,IF($B4="USF",CONVERT(CONVERT($CB4,"lbf","N")^HP.U.Load*CONVERT($CC4,"psi","kPa")^HP.U.Press*(HP.U.a*CONVERT(F4,"in","mm")^HP.U.WFT+HP.U.b),"km","mi"),IF($B4="Gallaway",$CD4^HP.G.SpinDown*$CC4^HP.G.Press*(1+$CE4*32)^HP.G.TreadDepth*HL4,IF($B4="PAVDRN",IF(F4<0.094,HP.P.WFT.lt.24.Const*F4^HP.P.WFT.lt.24.WFT, HP.P.WFT.gt.24.Const*HL4))))),"") -> 69.21255143 | S4: =IF(G4<>"",IF(G4<=0,999,IF($B4="USF",CONVERT(CONVERT($CB4,"lbf","N")^HP.U.Load*CONVERT($CC4,"psi","kPa")^HP.U.Press*(HP.U.a*CONVERT(G4,"in","mm")^HP.U.WFT+HP.U.b),"km","mi"),IF($B4="Gallaway",$CD4^HP.G.SpinDown*$CC4^HP.G.Press*(1+$CE4*32)^HP.G.TreadDepth*HM4,IF($B4="PAVDRN",IF(G4<0.094,HP.P.WFT.lt.24.Const*G4^HP.P.WFT.lt.24.WFT, HP.P.WFT.gt.24.Const*HM4))))),"") ->  | T4: =IF(H4<>"",IF(H4<=0,999,IF($B4="USF",CONVERT(CONVERT($CB4,"lbf","N")^HP.U.Load*CONVERT($CC4,"psi","kPa")^HP.U.Press*(HP.U.a*CONVERT(H4,"in","mm")^HP.U.WFT+HP.U.b),"km","mi"),IF($B4="Gallaway",$CD4^HP.G.SpinDown*$CC4^HP.G.Press*(1+$CE4*32)^HP.G.TreadDepth*HN4,IF($B4="PAVDRN",IF(H4<0.094,HP.P.WFT.lt.24.Const*H4^HP.P.WFT.lt.24.WFT, HP.P.WFT.gt.24.Const*HN4))))),"") ->  | U4: =IF(I4<>"",IF(I4<=0,999,IF($B4="USF",CONVERT(CONVERT($CB4,"lbf","N")^HP.U.Load*CONVERT($CC4,"psi","kPa")^HP.U.Press*(HP.U.a*CONVERT(I4,"in","mm")^HP.U.WFT+HP.U.b),"km","mi"),IF($B4="Gallaway",$CD4^HP.G.SpinDown*$CC4^HP.G.Press*(1+$CE4*32)^HP.G.TreadDepth*HO4,IF($B4="PAVDRN",IF(I4<0.094,HP.P.WFT.lt.24.Const*I4^HP.P.WFT.lt.24.WFT, HP.P.WFT.gt.24.Const*HO4))))),"") ->  | V4: =IF(J4<>"",IF(J4<=0,999,IF($B4="USF",CONVERT(CONVERT($CB4,"lbf","N")^HP.U.Load*CONVERT($CC4,"psi","kPa")^HP.U.Press*(HP.U.a*CONVERT(J4,"in","mm")^HP.U.WFT+HP.U.b),"km","mi"),IF($B4="Gallaway",$CD4^HP.G.SpinDown*$CC4^HP.G.Press*(1+$CE4*32)^HP.G.TreadDepth*HP4,IF($B4="PAVDRN",IF(J4<0.094,HP.P.WFT.lt.24.Const*J4^HP.P.WFT.lt.24.WFT, HP.P.WFT.gt.24.Const*HP4))))),"") ->  | W4: =IF(K4<>"",IF(K4<=0,999,IF($B4="USF",CONVERT(CONVERT($CB4,"lbf","N")^HP.U.Load*CONVERT($CC4,"psi","kPa")^HP.U.Press*(HP.U.a*CONVERT(K4,"in","mm")^HP.U.WFT+HP.U.b),"km","mi"),IF($B4="Gallaway",$CD4^HP.G.SpinDown*$CC4^HP.G.Press*(1+$CE4*32)^HP.G.TreadDepth*HQ4,IF($B4="PAVDRN",IF(K4<0.094,HP.P.WFT.lt.24.Const*K4^HP.P.WFT.lt.24.WFT, HP.P.WFT.gt.24.Const*HQ4))))),"") ->  | X4: =IF(L4<>"",IF(L4<=0,999,IF($B4="USF",CONVERT(CONVERT($CB4,"lbf","N")^HP.U.Load*CONVERT($CC4,"psi","kPa")^HP.U.Press*(HP.U.a*CONVERT(L4,"in","mm")^HP.U.WFT+HP.U.b),"km","mi"),IF($B4="Gallaway",$CD4^HP.G.SpinDown*$CC4^HP.G.Press*(1+$CE4*32)^HP.G.TreadDepth*HR4,IF($B4="PAVDRN",IF(L4<0.094,HP.P.WFT.lt.24.Const*L4^HP.P.WFT.lt.24.WFT, HP.P.WFT.gt.24.Const*HR4))))),"") ->  | Y4: =IF(M4<>"",IF(M4<=0,999,IF($B4="USF",CONVERT(CONVERT($CB4,"lbf","N")^HP.U.Load*CONVERT($CC4,"psi","kPa")^HP.U.Press*(HP.U.a*CONVERT(M4,"in","mm")^HP.U.WFT+HP.U.b),"km","mi"),IF($B4="Gallaway",$CD4^HP.G.SpinDown*$CC4^HP.G.Press*(1+$CE4*32)^HP.G.TreadDepth*HS4,IF($B4="PAVDRN",IF(M4<0.094,HP.P.WFT.lt.24.Const*M4^HP.P.WFT.lt.24.WFT, HP.P.WFT.gt.24.Const*HS4))))),"") ->  | Z4: =IF(N4<>"",IF(N4<=0,999,IF($B4="USF",CONVERT(CONVERT($CB4,"lbf","N")^HP.U.Load*CONVERT($CC4,"psi","kPa")^HP.U.Press*(HP.U.a*CONVERT(N4,"in","mm")^HP.U.WFT+HP.U.b),"km","mi"),IF($B4="Gallaway",$CD4^HP.G.SpinDown*$CC4^HP.G.Press*(1+$CE4*32)^HP.G.TreadDepth*HT4,IF($B4="PAVDRN",IF(N4<0.094,HP.P.WFT.lt.24.Const*N4^HP.P.WFT.lt.24.WFT, HP.P.WFT.gt.24.Const*HT4))))),"") ->  | AA4: =IF(O4<>"",IF(O4<=0,999,IF($B4="USF",CONVERT(CONVERT($CB4,"lbf","N")^HP.U.Load*CONVERT($CC4,"psi","kPa")^HP.U.Press*(HP.U.a*CONVERT(O4,"in","mm")^HP.U.WFT+HP.U.b),"km","mi"),IF($B4="Gallaway",$CD4^HP.G.SpinDown*$CC4^HP.G.Press*(1+$CE4*32)^HP.G.TreadDepth*HU4,IF($B4="PAVDRN",IF(O4<0.094,HP.P.WFT.lt.24.Const*O4^HP.P.WFT.lt.24.WFT, HP.P.WFT.gt.24.Const*HU4))))),"") ->  | AB4: =IF(ISNUMBER(EB4)=FALSE,0,IF(AND(CF4<>"",EB4<>""),IF(EB4-18*ABS(CF4)/100>=0,EB4-18*ABS(CF4)/100,0),"")) -> 0 | AC4: =IF(ISNUMBER(EC4)=FALSE,0,IF(AND(CG4<>"",EC4<>""),IF(EC4-18*ABS(CG4)/100>=0,EC4-18*ABS(CG4)/100,0),"")) -> 0 | AD4: =IF(ISNUMBER(ED4)=FALSE,0,IF(AND(CH4<>"",ED4<>""),IF(ED4-18*ABS(CH4)/100>=0,ED4-18*ABS(CH4)/100,0),"")) -> 0 | AE4: =IF(ISNUMBER(EE4)=FALSE,0,IF(AND(CI4<>"",EE4<>""),IF(EE4-18*ABS(CI4)/100>=0,EE4-18*ABS(CI4)/100,0),"")) -> 0 | AF4: =IF(ISNUMBER(EF4)=FALSE,0,IF(AND(CJ4<>"",EF4<>""),IF(EF4-18*ABS(CJ4)/100>=0,EF4-18*ABS(CJ4)/100,0),"")) -> 0 | AG4: =IF(ISNUMBER(EG4)=FALSE,0,IF(AND(CK4<>"",EG4<>""),IF(EG4-18*ABS(CK4)/100>=0,EG4-18*ABS(CK4)/100,0),"")) -> 0 | AH4: =IF(ISNUMBER(EH4)=FALSE,0,IF(AND(CL4<>"",EH4<>""),IF(EH4-18*ABS(CL4)/100>=0,EH4-18*ABS(CL4)/100,0),"")) -> 0 | AI4: =IF(ISNUMBER(EI4)=FALSE,0,IF(AND(CM4<>"",EI4<>""),IF(EI4-18*ABS(CM4)/100>=0,EI4-18*ABS(CM4)/100,0),"")) -> 0 | AJ4: =IF(ISNUMBER(EJ4)=FALSE,0,IF(AND(CN4<>"",EJ4<>""),IF(EJ4-18*ABS(CN4)/100>=0,EJ4-18*ABS(CN4)/100,0),"")) -> 0 | AK4: =IF(ISNUMBER(EK4)=FALSE,0,IF(AND(CO4<>"",EK4<>""),IF(EK4-18*ABS(CO4)/100>=0,EK4-18*ABS(CO4)/100,0),"")) -> 0 | AL4: =IF(ISNUMBER(EL4)=FALSE,0,IF(AND(CP4<>"",EL4<>""),IF(EL4-18*ABS(CP4)/100>=0,EL4-18*ABS(CP4)/100,0),"")) -> 0 | AM4: =IF(ISNUMBER(EM4)=FALSE,0,IF(AND(CQ4<>"",EM4<>""),IF(EM4-18*ABS(CQ4)/100>=0,EM4-18*ABS(CQ4)/100,0),"")) -> 0 | AN4: =IF(AB4<>"",IF(AB4<=0,999,IF($B4="USF",CONVERT(CONVERT($CB4,"lbf","N")^HP.U.Load*CONVERT($CC4,"psi","kPa")^HP.U.Press*(HP.U.a*CONVERT(AB4,"in","mm")^HP.U.WFT+HP.U.b),"km","mi"),IF($B4="Gallaway",$CD4^HP.G.SpinDown*$CC4^HP.G.Press*(1+$CE4*32)^HP.G.TreadDepth*HV4,IF($B4="PAVDRN",IF(AB4<0.094,HP.P.WFT.lt.24.Const*AB4^HP.P.WFT.lt.24.WFT, HP.P.WFT.gt.24.Const*HV4))))),"") -> 999 | AO4: =IF(AC4<>"",IF(AC4<=0,999,IF($B4="USF",CONVERT(CONVERT($CB4,"lbf","N")^HP.U.Load*CONVERT($CC4,"psi","kPa")^HP.U.Press*(HP.U.a*CONVERT(AC4,"in","mm")^HP.U.WFT+HP.U.b),"km","mi"),IF($B4="Gallaway",$CD4^HP.G.SpinDown*$CC4^HP.G.Press*(1+$CE4*32)^HP.G.TreadDepth*HW4,IF($B4="PAVDRN",IF(AC4<0.094,HP.P.WFT.lt.24.Const*AC4^HP.P.WFT.lt.24.WFT, HP.P.WFT.gt.24.Const*HW4))))),"") -> 999 | AP4: =IF(AD4<>"",IF(AD4<=0,999,IF($B4="USF",CONVERT(CONVERT($CB4,"lbf","N")^HP.U.Load*CONVERT($CC4,"psi","kPa")^HP.U.Press*(HP.U.a*CONVERT(AD4,"in","mm")^HP.U.WFT+HP.U.b),"km","mi"),IF($B4="Gallaway",$CD4^HP.G.SpinDown*$CC4^HP.G.Press*(1+$CE4*32)^HP.G.TreadDepth*HX4,IF($B4="PAVDRN",IF(AD4<0.094,HP.P.WFT.lt.24.Const*AD4^HP.P.WFT.lt.24.WFT, HP.P.WFT.gt.24.Const*HX4))))),"") -> 999 | AQ4: =IF(AE4<>"",IF(AE4<=0,999,IF($B4="USF",CONVERT(CONVERT($CB4,"lbf","N")^HP.U.Load*CONVERT($CC4,"psi","kPa")^HP.U.Press*(HP.U.a*CONVERT(AE4,"in","mm")^HP.U.WFT+HP.U.b),"km","mi"),IF($B4="Gallaway",$CD4^HP.G.SpinDown*$CC4^HP.G.Press*(1+$CE4*32)^HP.G.TreadDepth*HY4,IF($B4="PAVDRN",IF(AE4<0.094,HP.P.WFT.lt.24.Const*AE4^HP.P.WFT.lt.24.WFT, HP.P.WFT.gt.24.Const*HY4))))),"") -> 999 | AR4: =IF(AF4<>"",IF(AF4<=0,999,IF($B4="USF",CONVERT(CONVERT($CB4,"lbf","N")^HP.U.Load*CONVERT($CC4,"psi","kPa")^HP.U.Press*(HP.U.a*CONVERT(AF4,"in","mm")^HP.U.WFT+HP.U.b),"km","mi"),IF($B4="Gallaway",$CD4^HP.G.SpinDown*$CC4^HP.G.Press*(1+$CE4*32)^HP.G.TreadDepth*HZ4,IF($B4="PAVDRN",IF(AF4<0.094,HP.P.WFT.lt.24.Const*AF4^HP.P.WFT.lt.24.WFT, HP.P.WFT.gt.24.Const*HZ4))))),"") -> 999 | AS4: =IF(AG4<>"",IF(AG4<=0,999,IF($B4="USF",CONVERT(CONVERT($CB4,"lbf","N")^HP.U.Load*CONVERT($CC4,"psi","kPa")^HP.U.Press*(HP.U.a*CONVERT(AG4,"in","mm")^HP.U.WFT+HP.U.b),"km","mi"),IF($B4="Gallaway",$CD4^HP.G.SpinDown*$CC4^HP.G.Press*(1+$CE4*32)^HP.G.TreadDepth*IA4,IF($B4="PAVDRN",IF(AG4<0.094,HP.P.WFT.lt.24.Const*AG4^HP.P.WFT.lt.24.WFT, HP.P.WFT.gt.24.Const*IA4))))),"") -> 999 | AT4: =IF(AH4<>"",IF(AH4<=0,999,IF($B4="USF",CONVERT(CONVERT($CB4,"lbf","N")^HP.U.Load*CONVERT($CC4,"psi","kPa")^HP.U.Press*(HP.U.a*CONVERT(AH4,"in","mm")^HP.U.WFT+HP.U.b),"km","mi"),IF($B4="Gallaway",$CD4^HP.G.SpinDown*$CC4^HP.G.Press*(1+$CE4*32)^HP.G.TreadDepth*IB4,IF($B4="PAVDRN",IF(AH4<0.094,HP.P.WFT.lt.24.Const*AH4^HP.P.WFT.lt.24.WFT, HP.P.WFT.gt.24.Const*IB4))))),"") -> 999 | AU4: =IF(AI4<>"",IF(AI4<=0,999,IF($B4="USF",CONVERT(CONVERT($CB4,"lbf","N")^HP.U.Load*CONVERT($CC4,"psi","kPa")^HP.U.Press*(HP.U.a*CONVERT(AI4,"in","mm")^HP.U.WFT+HP.U.b),"km","mi"),IF($B4="Gallaway",$CD4^HP.G.SpinDown*$CC4^HP.G.Press*(1+$CE4*32)^HP.G.TreadDepth*IC4,IF($B4="PAVDRN",IF(AI4<0.094,HP.P.WFT.lt.24.Const*AI4^HP.P.WFT.lt.24.WFT, HP.P.WFT.gt.24.Const*IC4))))),"") -> 999 | AV4: =IF(AJ4<>"",IF(AJ4<=0,999,IF($B4="USF",CONVERT(CONVERT($CB4,"lbf","N")^HP.U.Load*CONVERT($CC4,"psi","kPa")^HP.U.Press*(HP.U.a*CONVERT(AJ4,"in","mm")^HP.U.WFT+HP.U.b),"km","mi"),IF($B4="Gallaway",$CD4^HP.G.SpinDown*$CC4^HP.G.Press*(1+$CE4*32)^HP.G.TreadDepth*ID4,IF($B4="PAVDRN",IF(AJ4<0.094,HP.P.WFT.lt.24.Const*AJ4^HP.P.WFT.lt.24.WFT, HP.P.WFT.gt.24.Const*ID4))))),"") -> 999 | AW4: =IF(AK4<>"",IF(AK4<=0,999,IF($B4="USF",CONVERT(CONVERT($CB4,"lbf","N")^HP.U.Load*CONVERT($CC4,"psi","kPa")^HP.U.Press*(HP.U.a*CONVERT(AK4,"in","mm")^HP.U.WFT+HP.U.b),"km","mi"),IF($B4="Gallaway",$CD4^HP.G.SpinDown*$CC4^HP.G.Press*(1+$CE4*32)^HP.G.TreadDepth*IE4,IF($B4="PAVDRN",IF(AK4<0.094,HP.P.WFT.lt.24.Const*AK4^HP.P.WFT.lt.24.WFT, HP.P.WFT.gt.24.Const*IE4))))),"") -> 999 | AX4: =IF(AL4<>"",IF(AL4<=0,999,IF($B4="USF",CONVERT(CONVERT($CB4,"lbf","N")^HP.U.Load*CONVERT($CC4,"psi","kPa")^HP.U.Press*(HP.U.a*CONVERT(AL4,"in","mm")^HP.U.WFT+HP.U.b),"km","mi"),IF($B4="Gallaway",$CD4^HP.G.SpinDown*$CC4^HP.G.Press*(1+$CE4*32)^HP.G.TreadDepth*IF4,IF($B4="PAVDRN",IF(AL4<0.094,HP.P.WFT.lt.24.Const*AL4^HP.P.WFT.lt.24.WFT, HP.P.WFT.gt.24.Const*IF4))))),"") -> 999 | AY4: =IF(AM4<>"",IF(AM4<=0,999,IF($B4="USF",CONVERT(CONVERT($CB4,"lbf","N")^HP.U.Load*CONVERT($CC4,"psi","kPa")^HP.U.Press*(HP.U.a*CONVERT(AM4,"in","mm")^HP.U.WFT+HP.U.b),"km","mi"),IF($B4="Gallaway",$CD4^HP.G.SpinDown*$CC4^HP.G.Press*(1+$CE4*32)^HP.G.TreadDepth*IG4,IF($B4="PAVDRN",IF(AM4<0.094,HP.P.WFT.lt.24.Const*AM4^HP.P.WFT.lt.24.WFT, HP.P.WFT.gt.24.Const*IG4))))),"") -> 999 | AZ4: 26.30190986 | BA4: 26.30194452 | BB4: 26.30197869 | BL4: -80.24255961 | BM4: -80.24257961 | BN4: -80.24258861 | BX4: Open Graded Friction Course | BY4: 0 | BZ4: 2 | CF4: 1.28 | CG4: 1.53 | CH4: 2.24 | CR4: -0.59 | CS4: -0.56 | CT4: -0.64 | DD4: 0.068 | DE4: 0.068 | DF4: 0.068 | DP4: =IF(DD4="","",IF($BX4="Dense Graded Friction Course",MPD.to.MTD.DGFC.a*DD4+MPD.to.MTD.DGFC.b,IF($BX4="Open Graded Friction Course",MPD.to.MTD.OGFC.a*DD4+MPD.to.MTD.OGFC.b,IF($BX4="PCC (LGD)",MPD.to.MTD.LGD.a*DD4+MPD.to.MTD.LGD.b,MPD.to.MTD.LGD.TGV.a*DD4+MPD.to.MTD.LGD.TGV.b)))) -> 0.082188 | DQ4: =IF(DE4="","",IF($BX4="Dense Graded Friction Course",MPD.to.MTD.DGFC.a*DE4+MPD.to.MTD.DGFC.b,IF($BX4="Open Graded Friction Course",MPD.to.MTD.OGFC.a*DE4+MPD.to.MTD.OGFC.b,IF($BX4="PCC (LGD)",MPD.to.MTD.LGD.a*DE4+MPD.to.MTD.LGD.b,MPD.to.MTD.LGD.TGV.a*DE4+MPD.to.MTD.LGD.TGV.b)))) -> 0.082188 | DR4: =IF(DF4="","",IF($BX4="Dense Graded Friction Course",MPD.to.MTD.DGFC.a*DF4+MPD.to.MTD.DGFC.b,IF($BX4="Open Graded Friction Course",MPD.to.MTD.OGFC.a*DF4+MPD.to.MTD.OGFC.b,IF($BX4="PCC (LGD)",MPD.to.MTD.LGD.a*DF4+MPD.to.MTD.LGD.b,MPD.to.MTD.LGD.TGV.a*DF4+MPD.to.MTD.LGD.TGV.b)))) -> 0.082188 | DS4: =IF(DG4="","",IF($BX4="Dense Graded Friction Course",MPD.to.MTD.DGFC.a*DG4+MPD.to.MTD.DGFC.b,IF($BX4="Open Graded Friction Course",MPD.to.MTD.OGFC.a*DG4+MPD.to.MTD.OGFC.b,IF($BX4="PCC (LGD)",MPD.to.MTD.LGD.a*DG4+MPD.to.MTD.LGD.b,MPD.to.MTD.LGD.TGV.a*DG4+MPD.to.MTD.LGD.TGV.b)))) ->  | DT4: =IF(DH4="","",IF($BX4="Dense Graded Friction Course",MPD.to.MTD.DGFC.a*DH4+MPD.to.MTD.DGFC.b,IF($BX4="Open Graded Friction Course",MPD.to.MTD.OGFC.a*DH4+MPD.to.MTD.OGFC.b,IF($BX4="PCC (LGD)",MPD.to.MTD.LGD.a*DH4+MPD.to.MTD.LGD.b,MPD.to.MTD.LGD.TGV.a*DH4+MPD.to.MTD.LGD.TGV.b)))) ->  | DU4: =IF(DI4="","",IF($BX4="Dense Graded Friction Course",MPD.to.MTD.DGFC.a*DI4+MPD.to.MTD.DGFC.b,IF($BX4="Open Graded Friction Course",MPD.to.MTD.OGFC.a*DI4+MPD.to.MTD.OGFC.b,IF($BX4="PCC (LGD)",MPD.to.MTD.LGD.a*DI4+MPD.to.MTD.LGD.b,MPD.to.MTD.LGD.TGV.a*DI4+MPD.to.MTD.LGD.TGV.b)))) ->  | DV4: =IF(DJ4="","",IF($BX4="Dense Graded Friction Course",MPD.to.MTD.DGFC.a*DJ4+MPD.to.MTD.DGFC.b,IF($BX4="Open Graded Friction Course",MPD.to.MTD.OGFC.a*DJ4+MPD.to.MTD.OGFC.b,IF($BX4="PCC (LGD)",MPD.to.MTD.LGD.a*DJ4+MPD.to.MTD.LGD.b,MPD.to.MTD.LGD.TGV.a*DJ4+MPD.to.MTD.LGD.TGV.b)))) ->  | DW4: =IF(DK4="","",IF($BX4="Dense Graded Friction Course",MPD.to.MTD.DGFC.a*DK4+MPD.to.MTD.DGFC.b,IF($BX4="Open Graded Friction Course",MPD.to.MTD.OGFC.a*DK4+MPD.to.MTD.OGFC.b,IF($BX4="PCC (LGD)",MPD.to.MTD.LGD.a*DK4+MPD.to.MTD.LGD.b,MPD.to.MTD.LGD.TGV.a*DK4+MPD.to.MTD.LGD.TGV.b)))) ->  | DX4: =IF(DL4="","",IF($BX4="Dense Graded Friction Course",MPD.to.MTD.DGFC.a*DL4+MPD.to.MTD.DGFC.b,IF($BX4="Open Graded Friction Course",MPD.to.MTD.OGFC.a*DL4+MPD.to.MTD.OGFC.b,IF($BX4="PCC (LGD)",MPD.to.MTD.LGD.a*DL4+MPD.to.MTD.LGD.b,MPD.to.MTD.LGD.TGV.a*DL4+MPD.to.MTD.LGD.TGV.b)))) ->  | DY4: =IF(DM4="","",IF($BX4="Dense Graded Friction Course",MPD.to.MTD.DGFC.a*DM4+MPD.to.MTD.DGFC.b,IF($BX4="Open Graded Friction Course",MPD.to.MTD.OGFC.a*DM4+MPD.to.MTD.OGFC.b,IF($BX4="PCC (LGD)",MPD.to.MTD.LGD.a*DM4+MPD.to.MTD.LGD.b,MPD.to.MTD.LGD.TGV.a*DM4+MPD.to.MTD.LGD.TGV.b)))) ->  | DZ4: =IF(DN4="","",IF($BX4="Dense Graded Friction Course",MPD.to.MTD.DGFC.a*DN4+MPD.to.MTD.DGFC.b,IF($BX4="Open Graded Friction Course",MPD.to.MTD.OGFC.a*DN4+MPD.to.MTD.OGFC.b,IF($BX4="PCC (LGD)",MPD.to.MTD.LGD.a*DN4+MPD.to.MTD.LGD.b,MPD.to.MTD.LGD.TGV.a*DN4+MPD.to.MTD.LGD.TGV.b)))) ->  | EA4: =IF(DO4="","",IF($BX4="Dense Graded Friction Course",MPD.to.MTD.DGFC.a*DO4+MPD.to.MTD.DGFC.b,IF($BX4="Open Graded Friction Course",MPD.to.MTD.OGFC.a*DO4+MPD.to.MTD.OGFC.b,IF($BX4="PCC (LGD)",MPD.to.MTD.LGD.a*DO4+MPD.to.MTD.LGD.b,MPD.to.MTD.LGD.TGV.a*DO4+MPD.to.MTD.LGD.TGV.b)))) ->  | EB4: 0.05 | EC4: 0.08 | ED4: 0.11 | EN4: 12 | EO4: 12 | EP4: 12 | EZ4: =BZ4-BY4 -> 2 | FA4: =IF(AND(CF4<>"",CR4<>""),SQRT(CR4^2+CF4^2),"") -> 1.40943251 | FB4: =IF(AND(CG4<>"",CS4<>""),SQRT(CS4^2+CG4^2),"") -> 1.629263637 | FC4: =IF(AND(CH4<>"",CT4<>""),SQRT(CT4^2+CH4^2),"") -> 2.329635165 | FD4: =IF(AND(CI4<>"",CU4<>""),SQRT(CU4^2+CI4^2),"") ->  | FE4: =IF(AND(CJ4<>"",CV4<>""),SQRT(CV4^2+CJ4^2),"") ->  | FF4: =IF(AND(CK4<>"",CW4<>""),SQRT(CW4^2+CK4^2),"") ->  | FG4: =IF(AND(CL4<>"",CX4<>""),SQRT(CX4^2+CL4^2),"") ->  | FH4: =IF(AND(CM4<>"",CY4<>""),SQRT(CY4^2+CM4^2),"") ->  | FI4: =IF(AND(CN4<>"",CZ4<>""),SQRT(CZ4^2+CN4^2),"") ->  | FJ4: =IF(AND(CO4<>"",DA4<>""),SQRT(DA4^2+CO4^2),"") ->  | FK4: =IF(AND(CP4<>"",DB4<>""),SQRT(DB4^2+CP4^2),"") ->  | FL4: =IF(AND(CQ4<>"",DC4<>""),SQRT(DC4^2+CQ4^2),"") ->  | FM4: =IF(FA4<>"",EN4*SQRT(1+(CR4/CF4)^2),"") -> 13.21342978 | FN4: =IF(FB4<>"",EO4*SQRT(1+(CS4/CG4)^2),"") -> 12.77853833 | FO4: =IF(FC4<>"",EP4*SQRT(1+(CT4/CH4)^2),"") -> 12.48018838 | FP4: =IF(FD4<>"",EQ4*SQRT(1+(CU4/CI4)^2),"") ->  | FQ4: =IF(FE4<>"",ER4*SQRT(1+(CV4/CJ4)^2),"") ->  | FR4: =IF(FF4<>"",ES4*SQRT(1+(CW4/CK4)^2),"") ->  | FS4: =IF(FG4<>"",ET4*SQRT(1+(CX4/CL4)^2),"") ->  | FT4: =IF(FH4<>"",EU4*SQRT(1+(CY4/CM4)^2),"") ->  | FU4: =IF(FI4<>"",EV4*SQRT(1+(CZ4/CN4)^2),"") ->  | FV4: =IF(FJ4<>"",EW4*SQRT(1+(DA4/CO4)^2),"") ->  | FW4: =IF(FK4<>"",EX4*SQRT(1+(DB4/CP4)^2),"") ->  | FX4: =IF(FL4<>"",EY4*SQRT(1+(DC4/CQ4)^2),"") ->  | FY4: =IF(FM4<>"",FM4,"") -> 13.21342978 | FZ4: =IF(FN4<>"",IF(CF4*CG4>0,FY4+FN4,FN4),"") -> 25.99196811 | GA4: =IF(FO4<>"",IF(CG4*CH4>0,FZ4+FO4,FO4),"") -> 38.47215649 | GB4: =IF(FP4<>"",IF(CH4*CI4>0,GA4+FP4,FP4),"") ->  | GC4: =IF(FQ4<>"",IF(CI4*CJ4>0,GB4+FQ4,FQ4),"") ->  | GD4: =IF(FR4<>"",IF(CJ4*CK4>0,GC4+FR4,FR4),"") ->  | GE4: =IF(FS4<>"",IF(CK4*CL4>0,GD4+FS4,FS4),"") ->  | GF4: =IF(FT4<>"",IF(CL4*CM4>0,GE4+FT4,FT4),"") ->  | GG4: =IF(FU4<>"",IF(CM4*CN4>0,GF4+FU4,FU4),"") ->  | GH4: =IF(FV4<>"",IF(CN4*CO4>0,GG4+FV4,FV4),"") ->  | GI4: =IF(FW4<>"",IF(CO4*CP4>0,GH4+FW4,FW4),"") ->  | GJ4: =IF(FX4<>"",IF(CP4*CQ4>0,GI4+FX4,FX4),"") ->  | GK4: 3.880564287e-05 | GL4: =IF(FY4<>"",FY4*$EZ4/12/3600/$GK4,"") -> 15.76401819 | GM4: =IF(FZ4<>"",FZ4*$EZ4/12/3600/$GK4,"") -> 31.00919784 | GN4: =IF(GA4<>"",GA4*$EZ4/12/3600/$GK4,"") -> 45.89843704 | GO4: =IF(GB4<>"",GB4*$EZ4/12/3600/$GK4,"") ->  | GP4: =IF(GC4<>"",GC4*$EZ4/12/3600/$GK4,"") ->  | GQ4: =IF(GD4<>"",GD4*$EZ4/12/3600/$GK4,"") ->  | GR4: =IF(GE4<>"",GE4*$EZ4/12/3600/$GK4,"") ->  | GS4: =IF(GF4<>"",GF4*$EZ4/12/3600/$GK4,"") ->  | GT4: =IF(GG4<>"",GG4*$EZ4/12/3600/$GK4,"") ->  | GU4: =IF(GH4<>"",GH4*$EZ4/12/3600/$GK4,"") ->  | GV4: =IF(GI4<>"",GI4*$EZ4/12/3600/$GK4,"") ->  | GW4: =IF(GJ4<>"",GJ4*$EZ4/12/3600/$GK4,"") ->  | GX4: =IF(GL4<>"",IF($BX4="Dense Graded Friction Course",Manning.DGFC.Const*GL4^Manning.DGFC.NR,IF($BX4="Open Graded Friction Course",Manning.OGFC.Const*GL4^Manning.OGFC.NR*FA4^Manning.OGFC.Slope,IF(GL4<500,Manning.PCC.NR.lt.500.Const*GL4^Manning.PCC.NR.lt.500.NR,IF(GL4<1000,Manning.PCC.NR.lt.1000.Const*GL4^Manning.PCC.NR.lt.1000.NR,0.017)))),"") -> 0.5140235804 | GY4: =IF(GM4<>"",IF($BX4="Dense Graded Friction Course",Manning.DGFC.Const*GM4^Manning.DGFC.NR,IF($BX4="Open Graded Friction Course",Manning.OGFC.Const*GM4^Manning.OGFC.NR*FB4^Manning.OGFC.Slope,IF(GM4<500,Manning.PCC.NR.lt.500.Const*GM4^Manning.PCC.NR.lt.500.NR,IF(GM4<1000,Manning.PCC.NR.lt.1000.Const*GM4^Manning.PCC.NR.lt.1000.NR,0.017)))),"") -> 0.4033328922 | GZ4: =IF(GN4<>"",IF($BX4="Dense Graded Friction Course",Manning.DGFC.Const*GN4^Manning.DGFC.NR,IF($BX4="Open Graded Friction Course",Manning.OGFC.Const*GN4^Manning.OGFC.NR*FC4^Manning.OGFC.Slope,IF(GN4<500,Manning.PCC.NR.lt.500.Const*GN4^Manning.PCC.NR.lt.500.NR,IF(GN4<1000,Manning.PCC.NR.lt.1000.Const*GN4^Manning.PCC.NR.lt.1000.NR,0.017)))),"") -> 0.3810430647 | HA4: =IF(GO4<>"",IF($BX4="Dense Graded Friction Course",Manning.DGFC.Const*GO4^Manning.DGFC.NR,IF($BX4="Open Graded Friction Course",Manning.OGFC.Const*GO4^Manning.OGFC.NR*FD4^Manning.OGFC.Slope,IF(GO4<500,Manning.PCC.NR.lt.500.Const*GO4^Manning.PCC.NR.lt.500.NR,IF(GO4<1000,Manning.PCC.NR.lt.1000.Const*GO4^Manning.PCC.NR.lt.1000.NR,0.017)))),"") ->  | HB4: =IF(GP4<>"",IF($BX4="Dense Graded Friction Course",Manning.DGFC.Const*GP4^Manning.DGFC.NR,IF($BX4="Open Graded Friction Course",Manning.OGFC.Const*GP4^Manning.OGFC.NR*FE4^Manning.OGFC.Slope,IF(GP4<500,Manning.PCC.NR.lt.500.Const*GP4^Manning.PCC.NR.lt.500.NR,IF(GP4<1000,Manning.PCC.NR.lt.1000.Const*GP4^Manning.PCC.NR.lt.1000.NR,0.017)))),"") ->  | HC4: =IF(GQ4<>"",IF($BX4="Dense Graded Friction Course",Manning.DGFC.Const*GQ4^Manning.DGFC.NR,IF($BX4="Open Graded Friction Course",Manning.OGFC.Const*GQ4^Manning.OGFC.NR*FF4^Manning.OGFC.Slope,IF(GQ4<500,Manning.PCC.NR.lt.500.Const*GQ4^Manning.PCC.NR.lt.500.NR,IF(GQ4<1000,Manning.PCC.NR.lt.1000.Const*GQ4^Manning.PCC.NR.lt.1000.NR,0.017)))),"") ->  | HD4: =IF(GR4<>"",IF($BX4="Dense Graded Friction Course",Manning.DGFC.Const*GR4^Manning.DGFC.NR,IF($BX4="Open Graded Friction Course",Manning.OGFC.Const*GR4^Manning.OGFC.NR*FG4^Manning.OGFC.Slope,IF(GR4<500,Manning.PCC.NR.lt.500.Const*GR4^Manning.PCC.NR.lt.500.NR,IF(GR4<1000,Manning.PCC.NR.lt.1000.Const*GR4^Manning.PCC.NR.lt.1000.NR,0.017)))),"") ->  | HE4: =IF(GS4<>"",IF($BX4="Dense Graded Friction Course",Manning.DGFC.Const*GS4^Manning.DGFC.NR,IF($BX4="Open Graded Friction Course",Manning.OGFC.Const*GS4^Manning.OGFC.NR*FH4^Manning.OGFC.Slope,IF(GS4<500,Manning.PCC.NR.lt.500.Const*GS4^Manning.PCC.NR.lt.500.NR,IF(GS4<1000,Manning.PCC.NR.lt.1000.Const*GS4^Manning.PCC.NR.lt.1000.NR,0.017)))),"") ->  | HF4: =IF(GT4<>"",IF($BX4="Dense Graded Friction Course",Manning.DGFC.Const*GT4^Manning.DGFC.NR,IF($BX4="Open Graded Friction Course",Manning.OGFC.Const*GT4^Manning.OGFC.NR*FI4^Manning.OGFC.Slope,IF(GT4<500,Manning.PCC.NR.lt.500.Const*GT4^Manning.PCC.NR.lt.500.NR,IF(GT4<1000,Manning.PCC.NR.lt.1000.Const*GT4^Manning.PCC.NR.lt.1000.NR,0.017)))),"") ->  | HG4: =IF(GU4<>"",IF($BX4="Dense Graded Friction Course",Manning.DGFC.Const*GU4^Manning.DGFC.NR,IF($BX4="Open Graded Friction Course",Manning.OGFC.Const*GU4^Manning.OGFC.NR*FJ4^Manning.OGFC.Slope,IF(GU4<500,Manning.PCC.NR.lt.500.Const*GU4^Manning.PCC.NR.lt.500.NR,IF(GU4<1000,Manning.PCC.NR.lt.1000.Const*GU4^Manning.PCC.NR.lt.1000.NR,0.017)))),"") ->  | HH4: =IF(GV4<>"",IF($BX4="Dense Graded Friction Course",Manning.DGFC.Const*GV4^Manning.DGFC.NR,IF($BX4="Open Graded Friction Course",Manning.OGFC.Const*GV4^Manning.OGFC.NR*FK4^Manning.OGFC.Slope,IF(GV4<500,Manning.PCC.NR.lt.500.Const*GV4^Manning.PCC.NR.lt.500.NR,IF(GV4<1000,Manning.PCC.NR.lt.1000.Const*GV4^Manning.PCC.NR.lt.1000.NR,0.017)))),"") ->  | HI4: =IF(GW4<>"",IF($BX4="Dense Graded Friction Course",Manning.DGFC.Const*GW4^Manning.DGFC.NR,IF($BX4="Open Graded Friction Course",Manning.OGFC.Const*GW4^Manning.OGFC.NR*FL4^Manning.OGFC.Slope,IF(GW4<500,Manning.PCC.NR.lt.500.Const*GW4^Manning.PCC.NR.lt.500.NR,IF(GW4<1000,Manning.PCC.NR.lt.1000.Const*GW4^Manning.PCC.NR.lt.1000.NR,0.017)))),"") ->  | HJ4: =IF(D4<>"",MAX(A1.a*D4^A1.WFT+A1.b,(A2.a*D4^A2.WFT+A2.b)*DP4^A2.MTD),"") ->  | HK4: =IF(E4<>"",MAX(A1.a*E4^A1.WFT+A1.b,(A2.a*E4^A2.WFT+A2.b)*DQ4^A2.MTD),"") -> 20.69077386 | HL4: =IF(F4<>"",MAX(A1.a*F4^A1.WFT+A1.b,(A2.a*F4^A2.WFT+A2.b)*DR4^A2.MTD),"") -> 20.082336 | HM4: =IF(G4<>"",MAX(A1.a*G4^A1.WFT+A1.b,(A2.a*G4^A2.WFT+A2.b)*DS4^A2.MTD),"") ->  | HN4: =IF(H4<>"",MAX(A1.a*H4^A1.WFT+A1.b,(A2.a*H4^A2.WFT+A2.b)*DT4^A2.MTD),"") ->  | HO4: =IF(I4<>"",MAX(A1.a*I4^A1.WFT+A1.b,(A2.a*I4^A2.WFT+A2.b)*DU4^A2.MTD),"") ->  | HP4: =IF(J4<>"",MAX(A1.a*J4^A1.WFT+A1.b,(A2.a*J4^A2.WFT+A2.b)*DV4^A2.MTD),"") ->  | HQ4: =IF(K4<>"",MAX(A1.a*K4^A1.WFT+A1.b,(A2.a*K4^A2.WFT+A2.b)*DW4^A2.MTD),"") ->  | HR4: =IF(L4<>"",MAX(A1.a*L4^A1.WFT+A1.b,(A2.a*L4^A2.WFT+A2.b)*DX4^A2.MTD),"") ->  | HS4: =IF(M4<>"",MAX(A1.a*M4^A1.WFT+A1.b,(A2.a*M4^A2.WFT+A2.b)*DY4^A2.MTD),"") ->  | HT4: =IF(N4<>"",MAX(A1.a*N4^A1.WFT+A1.b,(A2.a*N4^A2.WFT+A2.b)*DZ4^A2.MTD),"") ->  | HU4: =IF(O4<>"",MAX(A1.a*O4^A1.WFT+A1.b,(A2.a*O4^A2.WFT+A2.b)*EA4^A2.MTD),"") ->  | HV4: =IF(AB4<>"",MAX(A1.a*AB4^A1.WFT+A1.b,(A2.a*AB4^A2.WFT+A2.b)*DP4^A2.MTD),"") ->  | HW4: =IF(AC4<>"",MAX(A1.a*AC4^A1.WFT+A1.b,(A2.a*AC4^A2.WFT+A2.b)*DQ4^A2.MTD),"") ->  | HX4: =IF(AD4<>"",MAX(A1.a*AD4^A1.WFT+A1.b,(A2.a*AD4^A2.WFT+A2.b)*DR4^A2.MTD),"") ->  | HY4: =IF(AE4<>"",MAX(A1.a*AE4^A1.WFT+A1.b,(A2.a*AE4^A2.WFT+A2.b)*DS4^A2.MTD),"") ->  | HZ4: =IF(AF4<>"",MAX(A1.a*AF4^A1.WFT+A1.b,(A2.a*AF4^A2.WFT+A2.b)*DT4^A2.MTD),"") ->  | IA4: =IF(AG4<>"",MAX(A1.a*AG4^A1.WFT+A1.b,(A2.a*AG4^A2.WFT+A2.b)*DU4^A2.MTD),"") ->  | IB4: =IF(AH4<>"",MAX(A1.a*AH4^A1.WFT+A1.b,(A2.a*AH4^A2.WFT+A2.b)*DV4^A2.MTD),"") ->  | IC4: =IF(AI4<>"",MAX(A1.a*AI4^A1.WFT+A1.b,(A2.a*AI4^A2.WFT+A2.b)*DW4^A2.MTD),"") ->  | ID4: =IF(AJ4<>"",MAX(A1.a*AJ4^A1.WFT+A1.b,(A2.a*AJ4^A2.WFT+A2.b)*DX4^A2.MTD),"") ->  | IE4: =IF(AK4<>"",MAX(A1.a*AK4^A1.WFT+A1.b,(A2.a*AK4^A2.WFT+A2.b)*DY4^A2.MTD),"") ->  | IF4: =IF(AL4<>"",MAX(A1.a*AL4^A1.WFT+A1.b,(A2.a*AL4^A2.WFT+A2.b)*DZ4^A2.MTD),"") ->  | IG4: =IF(AM4<>"",MAX(A1.a*AM4^A1.WFT+A1.b,(A2.a*AM4^A2.WFT+A2.b)*EA4^A2.MTD),"") ->  | IH4: 60 | II4: 60 | IJ4: 60
A5: Gallaway | B5: PAVDRN | C5: 16.102 | D5: -0.008348073141 | E5: 0.01581454607 | F5: 0.02335464711 | P5: 999 | Q5: 76.22286816 | R5: 68.90207369 | AB5: 0 | AC5: 0 | AD5: 0 | AE5: 0 | AF5: 0 | AG5: 0 | AH5: 0 | AI5: 0 | AJ5: 0 | AK5: 0 | AL5: 0 | AM5: 0 | AN5: 999 | AO5: 999 | AP5: 999 | AQ5: 999 | AR5: 999 | AS5: 999 | AT5: 999 | AU5: 999 | AV5: 999 | AW5: 999 | AX5: 999 | AY5: 999 | AZ5: 26.30190954 | BA5: 26.30194435 | BB5: 26.30197853 | BL5: -80.24254527 | BM5: -80.24256541 | BN5: -80.24257497 | BX5: Open Graded Friction Course | BY5: 0 | BZ5: 2 | CF5: 1.22 | CG5: 1.52 | CH5: 2.23 | CR5: -0.58 | CS5: -0.59 | CT5: -0.64 | DD5: 0.068 | DE5: 0.068 | DF5: 0.068 | DP5: 0.082188 | DQ5: 0.082188 | DR5: 0.082188 | EB5: 0.05 | EC5: 0.09 | ED5: 0.11 | EN5: 12 | EO5: 12 | EP5: 12 | EZ5: 2 | FA5: 1.350851583 | FB5: 1.630490724 | FC5: 2.320021552 | FM5: 13.28706475 | FN5: 12.87229519 | FO5: 12.48442091 | FY5: 13.28706475 | FZ5: 26.15935994 | GA5: 38.64378085 | GK5: 3.880564287e-05 | GL5: 15.85186692 | GM5: 31.20890131 | GN5: 46.10319004 | GX5: 0.5061952994 | GY5: 0.4023292454 | GZ5: 0.3798436689 | HK5: 20.66076449 | HL5: 20.05569512 | IH5: 60 | II5: 60 | IJ5: 60
A6: Gallaway | B6: PAVDRN | C6: 16.103 | D6: -0.007425333398 | E6: 0.01675953988 | F6: 0.02366675432 | P6: 999 | Q6: 75.08567655 | R6: 68.66557418 | AB6: 0 | AC6: 0 | AD6: 0 | AE6: 0 | AF6: 0 | AG6: 0 | AH6: 0 | AI6: 0 | AJ6: 0 | AK6: 0 | AL6: 0 | AM6: 0 | AN6: 999 | AO6: 999 | AP6: 999 | AQ6: 999 | AR6: 999 | AS6: 999 | AT6: 999 | AU6: 999 | AV6: 999 | AW6: 999 | AX6: 999 | AY6: 999 | AZ6: 26.30190936 | BA6: 26.30194419 | BB6: 26.30197822 | BL6: -80.24253126 | BM6: -80.24255124 | BN6: -80.24256144 | BX6: Open Graded Friction Course | BY6: 0 | BZ6: 2 | CF6: 1.19 | CG6: 1.5 | CH6: 2.25 | CR6: -0.63 | CS6: -0.62 | CT6: -0.61 | DD6: 0.068 | DE6: 0.068 | DF6: 0.068 | DP6: 0.082188 | DQ6: 0.082188 | DR6: 0.082188 | EB6: 0.05 | EC6: 0.08 | ED6: 0.1 | EN6: 12 | EO6: 12 | EP6: 12 | EZ6: 2 | FA6: 1.346476884 | FB6: 1.623083485 | FC6: 2.331222855 | FM6: 13.57791816 | FN6: 12.98466788 | FO6: 12.43318856 | FY6: 13.57791816 | FZ6: 26.56258604 | GA6: 38.9957746 | GK6: 3.880564287e-05 | GL6: 16.19886377 | GM6: 31.68996215 | GN6: 46.52312916 | GX6: 0.5010714774 | GY6: 0.3991717167 | GZ6: 0.3789442204 | HK6: 20.56979155 | HL6: 20.03534007 | IH6: 60 | II6: 60 | IJ6: 60
A7: Gallaway | B7: PAVDRN | C7: 16.104 | D7: -0.007648571173 | E7: 0.01676801728 | F7: 0.0245760403 | P7: 999 | Q7: 75.0758428 | R7: 67.99835321 | AB7: 0 | AC7: 0 | AD7: 0 | AE7: 0 | AF7: 0 | AG7: 0 | AH7: 0 | AI7: 0 | AJ7: 0 | AK7: 0 | AL7: 0 | AM7: 0 | AN7: 999 | AO7: 999 | AP7: 999 | AQ7: 999 | AR7: 999 | AS7: 999 | AT7: 999 | AU7: 999 | AV7: 999 | AW7: 999 | AX7: 999 | AY7: 999 | AZ7: 26.30190911 | BA7: 26.30194402 | BB7: 26.30197794 | BL7: -80.24250986 | BM7: -80.24253695 | BN7: -80.2425412 | BX7: Open Graded Friction Course | BY7: 0 | BZ7: 2 | CF7: 1.195 | CG7: 1.49 | CH7: 2.185 | CR7: -0.605 | CS7: -0.61 | CT7: -0.6 | DD7: 0.068 | DE7: 0.068 | DF7: 0.068 | DP7: 0.082188 | DQ7: 0.082188 | DR7: 0.082188 | EB7: 0.04 | EC7: 0.09 | ED7: 0.19 | EN7: 12 | EO7: 12 | EP7: 12 | EZ7: 2 | FA7: 1.339421517 | FB7: 1.610031056 | FC7: 2.26588283 | FM7: 13.45025791 | FN7: 12.96669307 | FO7: 12.44420776 | FY7: 13.45025791 | FZ7: 26.41695098 | GA7: 38.86115874 | GK7: 3.880564287e-05 | GL7: 16.04656126 | GM7: 31.51621514 | GN7: 46.36252839 | GX7: 0.5022743434 | GY7: 0.3991159738 | GZ7: 0.376213237 | HK7: 20.56900027 | HL7: 19.97762183 | IH7: 60 | II7: 60 | IJ7: 60
A8: Gallaway | B8: PAVDRN | C8: 16.105 | D8: -0.006826600015 | E8: 0.0172855497 | F8: 0.02496581782 | P8: 999 | Q8: 74.48709418 | R8: 67.7217884 | AB8: 0 | AC8: 0 | AD8: 0 | AE8: 0 | AF8: 0 | AG8: 0 | AH8: 0 | AI8: 0 | AJ8: 0 | AK8: 0 | AL8: 0 | AM8: 0 | AN8: 999 | AO8: 999 | AP8: 999 | AQ8: 999 | AR8: 999 | AS8: 999 | AT8: 999 | AU8: 999 | AV8: 999 | AW8: 999 | AX8: 999 | AY8: 999 | AZ8: 26.30190871 | BA8: 26.3019437 | BB8: 26.30197769 | BL8: -80.24248859 | BM8: -80.24252274 | BN8: -80.24252096 | BX8: Open Graded Friction Course | BY8: 0 | BZ8: 2 | CF8: 1.16 | CG8: 1.47 | CH8: 2.16 | CR8: -0.59 | CS8: -0.6 | CT8: -0.62 | DD8: 0.068 | DE8: 0.068 | DF8: 0.068 | DP8: 0.082188 | DQ8: 0.082188 | DR8: 0.082188 | EB8: 0.02 | EC8: 0.09 | ED8: 0.18 | EN8: 12 | EO8: 12 | EP8: 12 | EZ8: 2 | FA8: 1.301422299 | FB8: 1.587734235 | FC8: 2.247220505 | FM8: 13.4629893 | FN8: 12.96109579 | FO8: 12.48455836 | FY8: 13.4629893 | FZ8: 26.42408509 | GA8: 38.90864346 | GK8: 3.880564287e-05 | GL8: 16.06175019 | GM8: 31.52472636 | GN8: 46.41917908 | GX8: 0.4976707031 | GY8: 0.3973709513 | GZ8: 0.3750680996 | HK8: 20.52148026 | HL8: 19.95356986 | IH8: 60 | II8: 60 | IJ8: 60
A9: Gallaway | B9: PAVDRN | C9: 16.106 | D9: -0.007334294929 | E9: 0.01707697282 | F9: 0.02454627402 | P9: 999 | Q9: 74.72166836 | R9: 68.01970047 | AB9: 0 | AC9: 0 | AD9: 0 | AE9: 0 | AF9: 0 | AG9: 0 | AH9: 0 | AI9: 0 | AJ9: 0 | AK9: 0 | AL9: 0 | AM9: 0 | AN9: 999 | AO9: 999 | AP9: 999 | AQ9: 999 | AR9: 999 | AS9: 999 | AT9: 999 | AU9: 999 | AV9: 999 | AW9: 999 | AX9: 999 | AY9: 999 | AZ9: 26.30190852 | BA9: 26.30194343 | BB9: 26.30197753 | BL9: -80.24247442 | BM9: -80.24250143 | BN9: -80.24250744 | BX9: Open Graded Friction Course | BY9: 0 | BZ9: 2 | CF9: 1.18 | CG9: 1.475 | CH9: 2.18 | CR9: -0.59 | CS9: -0.6 | CT9: -0.62 | DD9: 0.068 | DE9: 0.068 | DF9: 0.068 | DP9: 0.082188 | DQ9: 0.082188 | DR9: 0.082188 | EB9: 0.03 | EC9: 0.07 | ED9: 0.22 | EN9: 12 | EO9: 12 | EP9: 12 | EZ9: 2 | FA9: 1.319280107 | FB9: 1.592364594 | FC9: 2.26645097 | FM9: 13.41640786 | FN9: 12.95483059 | FO9: 12.4758769 | FY9: 13.41640786 | FZ9: 26.37123846 | GA9: 38.84711536 | GK9: 3.880564287e-05 | GL9: 16.00617714 | GM9: 31.46167874 | GN9: 46.34577422 | GX9: 0.5004854361 | GY9: 0.398062948 | GZ9: 0.3762997631 | HK9: 20.54044804 | HL9: 19.97947521 | IH9: 60 | II9: 60 | IJ9: 60
A10: Gallaway | B10: PAVDRN | C10: 16.107 | D10: -0.007866893149 | E10: 0.01725808134 | F10: 0.02454626645 | P10: 999 | Q10: 74.51778194 | R10: 68.0197059 | AB10: 0 | AC10: 0 | AD10: 0 | AE10: 0 | AF10: 0 | AG10: 0 | AH10: 0 | AI10: 0 | AJ10: 0 | AK10: 0 | AL10: 0 | AM10: 0 | AN10: 999 | AO10: 999 | AP10: 999 | AQ10: 999 | AR10: 999 | AS10: 999 | AT10: 999 | AU10: 999 | AV10: 999 | AW10: 999 | AX10: 999 | AY10: 999 | AZ10: 26.30190821 | BA10: 26.30194319 | BB10: 26.30197736 | BL10: -80.24246026 | BM10: -80.24248007 | BN10: -80.24249396 | BX10: Open Graded Friction Course | BY10: 0 | BZ10: 2 | CF10: 1.2 | CG10: 1.46 | CH10: 2.18 | CR10: -0.58 | CS10: -0.6 | CT10: -0.58 | DD10: 0.068 | DE10: 0.068 | DF10: 0.068 | DP10: 0.082188 | DQ10: 0.082188 | DR10: 0.082188 | EB10: 0 | EC10: 0.07 | ED10: 0.21 | EN10: 12 | EO10: 12 | EP10: 12 | EZ10: 2 | FA10: 1.332816567 | FB10: 1.578480282 | FC10: 2.255836874 | FM10: 13.32816567 | FN10: 12.97381054 | FO10: 12.41745068 | FY10: 13.32816567 | FZ10: 26.3019762 | GA10: 38.71942688 | GK10: 3.880564287e-05 | GL10: 15.90090155 | GM10: 31.37904679 | GN10: 46.19343803 | GX10: 0.5034579279 | GY10: 0.3974405719 | GZ10: 0.3762845444 | HK10: 20.52396429 | HL10: 19.97947568 | IH10: 60 | II10: 60 | IJ10: 60
A11: Gallaway | B11: PAVDRN | C11: 16.108 | D11: -0.006867075099 | E11: 0.01908971258 | F11: 0.02518017472 | P11: 999 | Q11: 72.59620828 | R11: 67.57199892 | AB11: 0 | AC11: 0 | AD11: 0 | AE11: 0 | AF11: 0 | AG11: 0 | AH11: 0 | AI11: 0 | AJ11: 0 | AK11: 0 | AL11: 0 | AM11: 0 | AN11: 999 | AO11: 999 | AP11: 999 | AQ11: 999 | AR11: 999 | AS11: 999 | AT11: 999 | AU11: 999 | AV11: 999 | AW11: 999 | AX11: 999 | AY11: 999 | AZ11: 26.30190802 | BA11: 26.30194287 | BB11: 26.30197719 | BL11: -80.24244597 | BM11: -80.24246591 | BN11: -80.24248044 | BX11: Open Graded Friction Course | BY11: 0 | BZ11: 2 | CF11: 1.16 | CG11: 1.39 | CH11: 2.16 | CR11: -0.58 | CS11: -0.62 | CT11: -0.61 | DD11: 0.068 | DE11: 0.068 | DF11: 0.068 | DP11: 0.082188 | DQ11: 0.082188 | DR11: 0.082188 | EB11: 0.02 | EC11: 0.09 | ED11: 0.2 | EN11: 12 | EO11: 12 | EP11: 12 | EZ11: 2 | FA11: 1.296919427 | FB11: 1.522005256 | FC11: 2.244482123 | FM11: 13.41640786 | FN11: 13.13961372 | FO11: 12.46934513 | FY11: 13.41640786 | FZ11: 26.55602159 | GA11: 39.02536672 | GK11: 3.880564287e-05 | GL11: 16.00617714 | GM11: 31.68213056 | GN11: 46.55843343 | GX11: 0.4978742838 | GY11: 0.3914355938 | GZ11: 0.3744523033 | HK11: 20.36688176 | HL11: 19.94051161 | IH11: 60 | II11: 60 | IJ11: 60
A12: Gallaway | B12: PAVDRN | C12: 16.109 | D12: -0.008161185651 | E12: 0.01736863364 | F12: 0.02547613651 | P12: 999 | Q12: 74.39464494 | R12: 67.36780324 | AB12: 0 | AC12: 0 | AD12: 0 | AE12: 0 | AF12: 0 | AG12: 0 | AH12: 0 | AI12: 0 | AJ12: 0 | AK12: 0 | AL12: 0 | AM12: 0 | AN12: 999 | AO12: 999 | AP12: 999 | AQ12: 999 | AR12: 999 | AS12: 999 | AT12: 999 | AU12: 999 | AV12: 999 | AW12: 999 | AX12: 999 | AY12: 999 | AZ12: 26.30190786 | BA12: 26.30194268 | BB12: 26.30197694 | BL12: -80.24243176 | BM12: -80.24245143 | BN12: -80.24246036 | BX12: Open Graded Friction Course | BY12: 0 | BZ12: 2 | CF12: 1.22 | CG12: 1.47 | CH12: 2.135 | CR12: -0.63 | CS12: -0.6 | CT12: -0.615 | DD12: 0.068 | DE12: 0.068 | DF12: 0.068 | DP12: 0.082188 | DQ12: 0.082188 | DR12: 0.082188 | EB12: 0.06 | EC12: 0.09 | ED12: 0.21 | EN12: 12 | EO12: 12 | EP12: 12 | EZ12: 2 | FA12: 1.373062271 | FB12: 1.587734235 | FC12: 2.221812323 | FM12: 13.50553053 | FN12: 12.96109579 | FO12: 12.48793812 | FY12: 13.50553053 | FZ12: 26.46662633 | GA12: 38.95456444 | GK12: 3.880564287e-05 | GL12: 16.11250316 | GM12: 31.57547933 | GN12: 46.4739642 | GX12: 0.5052221252 | GY12: 0.3971000103 | GZ12: 0.373578439 | HK12: 20.51399216 | HL12: 19.92267451 | IH12: 60 | II12: 60 | IJ12: 60
A13: Gallaway | B13: PAVDRN | C13: 16.11 | D13: -0.007633941444 | E13: 0.01948203334 | F13: 0.02622685375 | P13: 999 | Q13: 72.21471486 | R13: 66.86297798 | AB13: 0 | AC13: 0 | AD13: 0 | AE13: 0 | AF13: 0 | AG13: 0 | AH13: 0 | AI13: 0 | AJ13: 0 | AK13: 0 | AL13: 0 | AM13: 0 | AN13: 999 | AO13: 999 | AP13: 999 | AQ13: 999 | AR13: 999 | AS13: 999 | AT13: 999 | AU13: 999 | AV13: 999 | AW13: 999 | AX13: 999 | AY13: 999 | AZ13: 26.30190754 | BA13: 26.30194252 | BB13: 26.30197656 | BL13: -80.24241759 | BM13: -80.24243741 | BN13: -80.24244028 | BX13: Open Graded Friction Course | BY13: 0 | BZ13: 2 | CF13: 1.2 | CG13: 1.39 | CH13: 2.12 | CR13: -0.64 | CS13: -0.61 | CT13: -0.56 | DD13: 0.068 | DE13: 0.068 | DF13: 0.068 | DP13: 0.082188 | DQ13: 0.082188 | DR13: 0.082188 | EB13: 0.01 | EC13: 0.08 | ED13: 0.21 | EN13: 12 | EO13: 12 | EP13: 12 | EZ13: 2 | FA13: 1.36 | FB13: 1.517959156 | FC13: 2.192715212 | FM13: 13.6 | FN13: 13.10468336 | FO13: 12.41159554 | FY13: 13.6 | FZ13: 26.70468336 | GA13: 39.1162789 | GK13: 3.880564287e-05 | GL13: 16.22520806 | GM13: 31.85948852 | GN13: 46.6668944 | GX13: 0.5022598908 | GY13: 0.3901922183 | GZ13: 0.3714215148 | HK13: 20.33531667 | HL13: 19.87839754 | IH13: 60 | II13: 60 | IJ13: 60
A14: Gallaway | B14: PAVDRN | C14: 16.111 | D14: -0.007091075936 | E14: 0.01933817194 | F14: 0.02497317706 | P14: 999 | Q14: 72.35347375 | R14: 67.71661906 | AB14: 0 | AC14: 0 | AD14: 0 | AE14: 0 | AF14: 0 | AG14: 0 | AH14: 0 | AI14: 0 | AJ14: 0 | AK14: 0 | AL14: 0 | AM14: 0 | AN14: 999 | AO14: 999 | AP14: 999 | AQ14: 999 | AR14: 999 | AS14: 999 | AT14: 999 | AU14: 999 | AV14: 999 | AW14: 999 | AX14: 999 | AY14: 999 | AZ14: 26.30190736 | BA14: 26.30194235 | BB14: 26.30197636 | BL14: -80.24240345 | BM14: -80.24242324 | BN14: -80.24242663 | BX14: Open Graded Friction Course | BY14: 0 | BZ14: 2 | CF14: 1.18 | CG14: 1.4 | CH14: 2.2 | CR14: -0.65 | CS14: -0.64 | CT14: -0.61 | DD14: 0.068 | DE14: 0.068 | DF14: 0.068 | DP14: 0.082188 | DQ14: 0.082188 | DR14: 0.082188 | EB14: 0.03 | EC14: 0.13 | ED14: 0.21 | EN14: 12 | EO14: 12 | EP14: 12 | EZ14: 2 | FA14: 1.347182245 | FB14: 1.539350512 | FC14: 2.283002409 | FM14: 13.70015842 | FN14: 13.19443296 | FO14: 12.45274041 | FY14: 13.70015842 | FZ14: 26.89459138 | GA14: 39.3473318 | GK14: 3.880564287e-05 | GL14: 16.34470006 | GM14: 32.08605448 | GN14: 46.94254743 | GX14: 0.499250953 | GY14: 0.3906910221 | GZ14: 0.3750981795 | HK14: 20.34681249 | HL14: 19.95311958 | IH14: 60 | II14: 60 | IJ14: 60
A15: Gallaway | B15: PAVDRN | C15: 16.112 | D15: -0.007087753008 | E15: 0.01900176384 | F15: 0.02411438787 | P15: 999 | Q15: 72.68308552 | R15: 68.33314875 | AB15: 0 | AC15: 0 | AD15: 0 | AE15: 0 | AF15: 0 | AG15: 0 | AH15: 0 | AI15: 0 | AJ15: 0 | AK15: 0 | AL15: 0 | AM15: 0 | AN15: 999 | AO15: 999 | AP15: 999 | AQ15: 999 | AR15: 999 | AS15: 999 | AT15: 999 | AU15: 999 | AV15: 999 | AW15: 999 | AX15: 999 | AY15: 999 | AZ15: 26.30190695 | BA15: 26.30194203 | BB15: 26.3019762 | BL15: -80.24238202 | BM15: -80.24240877 | BN15: -80.24241328 | BX15: Open Graded Friction Course | BY15: 0 | BZ15: 2 | CF15: 1.175 | CG15: 1.41 | CH15: 2.22 | CR15: -0.62 | CS15: -0.58 | CT15: -0.62 | DD15: 0.068 | DE15: 0.068 | DF15: 0.068 | DP15: 0.082188 | DQ15: 0.082188 | DR15: 0.082188 | EB15: 0.02 | EC15: 0.16 | ED15: 0.23 | EN15: 12 | EO15: 12 | EP15: 12 | EZ15: 2 | FA15: 1.328542434 | FB15: 1.524631103 | FC15: 2.304951193 | FM15: 13.56809295 | FN15: 12.97558385 | FO15: 12.45919564 | FY15: 13.56809295 | FZ15: 26.5436768 | GA15: 39.00287244 | GK15: 3.880564287e-05 | GL15: 16.18714199 | GM15: 31.66740286 | GN15: 46.53159708 | GX15: 0.4991728952 | GY15: 0.3917193382 | GZ15: 0.3776031637 | HK15: 20.37405223 | HL15: 20.00663759 | IH15: 60 | II15: 60 | IJ15: 60
A16: Gallaway | B16: PAVDRN | C16: 16.113 | D16: -0.006608900478 | E16: 0.01795660995 | F16: 0.02394272981 | P16: 999 | Q16: 73.75591811 | R16: 68.45970143 | AB16: 0 | AC16: 0 | AD16: 0 | AE16: 0 | AF16: 0 | AG16: 0 | AH16: 0 | AI16: 0 | AJ16: 0 | AK16: 0 | AL16: 0 | AM16: 0 | AN16: 999 | AO16: 999 | AP16: 999 | AQ16: 999 | AR16: 999 | AS16: 999 | AT16: 999 | AU16: 999 | AV16: 999 | AW16: 999 | AX16: 999 | AY16: 999 | AZ16: 26.30190655 | BA16: 26.30194185 | BB16: 26.30197603 | BL16: -80.24236078 | BM16: -80.24239474 | BN16: -80.24239963 | BX16: Open Graded Friction Course | BY16: 0 | BZ16: 2 | CF16: 1.15 | CG16: 1.44 | CH16: 2.22 | CR16: -0.58 | CS16: -0.6 | CT16: -0.63 | DD16: 0.068 | DE16: 0.068 | DF16: 0.068 | DP16: 0.082188 | DQ16: 0.082188 | DR16: 0.082188 | EB16: 0.02 | EC16: 0.15 | ED16: 0.18 | EN16: 12 | EO16: 12 | EP16: 12 | EZ16: 2 | FA16: 1.287982919 | FB16: 1.56 | FC16: 2.307661154 | FM16: 13.43982176 | FN16: 13 | FO16: 12.47384407 | FY16: 13.43982176 | FZ16: 26.43982176 | GA16: 38.91366584 | GK16: 3.880564287e-05 | GL16: 16.03411062 | GM16: 31.54350068 | GN16: 46.42517094 | GX16: 0.4964548215 | GY16: 0.3951341833 | GZ16: 0.3781058734 | HK16: 20.46206098 | HL16: 20.0175771 | IH16: 60 | II16: 60 | IJ16: 60
A17: Gallaway | B17: PAVDRN | C17: 16.114 | D17: -0.007334294929 | E17: 0.01830301022 | F17: 0.02421567681 | P17: 999 | Q17: 73.39181815 | R17: 68.25900564 | AB17: 0 | AC17: 0 | AD17: 0 | AE17: 0 | AF17: 0 | AG17: 0 | AH17: 0 | AI17: 0 | AJ17: 0 | AK17: 0 | AL17: 0 | AM17: 0 | AN17: 999 | AO17: 999 | AP17: 999 | AQ17: 999 | AR17: 999 | AS17: 999 | AT17: 999 | AU17: 999 | AV17: 999 | AW17: 999 | AX17: 999 | AY17: 999 | AZ17: 26.30190636 | BA17: 26.3019415 | BB17: 26.30197578 | BL17: -80.24234645 | BM17: -80.24237246 | BN17: -80.24237946 | BX17: Open Graded Friction Course | BY17: 0 | BZ17: 2 | CF17: 1.18 | CG17: 1.425 | CH17: 2.21 | CR17: -0.59 | CS17: -0.59 | CT17: -0.565 | DD17: 0.068 | DE17: 0.068 | DF17: 0.068 | DP17: 0.082188 | DQ17: 0.082188 | DR17: 0.082188 | EB17: 0.02 | EC17: 0.13 | ED17: 0.14 | EN17: 12 | EO17: 12 | EP17: 12 | EZ17: 2 | FA17: 1.319280107 | FB17: 1.542311577 | FC17: 2.281079788 | FM17: 13.41640786 | FN17: 12.98788696 | FO17: 12.3859536 | FY17: 13.41640786 | FZ17: 26.40429483 | GA17: 38.79024843 | GK17: 3.880564287e-05 | GL17: 16.00617714 | GM17: 31.50111598 | GN17: 46.27793026 | GX17: 0.5004854361 | GY17: 0.3939823245 | GZ17: 0.3772755918 | HK17: 20.43230332 | HL17: 20.00022125 | IH17: 60 | II17: 60 | IJ17: 60
A18: Gallaway | B18: PAVDRN | C18: 16.115 | D18: -0.007488149828 | E18: 0.01800951481 | F18: 0.02274913562 | P18: 999 | Q18: 73.69974049 | R18: 69.37245612 | AB18: 0 | AC18: 0 | AD18: 0 | AE18: 0 | AF18: 0 | AG18: 0 | AH18: 0 | AI18: 0 | AJ18: 0 | AK18: 0 | AL18: 0 | AM18: 0 | AN18: 999 | AO18: 999 | AP18: 999 | AQ18: 999 | AR18: 999 | AS18: 999 | AT18: 999 | AU18: 999 | AV18: 999 | AW18: 999 | AX18: 999 | AY18: 999 | AZ18: 26.30190604 | BA18: 26.30194119 | BB18: 26.30197553 | BL18: -80.24233226 | BM18: -80.24235207 | BN18: -80.24235928 | BX18: Open Graded Friction Course | BY18: 0 | BZ18: 2 | CF18: 1.18 | CG18: 1.43 | CH18: 2.27 | CR18: -0.55 | CS18: -0.52 | CT18: -0.52 | DD18: 0.068 | DE18: 0.068 | DF18: 0.068 | DP18: 0.082188 | DQ18: 0.082188 | DR18: 0.082188 | EB18: 0.01 | EC18: 0.12 | ED18: 0.12 | EN18: 12 | EO18: 12 | EP18: 12 | EZ18: 2 | FA18: 1.301883251 | FB18: 1.521610988 | FC18: 2.328797973 | FM18: 13.23949069 | FN18: 12.76876354 | FO18: 12.31082629 | FY18: 13.23949069 | FZ18: 26.00825423 | GA18: 38.31908052 | GK18: 3.880564287e-05 | GL18: 15.79510964 | GM18: 31.02862766 | GN18: 45.71581281 | GX18: 0.501269997 | GY18: 0.3948788308 | GZ18: 0.3816457502 | HK18: 20.45747699 | HL18: 20.09602098 | IH18: 60 | II18: 60 | IJ18: 60
A19: Gallaway | B19: PAVDRN | C19: 16.116 | D19: -0.00549682622 | E19: 0.01749723203 | F19: 0.02284890132 | P19: 999 | Q19: 74.2526432 | R19: 69.2938771 | AB19: 0 | AC19: 0 | AD19: 0 | AE19: 0 | AF19: 0 | AG19: 0 | AH19: 0 | AI19: 0 | AJ19: 0 | AK19: 0 | AL19: 0 | AM19: 0 | AN19: 999 | AO19: 999 | AP19: 999 | AQ19: 999 | AR19: 999 | AS19: 999 | AT19: 999 | AU19: 999 | AV19: 999 | AW19: 999 | AX19: 999 | AY19: 999 | AZ19: 26.30190586 | BA19: 26.30194087 | BB19: 26.30197536 | BL19: -80.24231812 | BM19: -80.24233775 | BN19: -80.24234578 | BX19: Open Graded Friction Course | BY19: 0 | BZ19: 2 | CF19: 1.11 | CG19: 1.48 | CH19: 2.29 | CR19: -0.59 | CS19: -0.52 | CT19: -0.52 | DD19: 0.068 | DE19: 0.068 | DF19: 0.068 | DP19: 0.082188 | DQ19: 0.082188 | DR19: 0.082188 | EB19: 0.03 | EC19: 0.15 | ED19: 0.21 | EN19: 12 | EO19: 12 | EP19: 12 | EZ19: 2 | FA19: 1.257060062 | FB19: 1.568693724 | FC19: 2.348297255 | FM19: 13.58983851 | FN19: 12.7191383 | FO19: 12.3054878 | FY19: 13.58983851 | FZ19: 26.30897681 | GA19: 38.61446462 | GK19: 3.880564287e-05 | GL19: 16.2130851 | GM19: 31.38739873 | GN19: 46.0682149 | GX19: 0.4904629121 | GY19: 0.3966401626 | GZ19: 0.3813770202 | HK19: 20.50247652 | HL19: 20.08929906 | IH19: 60 | II19: 60 | IJ19: 60
A20: Gallaway | B20: PAVDRN | C20: 16.117 | D20: -0.007161242238 | E20: 0.01678640644 | F20: 0.02267612611 | P20: 999 | Q20: 75.05453294 | R20: 69.43023644 | AB20: 0 | AC20: 0 | AD20: 0 | AE20: 0 | AF20: 0 | AG20: 0 | AH20: 0 | AI20: 0 | AJ20: 0 | AK20: 0 | AL20: 0 | AM20: 0 | AN20: 999 | AO20: 999 | AP20: 999 | AQ20: 999 | AR20: 999 | AS20: 999 | AT20: 999 | AU20: 999 | AV20: 999 | AW20: 999 | AX20: 999 | AY20: 999 | AZ20: 26.30190555 | BA20: 26.30194069 | BB20: 26.30197506 | BL20: -80.24230378 | BM20: -80.24232359 | BN20: -80.24233231 | BX20: Open Graded Friction Course | BY20: 0 | BZ20: 2 | CF20: 1.17 | CG20: 1.49 | CH20: 2.28 | CR20: -0.57 | CS20: -0.52 | CT20: -0.51 | DD20: 0.068 | DE20: 0.068 | DF20: 0.068 | DP20: 0.082188 | DQ20: 0.082188 | DR20: 0.082188 | EB20: 0.02 | EC20: 0.12 | ED20: 0.17 | EN20: 12 | EO20: 12 | EP20: 12 | EZ20: 2 | FA20: 1.301460718 | FB20: 1.578131807 | FC20: 2.336343297 | FM20: 13.34831505 | FN20: 12.70978636 | FO20: 12.29654367 | FY20: 13.34831505 | FZ20: 26.05810142 | GA20: 38.35464509 | GK20: 3.880564287e-05 | GL20: 15.92494037 | GM20: 31.08809686 | GN20: 45.7582424 | GX20: 0.4994835395 | GY20: 0.3989864953 | GZ20: 0.3818734701 | HK20: 20.56728527 | HL20: 20.10095999 | IH20: 60 | II20: 60 | IJ20: 60
A21: Gallaway | B21: PAVDRN | C21: 16.118 | D21: -0.008419989607 | E21: 0.0151372703 | F21: 0.0230544423 | P21: 999 | Q21: 77.09188418 | R21: 69.13333902 | AB21: 0 | AC21: 0 | AD21: 0 | AE21: 0 | AF21: 0 | AG21: 0 | AH21: 0 | AI21: 0 | AJ21: 0 | AK21: 0 | AL21: 0 | AM21: 0 | AN21: 999 | AO21: 999 | AP21: 999 | AQ21: 999 | AR21: 999 | AS21: 999 | AT21: 999 | AU21: 999 | AV21: 999 | AW21: 999 | AX21: 999 | AY21: 999 | AZ21: 26.30190536 | BA21: 26.30194052 | BB21: 26.30197486 | BL21: -80.24228959 | BM21: -80.24230941 | BN21: -80.24231878 | BX21: Open Graded Friction Course | BY21: 0 | BZ21: 2 | CF21: 1.22 | CG21: 1.55 | CH21: 2.24 | CR21: -0.56 | CS21: -0.52 | CT21: -0.51 | DD21: 0.068 | DE21: 0.068 | DF21: 0.068 | DP21: 0.082188 | DQ21: 0.082188 | DR21: 0.082188 | EB21: 0.03 | EC21: 0.11 | ED21: 0.17 | EN21: 12 | EO21: 12 | EP21: 12 | EZ21: 2 | FA21: 1.342385936 | FB21: 1.634900609 | FC21: 2.297324531 | FM21: 13.20379609 | FN21: 12.65729503 | FO21: 12.3070957 | FY21: 13.20379609 | FZ21: 25.86109112 | GA21: 38.16818682 | GK21: 3.880564287e-05 | GL21: 15.75252491 | GM21: 30.85305766 | GN21: 45.5357921 | GX21: 0.5065709449 | GY21: 0.4046245056 | GZ21: 0.3806963209 | HK21: 20.72958355 | HL21: 20.07554783 | IH21: 60 | II21: 60 | IJ21: 60
A22: Gallaway | B22: PAVDRN | C22: 16.119 | D22: -0.009099401939 | E22: 0.01535327123 | F22: 0.02421222484 | P22: 999 | Q22: 76.80950053 | R22: 68.26152604 | AB22: 0 | AC22: 0 | AD22: 0 | AE22: 0 | AF22: 0 | AG22: 0 | AH22: 0 | AI22: 0 | AJ22: 0 | AK22: 0 | AL22: 0 | AM22: 0 | AN22: 999 | AO22: 999 | AP22: 999 | AQ22: 999 | AR22: 999 | AS22: 999 | AT22: 999 | AU22: 999 | AV22: 999 | AW22: 999 | AX22: 999 | AY22: 999 | AZ22: 26.30190495 | BA22: 26.3019402 | BB22: 26.30197461 | BL22: -80.24226837 | BM22: -80.24229508 | BN22: -80.24229854 | BX22: Open Graded Friction Course | BY22: 0 | BZ22: 2 | CF22: 1.25 | CG22: 1.54 | CH22: 2.17 | CR22: -0.565 | CS22: -0.49 | CT22: -0.455 | DD22: 0.068 | DE22: 0.068 | DF22: 0.068 | DP22: 0.082188 | DQ22: 0.082188 | DR22: 0.082188 | EB22: 0 | EC22: 0.14 | ED22: 0.15 | EN22: 12 | EO22: 12 | EP22: 12 | EZ22: 2 | FA22: 1.371759819 | FB22: 1.616075493 | FC22: 2.217188535 | FM22: 13.16889426 | FN22: 12.59279605 | FO22: 12.26095042 | FY22: 13.16889426 | FZ22: 25.76169031 | GA22: 38.02264073 | GK22: 3.880564287e-05 | GL22: 15.71088598 | GM22: 30.73446951 | GN22: 45.36215125 | GX22: 0.510510023 | GY22: 0.4038519886 | GZ22: 0.3771931239 | HK22: 20.70728671 | HL22: 20.00043945 | IH22: 60 | II22: 60 | IJ22: 60
A23: Gallaway | B23: PAVDRN | C23: 16.12 | D23: -0.009408608324 | E23: 0.01423153517 | F23: 0.0252088441 | P23: 999 | Q23: 78.33372456 | R23: 67.55208691 | AB23: 0 | AC23: 0 | AD23: 0 | AE23: 0 | AF23: 0 | AG23: 0 | AH23: 0 | AI23: 0 | AJ23: 0 | AK23: 0 | AL23: 0 | AM23: 0 | AN23: 999 | AO23: 999 | AP23: 999 | AQ23: 999 | AR23: 999 | AS23: 999 | AT23: 999 | AU23: 999 | AV23: 999 | AW23: 999 | AX23: 999 | AY23: 999 | AZ23: 26.30190469 | BA23: 26.30194002 | BB23: 26.30197436 | BL23: -80.24224692 | BM23: -80.24228075 | BN23: -80.24227845 | BX23: Open Graded Friction Course | BY23: 0 | BZ23: 2 | CF23: 1.26 | CG23: 1.58 | CH23: 2.1 | CR23: -0.54 | CS23: -0.5 | CT23: -0.49 | DD23: 0.068 | DE23: 0.068 | DF23: 0.068 | DP23: 0.082188 | DQ23: 0.082188 | DR23: 0.082188 | EB23: 0 | EC23: 0.14 | ED23: 0.18 | EN23: 12 | EO23: 12 | EP23: 12 | EZ23: 2 | FA23: 1.370839159 | FB23: 1.657226599 | FC23: 2.156409052 | FM23: 13.05561104 | FN23: 12.58653113 | FO23: 12.32233744 | FY23: 13.05561104 | FZ23: 25.64214217 | GA23: 37.96447961 | GK23: 3.880564287e-05 | GL23: 15.5757357 | GM23: 30.59184499 | GN23: 45.29276328 | GX23: 0.5122782824 | GY23: 0.4077747445 | GZ23: 0.3742413581 | HK23: 20.82690015 | HL23: 19.93877406 | IH23: 60 | II23: 60 | IJ23: 60
A24: Gallaway | B24: PAVDRN | C24: 16.121 | D24: -0.009631433849 | E24: 0.01377203819 | F24: 0.02671922677 | P24: 999 | Q24: 79.00242846 | R24: 66.54165426 | AB24: 0 | AC24: 0 | AD24: 0 | AE24: 0 | AF24: 0 | AG24: 0 | AH24: 0 | AI24: 0 | AJ24: 0 | AK24: 0 | AL24: 0 | AM24: 0 | AN24: 999 | AO24: 999 | AP24: 999 | AQ24: 999 | AR24: 999 | AS24: 999 | AT24: 999 | AU24: 999 | AV24: 999 | AW24: 999 | AX24: 999 | AY24: 999 | AZ24: 26.30190438 | BA24: 26.30193961 | BB24: 26.30197419 | BL24: -80.24223293 | BM24: -80.24225958 | BN24: -80.2422648 | BX24: Open Graded Friction Course | BY24: 0 | BZ24: 2 | CF24: 1.27 | CG24: 1.6 | CH24: 2.02 | CR24: -0.54 | CS24: -0.5 | CT24: -0.46 | DD24: 0.068 | DE24: 0.068 | DF24: 0.068 | DP24: 0.082188 | DQ24: 0.082188 | DR24: 0.082188 | EB24: 0 | EC24: 0.13 | ED24: 0.21 | EN24: 12 | EO24: 12 | EP24: 12 | EZ24: 2 | FA24: 1.380036231 | FB24: 1.676305461 | FC24: 2.071714266 | FM24: 13.03971242 | FN24: 12.57229096 | FO24: 12.30721346 | FY24: 13.03971242 | FZ24: 25.61200338 | GA24: 37.91921684 | GK24: 3.880564287e-05 | GL24: 15.55676817 | GM24: 30.55588851 | GN24: 45.23876345 | GX24: 0.5135928166 | GY24: 0.4094096647 | GZ24: 0.3698679132 | HK24: 20.87881287 | HL24: 19.85008109 | IH24: 60 | II24: 60 | IJ24: 60
A25: Gallaway | B25: PAVDRN | C25: 16.122 | D25: -0.01132462562 | E25: 0.01337220457 | F25: 0.02623631147 | P25: 999 | Q25: 79.60757595 | R25: 66.85673449 | AB25: 0 | AC25: 0 | AD25: 0 | AE25: 0 | AF25: 0 | AG25: 0 | AH25: 0 | AI25: 0 | AJ25: 0 | AK25: 0 | AL25: 0 | AM25: 0 | AN25: 999 | AO25: 999 | AP25: 999 | AQ25: 999 | AR25: 999 | AS25: 999 | AT25: 999 | AU25: 999 | AV25: 999 | AW25: 999 | AX25: 999 | AY25: 999 | AZ25: 26.30190419 | BA25: 26.3019392 | BB25: 26.30197403 | BL25: -80.24221847 | BM25: -80.24223808 | BN25: -80.24225145 | BX25: Open Graded Friction Course | BY25: 0 | BZ25: 2 | CF25: 1.35 | CG25: 1.61 | CH25: 2.03 | CR25: -0.54 | CS25: -0.48 | CT25: -0.48 | DD25: 0.068 | DE25: 0.068 | DF25: 0.068 | DP25: 0.082188 | DQ25: 0.082188 | DR25: 0.082188 | EB25: 0 | EC25: 0.14 | ED25: 0.22 | EN25: 12 | EO25: 12 | EP25: 12 | EZ25: 2 | FA25: 1.453994498 | FB25: 1.680029762 | FC25: 2.085976989 | FM25: 12.92439554 | FN25: 12.52196096 | FO25: 12.33089846 | FY25: 12.92439554 | FZ25: 25.44635649 | GA25: 37.77725495 | GK25: 3.880564287e-05 | GL25: 15.41919167 | GM25: 30.3582668 | GN25: 45.06939865 | GX25: 0.5238323949 | GY25: 0.4108164507 | GZ25: 0.3712351685 | HK25: 20.92550138 | HL25: 19.87784833 | IH25: 60 | II25: 60 | IJ25: 60
A26: Gallaway | B26: PAVDRN | C26: 16.123 | D26: -0.01123201366 | E26: 0.01247058507 | F26: 0.02579687387 | P26: 999 | Q26: 81.05994246 | R26: 67.14985916 | AB26: 0 | AC26: 0 | AD26: 0 | AE26: 0 | AF26: 0 | AG26: 0 | AH26: 0 | AI26: 0 | AJ26: 0 | AK26: 0 | AL26: 0 | AM26: 0 | AN26: 999 | AO26: 999 | AP26: 999 | AQ26: 999 | AR26: 999 | AS26: 999 | AT26: 999 | AU26: 999 | AV26: 999 | AW26: 999 | AX26: 999 | AY26: 999 | AZ26: 26.30190402 | BA26: 26.30193902 | BB26: 26.30197386 | BL26: -80.24220426 | BM26: -80.24222407 | BN26: -80.2422378 | BX26: Open Graded Friction Course | BY26: 0 | BZ26: 2 | CF26: 1.34 | CG26: 1.64 | CH26: 2.04 | CR26: -0.5 | CS26: -0.51 | CT26: -0.54 | DD26: 0.068 | DE26: 0.068 | DF26: 0.068 | DP26: 0.082188 | DQ26: 0.082188 | DR26: 0.082188 | EB26: 0 | EC26: 0.1 | ED26: 0.16 | EN26: 12 | EO26: 12 | EP26: 12 | EZ26: 2 | FA26: 1.430244734 | FB26: 1.717469068 | FC26: 2.110260647 | FM26: 12.8081618 | FN26: 12.56684684 | FO26: 12.41329793 | FY26: 12.8081618 | FZ26: 25.37500864 | GA26: 37.78830657 | GK26: 3.880564287e-05 | GL26: 15.28052133 | GM26: 30.27314667 | GN26: 45.08258356 | GX26: 0.5231994191 | GY26: 0.4140891694 | GZ26: 0.372506097 | HK26: 21.03645228 | HL26: 19.90359056 | IH26: 60 | II26: 60 | IJ26: 60
A27: Gallaway | B27: PAVDRN | C27: 16.124 | D27: -0.01216848011 | E27: 0.01246080716 | F27: 0.02565442755 | P27: 999 | Q27: 81.07641194 | R27: 67.24622926 | AB27: 0 | AC27: 0 | AD27: 0 | AE27: 0 | AF27: 0 | AG27: 0 | AH27: 0 | AI27: 0 | AJ27: 0 | AK27: 0 | AL27: 0 | AM27: 0 | AN27: 999 | AO27: 999 | AP27: 999 | AQ27: 999 | AR27: 999 | AS27: 999 | AT27: 999 | AU27: 999 | AV27: 999 | AW27: 999 | AX27: 999 | AY27: 999 | AZ27: 26.30190372 | BA27: 26.3019387 | BB27: 26.30197361 | BL27: -80.24219027 | BM27: -80.24220976 | BN27: -80.2422177 | BX27: Open Graded Friction Course | BY27: 0 | BZ27: 2 | CF27: 1.39 | CG27: 1.64 | CH27: 2.055 | CR27: -0.52 | CS27: -0.52 | CT27: -0.5 | DD27: 0.068 | DE27: 0.068 | DF27: 0.068 | DP27: 0.082188 | DQ27: 0.082188 | DR27: 0.082188 | EB27: 0 | EC27: 0.13 | ED27: 0.21 | EN27: 12 | EO27: 12 | EP27: 12 | EZ27: 2 | FA27: 1.484082208 | FB27: 1.720465053 | FC27: 2.114952718 | FM27: 12.8122205 | FN27: 12.58876868 | FO27: 12.35008887 | FY27: 12.8122205 | FZ27: 25.40098918 | GA27: 37.75107805 | GK27: 3.880564287e-05 | GL27: 15.28536348 | GM27: 30.30414224 | GN27: 45.03816882 | GX27: 0.5290777244 | GY27: 0.4141303448 | GZ27: 0.3729151644 | HK27: 21.03770164 | HL27: 19.91203492 | IH27: 60 | II27: 60 | IJ27: 60
A28: Gallaway | B28: PAVDRN | C28: 16.125 | D28: -0.01175183224 | E28: 0.01200992524 | F28: 0.02539864384 | P28: 999 | Q28: 81.85402526 | R28: 67.42097879 | AB28: 0 | AC28: 0 | AD28: 0 | AE28: 0 | AF28: 0 | AG28: 0 | AH28: 0 | AI28: 0 | AJ28: 0 | AK28: 0 | AL28: 0 | AM28: 0 | AN28: 999 | AO28: 999 | AP28: 999 | AQ28: 999 | AR28: 999 | AS28: 999 | AT28: 999 | AU28: 999 | AV28: 999 | AW28: 999 | AX28: 999 | AY28: 999 | AZ28: 26.30190353 | BA28: 26.30193852 | BB28: 26.30197336 | BL28: -80.24217596 | BM28: -80.24219557 | BN28: -80.24219748 | BX28: Open Graded Friction Course | BY28: 0 | BZ28: 2 | CF28: 1.37 | CG28: 1.67 | CH28: 2.06 | CR28: -0.53 | CS28: -0.49 | CT28: -0.55 | DD28: 0.068 | DE28: 0.068 | DF28: 0.068 | DP28: 0.082188 | DQ28: 0.082188 | DR28: 0.082188 | EB28: 0.04 | EC28: 0.12 | ED28: 0.16 | EN28: 12 | EO28: 12 | EP28: 12 | EZ28: 2 | FA28: 1.4689452 | FB28: 1.740402252 | FC28: 2.132158531 | FM28: 12.86667328 | FN28: 12.50588445 | FO28: 12.42034096 | FY28: 12.86667328 | FZ28: 25.37255773 | GA28: 37.79289869 | GK28: 3.880564287e-05 | GL28: 15.35032729 | GM28: 30.27022267 | GN28: 45.08806209 | GX28: 0.5264729972 | GY28: 0.4157903793 | GZ28: 0.373665436 | HK28: 21.09647026 | HL28: 19.92732355 | IH28: 60 | II28: 60 | IJ28: 60
A29: Gallaway | B29: PAVDRN | C29: 16.126 | D29: -0.01149800148 | E29: 0.01251151582 | F29: 0.02484985838 | P29: 999 | Q29: 80.99117658 | R29: 67.80349571 | AB29: 0 | AC29: 0 | AD29: 0 | AE29: 0 | AF29: 0 | AG29: 0 | AH29: 0 | AI29: 0 | AJ29: 0 | AK29: 0 | AL29: 0 | AM29: 0 | AN29: 999 | AO29: 999 | AP29: 999 | AQ29: 999 | AR29: 999 | AS29: 999 | AT29: 999 | AU29: 999 | AV29: 999 | AW29: 999 | AX29: 999 | AY29: 999 | AZ29: 26.30190336 | BA29: 26.3019382 | BB29: 26.30197319 | BL29: -80.24216162 | BM29: -80.24218143 | BN29: -80.24218395 | BX29: Open Graded Friction Course | BY29: 0 | BZ29: 2 | CF29: 1.36 | CG29: 1.65 | CH29: 2.1 | CR29: -0.55 | CS29: -0.52 | CT29: -0.57 | DD29: 0.068 | DE29: 0.068 | DF29: 0.068 | DP29: 0.082188 | DQ29: 0.082188 | DR29: 0.082188 | EB29: 0.03 | EC29: 0.12 | ED29: 0.16 | EN29: 12 | EO29: 12 | EP29: 12 | EZ29: 2 | FA29: 1.467003749 | FB29: 1.73 | FC29: 2.175982537 | FM29: 12.94415073 | FN29: 12.58181818 | FO29: 12.43418592 | FY29: 12.94415073 | FZ29: 25.52596891 | GA29: 37.96015483 | GK29: 3.880564287e-05 | GL29: 15.4427602 | GM29: 30.45324681 | GN29: 45.2876037 | GX29: 0.5249220951 | GY29: 0.4139689127 | GZ29: 0.3752956942 | HK29: 21.03123362 | HL29: 19.96068353 | IH29: 60 | II29: 60 | IJ29: 60
A30: Gallaway | B30: PAVDRN | C30: 16.127 | D30: -0.01159868966 | E30: 0.0132136099 | F30: 0.02486019279 | P30: 999 | Q30: 79.85395235 | R30: 67.79619441 | AB30: 0 | AC30: 0 | AD30: 0 | AE30: 0 | AF30: 0 | AG30: 0 | AH30: 0 | AI30: 0 | AJ30: 0 | AK30: 0 | AL30: 0 | AM30: 0 | AN30: 999 | AO30: 999 | AP30: 999 | AQ30: 999 | AR30: 999 | AS30: 999 | AT30: 999 | AU30: 999 | AV30: 999 | AW30: 999 | AX30: 999 | AY30: 999 | AZ30: 26.30190295 | BA30: 26.30193802 | BB30: 26.30197303 | BL30: -80.24214036 | BM30: -80.24216709 | BN30: -80.24217048 | BX30: Open Graded Friction Course | BY30: 0 | BZ30: 2 | CF30: 1.37 | CG30: 1.62 | CH30: 2.12 | CR30: -0.585 | CS30: -0.58 | CT30: -0.58 | DD30: 0.068 | DE30: 0.068 | DF30: 0.068 | DP30: 0.082188 | DQ30: 0.082188 | DR30: 0.082188 | EB30: 0.05 | EC30: 0.1 | ED30: 0.18 | EN30: 12 | EO30: 12 | EP30: 12 | EZ30: 2 | FA30: 1.489672783 | FB30: 1.720697533 | FC30: 2.197908096 | FM30: 13.04822875 | FN30: 12.74590765 | FO30: 12.44098922 | FY30: 13.04822875 | FZ30: 25.79413641 | GA30: 38.23512563 | GK30: 3.880564287e-05 | GL30: 15.56692841 | GM30: 30.77317868 | GN30: 45.61565211 | GX30: 0.5256032441 | GY30: 0.4114591991 | GZ30: 0.3752985581 | HK30: 20.94443179 | HL30: 19.96004812 | IH30: 60 | II30: 60 | IJ30: 60
A31: Gallaway | B31: PAVDRN | C31: 16.128 | D31: -0.01189409848 | E31: 0.01382789249 | F31: 0.02603796968 | P31: 999 | Q31: 78.91965487 | R31: 66.98826607 | AB31: 0 | AC31: 0 | AD31: 0 | AE31: 0 | AF31: 0 | AG31: 0 | AH31: 0 | AI31: 0 | AJ31: 0 | AK31: 0 | AL31: 0 | AM31: 0 | AN31: 999 | AO31: 999 | AP31: 999 | AQ31: 999 | AR31: 999 | AS31: 999 | AT31: 999 | AU31: 999 | AV31: 999 | AW31: 999 | AX31: 999 | AY31: 999 | AZ31: 26.30190269 | BA31: 26.3019377 | BB31: 26.30197286 | BL31: -80.24211895 | BM31: -80.24215291 | BN31: -80.24215695 | BX31: Open Graded Friction Course | BY31: 0 | BZ31: 2 | CF31: 1.39 | CG31: 1.6 | CH31: 2.06 | CR31: -0.62 | CS31: -0.57 | CT31: -0.59 | DD31: 0.068 | DE31: 0.068 | DF31: 0.068 | DP31: 0.082188 | DQ31: 0.082188 | DR31: 0.082188 | EB31: 0.05 | EC31: 0.12 | ED31: 0.18 | EN31: 12 | EO31: 12 | EP31: 12 | EZ31: 2 | FA31: 1.522005256 | FB31: 1.698499338 | FC31: 2.142825238 | FM31: 13.13961372 | FN31: 12.73874503 | FO31: 12.48247711 | FY31: 13.13961372 | FZ31: 25.87835876 | GA31: 38.36083587 | GK31: 3.880564287e-05 | GL31: 15.67595342 | GM31: 30.87365847 | GN31: 45.76562819 | GX31: 0.5275047931 | GY31: 0.4092615293 | GZ31: 0.3718771529 | HK31: 20.87240535 | HL31: 19.88941015 | IH31: 60 | II31: 60 | IJ31: 60
A32: Gallaway | B32: PAVDRN | C32: 16.129 | D32: -0.01057452417 | E32: 0.01475360715 | F32: 0.02579038374 | P32: 999 | Q32: 77.60618633 | R32: 67.15423539 | AB32: 0 | AC32: 0 | AD32: 0 | AE32: 0 | AF32: 0 | AG32: 0 | AH32: 0 | AI32: 0 | AJ32: 0 | AK32: 0 | AL32: 0 | AM32: 0 | AN32: 999 | AO32: 999 | AP32: 999 | AQ32: 999 | AR32: 999 | AS32: 999 | AT32: 999 | AU32: 999 | AV32: 999 | AW32: 999 | AX32: 999 | AY32: 999 | AZ32: 26.30190238 | BA32: 26.30193743 | BB32: 26.30197261 | BL32: -80.24210461 | BM32: -80.24213142 | BN32: -80.24213662 | BX32: Open Graded Friction Course | BY32: 0 | BZ32: 2 | CF32: 1.33 | CG32: 1.565 | CH32: 2.11 | CR32: -0.65 | CS32: -0.675 | CT32: -0.64 | DD32: 0.068 | DE32: 0.068 | DF32: 0.068 | DP32: 0.082188 | DQ32: 0.082188 | DR32: 0.082188 | EB32: 0.06 | EC32: 0.12 | ED32: 0.21 | EN32: 12 | EO32: 12 | EP32: 12 | EZ32: 2 | FA32: 1.480337799 | FB32: 1.704362051 | FC32: 2.204926303 | FM32: 13.35643127 | FN32: 13.0685908 | FO32: 12.53986523 | FY32: 13.35643127 | FZ32: 26.42502208 | GA32: 38.9648873 | GK32: 3.880564287e-05 | GL32: 15.93462326 | GM32: 31.52584421 | GN32: 46.48627968 | GX32: 0.5194260888 | GY32: 0.4060780405 | GZ32: 0.3726654621 | HK32: 20.77003182 | HL32: 19.90397422 | IH32: 60 | II32: 60 | IJ32: 60
A33: Gallaway | B33: PAVDRN | C33: 16.13 | D33: -0.01181907827 | E33: 0.01556318714 | F33: 0.0257895802 | P33: 999 | Q33: 76.5398238 | R33: 67.1547773 | AB33: 0 | AC33: 0 | AD33: 0 | AE33: 0 | AF33: 0 | AG33: 0 | AH33: 0 | AI33: 0 | AJ33: 0 | AK33: 0 | AL33: 0 | AM33: 0 | AN33: 999 | AO33: 999 | AP33: 999 | AQ33: 999 | AR33: 999 | AS33: 999 | AT33: 999 | AU33: 999 | AV33: 999 | AW33: 999 | AX33: 999 | AY33: 999 | AZ33: 26.30190219 | BA33: 26.30193704 | BB33: 26.30197222 | BL33: -80.24209042 | BM33: -80.24211024 | BN33: -80.24211644 | BX33: Open Graded Friction Course | BY33: 0 | BZ33: 2 | CF33: 1.4 | CG33: 1.53 | CH33: 2.13 | CR33: -0.71 | CS33: -0.73 | CT33: -0.68 | DD33: 0.068 | DE33: 0.068 | DF33: 0.068 | DP33: 0.082188 | DQ33: 0.082188 | DR33: 0.082188 | EB33: 0.06 | EC33: 0.1 | ED33: 0.19 | EN33: 12 | EO33: 12 | EP33: 12 | EZ33: 2 | FA33: 1.569745202 | FB33: 1.695228598 | FC33: 2.235911447 | FM33: 13.45495888 | FN33: 13.29591057 | FO33: 12.59668421 | FY33: 13.45495888 | FZ33: 26.75086945 | GA33: 39.34755366 | GK33: 3.880564287e-05 | GL33: 16.05216965 | GM33: 31.9145899 | GN33: 46.94281212 | GX33: 0.527185779 | GY33: 0.4033097019 | GZ33: 0.3727126013 | HK33: 20.68593433 | HL33: 19.90402173 | IH33: 60 | II33: 60 | IJ33: 60
A34: Gallaway | B34: PAVDRN | C34: 16.131 | D34: -0.01152223277 | E34: 0.01624477131 | F34: 0.02709462967 | P34: 999 | Q34: 75.69481938 | R34: 66.30163314 | AB34: 0 | AC34: 0 | AD34: 0 | AE34: 0 | AF34: 0 | AG34: 0 | AH34: 0 | AI34: 0 | AJ34: 0 | AK34: 0 | AL34: 0 | AM34: 0 | AN34: 999 | AO34: 999 | AP34: 999 | AQ34: 999 | AR34: 999 | AS34: 999 | AT34: 999 | AU34: 999 | AV34: 999 | AW34: 999 | AX34: 999 | AY34: 999 | AZ34: 26.30190202 | BA34: 26.30193685 | BB34: 26.30197203 | BL34: -80.24207628 | BM34: -80.24209593 | BN34: -80.24210297 | BX34: Open Graded Friction Course | BY34: 0 | BZ34: 2 | CF34: 1.39 | CG34: 1.51 | CH34: 2.07 | CR34: -0.74 | CS34: -0.74 | CT34: -0.7 | DD34: 0.068 | DE34: 0.068 | DF34: 0.068 | DP34: 0.082188 | DQ34: 0.082188 | DR34: 0.082188 | EB34: 0.06 | EC34: 0.11 | ED34: 0.17 | EN34: 12 | EO34: 12 | EP34: 12 | EZ34: 2 | FA34: 1.574706322 | FB34: 1.681576641 | FC34: 2.185154457 | FM34: 13.59458695 | FN34: 13.36352298 | FO34: 12.66756207 | FY34: 13.59458695 | FZ34: 26.95810993 | GA34: 39.625672 | GK34: 3.880564287e-05 | GL34: 16.21875013 | GM34: 32.16183401 | GN34: 47.27461564 | GX34: 0.5253901988 | GY34: 0.4009987939 | GZ34: 0.3689992883 | HK34: 20.61865232 | HL34: 19.82886075 | IH34: 60 | II34: 60 | IJ34: 60
A35: Gallaway | B35: PAVDRN | C35: 16.132 | D35: -0.01172357846 | E35: 0.01612139214 | F35: 0.02733378174 | P35: 999 | Q35: 75.8444352 | R35: 66.15089917 | AB35: 0 | AC35: 0 | AD35: 0 | AE35: 0 | AF35: 0 | AG35: 0 | AH35: 0 | AI35: 0 | AJ35: 0 | AK35: 0 | AL35: 0 | AM35: 0 | AN35: 999 | AO35: 999 | AP35: 999 | AQ35: 999 | AR35: 999 | AS35: 999 | AT35: 999 | AU35: 999 | AV35: 999 | AW35: 999 | AX35: 999 | AY35: 999 | AZ35: 26.30190171 | BA35: 26.30193668 | BB35: 26.30197186 | BL35: -80.24206195 | BM35: -80.24208158 | BN35: -80.24208944 | BX35: Open Graded Friction Course | BY35: 0 | BZ35: 2 | CF35: 1.4 | CG35: 1.51 | CH35: 2.06 | CR35: -0.74 | CS35: -0.77 | CT35: -0.72 | DD35: 0.068 | DE35: 0.068 | DF35: 0.068 | DP35: 0.082188 | DQ35: 0.082188 | DR35: 0.082188 | EB35: 0.05 | EC35: 0.15 | ED35: 0.18 | EN35: 12 | EO35: 12 | EP35: 12 | EZ35: 2 | FA35: 1.583540337 | FB35: 1.694992625 | FC35: 2.182200724 | FM35: 13.57320289 | FN35: 13.47014007 | FO35: 12.71184888 | FY35: 13.57320289 | FZ35: 27.04334296 | GA35: 39.75519184 | GK35: 3.880564287e-05 | GL35: 16.19323831 | GM35: 32.26351958 | GN35: 47.4291367 | GX35: 0.5266417564 | GY35: 0.4014374086 | GZ35: 0.3683365976 | HK35: 20.63060712 | HL35: 19.81550412 | IH35: 60 | II35: 60 | IJ35: 60
A36: Gallaway | B36: PAVDRN | C36: 16.133 | D36: -0.01114629442 | E36: 0.01710251185 | F36: 0.02682837569 | P36: 999 | Q36: 74.69275283 | R36: 66.47143211 | AB36: 0 | AC36: 0 | AD36: 0 | AE36: 0 | AF36: 0 | AG36: 0 | AH36: 0 | AI36: 0 | AJ36: 0 | AK36: 0 | AL36: 0 | AM36: 0 | AN36: 999 | AO36: 999 | AP36: 999 | AQ36: 999 | AR36: 999 | AS36: 999 | AT36: 999 | AU36: 999 | AV36: 999 | AW36: 999 | AX36: 999 | AY36: 999 | AZ36: 26.30190152 | BA36: 26.30193637 | BB36: 26.30197169 | BL36: -80.24204776 | BM36: -80.2420674 | BN36: -80.24207611 | BX36: Open Graded Friction Course | BY36: 0 | BZ36: 2 | CF36: 1.37 | CG36: 1.47 | CH36: 2.08 | CR36: -0.73 | CS36: -0.76 | CT36: -0.79 | DD36: 0.068 | DE36: 0.068 | DF36: 0.068 | DP36: 0.082188 | DQ36: 0.082188 | DR36: 0.082188 | EB36: 0.05 | EC36: 0.14 | ED36: 0.17 | EN36: 12 | EO36: 12 | EP36: 12 | EZ36: 2 | FA36: 1.552353053 | FB36: 1.654841382 | FC36: 2.22497191 | FM36: 13.59725302 | FN36: 13.50890924 | FO36: 12.8363764 | FY36: 13.59725302 | FZ36: 27.10616226 | GA36: 39.94253866 | GK36: 3.880564287e-05 | GL36: 16.22193083 | GM36: 32.33846488 | GN36: 47.65264708 | GX36: 0.5230532227 | GY36: 0.3981114724 | GZ36: 0.3697929902 | HK36: 20.53811239 | HL36: 19.84387882 | IH36: 60 | II36: 60 | IJ36: 60
A37: Gallaway | B37: PAVDRN | C37: 16.134 | D37: -0.01161909189 | E37: 0.01669639856 | F37: 0.02647935725 | P37: 999 | Q37: 75.15911781 | R37: 66.69725389 | AB37: 0 | AC37: 0 | AD37: 0 | AE37: 0 | AF37: 0 | AG37: 0 | AH37: 0 | AI37: 0 | AJ37: 0 | AK37: 0 | AL37: 0 | AM37: 0 | AN37: 999 | AO37: 999 | AP37: 999 | AQ37: 999 | AR37: 999 | AS37: 999 | AT37: 999 | AU37: 999 | AV37: 999 | AW37: 999 | AX37: 999 | AY37: 999 | AZ37: 26.30190136 | BA37: 26.30193619 | BB37: 26.30197153 | BL37: -80.24203347 | BM37: -80.24205326 | BN37: -80.24206247 | BX37: Open Graded Friction Course | BY37: 0 | BZ37: 2 | CF37: 1.39 | CG37: 1.48 | CH37: 2.09 | CR37: -0.71 | CS37: -0.74 | CT37: -0.75 | DD37: 0.068 | DE37: 0.068 | DF37: 0.068 | DP37: 0.082188 | DQ37: 0.082188 | DR37: 0.082188 | EB37: 0.05 | EC37: 0.12 | ED37: 0.16 | EN37: 12 | EO37: 12 | EP37: 12 | EZ37: 2 | FA37: 1.560833111 | FB37: 1.654690303 | FC37: 2.22049544 | FM37: 13.47481822 | FN37: 13.41640786 | FO37: 12.74925612 | FY37: 13.47481822 | FZ37: 26.89122609 | GA37: 39.6404822 | GK37: 3.880564287e-05 | GL37: 16.07586245 | GM37: 32.08203958 | GN37: 47.29228467 | GX37: 0.5259390925 | GY37: 0.3994463986 | GZ37: 0.3707565637 | HK37: 20.57569855 | HL37: 19.8638063 | IH37: 60 | II37: 60 | IJ37: 60
A38: Gallaway | B38: PAVDRN | C38: 16.135 | D38: -0.01133121346 | E38: 0.01666012765 | F38: 0.02678262198 | P38: 999 | Q38: 75.20146373 | R38: 66.5008244 | AB38: 0 | AC38: 0 | AD38: 0 | AE38: 0 | AF38: 0 | AG38: 0 | AH38: 0 | AI38: 0 | AJ38: 0 | AK38: 0 | AL38: 0 | AM38: 0 | AN38: 999 | AO38: 999 | AP38: 999 | AQ38: 999 | AR38: 999 | AS38: 999 | AT38: 999 | AU38: 999 | AV38: 999 | AW38: 999 | AX38: 999 | AY38: 999 | AZ38: 26.30190095 | BA38: 26.30193602 | BB38: 26.30197121 | BL38: -80.24201217 | BM38: -80.24203907 | BN38: -80.24204229 | BX38: Open Graded Friction Course | BY38: 0 | BZ38: 2 | CF38: 1.375 | CG38: 1.48 | CH38: 2.075 | CR38: -0.705 | CS38: -0.76 | CT38: -0.775 | DD38: 0.068 | DE38: 0.068 | DF38: 0.068 | DP38: 0.082188 | DQ38: 0.082188 | DR38: 0.082188 | EB38: 0.08 | EC38: 0.16 | ED38: 0.15 | EN38: 12 | EO38: 12 | EP38: 12 | EZ38: 2 | FA38: 1.545202252 | FB38: 1.663730747 | FC38: 2.215005643 | FM38: 13.48540147 | FN38: 13.48970876 | FO38: 12.80967119 | FY38: 13.48540147 | FZ38: 26.97511024 | GA38: 39.78478143 | GK38: 3.880564287e-05 | GL38: 16.08848858 | GM38: 32.18211589 | GN38: 47.46443797 | GX38: 0.5241472548 | GY38: 0.3995849214 | GZ38: 0.3699055021 | HK38: 20.57910249 | HL38: 19.84647546 | IH38: 60 | II38: 60 | IJ38: 60
A39: Gallaway | B39: PAVDRN | C39: 16.136 | D39: -0.009900117764 | E39: 0.01740029495 | F39: 0.02665754379 | P39: 999 | Q39: 74.35956113 | R39: 66.5814986 | AB39: 0 | AC39: 0 | AD39: 0 | AE39: 0 | AF39: 0 | AG39: 0 | AH39: 0 | AI39: 0 | AJ39: 0 | AK39: 0 | AL39: 0 | AM39: 0 | AN39: 999 | AO39: 999 | AP39: 999 | AQ39: 999 | AR39: 999 | AS39: 999 | AT39: 999 | AU39: 999 | AV39: 999 | AW39: 999 | AX39: 999 | AY39: 999 | AZ39: 26.30190069 | BA39: 26.30193561 | BB39: 26.30197086 | BL39: -80.24199078 | BM39: -80.24201759 | BN39: -80.24202194 | BX39: Open Graded Friction Course | BY39: 0 | BZ39: 2 | CF39: 1.31 | CG39: 1.465 | CH39: 2.1 | CR39: -0.72 | CS39: -0.76 | CT39: -0.78 | DD39: 0.068 | DE39: 0.068 | DF39: 0.068 | DP39: 0.082188 | DQ39: 0.082188 | DR39: 0.082188 | EB39: 0.02 | EC39: 0.11 | ED39: 0.14 | EN39: 12 | EO39: 12 | EP39: 12 | EZ39: 2 | FA39: 1.494824404 | FB39: 1.650401466 | FC39: 2.240178564 | FM39: 13.69304798 | FN39: 13.51864682 | FO39: 12.80102037 | FY39: 13.69304798 | FZ39: 27.2116948 | GA39: 40.01271517 | GK39: 3.880564287e-05 | GL39: 16.33621709 | GM39: 32.46436838 | GN39: 47.73636976 | GX39: 0.5155070737 | GY39: 0.3971294883 | GZ39: 0.3702888326 | HK39: 20.5111486 | HL39: 19.85359804 | IH39: 60 | II39: 60 | IJ39: 60
A40: Gallaway | B40: PAVDRN | C40: 16.137 | D40: -0.007429570739 | E40: 0.01665648934 | F40: 0.02746281325 | P40: 999 | Q40: 75.20571783 | R40: 66.07026044 | AB40: 0 | AC40: 0 | AD40: 0 | AE40: 0 | AF40: 0 | AG40: 0 | AH40: 0 | AI40: 0 | AJ40: 0 | AK40: 0 | AL40: 0 | AM40: 0 | AN40: 999 | AO40: 999 | AP40: 999 | AQ40: 999 | AR40: 999 | AS40: 999 | AT40: 999 | AU40: 999 | AV40: 999 | AW40: 999 | AX40: 999 | AY40: 999 | AZ40: 26.30190052 | BA40: 26.30193535 | BB40: 26.3019707 | BL40: -80.24197661 | BM40: -80.24199608 | BN40: -80.24200861 | BX40: Open Graded Friction Course | BY40: 0 | BZ40: 2 | CF40: 1.2 | CG40: 1.51 | CH40: 2.06 | CR40: -0.69 | CS40: -0.76 | CT40: -0.78 | DD40: 0.068 | DE40: 0.068 | DF40: 0.068 | DP40: 0.082188 | DQ40: 0.082188 | DR40: 0.082188 | EB40: 0.05 | EC40: 0.11 | ED40: 0.19 | EN40: 12 | EO40: 12 | EP40: 12 | EZ40: 2 | FA40: 1.384232639 | FB40: 1.690473307 | FC40: 2.202725584 | FM40: 13.84232639 | FN40: 13.43422495 | FO40: 12.83141117 | FY40: 13.84232639 | FZ40: 27.27655135 | GA40: 40.10796252 | GK40: 3.880564287e-05 | GL40: 16.51431072 | GM40: 32.54174418 | GN40: 47.85000271 | GX40: 0.5012142582 | GY40: 0.3996519194 | GZ40: 0.3680121826 | HK40: 20.57944437 | HL40: 19.80834907 | IH40: 60 | II40: 60 | IJ40: 60
A41: Gallaway | B41: PAVDRN | C41: 16.138 | D41: -0.007760495206 | E41: 0.01760452902 | F41: 0.02646846293 | P41: 999 | Q41: 74.13516483 | R41: 66.70436296 | AB41: 0 | AC41: 0 | AD41: 0 | AE41: 0 | AF41: 0 | AG41: 0 | AH41: 0 | AI41: 0 | AJ41: 0 | AK41: 0 | AL41: 0 | AM41: 0 | AN41: 999 | AO41: 999 | AP41: 999 | AQ41: 999 | AR41: 999 | AS41: 999 | AT41: 999 | AU41: 999 | AV41: 999 | AW41: 999 | AX41: 999 | AY41: 999 | AZ41: 26.30190021 | BA41: 26.30193504 | BB41: 26.30197039 | BL41: -80.24196242 | BM41: -80.24198207 | BN41: -80.24199497 | BX41: Open Graded Friction Course | BY41: 0 | BZ41: 2 | CF41: 1.22 | CG41: 1.48 | CH41: 2.13 | CR41: -0.73 | CS41: -0.76 | CT41: -0.79 | DD41: 0.068 | DE41: 0.068 | DF41: 0.068 | DP41: 0.082188 | DQ41: 0.082188 | DR41: 0.082188 | EB41: 0.07 | EC41: 0.09 | ED41: 0.15 | EN41: 12 | EO41: 12 | EP41: 12 | EZ41: 2 | FA41: 1.421724305 | FB41: 1.663730747 | FC41: 2.27178344 | FM41: 13.98417349 | FN41: 13.48970876 | FO41: 12.79877995 | FY41: 13.98417349 | FZ41: 27.47388226 | GA41: 40.2726622 | GK41: 3.880564287e-05 | GL41: 16.68353857 | GM41: 32.77716588 | GN41: 48.04649437 | GX41: 0.5031501346 | GY41: 0.3964928923 | GZ41: 0.3708599929 | HK41: 20.49293681 | HL41: 19.86443279 | IH41: 60 | II41: 60 | IJ41: 60
A42: Gallaway | B42: PAVDRN | C42: 16.139 | D42: -0.00828854036 | E42: 0.01887850171 | F42: 0.02786563393 | P42: 999 | Q42: 72.80570159 | R42: 65.82155343 | AB42: 0 | AC42: 0 | AD42: 0 | AE42: 0 | AF42: 0 | AG42: 0 | AH42: 0 | AI42: 0 | AJ42: 0 | AK42: 0 | AL42: 0 | AM42: 0 | AN42: 999 | AO42: 999 | AP42: 999 | AQ42: 999 | AR42: 999 | AS42: 999 | AT42: 999 | AU42: 999 | AV42: 999 | AW42: 999 | AX42: 999 | AY42: 999 | AZ42: 26.30190002 | BA42: 26.30193485 | BB42: 26.30197019 | BL42: -80.24194811 | BM42: -80.24196776 | BN42: -80.24198161 | BX42: Open Graded Friction Course | BY42: 0 | BZ42: 2 | CF42: 1.24 | CG42: 1.42 | CH42: 2.05 | CR42: -0.72 | CS42: -0.74 | CT42: -0.77 | DD42: 0.068 | DE42: 0.068 | DF42: 0.068 | DP42: 0.082188 | DQ42: 0.082188 | DR42: 0.082188 | EB42: 0.04 | EC42: 0.12 | ED42: 0.17 | EN42: 12 | EO42: 12 | EP42: 12 | EZ42: 2 | FA42: 1.433875866 | FB42: 1.601249512 | FC42: 2.189840177 | FM42: 13.87621806 | FN42: 13.53168602 | FO42: 12.81857664 | FY42: 13.87621806 | FZ42: 27.40790408 | GA42: 40.22648072 | GK42: 3.880564287e-05 | GL42: 16.5547445 | GM42: 32.69845193 | GN42: 47.99139848 | GX42: 0.5061225317 | GY42: 0.3922755104 | GZ42: 0.3668927963 | HK42: 20.38416124 | HL42: 19.78623903 | IH42: 60 | II42: 60 | IJ42: 60
A43: Gallaway | B43: PAVDRN | C43: 16.14 | D43: -0.007345471538 | E43: 0.01726857656 | F43: 0.02768274156 | P43: 999 | Q43: 74.50604938 | R43: 65.93390886 | AB43: 0 | AC43: 0 | AD43: 0 | AE43: 0 | AF43: 0 | AG43: 0 | AH43: 0 | AI43: 0 | AJ43: 0 | AK43: 0 | AL43: 0 | AM43: 0 | AN43: 999 | AO43: 999 | AP43: 999 | AQ43: 999 | AR43: 999 | AS43: 999 | AT43: 999 | AU43: 999 | AV43: 999 | AW43: 999 | AX43: 999 | AY43: 999 | AZ43: 26.30189986 | BA43: 26.30193468 | BB43: 26.30196987 | BL43: -80.24193395 | BM43: -80.24195342 | BN43: -80.24196129 | BX43: Open Graded Friction Course | BY43: 0 | BZ43: 2 | CF43: 1.2 | CG43: 1.49 | CH43: 2.07 | CR43: -0.71 | CS43: -0.77 | CT43: -0.735 | DD43: 0.068 | DE43: 0.068 | DF43: 0.068 | DP43: 0.082188 | DQ43: 0.082188 | DR43: 0.082188 | EB43: 0.06 | EC43: 0.16 | ED43: 0.16 | EN43: 12 | EO43: 12 | EP43: 12 | EZ43: 2 | FA43: 1.394309865 | FB43: 1.677200048 | FC43: 2.196616717 | FM43: 13.94309865 | FN43: 13.50765139 | FO43: 12.73400995 | FY43: 13.94309865 | FZ43: 27.45075004 | GA43: 40.18475999 | GK43: 3.880564287e-05 | GL43: 16.63453505 | GM43: 32.74956845 | GN43: 47.9416244 | GX43: 0.5007854378 | GY43: 0.3976143693 | GZ43: 0.3674014581 | HK43: 20.52301469 | HL43: 19.79623536 | IH43: 60 | II43: 60 | IJ43: 60
A44: Gallaway | B44: PAVDRN | C44: 16.141 | D44: -0.008207728676 | E44: 0.01764562746 | F44: 0.02910083082 | P44: 999 | Q44: 74.09040511 | R44: 65.08628512 | AB44: 0 | AC44: 0 | AD44: 0 | AE44: 0 | AF44: 0 | AG44: 0 | AH44: 0 | AI44: 0 | AJ44: 0 | AK44: 0 | AL44: 0 | AM44: 0 | AN44: 999 | AO44: 999 | AP44: 999 | AQ44: 999 | AR44: 999 | AS44: 999 | AT44: 999 | AU44: 999 | AV44: 999 | AW44: 999 | AX44: 999 | AY44: 999 | AZ44: 26.30189969 | BA44: 26.30193452 | BB44: 26.30196953 | BL44: -80.24191961 | BM44: -80.24193941 | BN44: -80.24194111 | BX44: Open Graded Friction Course | BY44: 0 | BZ44: 2 | CF44: 1.24 | CG44: 1.48 | CH44: 1.99 | CR44: -0.74 | CS44: -0.74 | CT44: -0.73 | DD44: 0.068 | DE44: 0.068 | DF44: 0.068 | DP44: 0.082188 | DQ44: 0.082188 | DR44: 0.082188 | EB44: 0.08 | EC44: 0.14 | ED44: 0.16 | EN44: 12 | EO44: 12 | EP44: 12 | EZ44: 2 | FA44: 1.44402216 | FB44: 1.654690303 | FC44: 2.119669786 | FM44: 13.974408 | FN44: 13.41640786 | FO44: 12.78192836 | FY44: 13.974408 | FZ44: 27.39081587 | GA44: 40.17274423 | GK44: 3.880564287e-05 | GL44: 16.67188805 | GM44: 32.67806518 | GN44: 47.92728923 | GX44: 0.5057015911 | GY44: 0.3963409074 | GZ44: 0.3634604879 | HK44: 20.48929909 | HL44: 19.72049613 | IH44: 60 | II44: 60 | IJ44: 60
A45: Gallaway | B45: PAVDRN | C45: 16.142 | D45: -0.005328870722 | E45: 0.01787696674 | F45: 0.02987932907 | P45: 999 | Q45: 73.84088232 | R45: 64.64276612 | AB45: 0 | AC45: 0 | AD45: 0 | AE45: 0 | AF45: 0 | AG45: 0 | AH45: 0 | AI45: 0 | AJ45: 0 | AK45: 0 | AL45: 0 | AM45: 0 | AN45: 999 | AO45: 999 | AP45: 999 | AQ45: 999 | AR45: 999 | AS45: 999 | AT45: 999 | AU45: 999 | AV45: 999 | AW45: 999 | AX45: 999 | AY45: 999 | AZ45: 26.30189944 | BA45: 26.3019342 | BB45: 26.30196936 | BL45: -80.24189827 | BM45: -80.24192509 | BN45: -80.24192764 | BX45: Open Graded Friction Course | BY45: 0 | BZ45: 2 | CF45: 1.13 | CG45: 1.5 | CH45: 1.98 | CR45: -0.745 | CS45: -0.76 | CT45: -0.74 | DD45: 0.068 | DE45: 0.068 | DF45: 0.068 | DP45: 0.082188 | DQ45: 0.082188 | DR45: 0.082188 | EB45: 0.05 | EC45: 0.15 | ED45: 0.12 | EN45: 12 | EO45: 12 | EP45: 12 | EZ45: 2 | FA45: 1.353486239 | FB45: 1.681546907 | FC45: 2.113764414 | FM45: 14.3733052 | FN45: 13.45237525 | FO45: 12.81069342 | FY45: 14.3733052 | FZ45: 27.82568045 | GA45: 40.63637387 | GK45: 3.880564287e-05 | GL45: 17.14778436 | GM45: 33.19687168 | GN45: 48.48041331 | GX45: 0.4898994447 | GY45: 0.3956471326 | GZ45: 0.361387782 | HK45: 20.4689888 | HL45: 19.68056315 | IH45: 60 | II45: 60 | IJ45: 60
A46: Gallaway | B46: PAVDRN | C46: 16.143 | D46: -0.003837171115 | E46: 0.01891691462 | F46: 0.03126129175 | P46: 999 | Q46: 72.76738215 | R46: 63.89019119 | AB46: 0 | AC46: 0 | AD46: 0 | AE46: 0 | AF46: 0 | AG46: 0 | AH46: 0 | AI46: 0 | AJ46: 0 | AK46: 0 | AL46: 0 | AM46: 0 | AN46: 999 | AO46: 999 | AP46: 999 | AQ46: 999 | AR46: 999 | AS46: 999 | AT46: 999 | AU46: 999 | AV46: 999 | AW46: 999 | AX46: 999 | AY46: 999 | AZ46: 26.30189919 | BA46: 26.30193402 | BB46: 26.30196906 | BL46: -80.24187692 | BM46: -80.24191091 | BN46: -80.24191411 | BX46: Open Graded Friction Course | BY46: 0 | BZ46: 2 | CF46: 1.09 | CG46: 1.5 | CH46: 1.95 | CR46: -0.81 | CS46: -0.77 | CT46: -0.76 | DD46: 0.068 | DE46: 0.068 | DF46: 0.068 | DP46: 0.082188 | DQ46: 0.082188 | DR46: 0.082188 | EB46: 0.05 | EC46: 0.13 | ED46: 0.12 | EN46: 12 | EO46: 12 | EP46: 12 | EZ46: 2 | FA46: 1.358013255 | FB46: 1.686090152 | FC46: 2.092868844 | FM46: 14.95060464 | FN46: 13.48872121 | FO46: 12.87919289 | FY46: 14.95060464 | FZ46: 28.43932585 | GA46: 41.31851874 | GK46: 3.880564287e-05 | GL46: 17.83651992 | GM46: 33.92896905 | GN46: 49.29423261 | GX46: 0.4822801673 | GY46: 0.3923284742 | GZ46: 0.3577566982 | HK46: 20.38100342 | HL46: 19.6123195 | IH46: 60 | II46: 60 | IJ46: 60
A47: Gallaway | B47: PAVDRN | C47: 16.144 | D47: -0.00408365474 | E47: 0.01785955398 | F47: 0.0327420411 | P47: 999 | Q47: 73.85952192 | R47: 63.12895362 | AB47: 0 | AC47: 0 | AD47: 0 | AE47: 0 | AF47: 0 | AG47: 0 | AH47: 0 | AI47: 0 | AJ47: 0 | AK47: 0 | AL47: 0 | AM47: 0 | AN47: 999 | AO47: 999 | AP47: 999 | AQ47: 999 | AR47: 999 | AS47: 999 | AT47: 999 | AU47: 999 | AV47: 999 | AW47: 999 | AX47: 999 | AY47: 999 | AZ47: 26.30189902 | BA47: 26.30193369 | BB47: 26.3019688 | BL47: -80.24186278 | BM47: -80.24188942 | BN47: -80.2418957 | BX47: Open Graded Friction Course | BY47: 0 | BZ47: 2 | CF47: 1.1 | CG47: 1.545 | CH47: 1.88 | CR47: -0.82 | CS47: -0.795 | CT47: -0.75 | DD47: 0.068 | DE47: 0.068 | DF47: 0.068 | DP47: 0.082188 | DQ47: 0.082188 | DR47: 0.082188 | EB47: 0.06 | EC47: 0.16 | ED47: 0.14 | EN47: 12 | EO47: 12 | EP47: 12 | EZ47: 2 | FA47: 1.372005831 | FB47: 1.737541366 | FC47: 2.024080038 | FM47: 14.96733634 | FN47: 13.49546692 | FO47: 12.91965982 | FY47: 14.96733634 | FZ47: 28.46280326 | GA47: 41.38246308 | GK47: 3.880564287e-05 | GL47: 17.85648134 | GM47: 33.95697831 | GN47: 49.37052012 | GX47: 0.4835659764 | GY47: 0.3958152415 | GZ47: 0.353884575 | HK47: 20.47050782 | HL47: 19.54265906 | IH47: 60 | II47: 60 | IJ47: 60
A48: Gallaway | B48: PAVDRN | C48: 16.145 | D48: -0.003890396431 | E48: 0.01767633236 | F48: 0.03088294601 | P48: 999 | Q48: 74.05705042 | R48: 64.09200101 | AB48: 0 | AC48: 0 | AD48: 0 | AE48: 0 | AF48: 0 | AG48: 0 | AH48: 0 | AI48: 0 | AJ48: 0 | AK48: 0 | AL48: 0 | AM48: 0 | AN48: 999 | AO48: 999 | AP48: 999 | AQ48: 999 | AR48: 999 | AS48: 999 | AT48: 999 | AU48: 999 | AV48: 999 | AW48: 999 | AX48: 999 | AY48: 999 | AZ48: 26.30189886 | BA48: 26.30193335 | BB48: 26.30196854 | BL48: -80.24184845 | BM48: -80.24186809 | BN48: -80.24188036 | BX48: Open Graded Friction Course | BY48: 0 | BZ48: 2 | CF48: 1.09 | CG48: 1.55 | CH48: 1.955 | CR48: -0.8 | CS48: -0.77 | CT48: -0.775 | DD48: 0.068 | DE48: 0.068 | DF48: 0.068 | DP48: 0.082188 | DQ48: 0.082188 | DR48: 0.082188 | EB48: 0.06 | EC48: 0.16 | ED48: 0.15 | EN48: 12 | EO48: 12 | EP48: 12 | EZ48: 2 | FA48: 1.352072483 | FB48: 1.730722393 | FC48: 2.103009748 | FM48: 14.88520165 | FN48: 13.3991411 | FO48: 12.90849973 | FY48: 14.88520165 | FZ48: 28.28434275 | GA48: 41.19284249 | GK48: 3.880564287e-05 | GL48: 17.75849219 | GM48: 33.74406957 | GN48: 49.14429706 | GX48: 0.4825297326 | GY48: 0.3963949697 | GZ48: 0.3587493276 | HK48: 20.48658718 | HL48: 19.63068 | IH48: 60 | II48: 60 | IJ48: 60
A49: Gallaway | B49: PAVDRN | C49: 16.146 | D49: -0.005041301566 | E49: 0.01877368595 | F49: 0.03059066992 | P49: 999 | Q49: 72.91076362 | R49: 64.25004439 | AB49: 0 | AC49: 0 | AD49: 0 | AE49: 0 | AF49: 0 | AG49: 0 | AH49: 0 | AI49: 0 | AJ49: 0 | AK49: 0 | AL49: 0 | AM49: 0 | AN49: 999 | AO49: 999 | AP49: 999 | AQ49: 999 | AR49: 999 | AS49: 999 | AT49: 999 | AU49: 999 | AV49: 999 | AW49: 999 | AX49: 999 | AY49: 999 | AZ49: 26.30189869 | BA49: 26.30193319 | BB49: 26.3019682 | BL49: -80.24183426 | BM49: -80.24185391 | BN49: -80.24186014 | BX49: Open Graded Friction Course | BY49: 0 | BZ49: 2 | CF49: 1.14 | CG49: 1.51 | CH49: 1.98 | CR49: -0.86 | CS49: -0.79 | CT49: -0.83 | DD49: 0.068 | DE49: 0.068 | DF49: 0.068 | DP49: 0.082188 | DQ49: 0.082188 | DR49: 0.082188 | EB49: 0.04 | EC49: 0.14 | ED49: 0.17 | EN49: 12 | EO49: 12 | EP49: 12 | EZ49: 2 | FA49: 1.428005602 | FB49: 1.704171353 | FC49: 2.146928038 | FM49: 15.03163792 | FN49: 13.5430836 | FO49: 13.01168508 | FY49: 15.03163792 | FZ49: 28.57472152 | GA49: 41.5864066 | GK49: 3.880564287e-05 | GL49: 17.93319506 | GM49: 34.09050014 | GN49: 49.61383085 | GX49: 0.4886329712 | GY49: 0.3928192626 | GZ49: 0.3595728139 | HK49: 20.39281261 | HL49: 19.64502768 | IH49: 60 | II49: 60 | IJ49: 60
A50: Gallaway | B50: PAVDRN | C50: 16.147 | D50: -0.007406166001 | E50: 0.01884572822 | F50: 0.02990677704 | P50: 999 | Q50: 72.83847301 | R50: 64.62739491 | AB50: 0 | AC50: 0 | AD50: 0 | AE50: 0 | AF50: 0 | AG50: 0 | AH50: 0 | AI50: 0 | AJ50: 0 | AK50: 0 | AL50: 0 | AM50: 0 | AN50: 999 | AO50: 999 | AP50: 999 | AQ50: 999 | AR50: 999 | AS50: 999 | AT50: 999 | AU50: 999 | AV50: 999 | AW50: 999 | AX50: 999 | AY50: 999 | AZ50: 26.30189852 | BA50: 26.30193302 | BB50: 26.30196789 | BL50: -80.24181997 | BM50: -80.24183959 | BN50: -80.24184661 | BX50: Open Graded Friction Course | BY50: 0 | BZ50: 2 | CF50: 1.23 | CG50: 1.48 | CH50: 2 | CR50: -0.87 | CS50: -0.79 | CT50: -0.81 | DD50: 0.068 | DE50: 0.068 | DF50: 0.068 | DP50: 0.082188 | DQ50: 0.082188 | DR50: 0.082188 | EB50: 0.06 | EC50: 0.15 | ED50: 0.2 | EN50: 12 | EO50: 12 | EP50: 12 | EZ50: 2 | FA50: 1.506585544 | FB50: 1.677647162 | FC50: 2.157799805 | FM50: 14.69839555 | FN50: 13.60254456 | FO50: 12.94679883 | FY50: 14.69839555 | FZ50: 28.3009401 | GA50: 41.24773894 | GK50: 3.880564287e-05 | GL50: 17.53562691 | GM50: 33.7638707 | GN50: 49.20979017 | GX50: 0.5014524299 | GY50: 0.3925372858 | GZ50: 0.3613797712 | HK50: 20.38686084 | HL50: 19.67917541 | IH50: 60 | II50: 60 | IJ50: 60
A51: Gallaway | B51: PAVDRN | C51: 16.148 | D51: -0.01055113653 | E51: 0.01843664797 | F51: 0.02830681681 | P51: 999 | Q51: 73.25366389 | R51: 65.55430267 | AB51: 0 | AC51: 0 | AD51: 0 | AE51: 0 | AF51: 0 | AG51: 0 | AH51: 0 | AI51: 0 | AJ51: 0 | AK51: 0 | AL51: 0 | AM51: 0 | AN51: 999 | AO51: 999 | AP51: 999 | AQ51: 999 | AR51: 999 | AS51: 999 | AT51: 999 | AU51: 999 | AV51: 999 | AW51: 999 | AX51: 999 | AY51: 999 | AZ51: 26.30189836 | BA51: 26.3019327 | BB51: 26.30196769 | BL51: -80.24180576 | BM51: -80.24182541 | BN51: -80.24183314 | BX51: Open Graded Friction Course | BY51: 0 | BZ51: 2 | CF51: 1.36 | CG51: 1.45 | CH51: 2.05 | CR51: -0.84 | CS51: -0.79 | CT51: -0.79 | DD51: 0.068 | DE51: 0.068 | DF51: 0.068 | DP51: 0.082188 | DQ51: 0.082188 | DR51: 0.082188 | EB51: 0.06 | EC51: 0.18 | ED51: 0.19 | EN51: 12 | EO51: 12 | EP51: 12 | EZ51: 2 | FA51: 1.598499296 | FB51: 1.651241957 | FC51: 2.196952435 | FM51: 14.10440555 | FN51: 13.66545068 | FO51: 12.86020937 | FY51: 14.10440555 | FZ51: 27.76985623 | GA51: 40.63006561 | GK51: 3.880564287e-05 | GL51: 16.82697902 | GM51: 33.13027171 | GN51: 48.47288736 | GX51: 0.5196317379 | GY51: 0.3937866133 | GZ51: 0.3657058094 | HK51: 20.42098237 | HL51: 19.76240879 | IH51: 60 | II51: 60 | IJ51: 60
A52: Gallaway | B52: PAVDRN | C52: 16.149 | D52: -0.008033868974 | E52: 0.0177162804 | F52: 0.02899569306 | P52: 999 | Q52: 74.01376394 | R52: 65.14732756 | AB52: 0 | AC52: 0 | AD52: 0 | AE52: 0 | AF52: 0 | AG52: 0 | AH52: 0 | AI52: 0 | AJ52: 0 | AK52: 0 | AL52: 0 | AM52: 0 | AN52: 999 | AO52: 999 | AP52: 999 | AQ52: 999 | AR52: 999 | AS52: 999 | AT52: 999 | AU52: 999 | AV52: 999 | AW52: 999 | AX52: 999 | AY52: 999 | AZ52: 26.30189819 | BA52: 26.30193252 | BB52: 26.30196739 | BL52: -80.24179145 | BM52: -80.24181126 | BN52: -80.24181947 | BX52: Open Graded Friction Course | BY52: 0 | BZ52: 2 | CF52: 1.25 | CG52: 1.51 | CH52: 2.04 | CR52: -0.84 | CS52: -0.79 | CT52: -0.74 | DD52: 0.068 | DE52: 0.068 | DF52: 0.068 | DP52: 0.082188 | DQ52: 0.082188 | DR52: 0.082188 | EB52: 0.06 | EC52: 0.11 | ED52: 0.17 | EN52: 12 | EO52: 12 | EP52: 12 | EZ52: 2 | FA52: 1.506021248 | FB52: 1.704171353 | FC52: 2.170069123 | FM52: 14.45780398 | FN52: 13.5430836 | FO52: 12.76511249 | FY52: 14.45780398 | FZ52: 28.00088758 | GA52: 40.76600007 | GK52: 3.880564287e-05 | GL52: 17.24859395 | GM52: 33.40589904 | GN52: 48.63506125 | GX52: 0.5049158646 | GY52: 0.3962126201 | GZ52: 0.3638150043 | HK52: 20.48306636 | HL52: 19.7259758 | IH52: 60 | II52: 60 | IJ52: 60
A53: Gallaway | B53: PAVDRN | C53: 16.15 | D53: -0.007996520061 | E53: 0.01642284473 | F53: 0.02797123633 | P53: 999 | Q53: 75.48138279 | R53: 65.75710113 | AB53: 0 | AC53: 0 | AD53: 0 | AE53: 0 | AF53: 0 | AG53: 0 | AH53: 0 | AI53: 0 | AJ53: 0 | AK53: 0 | AL53: 0 | AM53: 0 | AN53: 999 | AO53: 999 | AP53: 999 | AQ53: 999 | AR53: 999 | AS53: 999 | AT53: 999 | AU53: 999 | AV53: 999 | AW53: 999 | AX53: 999 | AY53: 999 | AZ53: 26.30189778 | BA53: 26.30193234 | BB53: 26.30196711 | BL53: -80.24177019 | BM53: -80.24179622 | BN53: -80.24179921 | BX53: Open Graded Friction Course | BY53: 0 | BZ53: 2 | CF53: 1.245 | CG53: 1.56 | CH53: 2.08 | CR53: -0.82 | CS53: -0.8 | CT53: -0.765 | DD53: 0.068 | DE53: 0.068 | DF53: 0.068 | DP53: 0.082188 | DQ53: 0.082188 | DR53: 0.082188 | EB53: 0.08 | EC53: 0.12 | ED53: 0.17 | EN53: 12 | EO53: 12 | EP53: 12 | EZ53: 2 | FA53: 1.490779997 | FB53: 1.75316856 | FC53: 2.216218626 | FM53: 14.36896383 | FN53: 13.485912 | FO53: 12.78587669 | FY53: 14.36896383 | FZ53: 27.85487583 | GA53: 40.64075252 | GK53: 3.880564287e-05 | GL53: 17.14260498 | GM53: 33.23170264 | GN53: 48.48563717 | GX53: 0.5046639076 | GY53: 0.4005511778 | GZ53: 0.3666433115 | HK53: 20.60156657 | HL53: 19.78049875 | IH53: 60 | II53: 60 | IJ53: 60
A54: Gallaway | B54: PAVDRN | C54: 16.151 | D54: -0.006020779209 | E54: 0.01841397338 | F54: 0.02769176281 | P54: 999 | Q54: 73.27701582 | R54: 65.92834499 | AB54: 0 | AC54: 0 | AD54: 0 | AE54: 0 | AF54: 0 | AG54: 0 | AH54: 0 | AI54: 0 | AJ54: 0 | AK54: 0 | AL54: 0 | AM54: 0 | AN54: 999 | AO54: 999 | AP54: 999 | AQ54: 999 | AR54: 999 | AS54: 999 | AT54: 999 | AU54: 999 | AV54: 999 | AW54: 999 | AX54: 999 | AY54: 999 | AZ54: 26.30189752 | BA54: 26.30193219 | BB54: 26.30196672 | BL54: -80.24174878 | BM54: -80.24178274 | BN54: -80.24177908 | BX54: Open Graded Friction Course | BY54: 0 | BZ54: 2 | CF54: 1.17 | CG54: 1.5 | CH54: 2.12 | CR54: -0.83 | CS54: -0.79 | CT54: -0.81 | DD54: 0.068 | DE54: 0.068 | DF54: 0.068 | DP54: 0.082188 | DQ54: 0.082188 | DR54: 0.082188 | EB54: 0.07 | EC54: 0.13 | ED54: 0.19 | EN54: 12 | EO54: 12 | EP54: 12 | EZ54: 2 | FA54: 1.434503398 | FB54: 1.695317079 | FC54: 2.269471304 | FM54: 14.71285537 | FN54: 13.56253664 | FO54: 12.84606399 | FY54: 14.71285537 | FZ54: 28.275392 | GA54: 41.12145599 | GK54: 3.880564287e-05 | GL54: 17.55287791 | GM54: 33.73339105 | GN54: 49.05913083 | GX54: 0.4937797319 | GY54: 0.3939486485 | GZ54: 0.367480255 | HK54: 20.42289708 | HL54: 19.79574064 | IH54: 60 | II54: 60 | IJ54: 60
A55: Gallaway | B55: PAVDRN | C55: 16.152 | D55: -0.006862345839 | E55: 0.01657744606 | F55: 0.0273062403 | P55: 999 | Q55: 75.29842902 | R55: 66.16817338 | AB55: 0 | AC55: 0 | AD55: 0 | AE55: 0 | AF55: 0 | AG55: 0 | AH55: 0 | AI55: 0 | AJ55: 0 | AK55: 0 | AL55: 0 | AM55: 0 | AN55: 999 | AO55: 999 | AP55: 999 | AQ55: 999 | AR55: 999 | AS55: 999 | AT55: 999 | AU55: 999 | AV55: 999 | AW55: 999 | AX55: 999 | AY55: 999 | AZ55: 26.30189736 | BA55: 26.30193178 | BB55: 26.30196653 | BL55: -80.24173459 | BM55: -80.24176134 | BN55: -80.24176564 | BX55: Open Graded Friction Course | BY55: 0 | BZ55: 2 | CF55: 1.2 | CG55: 1.56 | CH55: 2.14 | CR55: -0.82 | CS55: -0.85 | CT55: -0.79 | DD55: 0.068 | DE55: 0.068 | DF55: 0.068 | DP55: 0.082188 | DQ55: 0.082188 | DR55: 0.082188 | EB55: 0.05 | EC55: 0.12 | ED55: 0.14 | EN55: 12 | EO55: 12 | EP55: 12 | EZ55: 2 | FA55: 1.453409784 | FB55: 1.776541584 | FC55: 2.281161985 | FM55: 14.53409784 | FN55: 13.66570449 | FO55: 12.79156253 | FY55: 14.53409784 | FZ55: 28.19980233 | GA55: 40.99136486 | GK55: 3.880564287e-05 | GL55: 17.33961481 | GM55: 33.64321031 | GN55: 48.90392821 | GX55: 0.4983383337 | GY55: 0.4000845895 | GZ55: 0.368553292 | HK55: 20.58689142 | HL55: 19.81703598 | IH55: 60 | II55: 60 | IJ55: 60
A56: Gallaway | B56: PAVDRN | C56: 16.153 | D56: -0.005925113389 | E56: 0.01672206747 | F56: 0.02782559039 | P56: 999 | Q56: 75.12921954 | R56: 65.84607366 | AB56: 0 | AC56: 0 | AD56: 0 | AE56: 0 | AF56: 0 | AG56: 0 | AH56: 0 | AI56: 0 | AJ56: 0 | AK56: 0 | AL56: 0 | AM56: 0 | AN56: 999 | AO56: 999 | AP56: 999 | AQ56: 999 | AR56: 999 | AS56: 999 | AT56: 999 | AU56: 999 | AV56: 999 | AW56: 999 | AX56: 999 | AY56: 999 | AZ56: 26.30189719 | BA56: 26.30193152 | BB56: 26.30196622 | BL56: -80.24172028 | BM56: -80.24173995 | BN56: -80.24175211 | BX56: Open Graded Friction Course | BY56: 0 | BZ56: 2 | CF56: 1.17 | CG56: 1.58 | CH56: 2.12 | CR56: -0.85 | CS56: -0.84 | CT56: -0.83 | DD56: 0.068 | DE56: 0.068 | DF56: 0.068 | DP56: 0.082188 | DQ56: 0.082188 | DR56: 0.082188 | EB56: 0.13 | EC56: 0.11 | ED56: 0.17 | EN56: 12 | EO56: 12 | EP56: 12 | EZ56: 2 | FA56: 1.446167349 | FB56: 1.789413312 | FC56: 2.276686188 | FM56: 14.83248563 | FN56: 13.59048085 | FO56: 12.88690295 | FY56: 14.83248563 | FZ56: 28.42296647 | GA56: 41.30986943 | GK56: 3.880564287e-05 | GL56: 17.6956004 | GM56: 33.90945182 | GN56: 49.28391371 | GX56: 0.4933081119 | GY56: 0.3996315113 | GZ56: 0.3671250675 | HK56: 20.57329432 | HL56: 19.78842173 | IH56: 60 | II56: 60 | IJ56: 60
A57: Gallaway | B57: PAVDRN | C57: 16.154 | D57: -0.006100365045 | E57: 0.01593723604 | F57: 0.02748267079 | P57: 999 | Q57: 76.07045461 | R57: 66.05789275 | AB57: 0 | AC57: 0 | AD57: 0 | AE57: 0 | AF57: 0 | AG57: 0 | AH57: 0 | AI57: 0 | AJ57: 0 | AK57: 0 | AL57: 0 | AM57: 0 | AN57: 999 | AO57: 999 | AP57: 999 | AQ57: 999 | AR57: 999 | AS57: 999 | AT57: 999 | AU57: 999 | AV57: 999 | AW57: 999 | AX57: 999 | AY57: 999 | AZ57: 26.30189688 | BA57: 26.30193135 | BB57: 26.30196603 | BL57: -80.24170627 | BM57: -80.24172574 | BN57: -80.24173846 | BX57: Open Graded Friction Course | BY57: 0 | BZ57: 2 | CF57: 1.18 | CG57: 1.62 | CH57: 2.14 | CR57: -0.87 | CS57: -0.87 | CT57: -0.87 | DD57: 0.068 | DE57: 0.068 | DF57: 0.068 | DP57: 0.082188 | DQ57: 0.082188 | DR57: 0.082188 | EB57: 0.12 | EC57: 0.13 | ED57: 0.17 | EN57: 12 | EO57: 12 | EP57: 12 | EZ57: 2 | FA57: 1.466049112 | FB57: 1.83883115 | FC57: 2.310086578 | FM57: 14.90897402 | FN57: 13.62097149 | FO57: 12.95375651 | FY57: 14.90897402 | FZ57: 28.52994551 | GA57: 41.48370202 | GK57: 3.880564287e-05 | GL57: 17.78685335 | GM57: 34.03708102 | GN57: 49.49130122 | GX57: 0.4942943959 | GY57: 0.4023354465 | GZ57: 0.3681088622 | HK57: 20.6486325 | HL57: 19.80725109 | IH57: 60 | II57: 60 | IJ57: 60
A58: Gallaway | B58: PAVDRN | C58: 16.155 | D58: -0.006493050285 | E58: 0.01797772536 | F58: 0.02846458468 | P58: 999 | Q58: 73.73347152 | R58: 65.46000338 | AB58: 0 | AC58: 0 | AD58: 0 | AE58: 0 | AF58: 0 | AG58: 0 | AH58: 0 | AI58: 0 | AJ58: 0 | AK58: 0 | AL58: 0 | AM58: 0 | AN58: 999 | AO58: 999 | AP58: 999 | AQ58: 999 | AR58: 999 | AS58: 999 | AT58: 999 | AU58: 999 | AV58: 999 | AW58: 999 | AX58: 999 | AY58: 999 | AZ58: 26.30189669 | BA58: 26.30193104 | BB58: 26.30196571 | BL58: -80.24169195 | BM58: -80.24171157 | BN58: -80.24171829 | BX58: Open Graded Friction Course | BY58: 0 | BZ58: 2 | CF58: 1.2 | CG58: 1.53 | CH58: 2.105 | CR58: -0.9 | CS58: -0.88 | CT58: -0.885 | DD58: 0.068 | DE58: 0.068 | DF58: 0.068 | DP58: 0.082188 | DQ58: 0.082188 | DR58: 0.082188 | EB58: 0.06 | EC58: 0.15 | ED58: 0.17 | EN58: 12 | EO58: 12 | EP58: 12 | EZ58: 2 | FA58: 1.5 | FB58: 1.765021246 | FC58: 2.283473232 | FM58: 15 | FN58: 13.84330389 | FO58: 13.0174246 | FY58: 15 | FZ58: 28.84330389 | GA58: 41.86072849 | GK58: 3.880564287e-05 | GL58: 17.89545007 | GM58: 34.41092698 | GN58: 49.94110511 | GX58: 0.4964863588 | GY58: 0.3954872506 | GZ58: 0.3654015343 | HK58: 20.4602297 | HL58: 19.75398248 | IH58: 60 | II58: 60 | IJ58: 60
A59: Gallaway | B59: PAVDRN | C59: 16.156 | D59: -0.006616532711 | E59: 0.0183414259 | F59: 0.0281039889 | P59: 999 | Q59: 73.3519744 | R59: 65.67651155 | AB59: 0 | AC59: 0 | AD59: 0 | AE59: 0 | AF59: 0 | AG59: 0 | AH59: 0 | AI59: 0 | AJ59: 0 | AK59: 0 | AL59: 0 | AM59: 0 | AN59: 999 | AO59: 999 | AP59: 999 | AQ59: 999 | AR59: 999 | AS59: 999 | AT59: 999 | AU59: 999 | AV59: 999 | AW59: 999 | AX59: 999 | AY59: 999 | AZ59: 26.30189652 | BA59: 26.30193085 | BB59: 26.30196536 | BL59: -80.24167761 | BM59: -80.24169726 | BN59: -80.24169811 | BX59: Open Graded Friction Course | BY59: 0 | BZ59: 2 | CF59: 1.21 | CG59: 1.52 | CH59: 2.14 | CR59: -0.93 | CS59: -0.91 | CT59: -0.92 | DD59: 0.068 | DE59: 0.068 | DF59: 0.068 | DP59: 0.082188 | DQ59: 0.082188 | DR59: 0.082188 | EB59: 0.01 | EC59: 0.17 | ED59: 0.15 | EN59: 12 | EO59: 12 | EP59: 12 | EZ59: 2 | FA59: 1.526106156 | FB59: 1.771581215 | FC59: 2.329377599 | FM59: 15.13493709 | FN59: 13.98616748 | FO59: 13.06193046 | FY59: 15.13493709 | FZ59: 29.12110457 | GA59: 42.18303503 | GK59: 3.880564287e-05 | GL59: 18.05643406 | GM59: 34.74235152 | GN59: 50.32562648 | GX59: 0.4972230325 | GY59: 0.3943305728 | GZ59: 0.3664401563 | HK59: 20.42904004 | HL59: 19.77331517 | IH59: 60 | II59: 60 | IJ59: 60
A60: Gallaway | B60: PAVDRN | C60: 16.157 | D60: -0.005810711916 | E60: 0.01916558711 | F60: 0.02948448892 | P60: 999 | Q60: 72.52166207 | R60: 64.86586837 | AB60: 0 | AC60: 0 | AD60: 0 | AE60: 0 | AF60: 0 | AG60: 0 | AH60: 0 | AI60: 0 | AJ60: 0 | AK60: 0 | AL60: 0 | AM60: 0 | AN60: 999 | AO60: 999 | AP60: 999 | AQ60: 999 | AR60: 999 | AS60: 999 | AT60: 999 | AU60: 999 | AV60: 999 | AW60: 999 | AX60: 999 | AY60: 999 | AZ60: 26.30189627 | BA60: 26.30193069 | BB60: 26.30196519 | BL60: -80.24165637 | BM60: -80.24168309 | BN60: -80.24168447 | BX60: Open Graded Friction Course | BY60: 0 | BZ60: 2 | CF60: 1.18 | CG60: 1.49 | CH60: 2.09 | CR60: -0.93 | CS60: -0.94 | CT60: -0.91 | DD60: 0.068 | DE60: 0.068 | DF60: 0.068 | DP60: 0.082188 | DQ60: 0.082188 | DR60: 0.082188 | EB60: 0.02 | EC60: 0.16 | ED60: 0.13 | EN60: 12 | EO60: 12 | EP60: 12 | EZ60: 2 | FA60: 1.502431363 | FB60: 1.761732102 | FC60: 2.279517493 | FM60: 15.27896301 | FN60: 14.18844646 | FO60: 13.08813871 | FY60: 15.27896301 | FZ60: 29.46740947 | GA60: 42.55554819 | GK60: 3.880564287e-05 | GL60: 18.22826131 | GM60: 35.15550366 | GN60: 50.77004585 | GX60: 0.4928666634 | GY60: 0.3916901935 | GZ60: 0.3626674688 | HK60: 20.36072378 | HL60: 19.70067676 | IH60: 60 | II60: 60 | IJ60: 60
A61: Gallaway | B61: PAVDRN | C61: 16.158 | D61: -0.006256334021 | E61: 0.01832471948 | F61: 0.02959530504 | P61: 999 | Q61: 73.36928893 | R61: 64.80287432 | AB61: 0 | AC61: 0 | AD61: 0 | AE61: 0 | AF61: 0 | AG61: 0 | AH61: 0 | AI61: 0 | AJ61: 0 | AK61: 0 | AL61: 0 | AM61: 0 | AN61: 999 | AO61: 999 | AP61: 999 | AQ61: 999 | AR61: 999 | AS61: 999 | AT61: 999 | AU61: 999 | AV61: 999 | AW61: 999 | AX61: 999 | AY61: 999 | AZ61: 26.30189602 | BA61: 26.30193052 | BB61: 26.30196503 | BL61: -80.24163492 | BM61: -80.24166876 | BN61: -80.24167111 | BX61: Open Graded Friction Course | BY61: 0 | BZ61: 2 | CF61: 1.2 | CG61: 1.53 | CH61: 2.08 | CR61: -0.95 | CS61: -0.94 | CT61: -0.9 | DD61: 0.068 | DE61: 0.068 | DF61: 0.068 | DP61: 0.082188 | DQ61: 0.082188 | DR61: 0.082188 | EB61: 0.03 | EC61: 0.14 | ED61: 0.12 | EN61: 12 | EO61: 12 | EP61: 12 | EZ61: 2 | FA61: 1.530522787 | FB61: 1.795689283 | FC61: 2.266362725 | FM61: 15.30522787 | FN61: 14.08383751 | FO61: 13.07516957 | FY61: 15.30522787 | FZ61: 29.38906538 | GA61: 42.46423494 | GK61: 3.880564287e-05 | GL61: 18.25959607 | GM61: 35.0620368 | GN61: 50.66110641 | GX61: 0.495307601 | GY61: 0.3944301138 | GZ61: 0.3623556274 | HK61: 20.4304583 | HL61: 19.69500297 | IH61: 60 | II61: 60 | IJ61: 60
A62: Gallaway | B62: PAVDRN | C62: 16.159 | D62: -0.005154462654 | E62: 0.01861381604 | F62: 0.02966470278 | P62: 999 | Q62: 73.07243956 | R62: 64.7635758 | AB62: 0 | AC62: 0 | AD62: 0 | AE62: 0 | AF62: 0 | AG62: 0 | AH62: 0 | AI62: 0 | AJ62: 0 | AK62: 0 | AL62: 0 | AM62: 0 | AN62: 999 | AO62: 999 | AP62: 999 | AQ62: 999 | AR62: 999 | AS62: 999 | AT62: 999 | AU62: 999 | AV62: 999 | AW62: 999 | AX62: 999 | AY62: 999 | AZ62: 26.30189586 | BA62: 26.30193027 | BB62: 26.30196486 | BL62: -80.24162061 | BM62: -80.24164741 | BN62: -80.24165761 | BX62: Open Graded Friction Course | BY62: 0 | BZ62: 2 | CF62: 1.16 | CG62: 1.535 | CH62: 2.09 | CR62: -0.95 | CS62: -0.93 | CT62: -0.89 | DD62: 0.068 | DE62: 0.068 | DF62: 0.068 | DP62: 0.082188 | DQ62: 0.082188 | DR62: 0.082188 | EB62: 0 | EC62: 0.11 | ED62: 0.14 | EN62: 12 | EO62: 12 | EP62: 12 | EZ62: 2 | FA62: 1.499366533 | FB62: 1.794749286 | FC62: 2.27160736 | FM62: 15.51068827 | FN62: 14.03061331 | FO62: 13.04272169 | FY62: 15.51068827 | FZ62: 29.54130158 | GA62: 42.58402327 | GK62: 3.880564287e-05 | GL62: 18.5047165 | GM62: 35.24365916 | GN62: 50.80401748 | GX62: 0.4894251767 | GY62: 0.3935039417 | GZ62: 0.3621791725 | HK62: 20.40610718 | HL62: 19.69146126 | IH62: 60 | II62: 60 | IJ62: 60
A63: Gallaway | B63: PAVDRN | C63: 16.16 | D63: -0.006522676043 | E63: 0.01780534156 | F63: 0.02987594771 | P63: 999 | Q63: 73.91770082 | R63: 64.64466095 | AB63: 0 | AC63: 0 | AD63: 0 | AE63: 0 | AF63: 0 | AG63: 0 | AH63: 0 | AI63: 0 | AJ63: 0 | AK63: 0 | AL63: 0 | AM63: 0 | AN63: 999 | AO63: 999 | AP63: 999 | AQ63: 999 | AR63: 999 | AS63: 999 | AT63: 999 | AU63: 999 | AV63: 999 | AW63: 999 | AX63: 999 | AY63: 999 | AZ63: 26.30189569 | BA63: 26.30193002 | BB63: 26.30196455 | BL63: -80.2416066 | BM63: -80.24162609 | BN63: -80.24164396 | BX63: Open Graded Friction Course | BY63: 0 | BZ63: 2 | CF63: 1.21 | CG63: 1.55 | CH63: 2.05 | CR63: -0.95 | CS63: -0.94 | CT63: -0.93 | DD63: 0.068 | DE63: 0.068 | DF63: 0.068 | DP63: 0.082188 | DQ63: 0.082188 | DR63: 0.082188 | EB63: 0 | EC63: 0.15 | ED63: 0.11 | EN63: 12 | EO63: 12 | EP63: 12 | EZ63: 2 | FA63: 1.538375767 | FB63: 1.812760326 | FC63: 2.251088626 | FM63: 15.25661918 | FN63: 14.03427349 | FO63: 13.17710415 | FY63: 15.25661918 | FZ63: 29.29089267 | GA63: 42.46799682 | GK63: 3.880564287e-05 | GL63: 18.20160445 | GM63: 34.94491381 | GN63: 50.66559444 | GX63: 0.496753426 | GY63: 0.3961353708 | GZ63: 0.3615930126 | HK63: 20.47524717 | HL63: 19.6807342 | IH63: 60 | II63: 60 | IJ63: 60
A64: Gallaway | B64: PAVDRN | C64: 16.161 | D64: -0.007164834374 | E64: 0.01805602912 | F64: 0.02983845835 | P64: 999 | Q64: 73.6505201 | R64: 64.66568721 | AB64: 0 | AC64: 0 | AD64: 0 | AE64: 0 | AF64: 0 | AG64: 0 | AH64: 0 | AI64: 0 | AJ64: 0 | AK64: 0 | AL64: 0 | AM64: 0 | AN64: 999 | AO64: 999 | AP64: 999 | AQ64: 999 | AR64: 999 | AS64: 999 | AT64: 999 | AU64: 999 | AV64: 999 | AW64: 999 | AX64: 999 | AY64: 999 | AZ64: 26.30189552 | BA64: 26.3019297 | BB64: 26.30196428 | BL64: -80.24159214 | BM64: -80.24161176 | BN64: -80.24162388 | BX64: Open Graded Friction Course | BY64: 0 | BZ64: 2 | CF64: 1.24 | CG64: 1.54 | CH64: 2.06 | CR64: -0.98 | CS64: -0.95 | CT64: -0.93 | DD64: 0.068 | DE64: 0.068 | DF64: 0.068 | DP64: 0.082188 | DQ64: 0.082188 | DR64: 0.082188 | EB64: 0.02 | EC64: 0.14 | ED64: 0.1 | EN64: 12 | EO64: 12 | EP64: 12 | EZ64: 2 | FA64: 1.580506248 | FB64: 1.809447429 | FC64: 2.260199106 | FM64: 15.29522175 | FN64: 14.09959036 | FO64: 13.16620839 | FY64: 15.29522175 | FZ64: 29.39481211 | GA64: 42.5610205 | GK64: 3.880564287e-05 | GL64: 18.24765848 | GM64: 35.06889283 | GN64: 50.77657448 | GX64: 0.5003409879 | GY64: 0.3953196334 | GZ64: 0.361704471 | HK64: 20.4534585 | HL64: 19.68263204 | IH64: 60 | II64: 60 | IJ64: 60
A65: Gallaway | B65: PAVDRN | C65: 16.162 | D65: -0.006692361346 | E65: 0.01971289485 | F65: 0.0289845394 | P65: 999 | Q65: 71.99471634 | R65: 65.15381966 | AB65: 0 | AC65: 0 | AD65: 0 | AE65: 0 | AF65: 0 | AG65: 0 | AH65: 0 | AI65: 0 | AJ65: 0 | AK65: 0 | AL65: 0 | AM65: 0 | AN65: 999 | AO65: 999 | AP65: 999 | AQ65: 999 | AR65: 999 | AS65: 999 | AT65: 999 | AU65: 999 | AV65: 999 | AW65: 999 | AX65: 999 | AY65: 999 | AZ65: 26.30189536 | BA65: 26.30192952 | BB65: 26.30196403 | BL65: -80.24157792 | BM65: -80.24159757 | BN65: -80.24160361 | BX65: Open Graded Friction Course | BY65: 0 | BZ65: 2 | CF65: 1.22 | CG65: 1.47 | CH65: 2.12 | CR65: -0.97 | CS65: -0.94 | CT65: -0.94 | DD65: 0.068 | DE65: 0.068 | DF65: 0.068 | DP65: 0.082188 | DQ65: 0.082188 | DR65: 0.082188 | EB65: 0 | EC65: 0.16 | ED65: 0.08 | EN65: 12 | EO65: 12 | EP65: 12 | EZ65: 2 | FA65: 1.558621186 | FB65: 1.744849564 | FC65: 2.31905153 | FM65: 15.33070019 | FN65: 14.24366991 | FO65: 13.12670678 | FY65: 15.33070019 | FZ65: 29.57437009 | GA65: 42.70107687 | GK65: 3.880564287e-05 | GL65: 18.28998531 | GM65: 35.28311089 | GN65: 50.94366593 | GX65: 0.4977215227 | GY65: 0.3899382698 | GZ65: 0.3640533303 | HK65: 20.31705552 | HL65: 19.72655835 | IH65: 60 | II65: 60 | IJ65: 60
A66: Gallaway | B66: PAVDRN | C66: 16.163 | D66: -0.007509234018 | E66: 0.0193544564 | F66: 0.02914151915 | P66: 999 | Q66: 72.33770174 | R66: 65.06273616 | AB66: 0 | AC66: 0 | AD66: 0 | AE66: 0 | AF66: 0 | AG66: 0 | AH66: 0 | AI66: 0 | AJ66: 0 | AK66: 0 | AL66: 0 | AM66: 0 | AN66: 999 | AO66: 999 | AP66: 999 | AQ66: 999 | AR66: 999 | AS66: 999 | AT66: 999 | AU66: 999 | AV66: 999 | AW66: 999 | AX66: 999 | AY66: 999 | AZ66: 26.30189519 | BA66: 26.30192935 | BB66: 26.30196386 | BL66: -80.24156376 | BM66: -80.2415831 | BN66: -80.24159014 | BX66: Open Graded Friction Course | BY66: 0 | BZ66: 2 | CF66: 1.25 | CG66: 1.47 | CH66: 2.1 | CR66: -0.96 | CS66: -0.94 | CT66: -0.92 | DD66: 0.068 | DE66: 0.068 | DF66: 0.068 | DP66: 0.082188 | DQ66: 0.082188 | DR66: 0.082188 | EB66: 0.03 | EC66: 0.13 | ED66: 0.11 | EN66: 12 | EO66: 12 | EP66: 12 | EZ66: 2 | FA66: 1.576102789 | FB66: 1.744849564 | FC66: 2.292684017 | FM66: 15.13058677 | FN66: 14.24366991 | FO66: 13.10105152 | FY66: 15.13058677 | FZ66: 29.37425668 | GA66: 42.4753082 | GK66: 3.880564287e-05 | GL66: 18.051244 | GM66: 35.04436958 | GN66: 50.67431714 | GX66: 0.5022131856 | GY66: 0.3910624118 | GZ66: 0.3635980311 | HK66: 20.34550668 | HL66: 19.71838112 | IH66: 60 | II66: 60 | IJ66: 60
A67: Gallaway | B67: PAVDRN | C67: 16.164 | D67: -0.007119147 | E67: 0.01919605917 | F67: 0.02900491586 | P67: 999 | Q67: 72.49182798 | R67: 65.1419617 | AB67: 0 | AC67: 0 | AD67: 0 | AE67: 0 | AF67: 0 | AG67: 0 | AH67: 0 | AI67: 0 | AJ67: 0 | AK67: 0 | AL67: 0 | AM67: 0 | AN67: 999 | AO67: 999 | AP67: 999 | AQ67: 999 | AR67: 999 | AS67: 999 | AT67: 999 | AU67: 999 | AV67: 999 | AW67: 999 | AX67: 999 | AY67: 999 | AZ67: 26.30189502 | BA67: 26.30192919 | BB67: 26.3019637 | BL67: -80.24154947 | BM67: -80.24156907 | BN67: -80.24157661 | BX67: Open Graded Friction Course | BY67: 0 | BZ67: 2 | CF67: 1.24 | CG67: 1.49 | CH67: 2.14 | CR67: -0.99 | CS67: -0.97 | CT67: -0.88 | DD67: 0.068 | DE67: 0.068 | DF67: 0.068 | DP67: 0.082188 | DQ67: 0.082188 | DR67: 0.082188 | EB67: 0.04 | EC67: 0.13 | ED67: 0.12 | EN67: 12 | EO67: 12 | EP67: 12 | EZ67: 2 | FA67: 1.586726189 | FB67: 1.777920133 | FC67: 2.313871215 | FM67: 15.35541474 | FN67: 14.31881986 | FO67: 12.97497878 | FY67: 15.35541474 | FZ67: 29.6742346 | GA67: 42.64921338 | GK67: =KVis.V0*EXP(KVis.a+KVis.b*273.16/(273.16+CONVERT(CA67,"F","C"))+KVis.c*(273.16/(273.16+CONVERT(CA67,"F","C")))^2)*CONVERT(1,"m","ft")^2*10^(-6) -> 3.880564287e-05 | GL67: 18.31947051 | GM67: 35.40225224 | GN67: 50.88179123 | GX67: 0.50010915 | GY67: 0.391624919 | GZ67: 0.3639918037 | HK67: 20.35825793 | HL67: 19.72549428 | IH67: 60 | II67: 60 | IJ67: 60
